Workbook

Sheet OLAP
B1: 1 | C1: FINANCIAL_MGR | D1: Orgn | E1: OrgnTitle | F1: Acct | G1: AcctTitle | M1: Fund | N1: FundTitle | O1: Prog | P1: ProgTitle | Q1: FundType | R1: FundTypeTitle | S1: AcctType | T1: edtech
A2: POLICE IS CHANGED FROM 40 TO 35 AS OF 8-12-14 | G2: CORRECT FISCAL YEAR | H2: 2012 YTD | I2: 2013YTD | J2: 2014Revised | L2: 2015 Budget
B3: 2 | C3: Ammons, Matthew S. | D3: 240215 | E3: Telecommunications | F3: 611310 | G3: Supervisory Support Staff - Exempt | H3: 62591.04 | I3: 64781.64 | J3: 67373 | K3: 33686.46 | L3: 67373 | M3: 110010 | N3: Current Unrestricted | O3: 35 | P3: Institutional Support | Q3: 11 | R3: Current Unrestricted Funds | S3: 61 | T3: 9
B4: 3 | C4: =VLOOKUP(Orgn,fin_mgr,22,FALSE) -> Ammons, Matthew S. | D4: 240215 | E4: Telecommunications | F4: 611420 | G4: Non-Supervisory Supp - Non-Exempt | H4: 155397.88 | I4: 161134.32 | J4: 167542 | K4: 83770.62 | L4: 167541 | M4: 110010 | N4: Current Unrestricted | O4: 35 | P4: Institutional Support | Q4: 11 | R4: Current Unrestricted Funds | S4: 61 | T4: 9
B5: 4 | C5: Ammons, Matthew S. | D5: 240215 | E5: Telecommunications | F5: 611492 | G5: Regular Overtime | H5: 90.59 | I5: 0 | J5: 1000 | K5: 132.82 | L5: 500 | M5: 110010 | N5: Current Unrestricted | O5: 35 | P5: Institutional Support | Q5: 11 | R5: Current Unrestricted Funds | S5: 61 | T5: 9
B6: 6 | C6: Ammons, Matthew S. | D6: 240215 | E6: Telecommunications | F6: 712370 | G6: Other Contract Services | H6: 105483.51 | I6: 88159.43 | J6: 92321 | K6: 27850.93 | L6: 80000 | M6: 110010 | N6: Current Unrestricted | O6: 35 | P6: Institutional Support | Q6: 11 | R6: Current Unrestricted Funds | S6: 71 | T6: 9
B7: 7 | C7: Ammons, Matthew S. | D7: 240215 | E7: Telecommunications | F7: 712490 | G7: Rental - Other | H7: 33105.74 | I7: 33755.2 | J7: 35000 | K7: 5079.25 | L7: 40000 | M7: 110010 | N7: Current Unrestricted | O7: 35 | P7: Institutional Support | Q7: 11 | R7: Current Unrestricted Funds | S7: 71 | T7: 9
B8: 8 | C8: Ammons, Matthew S. | D8: 240215 | E8: Telecommunications | F8: 712510 | G8: Maintenance Agreements | H8: 28822 | I8: 25867.98 | J8: 65000 | K8: 56799.5 | L8: 62000 | M8: 110010 | N8: Current Unrestricted | O8: 35 | P8: Institutional Support | Q8: 11 | R8: Current Unrestricted Funds | S8: 71 | T8: 9
B9: 9 | C9: Ammons, Matthew S. | D9: 240215 | E9: Telecommunications | F9: 712550 | G9: Computer Maintenance | H9: 183583.55 | I9: 291545.75 | J9: 290909 | K9: 22512.35 | L9: 300000 | M9: 110010 | N9: Current Unrestricted | O9: 35 | P9: Institutional Support | Q9: 11 | R9: Current Unrestricted Funds | S9: 71 | T9: 9
B10: 10 | C10: Ammons, Matthew S. | D10: 240215 | E10: Telecommunications | F10: 733120 | G10: Office Supplies | H10: 36090.12 | I10: 11303.18 | J10: 24669 | K10: 12095.3 | L10: 20000 | M10: 110010 | N10: Current Unrestricted | O10: 35 | P10: Institutional Support | Q10: 11 | R10: Current Unrestricted Funds | S10: 73 | T10: 9
B11: 11 | C11: Ammons, Matthew S. | D11: 240215 | E11: Telecommunications | F11: 733330 | G11: Audio Visual Supplies | H11: 7200 | I11: 50747.5 | J11: 0 | K11: 0 | L11: 0 | M11: 110010 | N11: Current Unrestricted | O11: 35 | P11: Institutional Support | Q11: 11 | R11: Current Unrestricted Funds | S11: 73 | T11: 9
B12: 12 | C12: Ammons, Matthew S. | D12: 240215 | E12: Telecommunications | F12: 744210 | G12: Local Travel | H12: 3235 | I12: 3935.26 | J12: 3200 | K12: 1562.96 | L12: 3200 | M12: 110010 | N12: Current Unrestricted | O12: 35 | P12: Institutional Support | Q12: 11 | R12: Current Unrestricted Funds | S12: 74 | T12: 9
B13: 13 | C13: Ammons, Matthew S. | D13: 240215 | E13: Telecommunications | F13: 744220 | G13: Professional Development / Travel | H13: 19000 | I13: 16999.8 | J13: 0 | K13: 0 | L13: 0 | M13: 110010 | N13: Current Unrestricted | O13: 35 | P13: Institutional Support | Q13: 11 | R13: Current Unrestricted Funds | S13: 74 | T13: 9
B14: 14 | C14: Ammons, Matthew S. | D14: 240215 | E14: Telecommunications | F14: 755240 | G14: DP - Software | H14: 39141.77 | I14: 20372.89 | J14: 55114 | K14: 27139.21 | L14: 45000 | M14: 110010 | N14: Current Unrestricted | O14: 35 | P14: Institutional Support | Q14: 11 | R14: Current Unrestricted Funds | S14: 75 | T14: 9
B15: 15 | C15: Ammons, Matthew S. | D15: 240215 | E15: Telecommunications | F15: 755510 | G15: Repairs - Equipment | H15: 0 | I15: 18494.46 | J15: 3328 | K15: 3327.92 | L15: 4500 | M15: 110010 | N15: Current Unrestricted | O15: 35 | P15: Institutional Support | Q15: 11 | R15: Current Unrestricted Funds | S15: 75 | T15: 9
B16: 16 | C16: Ammons, Matthew S. | D16: 240215 | E16: Telecommunications | F16: 755705 | G16: Postage | H16: 30.17 | I16: 41.44 | J16: 195 | K16: 104.73 | L16: 125 | M16: 110010 | N16: Current Unrestricted | O16: 35 | P16: Institutional Support | Q16: 11 | R16: Current Unrestricted Funds | S16: 75 | T16: 9
B17: 17 | C17: Ammons, Matthew S. | D17: 240215 | E17: Telecommunications | F17: 755750 | G17: Freight | H17: 8.4 | I17: 0 | J17: 0 | K17: 0 | L17: 0 | M17: 110010 | N17: Current Unrestricted | O17: 35 | P17: Institutional Support | Q17: 11 | R17: Current Unrestricted Funds | S17: 75 | T17: 9
B18: 18 | C18: Ammons, Matthew S. | D18: 240215 | E18: Telecommunications | F18: 765420 | G18: Telephone | H18: 81950.81 | I18: 69264.1 | J18: 140611 | K18: 35059.63 | L18: 140611 | M18: 110010 | N18: Current Unrestricted | O18: 35 | P18: Institutional Support | Q18: 11 | R18: Current Unrestricted Funds | S18: 76 | T18: 9
B19: 19 | C19: Ammons, Matthew S. | D19: 240215 | E19: Telecommunications | F19: 765422 | G19: Internet Connections | H19: 150588.57 | I19: 166641.53 | J19: 244708 | K19: 84526.8 | L19: 200000 | M19: 110010 | N19: Current Unrestricted | O19: 35 | P19: Institutional Support | Q19: 11 | R19: Current Unrestricted Funds | S19: 76 | T19: 9
B20: 20 | C20: Ammons, Matthew S. | D20: 240215 | E20: Telecommunications | F20: 765425 | G20: Telephone - Cellular | H20: 1232.19 | I20: 905.32 | J20: 1000 | K20: 376.66 | L20: 900 | M20: 110010 | N20: Current Unrestricted | O20: 35 | P20: Institutional Support | Q20: 11 | R20: Current Unrestricted Funds | S20: 76 | T20: 9
B21: 21 | C21: Ammons, Matthew S. | D21: 240215 | E21: Telecommunications | F21: 765495 | G21: Telephone Allocation | H21: -2970 | I21: -3780 | J21: 0 | K21: -1890 | L21: 0 | M21: 110010 | N21: Current Unrestricted | O21: 35 | P21: Institutional Support | Q21: 11 | R21: Current Unrestricted Funds | S21: 76 | T21: 9
B22: 22 | C22: Ammons, Matthew S. | D22: 240215 | E22: Telecommunications | F22: 777410 | G22: Equipment/Furniture - CPC | H22: 0 | I22: 0 | J22: 271011 | K22: 0 | L22: 0 | M22: 110010 | N22: Current Unrestricted | O22: 35 | P22: Institutional Support | Q22: 11 | R22: Current Unrestricted Funds | S22: 77 | T22: 9
B23: 23 | C23: Ammons, Matthew S. | D23: 240215 | E23: Telecommunications | F23: 777412 | G23: Equipment/Furniture - SCC | H23: 0 | I23: 0 | J23: 23019 | K23: 0 | L23: 0 | M23: 110010 | N23: Current Unrestricted | O23: 35 | P23: Institutional Support | Q23: 11 | R23: Current Unrestricted Funds | S23: 77 | T23: 9
B24: 24 | C24: Ammons, Matthew S. | D24: 240215 | E24: Telecommunications | F24: 777415 | G24: Equipment/Furniture - WAN/LAN | H24: 136212.99 | I24: 0 | J24: 26637 | K24: 26636.3 | L24: 248000 | M24: 110010 | N24: Current Unrestricted | O24: 35 | P24: Institutional Support | Q24: 11 | R24: Current Unrestricted Funds | S24: 77 | T24: 9
B25: 25 | C25: Ammons, Matthew S. | D25: 240215 | E25: Telecommunications | F25: 777416 | G25: Equipment/Furniture - PRC | H25: 0 | I25: 5600 | J25: 34530 | K25: 0 | L25: 0 | M25: 110010 | N25: Current Unrestricted | O25: 35 | P25: Institutional Support | Q25: 11 | R25: Current Unrestricted Funds | S25: 77 | T25: 9
B26: 26 | C26: Ammons, Matthew S. | D26: 240215 | E26: Telecommunications | F26: 787410 | G26: Equipment/Furniture Non-Depreciable | H26: 0 | I26: 0 | J26: 1105 | K26: 1104.56 | L26: 0 | M26: 110010 | N26: Current Unrestricted | O26: 35 | P26: Institutional Support | Q26: 11 | R26: Current Unrestricted Funds | S26: 78 | T26: 9
B27: 27 | C27: Ammons, Matthew S. | D27: 240215 | E27: Telecommunications | F27: 787430 | G27: Computer/Media Equip | H27: 101366.83 | I27: 74988.06 | J27: 22524 | K27: 16109.43 | L27: 0 | M27: 110010 | N27: Current Unrestricted | O27: 35 | P27: Institutional Support | Q27: 11 | R27: Current Unrestricted Funds | S27: 78 | T27: 9
B28: 28 | C28: Ammons, Matthew S. | D28: 300100 | E28: Computer Lab 1 | F28: 611410 | G28: Supervisory Supp Staff - Non-Exempt | H28: 39829.32 | I28: 41223.36 | J28: 42873 | K28: 21436.14 | L28: 42872 | M28: 110010 | N28: Current Unrestricted | O28: 10 | P28: Instruction | Q28: 11 | R28: Current Unrestricted Funds | S28: 61 | T28: 1
B29: 29 | C29: Ammons, Matthew S. | D29: 300100 | E29: Computer Lab 1 | F29: 611460 | G29: Support Staff PT - Non-Exempt | H29: 2718.44 | I29: 74.16 | J29: 0 | K29: 0 | L29: 0 | M29: 110010 | N29: Current Unrestricted | O29: 10 | P29: Instruction | Q29: 11 | R29: Current Unrestricted Funds | S29: 61 | T29: 1
B30: 30 | C30: Ammons, Matthew S. | D30: 300100 | E30: Computer Lab 1 | F30: 611475 | G30: Supp Staff - Lab Assist-Non-Exempt | H30: 39728.04 | I30: 39728.04 | J30: 39729 | K30: 19864.02 | L30: 39728 | M30: 110010 | N30: Current Unrestricted | O30: 10 | P30: Instruction | Q30: 11 | R30: Current Unrestricted Funds | S30: 61 | T30: 1
B31: 32 | C31: Ammons, Matthew S. | D31: 300100 | E31: Computer Lab 1 | F31: 611476 | G31: Lab Assistants PT - Non-Exempt | H31: 23078.59 | I31: 21944.77 | J31: 20800 | K31: 11064.13 | L31: 20800 | M31: 110010 | N31: Current Unrestricted | O31: 10 | P31: Instruction | Q31: 11 | R31: Current Unrestricted Funds | S31: 61 | T31: 1
B32: 33 | C32: Ammons, Matthew S. | D32: 300100 | E32: Computer Lab 1 | F32: 611491 | G32: Comp Time Payoff | H32: 0 | I32: 289.96 | J32: 0 | K32: 0 | L32: 0 | M32: 110010 | N32: Current Unrestricted | O32: 10 | P32: Instruction | Q32: 11 | R32: Current Unrestricted Funds | S32: 61 | T32: 1
B33: 34 | C33: Ammons, Matthew S. | D33: 300100 | E33: Computer Lab 1 | F33: 611492 | G33: Regular Overtime | H33: 0 | I33: 274.99 | J33: 0 | K33: 0 | L33: 0 | M33: 110010 | N33: Current Unrestricted | O33: 10 | P33: Instruction | Q33: 11 | R33: Current Unrestricted Funds | S33: 61 | T33: 1
B34: 35 | C34: Ammons, Matthew S. | D34: 300100 | E34: Computer Lab 1 | F34: 611510 | G34: Student Assistants - Non-Work Study | H34: 5828.52 | I34: 12480.14 | J34: 14315 | K34: 6608.81 | L34: 14315 | M34: 110010 | N34: Current Unrestricted | O34: 10 | P34: Instruction | Q34: 11 | R34: Current Unrestricted Funds | S34: 61 | T34: 1
B35: 36 | C35: Ammons, Matthew S. | D35: 300100 | E35: Computer Lab 1 | F35: 611515 | G35: Student Assistants - Non-WS<6 hrs | H35: 4815.78 | I35: 0 | J35: 0 | K35: 0 | L35: 0 | M35: 110010 | N35: Current Unrestricted | O35: 10 | P35: Instruction | Q35: 11 | R35: Current Unrestricted Funds | S35: 61 | T35: 1
B36: 37 | C36: Ammons, Matthew S. | D36: 300100 | E36: Computer Lab 1 | F36: 733110 | G36: Classroom Supplies | H36: 11868.52 | I36: 12653.57 | J36: 13000 | K36: 10362.54 | L36: 13000 | M36: 110010 | N36: Current Unrestricted | O36: 10 | P36: Instruction | Q36: 11 | R36: Current Unrestricted Funds | S36: 73 | T36: 4
B37: 38 | C37: Ammons, Matthew S. | D37: 300100 | E37: Computer Lab 1 | F37: 733120 | G37: Office Supplies | H37: 45.8 | I37: 30.38 | J37: 50 | K37: 0 | L37: 50 | M37: 110010 | N37: Current Unrestricted | O37: 10 | P37: Instruction | Q37: 11 | R37: Current Unrestricted Funds | S37: 73 | T37: 4
B38: 39 | C38: Ammons, Matthew S. | D38: 300100 | E38: Computer Lab 1 | F38: 755310 | G38: Copier Expense | H38: 14.34 | I38: 0 | J38: 0 | K38: 0 | L38: 0 | M38: 110010 | N38: Current Unrestricted | O38: 10 | P38: Instruction | Q38: 11 | R38: Current Unrestricted Funds | S38: 75 | T38: 4
B39: 40 | C39: Ammons, Matthew S. | D39: 300100 | E39: Computer Lab 1 | F39: 787430 | G39: Computer/Media Equip | H39: 28842.24 | I39: 5765.2 | J39: 37216 | K39: 37215.25 | L39: 29100 | M39: 110010 | N39: Current Unrestricted | O39: 10 | P39: Instruction | Q39: 11 | R39: Current Unrestricted Funds | S39: 78 | T39: 4
B40: 41 | C40: Ammons, Matthew S. | D40: 300102 | E40: Computer Lab 1 | F40: 611410 | G40: Supervisory Supp Staff - Non-Exempt | H40: 44655 | I40: 45993.96 | J40: 47604 | K40: 23802 | L40: 47604 | M40: 110010 | N40: Current Unrestricted | O40: 10 | P40: Instruction | Q40: 11 | R40: Current Unrestricted Funds | S40: 61 | T40: 1
B41: 42 | C41: Ammons, Matthew S. | D41: 300102 | E41: Computer Lab 1 | F41: 611460 | G41: Support Staff PT - Non-Exempt | H41: 1747.4 | I41: 241.02 | J41: 0 | K41: 0 | L41: 0 | M41: 110010 | N41: Current Unrestricted | O41: 10 | P41: Instruction | Q41: 11 | R41: Current Unrestricted Funds | S41: 61 | T41: 1
B42: 43 | C42: Ammons, Matthew S. | D42: 300102 | E42: Computer Lab 1 | F42: 611475 | G42: Supp Staff - Lab Assist-Non-Exempt | H42: 33589.2 | I42: 34764.72 | J42: 36156 | K42: 18077.7 | L42: 36155 | M42: 110010 | N42: Current Unrestricted | O42: 10 | P42: Instruction | Q42: 11 | R42: Current Unrestricted Funds | S42: 61 | T42: 1
B43: 44 | C43: Ammons, Matthew S. | D43: 300102 | E43: Computer Lab 1 | F43: 611476 | G43: Lab Assistants PT - Non-Exempt | H43: 17238.33 | I43: 17903.78 | J43: 20800 | K43: 8853.68 | L43: 20800 | M43: 110010 | N43: Current Unrestricted | O43: 10 | P43: Instruction | Q43: 11 | R43: Current Unrestricted Funds | S43: 61 | T43: 1
B44: 45 | C44: Ammons, Matthew S. | D44: 300102 | E44: Computer Lab 1 | F44: 611510 | G44: Student Assistants - Non-Work Study | H44: 24716.72 | I44: 28627.11 | J44: 33768 | K44: 15186.6 | L44: 33768 | M44: 110010 | N44: Current Unrestricted | O44: 10 | P44: Instruction | Q44: 11 | R44: Current Unrestricted Funds | S44: 61 | T44: 1
B45: 46 | C45: Ammons, Matthew S. | D45: 300102 | E45: Computer Lab 1 | F45: 611515 | G45: Student Assistants - Non-WS<6 hrs | H45: 5058.97 | I45: 0 | J45: 0 | K45: 0 | L45: 0 | M45: 110010 | N45: Current Unrestricted | O45: 10 | P45: Instruction | Q45: 11 | R45: Current Unrestricted Funds | S45: 61 | T45: 1
B46: 47 | C46: Ammons, Matthew S. | D46: 300102 | E46: Computer Lab 1 | F46: 733110 | G46: Classroom Supplies | H46: 40728.52 | I46: 33721 | J46: 39379 | K46: 17898.05 | L46: 33000 | M46: 110010 | N46: Current Unrestricted | O46: 10 | P46: Instruction | Q46: 11 | R46: Current Unrestricted Funds | S46: 73 | T46: 4
B47: 48 | C47: Ammons, Matthew S. | D47: 300102 | E47: Computer Lab 1 | F47: 733120 | G47: Office Supplies | H47: 797.15 | I47: 1006.56 | J47: 371 | K47: 370.38 | L47: 100 | M47: 110010 | N47: Current Unrestricted | O47: 10 | P47: Instruction | Q47: 11 | R47: Current Unrestricted Funds | S47: 73 | T47: 4
B48: 49 | C48: Ammons, Matthew S. | D48: 300102 | E48: Computer Lab 1 | F48: 755240 | G48: DP - Software | H48: 10033.12 | I48: 17447.7 | J48: 19103 | K48: 8667 | L48: 20000 | M48: 110010 | N48: Current Unrestricted | O48: 10 | P48: Instruction | Q48: 11 | R48: Current Unrestricted Funds | S48: 75 | T48: 4
B49: 50 | C49: Ammons, Matthew S. | D49: 300102 | E49: Computer Lab 1 | F49: 755310 | G49: Copier Expense | H49: 46.92 | I49: 28.46 | J49: 35 | K49: 8.4 | L49: 20 | M49: 110010 | N49: Current Unrestricted | O49: 10 | P49: Instruction | Q49: 11 | R49: Current Unrestricted Funds | S49: 75 | T49: 4
B50: 51 | C50: Ammons, Matthew S. | D50: 300102 | E50: Computer Lab 1 | F50: 755510 | G50: Repairs - Equipment | H50: 0 | I50: 0 | J50: 400 | K50: 373 | L50: 375 | M50: 110010 | N50: Current Unrestricted | O50: 10 | P50: Instruction | Q50: 11 | R50: Current Unrestricted Funds | S50: 75 | T50: 4
B51: 52 | C51: Ammons, Matthew S. | D51: 300102 | E51: Computer Lab 1 | F51: 787430 | G51: Computer/Media Equip | H51: 24950.06 | I51: 0 | J51: 4500 | K51: 4045.1 | L51: 26750 | M51: 110010 | N51: Current Unrestricted | O51: 10 | P51: Instruction | Q51: 11 | R51: Current Unrestricted Funds | S51: 78 | T51: 4
B52: 53 | C52: Ammons, Matthew S. | D52: 300104 | E52: Computer Lab 1 | F52: 611410 | G52: Supervisory Supp Staff - Non-Exempt | H52: 31333.32 | I52: 34424.4 | J52: 35802 | K52: 17900.7 | L52: 35801 | M52: 110010 | N52: Current Unrestricted | O52: 10 | P52: Instruction | Q52: 11 | R52: Current Unrestricted Funds | S52: 61 | T52: 1
B53: 54 | C53: Ammons, Matthew S. | D53: 300104 | E53: Computer Lab 1 | F53: 611475 | G53: Supp Staff - Lab Assist-Non-Exempt | H53: 29147.16 | I53: 30167.28 | J53: 31374 | K53: 15687 | L53: 31374 | M53: 110010 | N53: Current Unrestricted | O53: 10 | P53: Instruction | Q53: 11 | R53: Current Unrestricted Funds | S53: 61 | T53: 1
B54: 55 | C54: Ammons, Matthew S. | D54: 300104 | E54: Computer Lab 1 | F54: 611476 | G54: Lab Assistants PT - Non-Exempt | H54: 31076.06 | I54: 32724.8 | J54: 33280 | K54: 15550.41 | L54: 33280 | M54: 110010 | N54: Current Unrestricted | O54: 10 | P54: Instruction | Q54: 11 | R54: Current Unrestricted Funds | S54: 61 | T54: 1
B55: 56 | C55: Ammons, Matthew S. | D55: 300104 | E55: Computer Lab 1 | F55: 611492 | G55: Regular Overtime | H55: 121.2 | I55: 104.74 | J55: 75 | K55: 0 | L55: 0 | M55: 110010 | N55: Current Unrestricted | O55: 10 | P55: Instruction | Q55: 11 | R55: Current Unrestricted Funds | S55: 61 | T55: 1
B56: 57 | C56: Ammons, Matthew S. | D56: 300104 | E56: Computer Lab 1 | F56: 712550 | G56: Computer Maintenance | H56: 0 | I56: 0 | J56: 1950 | K56: 1950 | L56: 1950 | M56: 110010 | N56: Current Unrestricted | O56: 10 | P56: Instruction | Q56: 11 | R56: Current Unrestricted Funds | S56: 71 | T56: 4
B57: 58 | C57: Ammons, Matthew S. | D57: 300104 | E57: Computer Lab 1 | F57: 733110 | G57: Classroom Supplies | H57: 2517.48 | I57: 3117.05 | J57: 2400 | K57: 1893.8 | L57: 2400 | M57: 110010 | N57: Current Unrestricted | O57: 10 | P57: Instruction | Q57: 11 | R57: Current Unrestricted Funds | S57: 73 | T57: 4
B58: 59 | C58: Ammons, Matthew S. | D58: 300104 | E58: Computer Lab 1 | F58: 733120 | G58: Office Supplies | H58: 61 | I58: 0 | J58: 25 | K58: 0 | L58: 25 | M58: 110010 | N58: Current Unrestricted | O58: 10 | P58: Instruction | Q58: 11 | R58: Current Unrestricted Funds | S58: 73 | T58: 4
B59: 60 | C59: Ammons, Matthew S. | D59: 300104 | E59: Computer Lab 1 | F59: 733310 | G59: Data Processing Supplies | H59: 331.9 | I59: 0 | J59: 0 | K59: 0 | L59: 0 | M59: 110010 | N59: Current Unrestricted | O59: 10 | P59: Instruction | Q59: 11 | R59: Current Unrestricted Funds | S59: 73 | T59: 4
B60: 61 | C60: Ammons, Matthew S. | D60: 300104 | E60: Computer Lab 1 | F60: 755310 | G60: Copier Expense | H60: 5.16 | I60: 0 | J60: 0 | K60: 0 | L60: 0 | M60: 110010 | N60: Current Unrestricted | O60: 10 | P60: Instruction | Q60: 11 | R60: Current Unrestricted Funds | S60: 75 | T60: 4
B61: 62 | C61: Ammons, Matthew S. | D61: 300104 | E61: Computer Lab 1 | F61: 755510 | G61: Repairs - Equipment | H61: 0 | I61: 1950 | J61: 0 | K61: 0 | L61: 0 | M61: 110010 | N61: Current Unrestricted | O61: 10 | P61: Instruction | Q61: 11 | R61: Current Unrestricted Funds | S61: 75 | T61: 4
B62: 63 | C62: Ammons, Matthew S. | D62: 300104 | E62: Computer Lab 1 | F62: 787430 | G62: Computer/Media Equip | H62: 72742.45 | I62: 0 | J62: 39100 | K62: 39099.15 | L62: 0 | M62: 110010 | N62: Current Unrestricted | O62: 10 | P62: Instruction | Q62: 11 | R62: Current Unrestricted Funds | S62: 78 | T62: 4
B63: 64 | C63: Ammons, Matthew S. | D63: 300106 | E63: Computer Lab 1 | F63: 611410 | G63: Supervisory Supp Staff - Non-Exempt | H63: 36284.88 | I63: 37554.84 | J63: 39058 | K63: 19528.56 | L63: 39057 | M63: 110010 | N63: Current Unrestricted | O63: 10 | P63: Instruction | Q63: 11 | R63: Current Unrestricted Funds | S63: 61 | T63: 1
B64: 65 | C64: Ammons, Matthew S. | D64: 300106 | E64: Computer Lab 1 | F64: 611455 | G64: PT Instr Assistant - Non-Exempt | H64: 0 | I64: 0 | J64: 800 | K64: 0 | L64: 0 | M64: 110010 | N64: Current Unrestricted | O64: 10 | P64: Instruction | Q64: 11 | R64: Current Unrestricted Funds | S64: 61 | T64: 1
B65: 66 | C65: Ammons, Matthew S. | D65: 300106 | E65: Computer Lab 1 | F65: 611475 | G65: Supp Staff - Lab Assist-Non-Exempt | H65: 35272.8 | I65: 36507.36 | J65: 37968 | K65: 18983.82 | L65: 37968 | M65: 110010 | N65: Current Unrestricted | O65: 10 | P65: Instruction | Q65: 11 | R65: Current Unrestricted Funds | S65: 61 | T65: 1
B66: 67 | C66: Ammons, Matthew S. | D66: 300106 | E66: Computer Lab 1 | F66: 733110 | G66: Classroom Supplies | H66: 4539.62 | I66: 3693.21 | J66: 5000 | K66: 1947.28 | L66: 3500 | M66: 110010 | N66: Current Unrestricted | O66: 10 | P66: Instruction | Q66: 11 | R66: Current Unrestricted Funds | S66: 73 | T66: 4
B67: 68 | C67: Ammons, Matthew S. | D67: 300106 | E67: Computer Lab 1 | F67: 733120 | G67: Office Supplies | H67: 234.59 | I67: 481.1 | J67: 50 | K67: 0 | L67: 50 | M67: 110010 | N67: Current Unrestricted | O67: 10 | P67: Instruction | Q67: 11 | R67: Current Unrestricted Funds | S67: 73 | T67: 4
B68: 69 | C68: =VLOOKUP(Orgn,fin_mgr,22,FALSE) -> Ammons, Matthew S. | D68: 300106 | E68: Computer Lab 1 | F68: 755240 | G68: DP - Software | H68: 3850 | I68: 498 | J68: 9399 | K68: 3333 | L68: 5000 | M68: 110010 | N68: Current Unrestricted | O68: 10 | P68: Instruction | Q68: 11 | R68: Current Unrestricted Funds | S68: 75 | T68: 4
B69: 70 | C69: Ammons, Matthew S. | D69: 300106 | E69: Computer Lab 1 | F69: 755310 | G69: Copier Expense | H69: 2.22 | I69: 0.12 | J69: 10 | K69: 0 | L69: 10 | M69: 110010 | N69: Current Unrestricted | O69: 10 | P69: Instruction | Q69: 11 | R69: Current Unrestricted Funds | S69: 75 | T69: 4
B70: 71 | C70: Ammons, Matthew S. | D70: 300106 | E70: Computer Lab 1 | F70: 755510 | G70: Repairs - Equipment | H70: 25 | I70: 0 | J70: 0 | K70: 0 | L70: 0 | M70: 110010 | N70: Current Unrestricted | O70: 10 | P70: Instruction | Q70: 11 | R70: Current Unrestricted Funds | S70: 75 | T70: 4
B71: 72 | C71: Ammons, Matthew S. | D71: 300106 | E71: Computer Lab 1 | F71: 787430 | G71: Computer/Media Equip | H71: 60544.4 | I71: 0 | J71: 6507 | K71: 6506.13 | L71: 96900 | M71: 110010 | N71: Current Unrestricted | O71: 10 | P71: Instruction | Q71: 11 | R71: Current Unrestricted Funds | S71: 78 | T71: 4
B72: 73 | C72: Ammons, Matthew S. | D72: 300107 | E72: Computer Lab 1 | F72: 611410 | G72: Supervisory Supp Staff - Non-Exempt | H72: 39115.77 | I72: 39682.68 | J72: 41270 | K72: 20634.96 | L72: 41270 | M72: 110010 | N72: Current Unrestricted | O72: 10 | P72: Instruction | Q72: 11 | R72: Current Unrestricted Funds | S72: 61 | T72: 1
B73: 74 | C73: Ammons, Matthew S. | D73: 300107 | E73: Computer Lab 1 | F73: 611455 | G73: PT Instr Assistant - Non-Exempt | H73: 15112.74 | I73: 20080.3 | J73: 20000 | K73: 8591.55 | L73: 20000 | M73: 110010 | N73: Current Unrestricted | O73: 10 | P73: Instruction | Q73: 11 | R73: Current Unrestricted Funds | S73: 61 | T73: 1
B74: 75 | C74: Ammons, Matthew S. | D74: 300107 | E74: Computer Lab 1 | F74: 611492 | G74: Regular Overtime | H74: 0 | I74: 0 | J74: 67 | K74: 66.96 | L74: 0 | M74: 110010 | N74: Current Unrestricted | O74: 10 | P74: Instruction | Q74: 11 | R74: Current Unrestricted Funds | S74: 61 | T74: 1
B75: 76 | C75: Ammons, Matthew S. | D75: 300107 | E75: Computer Lab 1 | F75: 712370 | G75: Other Contract Services | H75: 1190 | I75: 0 | J75: 0 | K75: 0 | L75: 0 | M75: 110010 | N75: Current Unrestricted | O75: 10 | P75: Instruction | Q75: 11 | R75: Current Unrestricted Funds | S75: 71 | T75: 4
B76: 77 | C76: Ammons, Matthew S. | D76: 300107 | E76: Computer Lab 1 | F76: 733110 | G76: Classroom Supplies | H76: 2160.8 | I76: 2749.81 | J76: 3800 | K76: 1168.9 | L76: 3500 | M76: 110010 | N76: Current Unrestricted | O76: 10 | P76: Instruction | Q76: 11 | R76: Current Unrestricted Funds | S76: 73 | T76: 4
B77: 78 | C77: Ammons, Matthew S. | D77: 300107 | E77: Computer Lab 1 | F77: 733120 | G77: Office Supplies | H77: 749.23 | I77: 84.9 | J77: 639 | K77: 0 | L77: 200 | M77: 110010 | N77: Current Unrestricted | O77: 10 | P77: Instruction | Q77: 11 | R77: Current Unrestricted Funds | S77: 73 | T77: 4
B78: 79 | C78: Ammons, Matthew S. | D78: 300107 | E78: Computer Lab 1 | F78: 733330 | G78: Audio Visual Supplies | H78: 396 | I78: 791 | J78: 2482 | K78: 1477.66 | L78: 3000 | M78: 110010 | N78: Current Unrestricted | O78: 10 | P78: Instruction | Q78: 11 | R78: Current Unrestricted Funds | S78: 73 | T78: 4
B79: 80 | C79: Ammons, Matthew S. | D79: 300107 | E79: Computer Lab 1 | F79: 755510 | G79: Repairs - Equipment | H79: 140.14 | I79: 565 | J79: 600 | K79: 0 | L79: 0 | M79: 110010 | N79: Current Unrestricted | O79: 10 | P79: Instruction | Q79: 11 | R79: Current Unrestricted Funds | S79: 75 | T79: 4
B80: 81 | C80: Ammons, Matthew S. | D80: 300107 | E80: Computer Lab 1 | F80: 755705 | G80: Postage | H80: 0 | I80: 46.96 | J80: 130 | K80: 0 | L80: 0 | M80: 110010 | N80: Current Unrestricted | O80: 10 | P80: Instruction | Q80: 11 | R80: Current Unrestricted Funds | S80: 75 | T80: 4
B81: 82 | C81: Ammons, Matthew S. | D81: 300107 | E81: Computer Lab 1 | F81: 777414 | G81: Equipment/Furniture - CYC | H81: 0 | I81: 11841 | J81: 0 | K81: 0 | L81: 0 | M81: 110010 | N81: Current Unrestricted | O81: 10 | P81: Instruction | Q81: 11 | R81: Current Unrestricted Funds | S81: 77 | T81: 4
B82: 83 | C82: Ammons, Matthew S. | D82: 300107 | E82: Computer Lab 1 | F82: 777417 | G82: Equipment/Furniture - HEC | H82: 0 | I82: 0 | J82: 7098 | K82: 0 | L82: 8000 | M82: 110010 | N82: Current Unrestricted | O82: 10 | P82: Instruction | Q82: 11 | R82: Current Unrestricted Funds | S82: 77 | T82: 4
B83: 84 | C83: Ammons, Matthew S. | D83: 300107 | E83: Computer Lab 1 | F83: 787430 | G83: Computer/Media Equip | H83: 9182.78 | I83: 0 | J83: 6844 | K83: 6843.1 | L83: 25000 | M83: 110010 | N83: Current Unrestricted | O83: 10 | P83: Instruction | Q83: 11 | R83: Current Unrestricted Funds | S83: 78 | T83: 4
B84: 85 | C84: Ammons, Matthew S. | D84: 300108 | E84: Academic Computing | F84: 611210 | G84: Admin Salaries - Full-time | H84: 95231.48 | I84: 98589.12 | J84: 177184 | K84: 68250.16 | L84: 177284 | M84: 110010 | N84: Current Unrestricted | O84: 10 | P84: Instruction | Q84: 11 | R84: Current Unrestricted Funds | S84: 61 | T84: 1
B85: 86 | C85: Ammons, Matthew S. | D85: 300108 | E85: Academic Computing | F85: 611310 | G85: Supervisory Support Staff - Exempt | H85: 237590.72 | I85: 210896.2 | J85: 252464 | K85: 126231.96 | L85: 252464 | M85: 110010 | N85: Current Unrestricted | O85: 10 | P85: Instruction | Q85: 11 | R85: Current Unrestricted Funds | S85: 61 | T85: 1
B86: 87 | C86: Ammons, Matthew S. | D86: 300108 | E86: Academic Computing | F86: 611410 | G86: Supervisory Supp Staff - Non-Exempt | H86: 54770.28 | I86: 56687.16 | J86: 58955 | K86: 29477.34 | L86: 58955 | M86: 110010 | N86: Current Unrestricted | O86: 10 | P86: Instruction | Q86: 11 | R86: Current Unrestricted Funds | S86: 61 | T86: 1
B87: 88 | C87: Ammons, Matthew S. | D87: 300108 | E87: Academic Computing | F87: 611420 | G87: Non-Supervisory Supp - Non-Exempt | H87: 458735.33 | I87: 481331.56 | J87: 501004 | K87: 250501.92 | L87: 499601 | M87: 110010 | N87: Current Unrestricted | O87: 10 | P87: Instruction | Q87: 11 | R87: Current Unrestricted Funds | S87: 61 | T87: 1
B88: 89 | C88: Ammons, Matthew S. | D88: 300108 | E88: Academic Computing | F88: 611491 | G88: Comp Time Payoff | H88: 0 | I88: 267.62 | J88: 0 | K88: 0 | L88: 0 | M88: 110010 | N88: Current Unrestricted | O88: 10 | P88: Instruction | Q88: 11 | R88: Current Unrestricted Funds | S88: 61 | T88: 1
B89: 90 | C89: Ammons, Matthew S. | D89: 300108 | E89: Academic Computing | F89: 611492 | G89: Regular Overtime | H89: 4284.74 | I89: 4445.1 | J89: 3854 | K89: 1656.01 | L89: 3000 | M89: 110010 | N89: Current Unrestricted | O89: 10 | P89: Instruction | Q89: 11 | R89: Current Unrestricted Funds | S89: 61 | T89: 1
B90: 91 | C90: Ammons, Matthew S. | D90: 300108 | E90: Academic Computing | F90: 611493 | G90: Vacation Payoff | H90: 310.19 | I90: 2566.22 | J90: 0 | K90: 0 | L90: 0 | M90: 110010 | N90: Current Unrestricted | O90: 10 | P90: Instruction | Q90: 11 | R90: Current Unrestricted Funds | S90: 61 | T90: 1
B91: 92 | C91: Ammons, Matthew S. | D91: 300108 | E91: Academic Computing | F91: 712310 | G91: Consultants | H91: 9406.25 | I91: 0 | J91: 0 | K91: 0 | L91: 0 | M91: 110010 | N91: Current Unrestricted | O91: 10 | P91: Instruction | Q91: 11 | R91: Current Unrestricted Funds | S91: 71 | T91: 4
B92: 93 | C92: Ammons, Matthew S. | D92: 300108 | E92: Academic Computing | F92: 712370 | G92: Other Contract Services | H92: 213433.86 | I92: 171033 | J92: 184262 | K92: 78134 | L92: 160500 | M92: 110010 | N92: Current Unrestricted | O92: 10 | P92: Instruction | Q92: 11 | R92: Current Unrestricted Funds | S92: 71 | T92: 4
B93: 94 | C93: Ammons, Matthew S. | D93: 300108 | E93: Academic Computing | F93: 712420 | G93: Rental - Furniture and Equipment | H93: 904.89 | I93: 523.04 | J93: 1428 | K93: 375.6 | L93: 1428 | M93: 110010 | N93: Current Unrestricted | O93: 10 | P93: Instruction | Q93: 11 | R93: Current Unrestricted Funds | S93: 71 | T93: 4
B94: 95 | C94: Ammons, Matthew S. | D94: 300108 | E94: Academic Computing | F94: 712550 | G94: Computer Maintenance | H94: 32640.64 | I94: 60981.65 | J94: 41324 | K94: 35495.54 | L94: =40000+9800 -> 49800 | M94: 110010 | N94: Current Unrestricted | O94: 10 | P94: Instruction | Q94: 11 | R94: Current Unrestricted Funds | S94: 71 | T94: 4
B95: 96 | C95: Ammons, Matthew S. | D95: 300108 | E95: Academic Computing | F95: 733110 | G95: Classroom Supplies | H95: 7834.26 | I95: 0 | J95: 0 | K95: 0 | L95: 0 | M95: 110010 | N95: Current Unrestricted | O95: 10 | P95: Instruction | Q95: 11 | R95: Current Unrestricted Funds | S95: 73 | T95: 4
B96: 97 | C96: Ammons, Matthew S. | D96: 300108 | E96: Academic Computing | F96: 733120 | G96: Office Supplies | H96: 82712.89 | I96: 75216.39 | J96: 70236 | K96: 22534.16 | L96: 82700 | M96: 110010 | N96: Current Unrestricted | O96: 10 | P96: Instruction | Q96: 11 | R96: Current Unrestricted Funds | S96: 73 | T96: 4
B97: 98 | C97: Ammons, Matthew S. | D97: 300108 | E97: Academic Computing | F97: 733310 | G97: Data Processing Supplies | H97: 876 | I97: 0 | J97: 0 | K97: 0 | L97: 0 | M97: 110010 | N97: Current Unrestricted | O97: 10 | P97: Instruction | Q97: 11 | R97: Current Unrestricted Funds | S97: 73 | T97: 4
B98: 99 | C98: Ammons, Matthew S. | D98: 300108 | E98: Academic Computing | F98: 744210 | G98: Local Travel | H98: 200 | I98: 338.54 | J98: 350 | K98: 77.28 | L98: 1500 | M98: 110010 | N98: Current Unrestricted | O98: 10 | P98: Instruction | Q98: 11 | R98: Current Unrestricted Funds | S98: 74 | T98: 4
B99: 100 | C99: Ammons, Matthew S. | D99: 300108 | E99: Academic Computing | F99: 744220 | G99: Professional Development / Travel | H99: 1627 | I99: 813.64 | J99: 0 | K99: 0 | L99: 0 | M99: 110010 | N99: Current Unrestricted | O99: 10 | P99: Instruction | Q99: 11 | R99: Current Unrestricted Funds | S99: 74 | T99: 4
B100: 101 | C100: Ammons, Matthew S. | D100: 300108 | E100: Academic Computing | F100: 744230 | G100: In-House Professional Development | H100: 0 | I100: 1750 | J100: 0 | K100: 0 | L100: 0 | M100: 110010 | N100: Current Unrestricted | O100: 10 | P100: Instruction | Q100: 11 | R100: Current Unrestricted Funds | S100: 74 | T100: 4
B101: 102 | C101: Ammons, Matthew S. | D101: 300108 | E101: Academic Computing | F101: 755230 | G101: DP - Maintenance and Repair | H101: 747.33 | I101: 792.17 | J101: 2315 | K101: 477.75 | L101: 0 | M101: 110010 | N101: Current Unrestricted | O101: 10 | P101: Instruction | Q101: 11 | R101: Current Unrestricted Funds | S101: 75 | T101: 4
B102: 103 | C102: Ammons, Matthew S. | D102: 300108 | E102: Academic Computing | F102: 755240 | G102: DP - Software | H102: 292039.11 | I102: 424376.16 | J102: 575528 | K102: 356606.37 | L102: 575000 | M102: 110010 | N102: Current Unrestricted | O102: 10 | P102: Instruction | Q102: 11 | R102: Current Unrestricted Funds | S102: 75 | T102: 4
B103: 104 | C103: Ammons, Matthew S. | D103: 300108 | E103: Academic Computing | F103: 755310 | G103: Copier Expense | H103: 0 | I103: 0 | J103: 50 | K103: 0 | L103: 0 | M103: 110010 | N103: Current Unrestricted | O103: 10 | P103: Instruction | Q103: 11 | R103: Current Unrestricted Funds | S103: 75 | T103: 4
B104: 105 | C104: Ammons, Matthew S. | D104: 300108 | E104: Academic Computing | F104: 755360 | G104: Printing - Other | H104: 260.5 | I104: 40 | J104: 0 | K104: 0 | L104: 0 | M104: 110010 | N104: Current Unrestricted | O104: 10 | P104: Instruction | Q104: 11 | R104: Current Unrestricted Funds | S104: 75 | T104: 4
B105: 106 | C105: Ammons, Matthew S. | D105: 300108 | E105: Academic Computing | F105: 755510 | G105: Repairs - Equipment | H105: 185 | I105: 0 | J105: 0 | K105: 0 | L105: 0 | M105: 110010 | N105: Current Unrestricted | O105: 10 | P105: Instruction | Q105: 11 | R105: Current Unrestricted Funds | S105: 75 | T105: 4
B106: 107 | C106: Ammons, Matthew S. | D106: 300108 | E106: Academic Computing | F106: 755705 | G106: Postage | H106: 45.41 | I106: 0 | J106: 0 | K106: 0 | L106: 0 | M106: 110010 | N106: Current Unrestricted | O106: 10 | P106: Instruction | Q106: 11 | R106: Current Unrestricted Funds | S106: 75 | T106: 4
B107: 108 | C107: Ammons, Matthew S. | D107: 300108 | E107: Academic Computing | F107: 765425 | G107: Telephone - Cellular | H107: 1289.94 | I107: 903.74 | J107: 900 | K107: 316.33 | L107: 600 | M107: 110010 | N107: Current Unrestricted | O107: 10 | P107: Instruction | Q107: 11 | R107: Current Unrestricted Funds | S107: 76 | T107: 4
B108: 109 | C108: Ammons, Matthew S. | D108: 300108 | E108: Academic Computing | F108: 777410 | G108: Equipment/Furniture - CPC | H108: 0 | I108: 188609.02 | J108: 0 | K108: 0 | L108: 0 | M108: 110010 | N108: Current Unrestricted | O108: 10 | P108: Instruction | Q108: 11 | R108: Current Unrestricted Funds | S108: 77 | T108: 4
B109: 110 | C109: Ammons, Matthew S. | D109: 300108 | E109: Academic Computing | F109: 777414 | G109: Equipment/Furniture - CYC | H109: 62455 | I109: 177762.05 | J109: 33088 | K109: 30087.99 | L109: 0 | M109: 110010 | N109: Current Unrestricted | O109: 10 | P109: Instruction | Q109: 11 | R109: Current Unrestricted Funds | S109: 77 | T109: 4
B110: 111 | C110: Ammons, Matthew S. | D110: 300108 | E110: Academic Computing | F110: 777415 | G110: Equipment/Furniture - WAN/LAN | H110: 27956.3 | I110: 0 | J110: 0 | K110: 0 | L110: =170250+9600 -> 179850 | M110: 110010 | N110: Current Unrestricted | O110: 10 | P110: Instruction | Q110: 11 | R110: Current Unrestricted Funds | S110: 77 | T110: 4
B111: 112 | C111: Ammons, Matthew S. | D111: 300108 | E111: Academic Computing | F111: 777416 | G111: Equipment/Furniture - PRC | H111: 17627 | I111: 0 | J111: 83235 | K111: 0 | L111: 0 | M111: 110010 | N111: Current Unrestricted | O111: 10 | P111: Instruction | Q111: 11 | R111: Current Unrestricted Funds | S111: 77 | T111: 4
B112: 113 | C112: Ammons, Matthew S. | D112: 300108 | E112: Academic Computing | F112: 787410 | G112: Equipment/Furniture Non-Depreciable | H112: 904.34 | I112: 0 | J112: 0 | K112: 0 | L112: 0 | M112: 110010 | N112: Current Unrestricted | O112: 10 | P112: Instruction | Q112: 11 | R112: Current Unrestricted Funds | S112: 78 | T112: 4
B113: 114 | C113: Ammons, Matthew S. | D113: 300108 | E113: Academic Computing | F113: 787430 | G113: Computer/Media Equip | H113: 15912.68 | I113: 48533.7 | J113: 709245 | K113: 31738.29 | L113: =23000+10500 -> 33500 | M113: 110010 | N113: Current Unrestricted | O113: 10 | P113: Instruction | Q113: 11 | R113: Current Unrestricted Funds | S113: 78 | T113: 4
B114: 115 | C114: Ammons, Matthew S. | D114: 300109 | E114: Computer Lab 1 | F114: 611410 | G114: Supervisory Supp Staff - Non-Exempt | H114: 32963.31 | I114: 35223.96 | J114: 36633 | K114: 18316.5 | L114: 36633 | M114: 110010 | N114: Current Unrestricted | O114: 10 | P114: Instruction | Q114: 11 | R114: Current Unrestricted Funds | S114: 61 | T114: 1
B115: 116 | C115: Ammons, Matthew S. | D115: 300109 | E115: Computer Lab 1 | F115: 611475 | G115: Supp Staff - Lab Assist-Non-Exempt | H115: 22879.04 | I115: 28744.08 | J115: 29894 | K115: 14946.9 | L115: 29894 | M115: 110010 | N115: Current Unrestricted | O115: 10 | P115: Instruction | Q115: 11 | R115: Current Unrestricted Funds | S115: 61 | T115: 1
B116: 117 | C116: Ammons, Matthew S. | D116: 300109 | E116: Computer Lab 1 | F116: 611476 | G116: Lab Assistants PT - Non-Exempt | H116: 13416.1 | I116: 16325.99 | J116: 18200 | K116: 7712.28 | L116: 18200 | M116: 110010 | N116: Current Unrestricted | O116: 10 | P116: Instruction | Q116: 11 | R116: Current Unrestricted Funds | S116: 61 | T116: 1
B117: 118 | C117: Ammons, Matthew S. | D117: 300109 | E117: Computer Lab 1 | F117: 611492 | G117: Regular Overtime | H117: 12.09 | I117: 0 | J117: 0 | K117: 0 | L117: 0 | M117: 110010 | N117: Current Unrestricted | O117: 10 | P117: Instruction | Q117: 11 | R117: Current Unrestricted Funds | S117: 61 | T117: 1
B118: 119 | C118: Ammons, Matthew S. | D118: 300109 | E118: Computer Lab 1 | F118: 611493 | G118: Vacation Payoff | H118: 1687.83 | I118: 0 | J118: 0 | K118: 0 | L118: 0 | M118: 110010 | N118: Current Unrestricted | O118: 10 | P118: Instruction | Q118: 11 | R118: Current Unrestricted Funds | S118: 61 | T118: 1
B119: 120 | C119: Ammons, Matthew S. | D119: 300109 | E119: Computer Lab 1 | F119: 733110 | G119: Classroom Supplies | H119: 306.94 | I119: 686.62 | J119: 1200 | K119: 143.51 | L119: 500 | M119: 110010 | N119: Current Unrestricted | O119: 10 | P119: Instruction | Q119: 11 | R119: Current Unrestricted Funds | S119: 73 | T119: 4
B120: 121 | C120: Ammons, Matthew S. | D120: 300109 | E120: Computer Lab 1 | F120: 744210 | G120: Local Travel | H120: 27.5 | I120: 0 | J120: 0 | K120: 0 | L120: 0 | M120: 110010 | N120: Current Unrestricted | O120: 10 | P120: Instruction | Q120: 11 | R120: Current Unrestricted Funds | S120: 74 | T120: 4
B121: 122 | C121: Ammons, Matthew S. | D121: 300109 | E121: Computer Lab 1 | F121: 755310 | G121: Copier Expense | H121: 13.08 | I121: 0 | J121: 0 | K121: 0 | L121: 0 | M121: 110010 | N121: Current Unrestricted | O121: 10 | P121: Instruction | Q121: 11 | R121: Current Unrestricted Funds | S121: 75 | T121: 4
B122: 123 | C122: Ammons, Matthew S. | D122: 300109 | E122: Computer Lab 1 | F122: 787430 | G122: Computer/Media Equip | H122: 0 | I122: 7009.2 | J122: 0 | K122: 0 | L122: 55100 | M122: 110010 | N122: Current Unrestricted | O122: 10 | P122: Instruction | Q122: 11 | R122: Current Unrestricted Funds | S122: 78 | T122: 4
B123: 124 | C123: Ammons, Matthew S. | D123: 362243 | E123: Computer Lab 2 (SCC) | F123: 611410 | G123: Supervisory Supp Staff - Non-Exempt | H123: 24945.21 | I123: 33965.89 | J123: 32333 | K123: 15176.41 | L123: 34312 | M123: 110010 | N123: Current Unrestricted | O123: 10 | P123: Instruction | Q123: 11 | R123: Current Unrestricted Funds | S123: 61 | T123: 1
B124: 125 | C124: Ammons, Matthew S. | D124: 362243 | E124: Computer Lab 2 (SCC) | F124: 611475 | G124: Supp Staff - Lab Assist-Non-Exempt | H124: 29721.12 | I124: 30761.4 | J124: 31992 | K124: 15995.88 | L124: 31992 | M124: 110010 | N124: Current Unrestricted | O124: 10 | P124: Instruction | Q124: 11 | R124: Current Unrestricted Funds | S124: 61 | T124: 1
B125: 126 | C125: Ammons, Matthew S. | D125: 362243 | E125: Computer Lab 2 (SCC) | F125: 733110 | G125: Classroom Supplies | H125: 7073.49 | I125: 7227.03 | J125: 6810 | K125: 2927.64 | L125: 4500 | M125: 110010 | N125: Current Unrestricted | O125: 10 | P125: Instruction | Q125: 11 | R125: Current Unrestricted Funds | S125: 73 | T125: 4
B126: 127 | C126: Ammons, Matthew S. | D126: 362243 | E126: Computer Lab 2 (SCC) | F126: 733120 | G126: Office Supplies | H126: 0 | I126: 35 | J126: 265 | K126: 264.57 | L126: 50 | M126: 110010 | N126: Current Unrestricted | O126: 10 | P126: Instruction | Q126: 11 | R126: Current Unrestricted Funds | S126: 73 | T126: 4
B127: 128 | C127: Ammons, Matthew S. | D127: 362243 | E127: Computer Lab 2 (SCC) | F127: 755240 | G127: DP - Software | H127: 57386.03 | I127: 29196.08 | J127: 32863 | K127: 31113.4 | L127: 35000 | M127: 110010 | N127: Current Unrestricted | O127: 10 | P127: Instruction | Q127: 11 | R127: Current Unrestricted Funds | S127: 75 | T127: 4
B128: 129 | C128: Ammons, Matthew S. | D128: 362243 | E128: Computer Lab 2 (SCC) | F128: 755310 | G128: Copier Expense | H128: 0 | I128: 0.23 | J128: 0 | K128: 0 | L128: 7 | M128: 110010 | N128: Current Unrestricted | O128: 10 | P128: Instruction | Q128: 11 | R128: Current Unrestricted Funds | S128: 75 | T128: 4
B129: 130 | C129: Ammons, Matthew S. | D129: 362243 | E129: Computer Lab 2 (SCC) | F129: 787430 | G129: Computer/Media Equip | H129: 4421 | I129: 152964.31 | J129: 2700 | K129: 2427.06 | L129: 109900 | M129: 110010 | N129: Current Unrestricted | O129: 10 | P129: Instruction | Q129: 11 | R129: Current Unrestricted Funds | S129: 78 | T129: 4
B130: 131 | C130: Ammons, Matthew S. | D130: 384413 | E130: Computer Lab 2 (PRC) | F130: 611410 | G130: Supervisory Supp Staff - Non-Exempt | H130: 36459.96 | I130: 37736.04 | J130: 39246 | K130: 19622.76 | L130: 39245 | M130: 110010 | N130: Current Unrestricted | O130: 10 | P130: Instruction | Q130: 11 | R130: Current Unrestricted Funds | S130: 61 | T130: 1
B131: 132 | C131: Ammons, Matthew S. | D131: 384413 | E131: Computer Lab 2 (PRC) | F131: 611475 | G131: Supp Staff - Lab Assist-Non-Exempt | H131: 31000.56 | I131: 32085.6 | J131: 33369 | K131: 16684.5 | L131: 33369 | M131: 110010 | N131: Current Unrestricted | O131: 10 | P131: Instruction | Q131: 11 | R131: Current Unrestricted Funds | S131: 61 | T131: 1
B132: 133 | C132: =VLOOKUP(Orgn,fin_mgr,22,FALSE) -> Ammons, Matthew S. | D132: 384413 | E132: Computer Lab 2 (PRC) | F132: 611492 | G132: Regular Overtime | H132: 559.48 | I132: 11.57 | J132: 0 | K132: 0 | L132: 0 | M132: 110010 | N132: Current Unrestricted | O132: 10 | P132: Instruction | Q132: 11 | R132: Current Unrestricted Funds | S132: 61 | T132: 1
B133: 134 | C133: Ammons, Matthew S. | D133: 384413 | E133: Computer Lab 2 (PRC) | F133: 712550 | G133: Computer Maintenance | H133: 0 | I133: 0 | J133: 2300 | K133: 2300 | L133: 2300 | M133: 110010 | N133: Current Unrestricted | O133: 10 | P133: Instruction | Q133: 11 | R133: Current Unrestricted Funds | S133: 71 | T133: 4
B134: 135 | C134: Ammons, Matthew S. | D134: 384413 | E134: Computer Lab 2 (PRC) | F134: 733110 | G134: Classroom Supplies | H134: 8399.63 | I134: 5332.44 | J134: 7000 | K134: 3237.33 | L134: 6000 | M134: 110010 | N134: Current Unrestricted | O134: 10 | P134: Instruction | Q134: 11 | R134: Current Unrestricted Funds | S134: 73 | T134: 4
B135: 136 | C135: Ammons, Matthew S. | D135: 384413 | E135: Computer Lab 2 (PRC) | F135: 733120 | G135: Office Supplies | H135: 0 | I135: 141.5 | J135: 0 | K135: 0 | L135: 0 | M135: 110010 | N135: Current Unrestricted | O135: 10 | P135: Instruction | Q135: 11 | R135: Current Unrestricted Funds | S135: 73 | T135: 4
B136: 137 | C136: Ammons, Matthew S. | D136: 384413 | E136: Computer Lab 2 (PRC) | F136: 755240 | G136: DP - Software | H136: 18548.45 | I136: 22407.36 | J136: 35000 | K136: 12142.64 | L136: 35000 | M136: 110010 | N136: Current Unrestricted | O136: 10 | P136: Instruction | Q136: 11 | R136: Current Unrestricted Funds | S136: 75 | T136: 4
B137: 138 | C137: Ammons, Matthew S. | D137: 384413 | E137: Computer Lab 2 (PRC) | F137: 755310 | G137: Copier Expense | H137: 3.66 | I137: 3.72 | J137: 10 | K137: 0.6 | L137: 10 | M137: 110010 | N137: Current Unrestricted | O137: 10 | P137: Instruction | Q137: 11 | R137: Current Unrestricted Funds | S137: 75 | T137: 4
B138: 139 | C138: Ammons, Matthew S. | D138: 384413 | E138: Computer Lab 2 (PRC) | F138: 755510 | G138: Repairs - Equipment | H138: 2664 | I138: 2300 | J138: 0 | K138: 0 | L138: 0 | M138: 110010 | N138: Current Unrestricted | O138: 10 | P138: Instruction | Q138: 11 | R138: Current Unrestricted Funds | S138: 75 | T138: 4
B139: 140 | C139: Ammons, Matthew S. | D139: 384413 | E139: Computer Lab 2 (PRC) | F139: 787430 | G139: Computer/Media Equip | H139: 63625.59 | I139: 4930.89 | J139: 14400 | K139: 12949.6 | L139: 0 | M139: 110010 | N139: Current Unrestricted | O139: 10 | P139: Instruction | Q139: 11 | R139: Current Unrestricted Funds | S139: 78 | T139: 4
B140: 141 | C140: Ammons, Matthew S. | D140: 393000 | E140: Media Services | F140: 611410 | G140: Supervisory Supp Staff - Non-Exempt | H140: 37743.13 | I140: 42895.2 | J140: 44615 | K140: 22307.46 | L140: 44615 | M140: 110010 | N140: Current Unrestricted | O140: 25 | P140: Academic support | Q140: 11 | R140: Current Unrestricted Funds | S140: 61 | T140: 9
B141: 142 | C141: Ammons, Matthew S. | D141: 393000 | E141: Media Services | F141: 611420 | G141: Non-Supervisory Supp - Non-Exempt | H141: 39339.24 | I141: 34653 | J141: 33938 | K141: 16968.66 | L141: 33937 | M141: 110010 | N141: Current Unrestricted | O141: 25 | P141: Academic support | Q141: 11 | R141: Current Unrestricted Funds | S141: 61 | T141: 9
B142: 143 | C142: Ammons, Matthew S. | D142: 393000 | E142: Media Services | F142: 611455 | G142: PT Instr Assistant - Non-Exempt | H142: 12579.63 | I142: 5971.19 | J142: 5200 | K142: 0 | L142: 5200 | M142: 110010 | N142: Current Unrestricted | O142: 25 | P142: Academic support | Q142: 11 | R142: Current Unrestricted Funds | S142: 61 | T142: 9
B143: 144 | C143: Ammons, Matthew S. | D143: 393000 | E143: Media Services | F143: 611476 | G143: Lab Assistants PT - Non-Exempt | H143: 0 | I143: 0 | J143: 0 | K143: 927.36 | L143: 0 | M143: 110010 | N143: Current Unrestricted | O143: 25 | P143: Academic support | Q143: 11 | R143: Current Unrestricted Funds | S143: 61 | T143: 9
B144: 145 | C144: Ammons, Matthew S. | D144: 393000 | E144: Media Services | F144: 611491 | G144: Comp Time Payoff | H144: 74.71 | I144: 82.37 | J144: 0 | K144: 0 | L144: 0 | M144: 110010 | N144: Current Unrestricted | O144: 25 | P144: Academic support | Q144: 11 | R144: Current Unrestricted Funds | S144: 61 | T144: 9
B145: 146 | C145: Ammons, Matthew S. | D145: 393000 | E145: Media Services | F145: 611492 | G145: Regular Overtime | H145: 0 | I145: 286.17 | J145: 350 | K145: 32.18 | L145: 150 | M145: 110010 | N145: Current Unrestricted | O145: 25 | P145: Academic support | Q145: 11 | R145: Current Unrestricted Funds | S145: 61 | T145: 9
B146: 147 | C146: Ammons, Matthew S. | D146: 393000 | E146: Media Services | F146: 712370 | G146: Other Contract Services | H146: 407.4 | I146: 0 | J146: 0 | K146: 0 | L146: 0 | M146: 110010 | N146: Current Unrestricted | O146: 25 | P146: Academic support | Q146: 11 | R146: Current Unrestricted Funds | S146: 71 | T146: 9
B147: 148 | C147: Ammons, Matthew S. | D147: 393000 | E147: Media Services | F147: 712510 | G147: Maintenance Agreements | H147: 5009.06 | I147: 4426.68 | J147: 7243 | K147: 7242.53 | L147: 7243 | M147: 110010 | N147: Current Unrestricted | O147: 25 | P147: Academic support | Q147: 11 | R147: Current Unrestricted Funds | S147: 71 | T147: 9
B148: 149 | C148: Ammons, Matthew S. | D148: 393000 | E148: Media Services | F148: 733110 | G148: Classroom Supplies | H148: 0 | I148: 0 | J148: 2029 | K148: 2028.37 | L148: 0 | M148: 110010 | N148: Current Unrestricted | O148: 25 | P148: Academic support | Q148: 11 | R148: Current Unrestricted Funds | S148: 73 | T148: 9
B149: 150 | C149: Ammons, Matthew S. | D149: 393000 | E149: Media Services | F149: 733120 | G149: Office Supplies | H149: 32.89 | I149: 115.99 | J149: 222 | K149: 221.44 | L149: 225 | M149: 110010 | N149: Current Unrestricted | O149: 25 | P149: Academic support | Q149: 11 | R149: Current Unrestricted Funds | S149: 73 | T149: 9
B150: 151 | C150: Ammons, Matthew S. | D150: 393000 | E150: Media Services | F150: 733330 | G150: Audio Visual Supplies | H150: 1680 | I150: 3269.77 | J150: 2500 | K150: 2384.9 | L150: 3500 | M150: 110010 | N150: Current Unrestricted | O150: 25 | P150: Academic support | Q150: 11 | R150: Current Unrestricted Funds | S150: 73 | T150: 9
B151: 152 | C151: Ammons, Matthew S. | D151: 393000 | E151: Media Services | F151: 744210 | G151: Local Travel | H151: 463.5 | I151: 240 | J151: 0 | K151: 0 | L151: 0 | M151: 110010 | N151: Current Unrestricted | O151: 25 | P151: Academic support | Q151: 11 | R151: Current Unrestricted Funds | S151: 74 | T151: 9
B152: 153 | C152: Ammons, Matthew S. | D152: 393000 | E152: Media Services | F152: 755510 | G152: Repairs - Equipment | H152: 0 | I152: 1593 | J152: 1001 | K152: 680 | L152: 680 | M152: 110010 | N152: Current Unrestricted | O152: 25 | P152: Academic support | Q152: 11 | R152: Current Unrestricted Funds | S152: 75 | T152: 9
B153: 154 | C153: Ammons, Matthew S. | D153: 393000 | E153: Media Services | F153: 755705 | G153: Postage | H153: 34.11 | I153: 23.51 | J153: 42 | K153: 41.44 | L153: 50 | M153: 110010 | N153: Current Unrestricted | O153: 25 | P153: Academic support | Q153: 11 | R153: Current Unrestricted Funds | S153: 75 | T153: 9
B154: 155 | C154: Ammons, Matthew S. | D154: 393000 | E154: Media Services | F154: 777410 | G154: Equipment/Furniture - CPC | H154: 5769 | I154: 0 | J154: 57837 | K154: 0 | L154: 24000 | M154: 110010 | N154: Current Unrestricted | O154: 25 | P154: Academic support | Q154: 11 | R154: Current Unrestricted Funds | S154: 77 | T154: 9
B155: 156 | C155: Ammons, Matthew S. | D155: 393000 | E155: Media Services | F155: 787430 | G155: Computer/Media Equip | H155: 24021.1 | I155: 9515 | J155: 44607 | K155: 34479.46 | L155: 6600 | M155: 110010 | N155: Current Unrestricted | O155: 25 | P155: Academic support | Q155: 11 | R155: Current Unrestricted Funds | S155: 78 | T155: 9
B156: 157 | C156: Ammons, Matthew S. | D156: 393002 | E156: Media Services | F156: 611410 | G156: Supervisory Supp Staff - Non-Exempt | H156: 40671.45 | I156: 41223.66 | J156: 41131 | K156: 20565.12 | L156: 41130 | M156: 110010 | N156: Current Unrestricted | O156: 25 | P156: Academic support | Q156: 11 | R156: Current Unrestricted Funds | S156: 61 | T156: 9
B157: 158 | C157: Ammons, Matthew S. | D157: 393002 | E157: Media Services | F157: 611420 | G157: Non-Supervisory Supp - Non-Exempt | H157: 31830.48 | I157: 17189.9 | J157: 39618 | K157: 18444.98 | L157: 42345 | M157: 110010 | N157: Current Unrestricted | O157: 25 | P157: Academic support | Q157: 11 | R157: Current Unrestricted Funds | S157: 61 | T157: 9
B158: 159 | C158: Ammons, Matthew S. | D158: 393002 | E158: Media Services | F158: 611455 | G158: PT Instr Assistant - Non-Exempt | H158: 18895.13 | I158: 24059.9 | J158: 24440 | K158: 11611.64 | L158: 24440 | M158: 110010 | N158: Current Unrestricted | O158: 25 | P158: Academic support | Q158: 11 | R158: Current Unrestricted Funds | S158: 61 | T158: 9
B159: 160 | C159: Ammons, Matthew S. | D159: 393002 | E159: Media Services | F159: 611460 | G159: Support Staff PT - Non-Exempt | H159: 2185.41 | I159: 0 | J159: 0 | K159: 0 | L159: 0 | M159: 110010 | N159: Current Unrestricted | O159: 25 | P159: Academic support | Q159: 11 | R159: Current Unrestricted Funds | S159: 61 | T159: 9
B160: 161 | C160: Ammons, Matthew S. | D160: 393002 | E160: Media Services | F160: 611476 | G160: Lab Assistants PT - Non-Exempt | H160: 633.65 | I160: 0 | J160: 0 | K160: 0 | L160: 0 | M160: 110010 | N160: Current Unrestricted | O160: 25 | P160: Academic support | Q160: 11 | R160: Current Unrestricted Funds | S160: 61 | T160: 9
B161: 162 | C161: Ammons, Matthew S. | D161: 393002 | E161: Media Services | F161: 611492 | G161: Regular Overtime | H161: 711.48 | I161: 665.4 | J161: 600 | K161: 37.08 | L161: 100 | M161: 110010 | N161: Current Unrestricted | O161: 25 | P161: Academic support | Q161: 11 | R161: Current Unrestricted Funds | S161: 61 | T161: 9
B162: 163 | C162: Ammons, Matthew S. | D162: 393002 | E162: Media Services | F162: 611493 | G162: Vacation Payoff | H162: 50.94 | I162: 0 | J162: 0 | K162: 0 | L162: 0 | M162: 110010 | N162: Current Unrestricted | O162: 25 | P162: Academic support | Q162: 11 | R162: Current Unrestricted Funds | S162: 61 | T162: 9
B163: 164 | C163: Ammons, Matthew S. | D163: 393002 | E163: Media Services | F163: 611510 | G163: Student Assistants - Non-Work Study | H163: 10764.82 | I163: 11321.64 | J163: 16058 | K163: 5527.47 | L163: 16058 | M163: 110010 | N163: Current Unrestricted | O163: 25 | P163: Academic support | Q163: 11 | R163: Current Unrestricted Funds | S163: 61 | T163: 9
B164: 165 | C164: Ammons, Matthew S. | D164: 393002 | E164: Media Services | F164: 611515 | G164: Student Assistants - Non-WS<6 hrs | H164: 2489 | I164: 0 | J164: 0 | K164: 0 | L164: 0 | M164: 110010 | N164: Current Unrestricted | O164: 25 | P164: Academic support | Q164: 11 | R164: Current Unrestricted Funds | S164: 61 | T164: 9
B165: 166 | C165: Ammons, Matthew S. | D165: 393002 | E165: Media Services | F165: 712370 | G165: Other Contract Services | H165: 2526.25 | I165: 1102.86 | J165: 2129 | K165: 2092.77 | L165: 2100 | M165: 110010 | N165: Current Unrestricted | O165: 25 | P165: Academic support | Q165: 11 | R165: Current Unrestricted Funds | S165: 71 | T165: 9
B166: 167 | C166: Ammons, Matthew S. | D166: 393002 | E166: Media Services | F166: 733110 | G166: Classroom Supplies | H166: 0 | I166: 2046 | J166: 1147 | K166: 1146.47 | L166: 0 | M166: 110010 | N166: Current Unrestricted | O166: 25 | P166: Academic support | Q166: 11 | R166: Current Unrestricted Funds | S166: 73 | T166: 9
B167: 168 | C167: Ammons, Matthew S. | D167: 393002 | E167: Media Services | F167: 733120 | G167: Office Supplies | H167: 3348.12 | I167: 742.75 | J167: 0 | K167: 0 | L167: 100 | M167: 110010 | N167: Current Unrestricted | O167: 25 | P167: Academic support | Q167: 11 | R167: Current Unrestricted Funds | S167: 73 | T167: 9
B168: 169 | C168: Ammons, Matthew S. | D168: 393002 | E168: Media Services | F168: 733330 | G168: Audio Visual Supplies | H168: 11286.9 | I168: 11001.93 | J168: 3970 | K168: 3314.22 | L168: 7000 | M168: 110010 | N168: Current Unrestricted | O168: 25 | P168: Academic support | Q168: 11 | R168: Current Unrestricted Funds | S168: 73 | T168: 9
B169: 170 | C169: Ammons, Matthew S. | D169: 393002 | E169: Media Services | F169: 755240 | G169: DP - Software | H169: 287.7 | I169: 287.7 | J169: 4181 | K169: 4179.7 | L169: 4180 | M169: 110010 | N169: Current Unrestricted | O169: 25 | P169: Academic support | Q169: 11 | R169: Current Unrestricted Funds | S169: 75 | T169: 9
B170: 171 | C170: Ammons, Matthew S. | D170: 393002 | E170: Media Services | F170: 755510 | G170: Repairs - Equipment | H170: 200 | I170: 1565 | J170: 2035 | K170: 1315 | L170: 2000 | M170: 110010 | N170: Current Unrestricted | O170: 25 | P170: Academic support | Q170: 11 | R170: Current Unrestricted Funds | S170: 75 | T170: 9
B171: 172 | C171: Ammons, Matthew S. | D171: 393002 | E171: Media Services | F171: 755705 | G171: Postage | H171: 73.25 | I171: 0 | J171: 0 | K171: 0 | L171: 0 | M171: 110010 | N171: Current Unrestricted | O171: 25 | P171: Academic support | Q171: 11 | R171: Current Unrestricted Funds | S171: 75 | T171: 9
B172: 173 | C172: Ammons, Matthew S. | D172: 393002 | E172: Media Services | F172: 777412 | G172: Equipment/Furniture - SCC | H172: 0 | I172: 0 | J172: 131831 | K172: 0 | L172: 88000 | M172: 110010 | N172: Current Unrestricted | O172: 25 | P172: Academic support | Q172: 11 | R172: Current Unrestricted Funds | S172: 77 | T172: 9
B173: 174 | C173: Ammons, Matthew S. | D173: 393002 | E173: Media Services | F173: 787430 | G173: Computer/Media Equip | H173: 64141.9 | I173: 91326.16 | J173: 43624 | K173: 24453.58 | L173: 24900 | M173: 110010 | N173: Current Unrestricted | O173: 25 | P173: Academic support | Q173: 11 | R173: Current Unrestricted Funds | S173: 78 | T173: 9
B174: 175 | C174: Ammons, Matthew S. | D174: 393004 | E174: Media Services | F174: 611410 | G174: Supervisory Supp Staff - Non-Exempt | H174: 33216.02 | I174: 38592 | J174: 40136 | K174: 20067.84 | L174: 40136 | M174: 110010 | N174: Current Unrestricted | O174: 25 | P174: Academic support | Q174: 11 | R174: Current Unrestricted Funds | S174: 61 | T174: 9
B175: 176 | C175: Ammons, Matthew S. | D175: 393004 | E175: Media Services | F175: 611420 | G175: Non-Supervisory Supp - Non-Exempt | H175: 34477.08 | I175: 33542.7 | J175: 34143 | K175: 17071.08 | L175: 34142 | M175: 110010 | N175: Current Unrestricted | O175: 25 | P175: Academic support | Q175: 11 | R175: Current Unrestricted Funds | S175: 61 | T175: 9
B176: 177 | C176: Ammons, Matthew S. | D176: 393004 | E176: Media Services | F176: 611455 | G176: PT Instr Assistant - Non-Exempt | H176: 20985.8 | I176: 19270.78 | J176: 21840 | K176: 10417.34 | L176: 21840 | M176: 110010 | N176: Current Unrestricted | O176: 25 | P176: Academic support | Q176: 11 | R176: Current Unrestricted Funds | S176: 61 | T176: 9
B177: 178 | C177: Ammons, Matthew S. | D177: 393004 | E177: Media Services | F177: 611492 | G177: Regular Overtime | H177: 107.15 | I177: 289.12 | J177: 250 | K177: 14.47 | L177: 75 | M177: 110010 | N177: Current Unrestricted | O177: 25 | P177: Academic support | Q177: 11 | R177: Current Unrestricted Funds | S177: 61 | T177: 9
B178: 179 | C178: Ammons, Matthew S. | D178: 393004 | E178: Media Services | F178: 611493 | G178: Vacation Payoff | H178: 1395.74 | I178: 0 | J178: 0 | K178: 0 | L178: 0 | M178: 110010 | N178: Current Unrestricted | O178: 25 | P178: Academic support | Q178: 11 | R178: Current Unrestricted Funds | S178: 61 | T178: 9
B179: 180 | C179: Ammons, Matthew S. | D179: 393004 | E179: Media Services | F179: 712370 | G179: Other Contract Services | H179: 0 | I179: 1351.44 | J179: 1175 | K179: 125 | L179: 200 | M179: 110010 | N179: Current Unrestricted | O179: 25 | P179: Academic support | Q179: 11 | R179: Current Unrestricted Funds | S179: 71 | T179: 9
B180: 181 | C180: Ammons, Matthew S. | D180: 393004 | E180: Media Services | F180: 733110 | G180: Classroom Supplies | H180: 652.44 | I180: 826.75 | J180: 348 | K180: 347.21 | L180: 0 | M180: 110010 | N180: Current Unrestricted | O180: 25 | P180: Academic support | Q180: 11 | R180: Current Unrestricted Funds | S180: 73 | T180: 9
B181: 182 | C181: Ammons, Matthew S. | D181: 393004 | E181: Media Services | F181: 733120 | G181: Office Supplies | H181: 39.66 | I181: 2.1 | J181: 100 | K181: 48.3 | L181: 100 | M181: 110010 | N181: Current Unrestricted | O181: 25 | P181: Academic support | Q181: 11 | R181: Current Unrestricted Funds | S181: 73 | T181: 9
B182: 183 | C182: Ammons, Matthew S. | D182: 393004 | E182: Media Services | F182: 733330 | G182: Audio Visual Supplies | H182: 2091.5 | I182: 2415.29 | J182: 4200 | K182: 1410.53 | L182: 4500 | M182: 110010 | N182: Current Unrestricted | O182: 25 | P182: Academic support | Q182: 11 | R182: Current Unrestricted Funds | S182: 73 | T182: 9
B183: 184 | C183: Ammons, Matthew S. | D183: 393004 | E183: Media Services | F183: 744210 | G183: Local Travel | H183: 0 | I183: 0 | J183: 0 | K183: 0 | L183: 500 | M183: 110010 | N183: Current Unrestricted | O183: 25 | P183: Academic support | Q183: 11 | R183: Current Unrestricted Funds | S183: 74 | T183: 9
B184: 185 | C184: Ammons, Matthew S. | D184: 393004 | E184: Media Services | F184: 744230 | G184: In-House Professional Development | H184: 99 | I184: 0 | J184: 0 | K184: 0 | L184: 0 | M184: 110010 | N184: Current Unrestricted | O184: 25 | P184: Academic support | Q184: 11 | R184: Current Unrestricted Funds | S184: 74 | T184: 9
B185: 186 | C185: Ammons, Matthew S. | D185: 393004 | E185: Media Services | F185: 755510 | G185: Repairs - Equipment | H185: 0 | I185: 0 | J185: 0 | K185: 0 | L185: 420 | M185: 110010 | N185: Current Unrestricted | O185: 25 | P185: Academic support | Q185: 11 | R185: Current Unrestricted Funds | S185: 75 | T185: 9
B186: 187 | C186: Ammons, Matthew S. | D186: 393004 | E186: Media Services | F186: 777414 | G186: Equipment/Furniture - CYC | H186: 5936.67 | I186: 0 | J186: 18600 | K186: 0 | L186: 8000 | M186: 110010 | N186: Current Unrestricted | O186: 25 | P186: Academic support | Q186: 11 | R186: Current Unrestricted Funds | S186: 77 | T186: 9
B187: 188 | C187: Ammons, Matthew S. | D187: 393004 | E187: Media Services | F187: 787430 | G187: Computer/Media Equip | H187: 63210.34 | I187: 30998.8 | J187: 12541 | K187: 8644.06 | L187: 9692 | M187: 110010 | N187: Current Unrestricted | O187: 25 | P187: Academic support | Q187: 11 | R187: Current Unrestricted Funds | S187: 78 | T187: 9
B188: 189 | C188: Ammons, Matthew S. | D188: 393006 | E188: Media Services | F188: 611410 | G188: Supervisory Supp Staff - Non-Exempt | H188: 40188.71 | I188: 41219.82 | J188: 44607 | K188: 22303.5 | L188: 44607 | M188: 110010 | N188: Current Unrestricted | O188: 25 | P188: Academic support | Q188: 11 | R188: Current Unrestricted Funds | S188: 61 | T188: 9
B189: 190 | C189: Ammons, Matthew S. | D189: 393006 | E189: Media Services | F189: 611420 | G189: Non-Supervisory Supp - Non-Exempt | H189: 32904.53 | I189: 38423.15 | J189: 42345 | K189: 20626.9 | L189: 35799 | M189: 110010 | N189: Current Unrestricted | O189: 25 | P189: Academic support | Q189: 11 | R189: Current Unrestricted Funds | S189: 61 | T189: 9
B190: 191 | C190: Ammons, Matthew S. | D190: 393006 | E190: Media Services | F190: 611455 | G190: PT Instr Assistant - Non-Exempt | H190: 9161.2 | I190: 11684.54 | J190: 11440 | K190: 5680.01 | L190: 11440 | M190: 110010 | N190: Current Unrestricted | O190: 25 | P190: Academic support | Q190: 11 | R190: Current Unrestricted Funds | S190: 61 | T190: 9
B191: 192 | C191: Ammons, Matthew S. | D191: 393006 | E191: Media Services | F191: 611492 | G191: Regular Overtime | H191: 1120.88 | I191: 926.97 | J191: 200 | K191: 198.49 | L191: 200 | M191: 110010 | N191: Current Unrestricted | O191: 25 | P191: Academic support | Q191: 11 | R191: Current Unrestricted Funds | S191: 61 | T191: 9
B192: 193 | C192: Ammons, Matthew S. | D192: 393006 | E192: Media Services | F192: 712370 | G192: Other Contract Services | H192: 785 | I192: 0 | J192: 1287 | K192: 1268.96 | L192: 1300 | M192: 110010 | N192: Current Unrestricted | O192: 25 | P192: Academic support | Q192: 11 | R192: Current Unrestricted Funds | S192: 71 | T192: 9
B193: 194 | C193: Ammons, Matthew S. | D193: 393006 | E193: Media Services | F193: 733110 | G193: Classroom Supplies | H193: 61 | I193: 682 | J193: 501 | K193: 500.65 | L193: 0 | M193: 110010 | N193: Current Unrestricted | O193: 25 | P193: Academic support | Q193: 11 | R193: Current Unrestricted Funds | S193: 73 | T193: 9
B194: 195 | C194: Ammons, Matthew S. | D194: 393006 | E194: Media Services | F194: 733120 | G194: Office Supplies | H194: 3975.28 | I194: 174.32 | J194: 25 | K194: 0 | L194: 50 | M194: 110010 | N194: Current Unrestricted | O194: 25 | P194: Academic support | Q194: 11 | R194: Current Unrestricted Funds | S194: 73 | T194: 9
B195: 196 | C195: Ammons, Matthew S. | D195: 393006 | E195: Media Services | F195: 733330 | G195: Audio Visual Supplies | H195: 11196.86 | I195: 8008.98 | J195: 4056 | K195: 4056 | L195: 6000 | M195: 110010 | N195: Current Unrestricted | O195: 25 | P195: Academic support | Q195: 11 | R195: Current Unrestricted Funds | S195: 73 | T195: 9
B196: 197 | C196: =VLOOKUP(Orgn,fin_mgr,22,FALSE) -> Ammons, Matthew S. | D196: 393006 | E196: Media Services | F196: 755240 | G196: DP - Software | H196: 0 | I196: 5658.91 | J196: 0 | K196: 0 | L196: 0 | M196: 110010 | N196: Current Unrestricted | O196: 25 | P196: Academic support | Q196: 11 | R196: Current Unrestricted Funds | S196: 75 | T196: 9
B197: 198 | C197: Ammons, Matthew S. | D197: 393006 | E197: Media Services | F197: 755310 | G197: Copier Expense | H197: 3.54 | I197: 0 | J197: 0 | K197: 0 | L197: 0 | M197: 110010 | N197: Current Unrestricted | O197: 25 | P197: Academic support | Q197: 11 | R197: Current Unrestricted Funds | S197: 75 | T197: 9
B198: 199 | C198: Ammons, Matthew S. | D198: 393006 | E198: Media Services | F198: 755510 | G198: Repairs - Equipment | H198: 744 | I198: 2010 | J198: 2738 | K198: 2673 | L198: 2700 | M198: 110010 | N198: Current Unrestricted | O198: 25 | P198: Academic support | Q198: 11 | R198: Current Unrestricted Funds | S198: 75 | T198: 9
B199: 200 | C199: Ammons, Matthew S. | D199: 393006 | E199: Media Services | F199: 755705 | G199: Postage | H199: 0 | I199: 20.88 | J199: 25 | K199: 21.84 | L199: 25 | M199: 110010 | N199: Current Unrestricted | O199: 25 | P199: Academic support | Q199: 11 | R199: Current Unrestricted Funds | S199: 75 | T199: 9
B200: 201 | C200: Ammons, Matthew S. | D200: 393006 | E200: Media Services | F200: 777416 | G200: Equipment/Furniture - PRC | H200: 0 | I200: 7941 | J200: 23270 | K200: 0 | L200: 112000 | M200: 110010 | N200: Current Unrestricted | O200: 25 | P200: Academic support | Q200: 11 | R200: Current Unrestricted Funds | S200: 77 | T200: 9
... 3863 more rows

Sheet CB-Overview
B1: Collin County Community College District
B2: Summary of Current Funds
B3: Revenues & Expenses
Q4: =126556734+11004886+40893081+1300+15497040+4707773+1111996 -> 199772810
S6: 137065834
D7: 2011-12 | F7: 2012-13 | H7: 2013-14 | J7: 2014-15 | L7: Increase/ | N7: Percent | S7: 10126273
D8: Actual | F8: Actual | H8: Budget* | J8: Budget | L8: (Decrease) | N8: Change | S8: 34798333
S9: =SUM(S6:S8) -> 181990440
B10: Revenues: | Q10: 13/14 CUF | R10: 14/15 CUF | S10: 31873917
S11: 4575038
B12: State Appropriations - General Revenue | D12: =SUMIF(accttype,"51",ytd2011) -> 30210041 | F12: =SUMIF(accttype,"51",ytd2012) -> 31087895 | H12: =SUMIF(accttype,"51",Revised2013bud) -> 33136075 | J12: =SUMIF(accttype,"51",budget2014) -> 33136075 | L12: =J12-H12 -> 0 | N12: =IF(L12=0,0,+L12/H12) -> 0 | Q12: 33136075 | R12: 33136075 | S12: 1109741
B13: Tuition and Fees | D13: 28733140 | F13: =SUMIFS(ytd2012,accttype,"53",fundtype,"11") -> 30630997.85 | H13: =SUMIFS(Revised2013bud,accttype,"53",fundtype,"11") -> 32517911 | J13: =SUMIFS(budget2014,accttype,"53",fundtype,"11") -> 32552650 | L13: 34739 | N13: 0.001068303557 | Q13: 32470800 | R13: 32552650 | S13: =SUM(S9:S12) -> 219549136
B14: Taxes for Current Operations | D14: =SUMIFS(ytd2011,accttype,"54",programcode,"0") -> 60160875.13 | F14: =SUMIFS(ytd2012,accttype,"54",programcode,"0") -> 61935483.98 | H14: =SUMIFS(Revised2013bud,accttype,"54",programcode,"0") -> 64160845 | J14: =SUMIFS(budget2014,accttype,"54",programcode,"0") -> 69265248 | L14: 5104403 | N14: 0.07955635559 | Q14: 64160845 | R14: 70101487
B15: Grants and Contracts | D15: =75958824+2301826 -> 78260650 | F15: =68598193+628453 -> 69226646 | H15: 36302536 | J15: =+'CB-Grant'!F38 -> 34798333 | L15: -1504203 | N15: -0.04143520442 | Q15: 150000 | R15: 55000
B16: Investment Income | D16: =SUMIFS(ytd2011,accttype,"56",fund,"110010") -> 131702.81 | F16: =SUMIFS(ytd2012,accttype,"56",fund,"110010") -> 141599.34 | H16: =SUMIFS(Revised2013bud,accttype,"56",fund,"110010") -> 150000 | J16: =SUMIFS(budget2014,accttype,"56",fund,"110010") -> 55000 | L16: -95000 | N16: -0.6333333333 | Q16: 1058646 | R16: 1220622
B17: Sales/Services of Auxiliary Enterprises | D17: =SUMIFS(ytd2011,accttype,"53",fundtype,"31")+SUMIFS(ytd2011,accttype,"58",fundtype,"31")+SUMIFS(ytd2011,accttype,"59",fundtype,"31")+76303 -> 10562857.65 | F17: 10165003 | H17: 10282593 | J17: =+'CB-Aux'!J22 -> 10138773 | L17: -143820 | N17: -0.01398674439 | Q17: 11118278 | R17: 10126273
B18: Miscellaneous | D18: =1625967-2 -> 1625965 | F18: 940886 | H18: =SUMIFS(Revised2013bud,accttype,"57",fund,"110010")+SUMIFS(Revised2013bud,accttype,"59",fund,"110010")+SUMIFS(Revised2013bud,accttype,"52",fund,"110010") -> 1078746 | J18: =SUMIFS(budget2014,accttype,"57",fund,"110010")+SUMIFS(budget2014,accttype,"59",fund,"110010")+SUMIFS(budget2014,accttype,"52",fund,"110010") -> 1220622 | L18: 141876 | N18: 0.1315193753 | Q18: =SUM(Q12:Q17) -> 142094644 | R18: =SUM(R12:R17) -> 147192107 | S18: =R18-Q18 -> 5097463 | T18: =S18/Q18 -> 0.03587371668
B20: SUB-TOTAL (OPERATING) | H20: =SUM(H12:H19) -> 177628706 | J20: =SUM(J12:J18) -> 181166701 | L20: =J20-H20 -> 3537995 | N20: =IF(L20=0,0,+L20/H20) -> 0.01991792363 | T20: 125348088
B22: Decrease in Fund Balance | H22: 0 | J22: 0 | L22: =J22-H22 -> 0 | N22: =IF(L22=0,0,+L22/H22) -> 0
B24: Total Current Funds Revenues | D24: =SUM(D12:D18)+1 -> 209685232.6 | F24: =SUM(F12:F18) -> 204128511.2 | H24: =SUM(H12:H18) -> 177628706 | J24: =SUM(J12:J18) -> 181166701 | L24: =SUM(L20:L22) -> 3537995 | N24: =IF(L24=0,0,+L24/H24) -> 0.01991792363
B26: Expenses:
B27: Instruction | D27: =SUMIF(programcode,"10",ytd2011)+42734.49 -> 45717028.88 | F27: 48385303 | H27: 55404304 | J27: =SUMIF(programcode,"10",budget2014) -> 57142686 | L27: =J27-H27 -> 1738382 | N27: =IF(L27=0,0,+L27/H27) -> 0.03137629885 | P27: 10
B28: Public Service | D28: =SUMIF(programcode,"20",ytd2011) -> 116499.48 | F28: =SUMIF(programcode,"20",ytd2012) -> 108427.53 | H28: =SUMIF(programcode,"20",Revised2013bud) -> 125632 | J28: =SUMIF(programcode,"20",budget2014) -> 125339 | L28: -293 | N28: -0.002332208355 | P28: 20
B29: Academic Support | D29: =SUMIF(programcode,"25",ytd2011)+325472 -> 8034147.4 | F29: 8201353 | H29: 9063859 | J29: =SUMIF(programcode,"25",budget2014) -> 8943108 | L29: -120751 | N29: -0.01332225049 | P29: 25 | Q29: 55404304 | R29: =SUMIF(programcode,"10",budget2014) -> 57142686
B30: Student Services | D30: =SUMIF(programcode,"30",ytd2011)+1881282 -> 7112400.1 | F30: 7368444 | H30: 9127474 | J30: =SUMIF(programcode,"30",budget2014) -> 9206843 | L30: 79369 | N30: 0.008695615019 | P30: 30 | Q30: 125632 | R30: =SUMIF(programcode,"20",budget2014) -> 125339 | T30: 182923381
B31: Institutional Support | D31: =SUMIF(programcode,"35",ytd2011)-180185 -> 15584327.65 | F31: 14567800 | H31: 17543994 | J31: =SUMIF(programcode,"35",budget2014) -> 21146436 | L31: 3602442 | N31: 0.2053376215 | P31: 35 | Q31: 9063859 | R31: =SUMIF(programcode,"25",budget2014) -> 8943108 | T31: 1300
B32: Operation and Maintenance of Plant | D32: =SUMIF(programcode,"40",ytd2011)+127690 -> 7797115.25 | F32: 9804855 | H32: 11579328 | J32: =SUMIF(programcode,"40",budget2014) -> 9442487 | L32: -2136841 | N32: -0.1845392928 | P32: 40 | Q32: 9127474 | R32: =SUMIF(programcode,"30",budget2014) -> 9206843 | T32: 20652040
B33: Employee Benefits | D33: =SUMIF(programcode,"42",ytd2011)+471952 -> 6020821.27 | F33: 8983411 | H33: 8590000 | J33: =SUMIFS(budget2014,programcode,"42",fund,"110010") -> 9008700 | L33: 418700 | N33: 0.0487427241 | P33: 42 | Q33: 17543994 | R33: =SUMIF(programcode,"35",budget2014) -> 21146436 | T33: 4425138
B34: Other Transfers/Reserves: | Q34: 11579328 | R34: =SUMIF(programcode,"40",budget2014) -> 9442487 | T34: 1111996
B35: Mandatory Transfers | D35: =SUMIFS(ytd2011,Acct,"828247")+SUMIFS(ytd2011,Acct,"828273")+78908 -> 1188962.75 | F35: 1197765 | H35: 1198815 | J35: =SUMIFS(budget2014,Acct,"828247")+SUMIFS(budget2014,Acct,"828273") -> 1191489 | L35: =J35-H35 -> -7326 | N35: =IF(L35=0,0,+L35/H35) -> -0.006111034647 | P35: 80 | Q35: 8590000 | R35: =SUMIFS(budget2014,programcode,"42",fund,"110010") -> 9008700 | T35: =SUM(T30:T34) -> 209113855
B36: Non-Mandatory Transfers | D36: =SUMIFS(ytd2011,Acct,"828277")+SUMIFS(ytd2011,Acct,"828271")+SUMIFS(ytd2011,Acct,"828295")+139139 -> 8828287.8 | F36: 21862936 | H36: 17361788 | J36: =13828669+209567-127700+2015817+248202-800000-248202+323000-30000-838239-108607 -> 14472507 | L36: =J36-H36 -> -2889281 | N36: =IF(L36=0,0,+L36/H36) -> -0.1664160972 | P36: 85
B37: Reserves | D37: 6948420 | F37: =SUMIFS(ytd2012,programcode,"90") -> 0 | H37: 1048383 | J37: =SUMIFS(budget2014,programcode,"90") -> 5550000 | L37: =J37-H37 -> 4501617 | N37: =IF(L37=0,0,+L37/H37) -> 4.293866841 | P37: 90 | Q37: 1198815 | R37: =SUMIFS(budget2014,Acct,"828247")+SUMIFS(budget2014,Acct,"828273") -> 1191489
B38: Auxiliary Enterprise Expenses | D38: =-(SUMIFS(ytd2011,accttype,"31")-SUMIFS(ytd2011,accttype,"53",fundtype,"31")-SUMIFS(ytd2011,accttype,"58",fundtype,"31")-SUMIFS(ytd2011,accttype,"59",fundtype,"31"))+76303 -> 10562857.65 | F38: 10006382 | H38: =-(SUMIFS(Revised2013bud,accttype,"31")-SUMIFS(Revised2013bud,accttype,"53",fundtype,"31")-SUMIFS(Revised2013bud,accttype,"58",fundtype,"31")-SUMIFS(Revised2013bud,accttype,"59",fundtype,"31"))-7400 -> 10282593 | J38: ='CB-Aux'!J56 -> 10138772.64 | L38: =J38-H38 -> -143820.36 | N38: =IF(L38=0,0,+L38/H38) -> -0.0139867794 | Q38: =SUMIFS(Revised2013bud,Acct,"828277")+SUMIFS(Revised2013bud,Acct,"828271")+SUMIFS(Revised2013bud,Acct,"828295") -> 17361788 | R38: =SUMIFS(budget2014,Acct,"828277")+SUMIFS(budget2014,Acct,"828271")+SUMIFS(budget2014,Acct,"828295") -> 14472507
B39: Grants and Contracts | D39: 78260650 | F39: =6008889+25332176+37046390+152107 -> 68539562 | H39: 36302536 | J39: =+'CB-Grant'!F70 -> 34798333 | L39: =J39-H39 -> -1504203 | N39: =IF(L39=0,0,+L39/H39) -> -0.04143520442 | Q39: 1048383 | R39: =SUMIFS(budget2014,programcode,"90") -> 5550000
Q40: =SUM(Q29:Q39) -> 131043577 | R40: =SUM(R29:R39) -> 136229595 | S40: =R40-Q40 -> 5186018 | T40: =S40/Q40 -> 0.03957475917
B41: Total Current Fund Expenses | D41: =SUM(D27:D39) -> 196171518.2 | F41: =SUM(F27:F39) -> 199026238.5 | H41: =SUM(H27:H39) -> 177628706 | J41: =SUM(J27:J39) -> 181166700.6 | L41: =SUM(L27:L39) -> 3537994.64 | N41: =IF(L41=0,0,+L41/H41) -> 0.0199179216 | R41: 11118278
R42: 40828737
R43: =SUM(R40:R42) -> 188176610
B44: *Midyear budget as approved by the Board on March 25, 2014 | R44: 1300
T45: 137065834
R46: 20652040 | T46: 10126273
R47: 4425138 | T47: 34798333
J48: =+J24-J41 -> 0.3600000143 | R48: 1111996 | T48: =SUM(T45:T47) -> 181990440
D49: 136229595 | R49: =SUM(R43:R48) -> 214367084 | T49: 31873917
D50: 10138773 | T50: 4575038
D51: 34798333 | H51: CUF REV | J51: =SUM(J12:J14,J16,J18) -> 136229595 | T51: 1109741
D52: =SUM(D49:D51) -> 181166701 | H52: CUF EXP | J52: =SUM(J27:J33,J35:J37) -> 136229595 | T52: =SUM(T48:T51) -> 219549136
D53: 31873917
D54: 4466431
D55: 1109741
D56: =SUM(D52:D55) -> 218616790
I121: =3426631+51500+1102377-15000+37800 -> 4603308

Sheet CB-Current Fd
B3: Collin County Community College District
B4: Comparative Current Fund Budget
D7: 2011-12 | F7: 2012-13 | H7: 2013-14 | J7: 2014-15 | L7: Increase / | N7: Percent
D8: Actual | F8: Actual | H8: Budget* | J8: Budget | L8: (Decrease) | N8: Change
B10: Revenues:
B12: State Appropriations:
B13: General Revenue | D13: =SUMIF(accttype,"51",ytd2011) -> 30210041 | F13: =SUMIF(accttype,"51",ytd2012) -> 31087895 | H13: =SUMIF(accttype,"51",Revised2013bud) -> 33136075 | J13: =SUMIF(accttype,"51",budget2014) -> 33136075 | L13: =J13-H13 -> 0 | N13: =IF(L13=0,0,+L13/H13) -> 0
B14: Total State Appropriations | D14: =SUM(D13) -> 30210041 | F14: =SUM(F13) -> 31087895 | H14: =SUM(H13:H13) -> 33136075 | J14: =SUM(J13:J13) -> 33136075 | L14: =J14-H14 -> 0 | N14: =IF(L14=0,0,+L14/H14) -> 0
B16: Tuition and Fees:
B17: Tuition-Credit | D17: =SUMIFS(ytd2011,Acct,"530111")+SUMIFS(ytd2011,Acct,"530112")+SUMIFS(ytd2011,Acct,"530113")+SUMIFS(ytd2011,Acct,"530121")+SUMIFS(ytd2011,Acct,"530122")+SUMIFS(ytd2011,Acct,"530123") -> 21784623.99 | F17: 23709999 | H17: =SUMIFS(Revised2013bud,Acct,"530111")+SUMIFS(Revised2013bud,Acct,"530112")+SUMIFS(Revised2013bud,Acct,"530113")+SUMIFS(Revised2013bud,Acct,"530121")+SUMIFS(Revised2013bud,Acct,"530122")+SUMIFS(Revised2013bud,Acct,"530123") -> 25483534 | J17: =SUMIFS(budget2014,Acct,"530111")+SUMIFS(budget2014,Acct,"530112")+SUMIFS(budget2014,Acct,"530113")+SUMIFS(budget2014,Acct,"530121")+SUMIFS(budget2014,Acct,"530122")+SUMIFS(budget2014,Acct,"530123") -> 25526000 | L17: =J17-H17 -> 42466 | N17: =IF(L17=0,0,+L17/H17) -> 0.001666409376
B18: Less Transfer to
B19: Institutional Scholarships from Credit | D19: =SUMIFS(ytd2011,Acct,"530161")+SUMIFS(ytd2011,Acct,"530162")+SUMIFS(ytd2011,Acct,"530163") -> -851229.6 | F19: =SUMIFS(ytd2012,Acct,"530161")+SUMIFS(ytd2012,Acct,"530162")+SUMIFS(ytd2012,Acct,"530163") -> -930237.42 | H19: =SUMIFS(Revised2013bud,Acct,"530161")+SUMIFS(Revised2013bud,Acct,"530162")+SUMIFS(Revised2013bud,Acct,"530163") -> -1007639 | J19: =SUMIFS(budget2014,Acct,"530161")+SUMIFS(budget2014,Acct,"530162")+SUMIFS(budget2014,Acct,"530163") -> -954000 | L19: =J19-H19 -> 53639 | N19: =IF(L19=0,0,+L19/H19) -> -0.05323235802
B20: Tuition-Noncredit | D20: =SUMIFS(ytd2011,Acct,"530301")+SUMIFS(ytd2011,Acct,"530302")+SUMIFS(ytd2011,Acct,"530303")+SUMIFS(ytd2011,Acct,"530304")+SUMIFS(ytd2011,Acct,"530305")+SUMIFS(ytd2011,Acct,"530306")+SUMIFS(ytd2011,Acct,"530307")+SUMIFS(Revised2013bud,Acct,"530308")+SUMIFS(Revised2013bud,Acct,"530309")+SUMIFS(Revised2013bud,Acct,"530310")+SUMIFS(Revised2013bud,Acct,"530311")+SUMIFS(ytd2011,Acct,"530312")+SUMIFS(ytd2011,Acct,"530317")+SUMIFS(ytd2011,Acct,"530365")+SUMIFS(ytd2011,Acct,"530370")+SUMIFS(ytd2011,Acct,"530371")+SUMIFS(ytd2011,Acct,"530372")+SUMIFS(ytd2011,Acct,"530373")-35425 -> 4002604.78 | F20: 4474570 | H20: =SUMIFS(Revised2013bud,Acct,"530301")+SUMIFS(Revised2013bud,Acct,"530302")+SUMIFS(Revised2013bud,Acct,"530303")+SUMIFS(Revised2013bud,Acct,"530304")+SUMIFS(Revised2013bud,Acct,"530305")+SUMIFS(Revised2013bud,Acct,"530306")+SUMIFS(Revised2013bud,Acct,"530307")+SUMIFS(Revised2013bud,Acct,"530308")+SUMIFS(Revised2013bud,Acct,"530309")+SUMIFS(Revised2013bud,Acct,"530310")+SUMIFS(Revised2013bud,Acct,"530311")+SUMIFS(Revised2013bud,Acct,"530312")+SUMIFS(Revised2013bud,Acct,"530317")+SUMIFS(Revised2013bud,Acct,"530365")+SUMIFS(Revised2013bud,Acct,"530370")+SUMIFS(Revised2013bud,Acct,"530371")+SUMIFS(Revised2013bud,Acct,"530372")+SUMIFS(Revised2013bud,Acct,"530373") -> 4137778 | J20: =SUMIFS(budget2014,Acct,"530301")+SUMIFS(budget2014,Acct,"530302")+SUMIFS(budget2014,Acct,"530303")+SUMIFS(budget2014,Acct,"530304")+SUMIFS(budget2014,Acct,"530305")+SUMIFS(budget2014,Acct,"530306")+SUMIFS(budget2014,Acct,"530307")+SUMIFS(budget2014,Acct,"530308")+SUMIFS(budget2014,Acct,"530309")+SUMIFS(budget2014,Acct,"530310")+SUMIFS(budget2014,Acct,"530311")+SUMIFS(budget2014,Acct,"530312")+SUMIFS(budget2014,Acct,"530317")+SUMIFS(budget2014,Acct,"530365")+SUMIFS(budget2014,Acct,"530370")+SUMIFS(budget2014,Acct,"530371")+SUMIFS(budget2014,Acct,"530372")+SUMIFS(budget2014,Acct,"530373") -> 4086250 | L20: =J20-H20 -> -51528 | N20: =IF(L20=0,0,+L20/H20) -> -0.01245306056
B21: Less Transfer to
B22: Institutional Scholarships from Noncredit | D22: =SUMIFS(ytd2011,Acct,"530390")+SUMIFS(ytd2011,Acct,"530391")+SUMIFS(ytd2011,Acct,"530392")+SUMIFS(ytd2011,Acct,"530393") -> -237839.9 | F22: =SUMIFS(ytd2012,Acct,"530390")+SUMIFS(ytd2012,Acct,"530391")+SUMIFS(ytd2012,Acct,"530392")+SUMIFS(ytd2012,Acct,"530393") -> -269320.53 | H22: =SUMIFS(Revised2013bud,Acct,"530390")+SUMIFS(Revised2013bud,Acct,"530391")+SUMIFS(Revised2013bud,Acct,"530392")+SUMIFS(Revised2013bud,Acct,"530393") -> -215528 | J22: =SUMIFS(budget2014,Acct,"530390")+SUMIFS(budget2014,Acct,"530391")+SUMIFS(budget2014,Acct,"530392")+SUMIFS(budget2014,Acct,"530393") -> -237050 | L22: =J22-H22 -> -21522 | N22: =IF(L22=0,0,+L22/H22) -> 0.09985709513
B23: Laboratory and Other Fees | D23: =SUMIFS(ytd2011,Acct,"530131")+SUMIFS(ytd2011,Acct,"530132")+SUMIFS(ytd2011,Acct,"530133")+SUMIFS(ytd2011,Acct,"530141")+SUMIFS(ytd2011,Acct,"530142")+SUMIFS(ytd2011,Acct,"530143")+SUMIFS(ytd2011,Acct,"530171")+SUMIFS(ytd2011,Acct,"530172")+SUMIFS(ytd2011,Acct,"530173")+SUMIFS(ytd2011,Acct,"530181")+SUMIFS(ytd2011,Acct,"530185")+SUMIFS(ytd2011,Acct,"530189")+SUMIFS(ytd2011,Acct,"530193")+SUMIFS(ytd2011,Acct,"530197") -> 4034980.27 | F23: 3645987 | H23: =SUMIFS(Revised2013bud,Acct,"530131")+SUMIFS(Revised2013bud,Acct,"530132")+SUMIFS(Revised2013bud,Acct,"530133")+SUMIFS(Revised2013bud,Acct,"530141")+SUMIFS(Revised2013bud,Acct,"530142")+SUMIFS(Revised2013bud,Acct,"530143")+SUMIFS(Revised2013bud,Acct,"530171")+SUMIFS(Revised2013bud,Acct,"530172")+SUMIFS(Revised2013bud,Acct,"530173")+SUMIFS(Revised2013bud,Acct,"530181")+SUMIFS(Revised2013bud,Acct,"530185")+SUMIFS(Revised2013bud,Acct,"530189")+SUMIFS(Revised2013bud,Acct,"530193")+SUMIFS(Revised2013bud,Acct,"530197") -> 4119766 | J23: =SUMIFS(budget2014,Acct,"530131")+SUMIFS(budget2014,Acct,"530132")+SUMIFS(budget2014,Acct,"530133")+SUMIFS(budget2014,Acct,"530141")+SUMIFS(budget2014,Acct,"530142")+SUMIFS(budget2014,Acct,"530143")+SUMIFS(budget2014,Acct,"530171")+SUMIFS(budget2014,Acct,"530172")+SUMIFS(budget2014,Acct,"530173")+SUMIFS(budget2014,Acct,"530181")+SUMIFS(budget2014,Acct,"530185")+SUMIFS(budget2014,Acct,"530189")+SUMIFS(budget2014,Acct,"530193")+SUMIFS(budget2014,Acct,"530197") -> 4131450 | L23: =J23-H23 -> 11684 | N23: =IF(L23=0,0,+L23/H23) -> 0.002836083409
B24: Total Tuition and Fees | D24: =SUM(D17:D23) -> 28733139.54 | F24: =SUM(F17:F23) -> 30630998.05 | H24: =SUM(H17:H23) -> 32517911 | J24: =SUM(J17:J23) -> 32552650 | L24: =J24-H24 -> 34739 | N24: =IF(L24=0,0,+L24/H24) -> 0.001068303557
B26: Taxes for Current Operations | D26: =SUMIFS(ytd2011,accttype,"54",programcode,"0") -> 60160875.13 | F26: =SUMIFS(ytd2012,accttype,"54",programcode,"0") -> 61935483.98 | H26: =SUMIFS(Revised2013bud,accttype,"54",programcode,"0") -> 64160845 | J26: =SUMIFS(budget2014,accttype,"54",programcode,"0") -> 69265248 | L26: =J26-H26 -> 5104403 | N26: =IF(L26=0,0,+L26/H26) -> 0.07955635559
B28: Federal Funds:
B29: Grants and Contracts | D29: 75958824 | F29: =68598193-227531 -> 68370662 | H29: 34128460 | J29: 32166530 | L29: =J29-H29 -> -1961930 | N29: =IF(L29=0,0,+L29/H29) -> -0.05748662553
B30: Total Federal Funds | D30: =SUM(D29) -> 75958824 | F30: =SUM(F29) -> 68370662 | H30: =SUM(H29) -> 34128460 | J30: =SUM(J29:J29) -> 32166530 | L30: =J30-H30 -> -1961930 | N30: =IF(L30=0,0,+L30/H30) -> -0.05748662553
B32: State and Private Grants:
B33: Grants and Contracts | D33: 2301826 | F33: 628453 | H33: 2174076 | J33: 2631803 | L33: =J33-H33 -> 457727 | N33: =IF(L33=0,0,+L33/H33) -> 0.210538638
B34: Total State and Private Grants | D34: =SUM(D33) -> 2301826 | F34: =SUM(F33) -> 628453 | H34: =SUM(H33) -> 2174076 | J34: =SUM(J33) -> 2631803 | L34: =J34-H34 -> 457727 | N34: =IF(L34=0,0,+L34/H34) -> 0.210538638
B36: Other Income:
B37: Investment Income | D37: =SUMIFS(ytd2011,accttype,"56",fund,"110010") -> 131702.81 | F37: =SUMIFS(ytd2012,accttype,"56",fund,"110010") -> 141599.34 | H37: =SUMIFS(Revised2013bud,accttype,"56",fund,"110010") -> 150000 | J37: =SUMIFS(budget2014,accttype,"56",fund,"110010") -> 55000 | L37: =J37-H37 -> -95000 | N37: =IF(L37=0,0,+L37/J37) -> -1.727272727
B38: Indirect Cost Recovery | D38: =SUMIFS(ytd2011,Acct,"590002") -> 49382.09 | F38: =SUMIFS(ytd2012,Acct,"590002") -> 58958.1 | H38: =SUMIFS(Revised2013bud,Acct,"590002") -> 73900 | J38: =SUMIFS(budget2014,Acct,"590002") -> 90938 | L38: =J38-H38 -> 17038 | N38: =IF(L38=0,0,+L38/H38) -> 0.2305548038
B39: Administrative Cost Allowance | D39: 254977 | F39: 227531 | H39: 73117 | J39: 83451 | L39: =J39-H39 -> 10334 | N39: =IF(L39=0,0,+L39/H39) -> 0.1413351204
B40: Other District Funds | D40: =SUMIFS(ytd2011,accttype,"57",fund,"110010")+SUMIFS(ytd2011,accttype,"59",fund,"110010")+SUMIFS(ytd2011,accttype,"52",fund,"110010") -> 1321607.25 | F40: 881928 | H40: =SUMIFS(Revised2013bud,accttype,"57",fund,"110010")+SUMIFS(Revised2013bud,accttype,"59",fund,"110010")+SUMIFS(Revised2013bud,accttype,"52",fund,"110010")-73117-82557+8657 -> 931729 | J40: =SUMIFS(budget2014,accttype,"57",fund,"110010")+SUMIFS(budget2014,accttype,"59",fund,"110010")+SUMIFS(budget2014,accttype,"52",fund,"110010")-90938-83451 -> 1046233 | L40: =J40-H40 -> 114504 | N40: =IF(L40=0,0,+L40/H40) -> 0.1228941033
B41: Total Other Income | D41: =SUM(D37:D40) -> 1757669.15 | F41: =SUM(F37:F40) -> 1310016.44 | H41: =SUM(H37:H40) -> 1228746 | J41: =SUM(J37:J40) -> 1275622 | L41: =J41-H41 -> 46876 | N41: =IF(L41=0,0,+L41/H41) -> 0.03814946295
B43: Total Education and Grants Revenues | D43: =+D14+D24+D26+D34+D41+D30 -> 199122374.8 | F43: =+F14+F24+F26+F34+F41+F30 -> 193963508.5 | H43: =+H14+H24+H26+H34+H41+H30 -> 167346113 | J43: =+J14+J24+J26+J34+J41+J30 -> 171027928 | L43: =J43-H43 -> 3681815 | N43: =IF(L43=0,0,+L43/H43) -> 0.0220011982
B45: Sales/Services of Auxiliary Enterprises | D45: 10562858 | F45: 10165003 | H45: 10282593 | J45: ='CB-Aux'!J22 -> 10138773 | L45: =J45-H45 -> -143820 | N45: =IF(L45=0,0,+L45/H45) -> -0.01398674439
B46: Total Current Funds Revenues | H46: 188693351 | J46: =SUM(J43:J45) -> 181166701 | L46: =J46-H46 -> -7526650 | N46: =IF(L46=0,0,+L46/H46) -> -0.03988826294
B48: Decrease in Fund Balance Prior Year Reserves | H48: 0 | J48: 0 | L48: =J48-H48 -> 0 | N48: =IF(L48=0,0,+L48/H48) -> 0
B50: Total Current Funds Revenues | D50: =SUM(D43:D45) -> 209685232.8 | F50: =SUM(F43:F45) -> 204128511.5 | H50: =SUM(H43:H45) -> 177628706 | J50: =+J48+SUM(J43:J45) -> 181166701 | L50: =J50-H50 -> 3537995 | N50: =IF(L50=0,0,+L50/H50) -> 0.01991792363
B52: Expenses:
B54: Educational and General:
B55: Instruction:
B56: General Academic Courses:
B57: Faculty Salaries | D57: 31675339 | F57: =SUMIF(edtech,"1",ytd2012) -> 33028031.5 | H57: =SUMIF(edtech,"1",Revised2013bud) -> 37850918 | J57: =SUMIF(edtech,"1",budget2014) -> 38649708 | L57: =J57-H57 -> 798790 | N57: =IF(L57=0,0,+L57/H57) -> 0.02110358327
B58: Departmental Operating | D58: 2713343 | F58: =SUMIF(edtech,"4",ytd2012) -> 3266980.97 | H58: =SUMIF(edtech,"4",Revised2013bud) -> 4039383 | J58: =SUMIF(edtech,"4",budget2014) -> 4086131 | L58: =J58-H58 -> 46748 | N58: =IF(L58=0,0,+L58/H58) -> 0.0115730546
B59: Total General Academic | D59: =SUM(D57:D58) -> 34388682 | F59: =SUM(F57:F58) -> 36295012.47 | H59: =SUM(H57:H58) -> 41890301 | J59: =SUM(J57:J58) -> 42735839 | L59: =J59-H59 -> 845538 | N59: =IF(L59=0,0,+L59/H59) -> 0.02018457685
B61: Technical-Occupational - Credit:
B62: Faculty Salaries | D62: 6913368 | F62: =SUMIF(edtech,"2",ytd2012) -> 7377502.83 | H62: =SUMIF(edtech,"2",Revised2013bud) -> 8079961 | J62: =SUMIF(edtech,"2",budget2014) -> 8639817 | L62: =J62-H62 -> 559856 | N62: =IF(L62=0,0,+L62/H62) -> 0.06928944335
B63: Departmental Operating | D63: 782980 | F63: =SUMIF(edtech,"5",ytd2012) -> 815644.23 | H63: =SUMIF(edtech,"5",Revised2013bud) -> 1263649 | J63: =SUMIF(edtech,"5",budget2014) -> 1519067 | L63: =J63-H63 -> 255418 | N63: =IF(L63=0,0,+L63/H63) -> 0.2021273312
B64: Total Technical-Occupational Credit | D64: =SUM(D62:D63) -> 7696348 | F64: =SUM(F62:F63) -> 8193147.06 | H64: =SUM(H62:H63) -> 9343610 | J64: =SUM(J62:J63) -> 10158884 | L64: =J64-H64 -> 815274 | N64: =IF(L64=0,0,+L64/H64) -> 0.08725471204
B66: Technical-Occupational - Noncredit:
B67: Faculty Salaries | D67: =SUMIF(edtech,"3",ytd2011) -> 2355723.41 | F67: =SUMIF(edtech,"3",ytd2012)+32261 -> 2313574.83 | H67: =SUMIF(edtech,"3",Revised2013bud) -> 2493825 | J67: =SUMIF(edtech,"3",budget2014) -> 2460850 | L67: =J67-H67 -> -32975 | N67: =IF(L67=0,0,+L67/H67) -> -0.01322265997
B68: Departmental Operating | D68: =SUMIF(edtech,"6",ytd2011) -> 1276275.03 | F68: =SUMIF(edtech,"6",ytd2012) -> 1583568.86 | H68: =SUMIF(edtech,"6",Revised2013bud)-11618 -> 1676568 | J68: =SUMIF(edtech,"6",budget2014) -> 1787113 | L68: =J68-H68 -> 110545 | N68: =IF(L68=0,0,+L68/H68) -> 0.06593529162
B69: Total Technical-Occupational | D69: =SUM(D67:D68) -> 3631998.44 | F69: =SUM(F67:F68) -> 3897143.69 | H69: =SUM(H67:H68) -> 4170393 | J69: =SUM(J67:J68) -> 4247963 | L69: =J69-H69 -> 77570 | N69: =IF(L69=0,0,+L69/H69) -> 0.0186001655
B70: Total Instructional | D70: =SUM(D59,D64,D69)+1 -> 45717029.44 | F70: =SUM(F59,F64,F69) -> 48385303.22 | H70: =SUM(H59,H64,H69) -> 55404304 | J70: =SUM(J59,J64,J69) -> 57142686 | L70: =J70-H70 -> 1738382 | N70: =IF(L70=0,0,+L70/H70) -> 0.03137629885
B72: Public Service:
B73: Faculty Salaries | D73: =SUMIFS(ytd2011,programcode,"20",accttype,"61")-SUMIFS(ytd2011,programcode,"20",Acct,"611430") -> 82151.95 | F73: =SUMIFS(ytd2012,programcode,"20",accttype,"61")-SUMIFS(ytd2012,programcode,"20",Acct,"611430") -> 72698.88 | H73: =SUMIFS(Revised2013bud,programcode,"20",accttype,"61")-SUMIFS(Revised2013bud,programcode,"20",Acct,"611430") -> 87392 | J73: =SUMIFS(budget2014,programcode,"20",accttype,"61")-SUMIFS(budget2014,programcode,"20",Acct,"611430") -> 87600 | L73: =J73-H73 -> 208 | N73: =IF(L73=0,0,+L73/H73) -> 0.002380080557
B74: Departmental Operating | D74: =SUMIFS(ytd2011,programcode,"20")-SUMIFS(ytd2011,programcode,"20",accttype,"61")+SUMIFS(ytd2011,programcode,"20",Acct,"611430") -> 34347.53 | F74: =SUMIFS(ytd2012,programcode,"20")-SUMIFS(ytd2012,programcode,"20",accttype,"61")+SUMIFS(ytd2012,programcode,"20",Acct,"611430") -> 35728.65 | H74: =SUMIFS(Revised2013bud,programcode,"20")-SUMIFS(Revised2013bud,programcode,"20",accttype,"61")+SUMIFS(Revised2013bud,programcode,"20",Acct,"611430") -> 38240 | J74: =SUMIFS(budget2014,programcode,"20")-SUMIFS(budget2014,programcode,"20",accttype,"61")+SUMIFS(budget2014,programcode,"20",Acct,"611430") -> 37739 | L74: =J74-H74 -> -501 | N74: =IF(L74=0,0,+L74/H74) -> -0.01310146444
B75: Total Extension and Public Service | D75: =SUM(D73:D74) -> 116499.48 | F75: =SUM(F73:F74) -> 108427.53 | H75: =SUM(H73:H74) -> 125632 | J75: =SUM(J73:J74) -> 125339 | L75: =J75-H75 -> -293 | N75: =IF(L75=0,0,+L75/H75) -> -0.002332208355
B77: Academic Support:
B78: Instructional Administrative Expenses | D78: 5348798 | F78: =(SUMIFS(ytd2012,programcode,"25")-SUMIFS(ytd2012,Orgn,"392000")-SUMIFS(ytd2012,Orgn,"392002")-SUMIFS(ytd2012,Orgn,"392006")) -> 5531468.74 | H78: =(SUMIFS(Revised2013bud,programcode,"25")-SUMIFS(Revised2013bud,Orgn,"392000")-SUMIFS(Revised2013bud,Orgn,"392002")-SUMIFS(Revised2013bud,Orgn,"392006"))+25131 -> 6123502 | J78: =(SUMIFS(budget2014,programcode,"25")-SUMIFS(budget2014,Orgn,"392000")-SUMIFS(budget2014,Orgn,"392002")-SUMIFS(budget2014,Orgn,"392006")) -> 6018943 | L78: =J78-H78 -> -104559 | N78: =IF(L78=0,0,+L78/H78) -> -0.01707503321
B79: Libraries | D79: 2685348 | F79: =SUMIFS(ytd2012,Orgn,"392000")+SUMIFS(ytd2012,Orgn,"392002")+SUMIFS(ytd2012,Orgn,"392006")+65549 -> 2669884.63 | H79: =SUMIFS(Revised2013bud,Orgn,"392000")+SUMIFS(Revised2013bud,Orgn,"392002")+SUMIFS(Revised2013bud,Orgn,"392006") -> 2940357 | J79: =SUMIFS(budget2014,Orgn,"392000")+SUMIFS(budget2014,Orgn,"392002")+SUMIFS(budget2014,Orgn,"392006") -> 2924165 | L79: =J79-H79 -> -16192 | N79: =IF(L79=0,0,+L79/H79) -> -0.005506814309 | Q79: =90938+83451+1046233 -> 1220622
B80: Total Academic Support | D80: =SUM(D78:D79)+1 -> 8034147 | F80: =SUM(F78:F79) -> 8201353.37 | H80: =SUM(H78:H79) -> 9063859 | J80: =SUM(J78:J79) -> 8943108 | L80: =J80-H80 -> -120751 | N80: =IF(L80=0,0,+L80/H80) -> -0.01332225049
B83: Student Services:
B84: Recruitment and ARO | D84: 1864885 | F84: =SUMIFS(ytd2012,Orgn,"220205")+SUMIFS(ytd2012,Orgn,"220255")+SUMIFS(ytd2012,Orgn,"220105")+SUMIFS(ytd2012,Orgn,"221145") -> 1904394.99 | H84: =2195367+196105 -> 2391472 | J84: =SUMIFS(budget2014,Orgn,"220205")+SUMIFS(budget2014,Orgn,"220255")+SUMIFS(budget2014,Orgn,"220105")+SUMIFS(budget2014,Orgn,"221145")+SUMIFS(budget2014,Orgn,"220115") -> 2324703 | L84: =J84-H84 -> -66769 | N84: =IF(L84=0,0,+L84/H84) -> -0.0279196244
B85: Guidance and Counseling | D85: 4096674 | F85: =SUMIFS(ytd2012,Orgn,"300005")+SUMIFS(ytd2012,Orgn,"300008")+SUMIFS(ytd2012,Orgn,"300009")+SUMIFS(ytd2012,Orgn,"221110")+SUMIFS(ytd2012,Orgn,"221112")+SUMIFS(ytd2012,Orgn,"221116")+SUMIFS(ytd2012,Orgn,"221130")+SUMIFS(ytd2012,Orgn,"221132")+SUMIFS(ytd2012,Orgn,"221136")+SUMIFS(ytd2012,Orgn,"221170")+SUMIFS(ytd2012,Orgn,"221172")+SUMIFS(ytd2012,Orgn,"221176")+SUMIFS(ytd2012,Orgn,"221115")+SUMIFS(ytd2012,Orgn,"356412")+SUMIFS(ytd2012,Orgn,"230055")+SUMIFS(ytd2012, Orgn, "221125")+SUMIFS(ytd2012, Orgn, "221135")+SUMIFS(ytd2012, Orgn, "221175")+SUMIFS(ytd2012, Orgn, "221305")-66959 -> 4011329.93 | H85: 4704356 | J85: =SUMIFS(budget2014,Orgn,"300005")+SUMIFS(budget2014,Orgn,"300008")+SUMIFS(budget2014,Orgn,"300009")+SUMIFS(budget2014,Orgn,"221110")+SUMIFS(budget2014,Orgn,"221112")+SUMIFS(budget2014,Orgn,"221116")+SUMIFS(budget2014,Orgn,"221130")+SUMIFS(budget2014,Orgn,"221132")+SUMIFS(budget2014,Orgn,"221136")+SUMIFS(budget2014,Orgn,"221170")+SUMIFS(budget2014,Orgn,"221172")+SUMIFS(budget2014,Orgn,"221176")+SUMIFS(budget2014,Orgn,"221115")+SUMIFS(budget2014,Orgn,"356412")+SUMIFS(budget2014,Orgn,"230055") -> 4816476 | L85: =J85-H85 -> 112120 | N85: =IF(L85=0,0,+L85/H85) -> 0.02383323031
B86: Student Financial Aid | D86: 828287 | F86: =SUMIFS(ytd2012,Orgn,"221205") -> 1070787.36 | H86: =SUMIFS(Revised2013bud,Orgn,"221205") -> 1662866 | J86: =SUMIFS(budget2014,Orgn,"221205") -> 1699685 | L86: =J86-H86 -> 36819 | N86: =IF(L86=0,0,+L86/H86) -> 0.02214189237
B87: Student Activities | D87: =SUMIFS(ytd2011,Orgn,"221300")+SUMIFS(ytd2011,Orgn,"221302")+SUMIFS(ytd2011,Orgn,"221306") -> 0 | F87: =SUMIFS(ytd2012,Orgn,"221300")+SUMIFS(ytd2012,Orgn,"221302")+SUMIFS(ytd2012,Orgn,"221306") -> 381931.94 | H87: =SUMIFS(Revised2013bud,Orgn,"221300")+SUMIFS(Revised2013bud,Orgn,"221302")++SUMIFS(Revised2013bud,Orgn,"221306") -> 368780 | J87: =SUMIFS(budget2014,Orgn,"221300")+SUMIFS(budget2014,Orgn,"221302")+SUMIFS(budget2014,Orgn,"221306") -> 365979 | L87: =J87-H87 -> -2801 | N87: =IF(L87=0,0,+L87/H87) -> -0.00759531428
B88: Total Student Services | D88: =SUM(D84:D87) -> 6789846 | F88: =SUM(F84:F87) -> 7368444.22 | H88: =SUM(H84:H87) -> 9127474 | J88: =SUM(J84:J87) -> 9206843 | L88: =J88-H88 -> 79369 | N88: =IF(L88=0,0,+L88/H88) -> 0.008695615019
B91: Institutional Support:
B92: Government of Institution | D92: =SUMIFS(ytd2011,Orgn,"210005") -> 37454.19 | F92: =SUMIFS(ytd2012,Orgn,"210005") -> 44495.06 | H92: =SUMIFS(Revised2013bud,Orgn,"210005") -> 64162 | J92: =SUMIFS(budget2014,Orgn,"210005") -> 64162 | L92: =J92-H92 -> 0 | N92: =IF(L92=0,0,+L92/H92) -> 0
B93: Executive Offices | D93: 1206812 | F93: =SUMIFS(ytd2012,Orgn,"210105")+SUMIFS(ytd2012,Orgn,"210205")+SUMIFS(ytd2012,Orgn,"211105")+SUMIFS(ytd2012,Orgn,"221105") -> 1254085.01 | H93: =SUMIFS(Revised2013bud,Orgn,"210105")+SUMIFS(Revised2013bud,Orgn,"210205")+SUMIFS(Revised2013bud,Orgn,"211105")+SUMIFS(Revised2013bud,Orgn,"221105") -> 1349646 | J93: =SUMIFS(budget2014,Orgn,"210105")+SUMIFS(budget2014,Orgn,"210205")+SUMIFS(budget2014,Orgn,"211105")+SUMIFS(budget2014,Orgn,"221105") -> 1344180 | L93: -5466 | N93: -0.004049950876
B94: Human Resources | D94: =SUMIFS(ytd2011,Orgn,"211405")+SUMIFS(ytd2011,Orgn,"230085") -> 1111912.28 | F94: =SUMIFS(ytd2012,Orgn,"211405")+SUMIFS(ytd2012,Orgn,"230085") -> 1196376.43 | H94: =SUMIFS(Revised2013bud,Orgn,"211405")+SUMIFS(Revised2013bud,Orgn,"230085") -> 1355636 | J94: =SUMIFS(budget2014,Orgn,"211405")+SUMIFS(budget2014,Orgn,"230085") -> 1514872 | L94: 159236 | N94: 0.1174622096
B95: Campus Security | D95: 1368576 | F95: =SUMIFS(ytd2012,Orgn,"280200")+SUMIFS(ytd2012,Orgn,"280202")+SUMIFS(ytd2012,Orgn,"280204")+SUMIFS(ytd2012,Orgn,"280206")+SUMIFS(ytd2012,Orgn,"280207") -> 1453719.01 | H95: =SUMIFS(Revised2013bud,Orgn,"280200")+SUMIFS(Revised2013bud,Orgn,"280202")+SUMIFS(Revised2013bud,Orgn,"280204")+SUMIFS(Revised2013bud,Orgn,"280206")+SUMIFS(Revised2013bud,Orgn,"280207")+2850+143558 -> 1966952 | J95: =SUMIFS(budget2014,Orgn,"280200")+SUMIFS(budget2014,Orgn,"280202")+SUMIFS(budget2014,Orgn,"280204")+SUMIFS(budget2014,Orgn,"280206")+SUMIFS(budget2014,Orgn,"280207") -> 1620809 | L95: =J95-H95 -> -346143 | N95: =IF(L95=0,0,+L95/H95) -> -0.1759793833
B96: Business and Fiscal Management | D96: =SUMIFS(ytd2011,Orgn,"211205")+SUMIFS(ytd2011,Orgn,"211505")+SUMIFS(ytd2011,Orgn,"211305") -> 2516326.29 | F96: =SUMIFS(ytd2012,Orgn,"211205")+SUMIFS(ytd2012,Orgn,"211505")+SUMIFS(ytd2012,Orgn,"211305") -> 2601991.3 | H96: =SUMIFS(Revised2013bud,Orgn,"211205")+SUMIFS(Revised2013bud,Orgn,"211505")++SUMIFS(Revised2013bud,Orgn,"211305") -> 2912567 | J96: =SUMIFS(budget2014,Orgn,"211205")+SUMIFS(budget2014,Orgn,"211505")+SUMIFS(budget2014, Orgn,"211305") -> 2966296 | L96: 53729 | N96: 0.01844730095
B97: Public Relations / Development | D97: =SUMIFS(ytd2011,Orgn,"230105")+SUMIFS(ytd2011,Orgn,"230115")+SUMIF(Orgn,"230065",ytd2011) -> 1489340.5 | F97: =SUMIFS(ytd2012,Orgn,"230105")+SUMIFS(ytd2012,Orgn,"230115")+SUMIF(Orgn,"230065",ytd2012) -> 1583042.01 | H97: =SUMIFS(Revised2013bud,Orgn,"230105")+SUMIFS(Revised2013bud,Orgn,"230115")+SUMIF(Orgn,"230065",Revised2013bud)+49168 -> 1890744 | J97: =SUMIFS(budget2014,Orgn,"230105")+SUMIFS(budget2014,Orgn,"230115")+SUMIF(Orgn,"230065",budget2014) -> 1877191 | L97: -13553 | N97: -0.007168077751
B98: Institutional Research | D98: 350953 | F98: =SUMIF(Orgn,"230075",ytd2012) -> 384260.62 | H98: =SUMIF(Orgn,"230075",Revised2013bud) -> 409520 | J98: =SUMIF(Orgn,"230075",budget2014) -> 438517 | L98: 28997 | N98: 0.07080728658
B99: Special Activities | D99: =SUMIFS(ytd2011,Orgn,"230205") -> 92994.86 | F99: =SUMIFS(ytd2012,Orgn,"230205") -> 134440.71 | H99: =SUMIFS(Revised2013bud,Orgn,"230205") -> 166332 | J99: =SUMIFS(budget2014,Orgn,"230205") -> 166332 | L99: 0 | N99: 0
B100: Tax Appraisal/Collecting/Legal | D100: =SUMIFS(ytd2011,Acct,"712210",Orgn,"230710")+SUMIFS(ytd2011,Acct,"712220",Orgn,"230710")+SUMIFS(ytd2011,Acct,"712235",Orgn,"230710") -> 688954.09 | F100: =SUMIFS(ytd2012,Acct,"712210",Orgn,"230710")+SUMIFS(ytd2012,Acct,"712220",Orgn,"230710")+SUMIFS(ytd2012,Acct,"712235",Orgn,"230710") -> 708508.14 | H100: =SUMIFS(Revised2013bud,Acct,"712210",Orgn,"230710")+SUMIFS(Revised2013bud,Acct,"712220",Orgn,"230710")+SUMIFS(Revised2013bud,Acct,"712235",Orgn,"230710") -> 945000 | J100: =SUMIFS(budget2014,Acct,"712210",Orgn,"230710")+SUMIFS(budget2014,Acct,"712220",Orgn,"230710")+SUMIFS(budget2014,Acct,"712235",Orgn,"230710")+SUMIFS(budget2014,Acct,"792000") -> 970607 | L100: 25607 | N100: 0.0270973545
B101: TIF Payments | D101: =SUMIFS(ytd2011,Acct,"722226",Orgn,"230710")+SUMIFS(ytd2011,Acct,"722228",Orgn,"230710")+SUMIFS(ytd2011,Acct,"722227",Orgn,"230710") -> 775989.23 | F101: =SUMIFS(ytd2012,Acct,"722226",Orgn,"230710")+SUMIFS(ytd2012,Acct,"722228",Orgn,"230710")+SUMIFS(ytd2012,Acct,"722227",Orgn,"230710") -> 832202.23 | H101: =SUMIFS(Revised2013bud,Acct,"722226",Orgn,"230710")+SUMIFS(Revised2013bud,Acct,"722228",Orgn,"230710") -> 875000 | J101: =SUMIFS(budget2014,Acct,"722226",Orgn,"230710")+SUMIFS(budget2014,Acct,"722228",Orgn,"230710") -> 1013000 | L101: =J101-H101 -> 138000 | N101: =IF(L101=0,0,+L101/H101) -> 0.1577142857
B102: Information Technology/Telecommunications | D102: 3982752 | F102: =SUMIFS(ytd2012,Orgn,"240105")+SUMIFS(ytd2012,Orgn,"240115")+SUMIFS(ytd2012,Orgn,"240205")+SUMIFS(ytd2011,Orgn,"240215")+SUMIFS(ytd2012,Orgn,"240225") -> 3799740.64 | H102: =SUMIFS(Revised2013bud,Orgn,"240105")+SUMIFS(Revised2013bud,Orgn,"240115")+SUMIFS(Revised2013bud,Orgn,"240205")+SUMIFS(Revised2013bud,Orgn,"240215")+SUMIFS(Revised2013bud,Orgn,"240225") -> 5323106 | J102: =SUMIFS(budget2014,Orgn,"240105")+SUMIFS(budget2014,Orgn,"240115")+SUMIFS(budget2014,Orgn,"240205")+SUMIFS(budget2014,Orgn,"240215")+SUMIFS(budget2014,Orgn,"240225") -> 6379944 | L102: 1056838 | N102: 0.1985378461
B103: Other General Institutional | D103: 1744176 | F103: =SUMIFS(ytd2012,Orgn,"210115")+SUMIFS(ytd2012,Orgn,"211115")+SUMIFS(ytd2012,Orgn,"230090")+SUMIFS(ytd2012,Orgn,"230705")+SUMIFS(ytd2012,Orgn,"230708")+SUMIFS(ytd2012,Orgn,"230715")+SUMIFS(ytd2012,Orgn,"230720")+SUMIFS(ytd2012,Orgn,"230805")+SUMIFS(ytd2012,Orgn,"300004")+SUMIFS(ytd2012,Orgn,"300024")+SUMIFS(ytd2012,Orgn,"230615")-185847 -> 2028657.43 | H103: =SUMIFS(Revised2013bud,Orgn,"210115")+SUMIFS(Revised2013bud,Orgn,"211115")+SUMIFS(Revised2013bud,Orgn,"230090")+SUMIFS(Revised2013bud,Orgn,"230705")+SUMIFS(Revised2013bud,Orgn,"230708")+SUMIFS(Revised2013bud,Orgn,"230715")+SUMIFS(Revised2013bud,Orgn,"230720")+SUMIFS(Revised2013bud,Orgn,"230805")+SUMIFS(Revised2013bud,Orgn,"300004")+SUMIFS(Revised2013bud,Orgn,"300024")+SUMIFS(Revised2013bud,Orgn,"230615") -> 2252281 | J103: =SUMIFS(budget2014,Orgn,"210115")+SUMIFS(budget2014,Orgn,"211115")+SUMIFS(budget2014,Orgn,"230090")+SUMIFS(budget2014,Orgn,"230705")+SUMIFS(budget2014,Orgn,"230708")+SUMIFS(budget2014,Orgn,"230715")+SUMIFS(budget2014,Orgn,"230720")+SUMIFS(budget2014,Orgn,"230805")+SUMIFS(budget2014,Orgn,"300004")+SUMIFS(budget2014,Orgn,"300024")+SUMIFS(budget2014,Orgn,"230615")+SUMIFS(budget2014,Orgn,"230725") -> 2790526 | L103: 538245 | N103: 0.2389777297
B104: Total Institutional Support | D104: =SUM(D92:D103)+1 -> 15366241.44 | F104: =SUM(F92:F103) -> 16021518.59 | H104: =SUM(H92:H103) -> 19510946 | J104: =SUM(J92:J103) -> 21146436 | L104: 1635490 | N104: 0.08382422872
B106: Operation and Maintenance of Plant:
B107: General Services | D107: 758664 | F107: =SUMIFS(ytd2012,Orgn,"280100")+SUMIFS(ytd2012,Orgn,"280102")+SUMIFS(ytd2012,Orgn,"280104")+SUMIFS(ytd2012,Orgn,"280106")+SUMIFS(ytd2012,Orgn,"280107")+SUMIFS(ytd2012,Orgn,"280110")+SUMIFS(ytd2012,Orgn,"280112") -> 858347.53 | H107: =SUMIFS(Revised2013bud,Orgn,"280100")+SUMIFS(Revised2013bud,Orgn,"280102")+SUMIFS(Revised2013bud,Orgn,"280104")+SUMIFS(Revised2013bud,Orgn,"280106")+SUMIFS(Revised2013bud,Orgn,"280107")+SUMIFS(Revised2013bud,Orgn,"280110")+SUMIFS(Revised2013bud,Orgn,"280112") -> 927496 | J107: =SUMIFS(budget2014,Orgn,"280100")+SUMIFS(budget2014,Orgn,"280102")+SUMIFS(budget2014,Orgn,"280104")+SUMIFS(budget2014,Orgn,"280106")+SUMIFS(budget2014,Orgn,"280107")+SUMIFS(budget2014,Orgn,"270100") -> 948292 | L107: =J107-H107 -> 20796 | N107: =IF(L107=0,0,+L107/H107) -> 0.02242166004
B108: Operations/Maintenance | D108: 1961417 | F108: =SUMIFS(ytd2012,Orgn,"280300")+SUMIFS(ytd2012,Orgn,"280302")+SUMIFS(ytd2012,Orgn,"280304")+SUMIFS(ytd2012,Orgn,"280306")+SUMIFS(ytd2012,Orgn,"280307")+SUMIFS(ytd2012,Orgn,"280310")+SUMIFS(ytd2012,Orgn,"280312")+SUMIFS(ytd2012,Orgn,"280314")+SUMIFS(ytd2012,Orgn,"280316")+SUMIFS(ytd2012,Orgn,"280317") -> 1997916.1 | H108: =SUMIFS(Revised2013bud,Orgn,"280300")+SUMIFS(Revised2013bud,Orgn,"280302")+SUMIFS(Revised2013bud,Orgn,"280304")+SUMIFS(Revised2013bud,Orgn,"280306")+SUMIFS(Revised2013bud,Orgn,"280307")+SUMIFS(Revised2013bud,Orgn,"280310")+SUMIFS(Revised2013bud,Orgn,"280312")+SUMIFS(Revised2013bud,Orgn,"280314")+SUMIFS(Revised2013bud,Orgn,"280316")+SUMIFS(Revised2013bud,Orgn,"280317") -> 2150352 | J108: =SUMIFS(budget2014,Orgn,"280300")+SUMIFS(budget2014,Orgn,"280302")+SUMIFS(budget2014,Orgn,"280304")+SUMIFS(budget2014,Orgn,"280306")+SUMIFS(budget2014,Orgn,"280307")+SUMIFS(budget2014,Orgn,"280310")+SUMIFS(budget2014,Orgn,"280312")+SUMIFS(budget2014,Orgn,"280314")+SUMIFS(budget2014,Orgn,"280316")+SUMIFS(budget2014,Orgn,"280317")+SUMIFS(budget2014,Orgn,"280110")+SUMIFS(budget2014,Orgn,"280112") -> 2276246 | L108: 125894 | N108: 0.05854576367
B109: Custodial Services | D109: 1753437 | F109: =SUMIFS(ytd2012,Orgn,"280400")+SUMIFS(ytd2012,Orgn,"280402")+SUMIFS(ytd2012,Orgn,"280404")+SUMIFS(ytd2012,Orgn,"280406")+SUMIFS(ytd2012,Orgn,"280407") -> 1903616.34 | H109: =SUMIFS(Revised2013bud,Orgn,"280400")+SUMIFS(Revised2013bud,Orgn,"280402")+SUMIFS(Revised2013bud,Orgn,"280404")+SUMIFS(Revised2013bud,Orgn,"280406")+SUMIFS(Revised2013bud,Orgn,"280407") -> 2010746 | J109: =SUMIFS(budget2014,Orgn,"280400")+SUMIFS(budget2014,Orgn,"280402")+SUMIFS(budget2014,Orgn,"280404")+SUMIFS(budget2014,Orgn,"280406")+SUMIFS(budget2014,Orgn,"280407") -> 1982548 | L109: -28198 | N109: -0.01402365092
B110: Grounds Maintenance | D110: 569298 | F110: =SUMIFS(ytd2012,Orgn,"280500")+SUMIFS(ytd2012,Orgn,"280502")+SUMIFS(ytd2012,Orgn,"280504")+SUMIFS(ytd2012,Orgn,"280506")+SUMIFS(ytd2012,Orgn,"280507") -> 610359.83 | H110: =SUMIFS(Revised2013bud,Orgn,"280500")+SUMIFS(Revised2013bud,Orgn,"280502")+SUMIFS(Revised2013bud,Orgn,"280504")+SUMIFS(Revised2013bud,Orgn,"280506")+SUMIFS(Revised2013bud,Orgn,"280507") -> 609522 | J110: =SUMIFS(budget2014,Orgn,"280500")+SUMIFS(budget2014,Orgn,"280502")+SUMIFS(budget2014,Orgn,"280504")+SUMIFS(budget2014,Orgn,"280506")+SUMIFS(budget2014,Orgn,"280507") -> 626521 | L110: 16999 | N110: 0.02788906717
B111: Utilities | D111: =SUMIFS(ytd2011,Orgn,"280600")+SUMIFS(ytd2011,Orgn,"280602")+SUMIFS(ytd2011,Orgn,"280604")+SUMIFS(ytd2011,Orgn,"280606")+SUMIFS(ytd2011,Orgn,"280607")+SUMIFS(ytd2011,Orgn,"280806") -> 2751697.43 | F111: =SUMIFS(ytd2012,Orgn,"280600")+SUMIFS(ytd2012,Orgn,"280602")+SUMIFS(ytd2012,Orgn,"280604")+SUMIFS(ytd2012,Orgn,"280606")+SUMIFS(ytd2012,Orgn,"280607")+SUMIFS(ytd2012,Orgn,"280806")+124076+1 -> 2980896.16 | H111: =SUMIFS(Revised2013bud,Orgn,"280600")+SUMIFS(Revised2013bud,Orgn,"280602")+SUMIFS(Revised2013bud,Orgn,"280604")+SUMIFS(Revised2013bud,Orgn,"280606")+SUMIFS(Revised2013bud,Orgn,"280607")+SUMIFS(Revised2013bud,Orgn,"280806") -> 3914260 | J111: =SUMIFS(budget2014,Orgn,"280600")+SUMIFS(budget2014,Orgn,"280602")+SUMIFS(budget2014,Orgn,"280604")+SUMIFS(budget2014,Orgn,"280606")+SUMIFS(budget2014,Orgn,"280607")+SUMIFS(budget2014,Orgn,"280806") -> 3608880 | L111: -305380 | N111: -0.07801730084
B112: Total Operation and Maintenance of Plant | D112: =SUM(D107:D111) -> 7794513.43 | F112: =SUM(F107:F111) -> 8351135.96 | H112: =SUM(H107:H111) -> 9612376 | J112: =SUM(J107:J111) -> 9442487 | L112: -169889 | N112: -0.01767398612
B114: Staff Benefits:
B115: Insurance-Hospitalization | D115: =SUMIFS(ytd2011,Acct,"642110",programcode,"42")-46271 -> 3668509.32 | F115: =SUMIFS(ytd2012,Acct,"642110",programcode,"42")+841439 -> 4909748.99 | H115: =SUMIFS(Revised2013bud,Acct,"642110",programcode,"42") -> 3820000 | J115: =SUMIFS(budget2014,Acct,"642110",programcode,"42") -> 4230000 | L115: =J115-H115 -> 410000 | N115: =IF(L115=0,0,+L115/H115) -> 0.1073298429
B116: Insurance-Dental | D116: =SUMIFS(ytd2011,Acct,"642130",programcode,"42") -> 219108.64 | F116: =SUMIFS(ytd2012,Acct,"642130",programcode,"42") -> 220048.19 | H116: =SUMIFS(Revised2013bud,Acct,"642130",programcode,"42") -> 230000 | J116: =SUMIFS(budget2014,Acct,"642130",programcode,"42") -> 250000 | L116: 20000 | N116: 0.08695652174
B117: ORP | D117: 290741 | F117: =SUMIFS(ytd2012,Acct,"642145",programcode,"42")+SUMIFS(ytd2012,Acct,"642165",programcode,"42") -> -0.07 | H117: 310000 | J117: =SUMIFS(budget2014,Acct,"642145",programcode,"42")+SUMIFS(budget2014,Acct,"642165",programcode,"42") -> 310000 | L117: 0 | N117: 0
B118: Add'l Retire Exp-State Mandate-TRS&ORP | D118: =SUMIFS(ytd2011,Acct,"642164",programcode,"42")+SUMIFS(ytd2011,Acct,"642166",programcode,"42") -> 264169.35 | F118: =SUMIFS(ytd2012,Acct,"642164",programcode,"42")+SUMIFS(ytd2012,Acct,"642166",programcode,"42") -> 2447939.25 | H118: =SUMIFS(Revised2013bud,Acct,"642164",programcode,"42")+SUMIFS(Revised2013bud,Acct,"642166",programcode,"42")+SUMIFS(Revised2013bud,Acct,"642135",programcode,"42") -> 2550000 | J118: =SUMIFS(budget2014,Acct,"642164",programcode,"42")+SUMIFS(budget2014,Acct,"642196",programcode,"42")+SUMIFS(budget2014,Acct,"642135",programcode,"42") -> 2309000 | L118: =J118-H118 -> -241000 | N118: -0.09450980392
B119: Insurance-Workers Comp | D119: 129511 | F119: =SUMIFS(ytd2012,Acct,"642160",programcode,"42") -> 0 | H119: =SUMIFS(Revised2013bud,Acct,"642160",programcode,"42") -> 130000 | J119: =SUMIFS(budget2014,Acct,"642160",programcode,"42") -> 130000 | L119: 0 | N119: 0
B120: Insurance-Unemployment | D120: =SUMIFS(ytd2011,Acct,"642150",programcode,"42") -> 85980.28 | F120: =SUMIFS(ytd2012,Acct,"642150",programcode,"42") -> 35152.03 | H120: =SUMIFS(Revised2013bud,Acct,"642150",programcode,"42") -> 100000 | J120: =SUMIFS(budget2014,Acct,"642150",programcode,"42") -> 100000 | L120: 0 | N120: 0
B121: Insurance-Medicare | D121: =SUMIFS(ytd2011,Acct,"642175",programcode,"42") -> 820842.25 | F121: =SUMIFS(ytd2012,Acct,"642175",programcode,"42") -> 849371.43 | H121: =SUMIFS(Revised2013bud,Acct,"642175",programcode,"42") -> 860000 | J121: =SUMIFS(budget2014,Acct,"642175",programcode,"42") -> 892000 | L121: 32000 | N121: 0.03720930233
B122: Course Banking | D122: 23135 | F122: 14692 | H122: 0 | J122: =SUMIFS(budget2014,Acct,"642192",programcode,"42") -> 25000 | L122: 25000 | N122: 1
B123: Sabbaticals | D123: 56996 | F123: =SUMIFS(ytd2012,Acct,"642191",programcode,"42") -> 0 | H123: =SUMIFS(Revised2013bud,Acct,"642191",programcode,"42") -> 0 | J123: =SUMIFS(budget2014,Acct,"642191",programcode,"42") -> 127700 | L123: 127700 | N123: 1
B124: FICA | D124: =SUMIFS(ytd2011,Acct,"642170",programcode,"42") -> 50.5 | F124: =SUMIFS(ytd2012,Acct,"642170",programcode,"42") -> 0 | H124: =SUMIFS(Revised2013bud,Acct,"642170",programcode,"42") -> 0 | J124: =SUMIFS(budget2014,Acct,"642170",programcode,"42") -> 0 | L124: 0 | N124: 0
B125: Other Staff Benefits | D125: =SUMIFS(ytd2011,Acct,"642193",programcode,"42")+SUMIFS(ytd2011,Acct,"642194",programcode,"42")+SUMIFS(ytd2011,Acct,"642199",programcode,"42")+SUMIFS(ytd2011,Acct,"642186",programcode,"42") -> 24548.31 | F125: =SUMIFS(ytd2012,Acct,"642193",programcode,"42")+SUMIFS(ytd2012,Acct,"642194",programcode,"42")+SUMIFS(ytd2012,Acct,"642199",programcode,"42")+SUMIFS(ytd2012,Acct,"642186",programcode,"42") -> 45619.64 | H125: =SUMIFS(Revised2013bud,Acct,"642193",programcode,"42")+SUMIFS(Revised2013bud,Acct,"642194",programcode,"42")+SUMIFS(Revised2013bud,Acct,"642199",programcode,"42")+SUMIFS(Revised2013bud,Acct,"642186",programcode,"42") -> 115000 | J125: =SUMIFS(budget2014,Acct,"642193",programcode,"42")+SUMIFS(budget2014,Acct,"642194",programcode,"42")+SUMIFS(budget2014,Acct,"642199",programcode,"42")+SUMIFS(budget2014,Acct,"642186",programcode,"42") -> 115000 | L125: =J125-H125 -> 0 | N125: 0
B126: 1% of ERS Eligible Salaries | D126: =SUMIFS(ytd2011,Acct,"642200",programcode,"42") -> 437228.18 | F126: =SUMIFS(ytd2012,Acct,"642200",programcode,"42") -> 460839.8 | H126: =SUMIFS(Revised2013bud,Acct,"642200",programcode,"42") -> 475000 | J126: =SUMIFS(budget2014,Acct,"642200",programcode,"42") -> 520000 | L126: 45000 | N126: 0.09473684211
B127: Total Staff Benefits | D127: =SUM(D115:D126)+1 -> 6020820.83 | F127: =SUM(F115:F126) -> 8983411.26 | H127: =SUM(H115:H126) -> 8590000 | J127: =SUM(J115:J126) -> 9008700 | L127: 418700 | N127: 0.0487427241
B129: Grants and Contracts:
B130: Grants and Contracts | D130: 78260650 | F130: 68539562 | H130: 36302536 | J130: ='CB-Grant'!F70 -> 34798333 | L130: =J130-H130 -> -1504203 | N130: =IF(L130=0,0,+L130/H130) -> -0.04143520442
B131: Total Grants and Contracts | D131: =SUM(D130) -> 78260650 | F131: =SUM(F130) -> 68539562 | H131: =SUM(H130) -> 36302536 | J131: =SUM(J130) -> 34798333 | L131: =J131-H131 -> -1504203 | N131: =IF(L131=0,0,+L131/H131) -> -0.04143520442
B133: Total Educational and General Expenses | D133: =SUM(D131,D112,D75,D80,D70,D127,D88,D104)-2 -> 168099745.6 | F133: =SUM(F131,F112,F75,F80,F70,F127,F88,F104) -> 165959156.2 | H133: =+H70+H75+H80+H88+H104+H112+H127+H131 -> 147737127 | J133: =SUM(J131,J112,J75,J80,J70,J127,J88,J104) -> 149813932 | L133: =J133-H133 -> 2076805 | N133: =IF(L133=0,0,+L133/H133) -> 0.01405743459
B135: Non-Mandatory Transfers:
B136: Building Fund Transfer | D136: =SUMIFS(ytd2011,Acct,"828277") -> 6423311 | F136: =SUMIFS(ytd2012,Acct,"828277") -> 19493332 | H136: =SUMIFS(Revised2013bud,Acct,"828277") -> 15000000 | J136: 12119681 | L136: =J136-H136 -> -2880319 | N136: =IF(L136=0,0,+L136/H136) -> -0.1920212667
B137: Building Use Fee Transfer | D137: =2132127+136425 -> 2268552 | F137: =SUMIFS(ytd2012,Acct,"828295")+71088 -> 2232534.8 | H137: =SUMIFS(Revised2013bud,Acct,"828295") -> 2161004 | J137: =SUMIFS(budget2014,Acct,"828295") -> 2143259 | L137: =J137-H137 -> -17745 | N137: =IF(L137=0,0,+L137/H137) -> -0.008211460969
B138: Child Development Lab School - Auxiliary | D138: 136425 | F138: =SUMIFS(ytd2012,Acct,"828271") -> 137069 | H138: =SUMIFS(Revised2013bud,Acct,"828271") -> 200784 | J138: =SUMIFS(budget2014,Acct,"828271") -> 209567 | L138: =J138-H138 -> 8783 | N138: =IF(L138=0,0,+L138/H138) -> 0.04374352538
B139: Total Non-Mandatory Transfers | D139: =SUM(D136:D138) -> 8828288 | F139: =SUM(F136:F138) -> 21862935.8 | H139: =SUM(H136:H138) -> 17361788 | J139: =SUM(J136:J138) -> 14472507 | L139: =J139-H139 -> -2889281 | N139: =IF(L139=0,0,+L139/H139) -> -0.1664160972
B142: Mandatory Transfers:
B143: 2008 Series Revenue Bonds | D143: =SUMIFS(ytd2011,Acct,"828247") -> 1110054.75 | F143: =SUMIFS(ytd2012,Acct,"828247") -> 1112433.75 | H143: =SUMIFS(Revised2013bud,Acct,"828247") -> 1111996 | J143: =SUMIFS(budget2014,Acct,"828247") -> 1109741 | L143: =J143-H143 -> -2255 | N143: =IF(L143=0,0,+L143/H143) -> -0.002027884992
B144: Grants and Contracts Matching | D144: 78908 | F144: =144342-59011 -> 85331 | H144: 86819 | J144: =SUMIFS(budget2014,Acct,"828273") -> 81748 | L144: =J144-H144 -> -5071 | N144: =IF(L144=0,0,+L144/H144) -> -0.05840887363
B145: Total Mandatory Transfers | D145: 1263055 | F145: =SUM(F143:F144) -> 1197764.75 | H145: =SUM(H143:H144) -> 1198815 | J145: =SUM(J143:J144) -> 1191489 | L145: =J145-H145 -> -7326 | N145: =IF(L145=0,0,+L145/H145) -> -0.006111034647
B147: Reserves:
B148: Reserve for Encumbrances | D148: =SUMIFS(ytd2011,Acct,"798135") -> 0 | F148: 0 | H148: =SUMIFS(Revised2013bud,Acct,"798135") -> 0 | J148: =SUMIFS(budget2014,Acct,"798135") -> 250000 | L148: =J148-H148 -> 250000 | N148: 0
B149: Reserve for Current Operations | D149: 1948420 | F149: 0 | H149: 1048383 | J149: =SUMIFS(budget2014,Acct,"798120") -> 1500000 | L149: 451617 | N149: =IF(L149=0,0,+L149/H149) -> 0.4307748218
B150: Reserve for Retirement | D150: 5000000 | F150: 0 | H150: 0 | J150: 0 | L150: 0 | N150: =IF(L150=0,0,+L150/H150) -> 0
B151: Reserve for Salary Adjustments** | D151: =SUMIFS(ytd2011,Acct,"798130") -> 0 | F151: 0 | H151: =SUMIFS(Revised2013bud,Acct,"798130") -> 0 | J151: 3800000 | L151: 3800000 | N151: 0
B152: Total Reserves | D152: =SUM(D148:D151) -> 6948420 | F152: =SUM(F148:F151) -> 0 | H152: =SUM(H148:H151) -> 1048383 | J152: =SUM(J148:J151) -> 5550000 | L152: 4501617 | N152: =IF(L152=0,0,+L152/H152) -> 4.293866841
B154: Total Educational & Gen Exp, Transfers and Reserves | D154: =D133+D152+D139+D145 -> 185139508.6 | F154: =F133+F152+F139+F145 -> 189019856.7 | H154: =H133+H152+H139+H145 -> 167346113 | J154: =J133+J152+J139+J145 -> 171027928 | L154: =J154-H154 -> 3681815 | N154: =IF(L154=0,0,+L154/H154) -> 0.0220011982
B156: Auxiliary Enterprises Expenditures | D156: 9524921 | F156: 9906259 | H156: ='CB-Aux'!H53 -> 10765040 | J156: ='CB-Aux'!J53 -> 10138772.64 | L156: =J156-H156 -> -626267.36 | N156: =IF(L156=0,0,+L156/H156) -> -0.0581760365
B157: Net Transfers/Changes In Fund Balance | D157: =1035552+471536 -> 1507088 | F157: 100123 | H157: ='CB-Aux'!H55 -> -482447 | J157: ='CB-Aux'!J55 -> 0 | L157: =J157-H157 -> 482447 | N157: =IF(L157=0,0,+L157/H157) -> -1
B158: Net Auxiliary Enterprises | D158: =SUM(D156:D157) -> 11032009 | F158: =SUM(F156:F157) -> 10006382 | H158: =SUM(H156:H157) -> 10282593 | J158: =SUM(J156:J157) -> 10138772.64 | L158: =J158-H158 -> -143820.36 | N158: =IF(L158=0,0,+L158/H158) -> -0.0139867794
B160: Total Current Funds Expenses | D160: =+D158+D154 -> 196171517.6 | F160: =+F158+F154 -> 199026238.7 | H160: =+H158+H154 -> 177628706 | J160: =J154+J158 -> 181166700.6 | L160: =J160-H160 -> 3537994.64 | N160: =IF(L160=0,0,+L160/H160) -> 0.0199179216
B162: * Midyear budget as approved by the Board on March 25, 2014
B163: **Budgeted salary adjustment amounts are moved to the organizations at the beginning of October.

Sheet CB-Aux
B1: Collin County Community College District
B2: Comparative Auxiliary Fund
D6: 2011-12 | F6: 2012-13 | H6: 2013-14 | J6: 2014-15 | L6: Increase / | N6: Percent
D7: Actual | F7: Actual | H7: Budget* | J7: Budget | L7: (Decrease) | N7: Change
B8: Revenues
B9: College Bookstores | D9: =SUMIFS(ytd2011,Orgn,"811100",accttype,"58")+SUMIFS(ytd2011,Orgn,"811100",accttype,"59")+SUMIFS(ytd2011,Orgn,"811102",accttype,"58")+SUMIFS(ytd2011,Orgn,"811102",accttype,"59")+SUMIFS(ytd2011,Orgn,"811104",accttype,"58")+SUMIFS(ytd2011,Orgn,"811104",accttype,"59")+SUMIFS(ytd2011,Orgn,"811106",accttype,"58")+SUMIFS(ytd2011,Orgn,"811106",accttype,"59") -> 9063221.39 | F9: =SUMIFS(ytd2012,Orgn,"811100",accttype,"58")+SUMIFS(ytd2012,Orgn,"811100",accttype,"59")+SUMIFS(ytd2012,Orgn,"811102",accttype,"58")+SUMIFS(ytd2012,Orgn,"811102",accttype,"59")+SUMIFS(ytd2012,Orgn,"811104",accttype,"58")+SUMIFS(ytd2012,Orgn,"811104",accttype,"59")+SUMIFS(ytd2012,Orgn,"811106",accttype,"58")+SUMIFS(ytd2012,Orgn,"811106",accttype,"59") -> 8603063.04 | H9: 8539400 | J9: =SUMIFS(budget2014,Orgn,"811100",accttype,"58")+SUMIFS(budget2014,Orgn,"811100",accttype,"59")+SUMIFS(budget2014,Orgn,"811102",accttype,"58")+SUMIFS(budget2014,Orgn,"811102",accttype,"59")+SUMIFS(budget2014,Orgn,"811104",accttype,"58")+SUMIFS(budget2014,Orgn,"811104",accttype,"59")+SUMIFS(budget2014,Orgn,"811106",accttype,"58")+SUMIFS(budget2014,Orgn,"811106",accttype,"59") -> 8318580 | L9: =J9-H9 -> -220820 | N9: =IF(L9=0,0,+L9/H9) -> -0.02585895965
B10: Food Services/Vending | D10: =SUMIFS(ytd2011,Orgn,"813005",accttype,"58")+SUMIFS(ytd2011,Orgn,"813005",accttype,"59") -> 85386.51 | F10: =SUMIFS(ytd2012,Orgn,"813005",accttype,"58")+SUMIFS(ytd2012,Orgn,"813005",accttype,"59") -> 78813.65 | H10: =SUMIFS(Revised2013bud,Orgn,"813005",accttype,"58")+SUMIFS(Revised2013bud,Orgn,"813005",accttype,"59") -> 100000 | J10: =SUMIFS(budget2014,Acct,"581010") -> 100000 | L10: 0 | N10: 0
B11: Child Development Lab School | D11: =SUMIFS(ytd2011,Acct,"583002") -> 167993.79 | F11: =SUMIFS(ytd2012,Acct,"583002") -> 166401.14 | H11: =SUMIFS(Revised2013bud,Acct,"583002") -> 191422 | J11: =SUMIFS(budget2014,Acct,"583002") -> 191422 | L11: 0 | N11: =IF(L11=0,0,+L11/H11) -> 0
B12: Fitness Centers | D12: =SUMIFS(ytd2011,Orgn,"821100",Acct,"583001")+SUMIFS(ytd2011,Orgn,"821102",Acct,"583001")+SUMIFS(ytd2011,Orgn,"821106",Acct,"583001") -> 9840 | F12: =SUMIFS(ytd2012,Orgn,"821100",Acct,"583001")+SUMIFS(ytd2012,Orgn,"821102",Acct,"583001")+SUMIFS(ytd2012,Orgn,"821106",Acct,"583001") -> 10718 | H12: =SUMIFS(Revised2013bud,Orgn,"821100",Acct,"583001")+SUMIFS(Revised2013bud,Orgn,"821102",Acct,"583001")+SUMIFS(Revised2013bud,Orgn,"821106",Acct,"583001") -> 7000 | J12: =SUMIFS(budget2014,Orgn,"821100",Acct,"583001")+SUMIFS(budget2014,Orgn,"821102",Acct,"583001")+SUMIFS(budget2014,Orgn,"821106",Acct,"583001") -> 0 | L12: -7000 | N12: =IF(L12=0,0,+L12/H12) -> -1
B13: Facilities Rental | D13: =SUMIFS(ytd2011,Orgn,"822005",Acct,"583003") -> 96602 | F13: =SUMIFS(ytd2012,Orgn,"822005",Acct,"583003") -> 135660.5 | H13: =SUMIFS(Revised2013bud,Orgn,"822005",Acct,"583003") -> 125224 | J13: =SUMIFS(budget2014,Orgn,"822005",Acct,"583003") -> 130000 | L13: 4776 | N13: 0.03813965374
B14: Print Shop | D14: =SUMIFS(ytd2011,Orgn,"812205",accttype,"58")+SUMIFS(ytd2011,Orgn,"812205",accttype,"59") -> 428745.66 | F14: =SUMIFS(ytd2012,Orgn,"812205",accttype,"58")+SUMIFS(ytd2012,Orgn,"812205",accttype,"59") -> 435763.64 | H14: 469532 | J14: =SUMIFS(budget2014,Orgn,"812205",accttype,"58")+SUMIFS(budget2014,Orgn,"812205",accttype,"59") -> 485739 | L14: 16207 | N14: 0.03451734919
B15: Student Activities | D15: =SUMIFS(ytd2011,Acct,"530501")+SUMIFS(ytd2011,Acct,"530502")+SUMIFS(ytd2011,Acct,"530503") -> 539729.75 | F15: =SUMIFS(ytd2012,Acct,"530501")+SUMIFS(ytd2012,Acct,"530502")+SUMIFS(ytd2012,Acct,"530503") -> 547228.2 | H15: =SUMIFS(Revised2013bud,Acct,"530501")+SUMIFS(Revised2013bud,Acct,"530502")+SUMIFS(Revised2013bud,Acct,"530503") -> 544205 | J15: =SUMIFS(budget2014,Acct,"530501")+SUMIFS(budget2014,Acct,"530502")+SUMIFS(budget2014,Acct,"530503") -> 539000 | L15: -5205 | N15: -0.00956441047
B16: Athletics | D16: =SUMIFS(ytd2011,Orgn,"840005",Acct,"590099")+SUMIFS(ytd2011,Orgn,"840010",Acct,"590099")+SUMIFS(ytd2011,Orgn,"840011",Acct,"590099")+SUMIFS(ytd2011,Orgn,"870110",Acct,"590099") -> 38336.95 | F16: =SUMIFS(ytd2012,Orgn,"840005",Acct,"590099")+SUMIFS(ytd2012,Orgn,"840010",Acct,"590099")+SUMIFS(ytd2012,Orgn,"840011",Acct,"590099")+SUMIFS(ytd2012,Orgn,"870110",Acct,"590099") -> 26811.77 | H16: 22278 | J16: =SUMIFS(budget2014,Orgn,"840005",Acct,"590099")+SUMIFS(budget2014,Orgn,"840010",Acct,"590099")+SUMIFS(budget2014,Orgn,"840011",Acct,"590099")+SUMIFS(budget2014,Orgn,"870110",Acct,"590099") -> 16000 | L16: -6278 | N16: -0.2818026753
B17: Fine & Performing Arts | D17: =SUMIFS(ytd2011,Orgn,"870120",Acct,"590099")+SUMIFS(ytd2011,Orgn,"870121",Acct,"590099")+SUMIFS(ytd2011,Orgn,"870122",Acct,"590099")+SUMIFS(ytd2011,Orgn,"890006",Acct,"590099") -> 54313 | F17: =SUMIFS(ytd2012,Orgn,"870120",Acct,"590099")+SUMIFS(ytd2012,Orgn,"870121",Acct,"590099")+SUMIFS(ytd2012,Orgn,"870122",Acct,"590099")+SUMIFS(ytd2012,Orgn,"890006",Acct,"590099") -> 64572.37 | H17: =SUMIFS(Revised2013bud,Orgn,"870120",Acct,"590099")+SUMIFS(Revised2013bud,Orgn,"870121",Acct,"590099")+SUMIFS(Revised2013bud,Orgn,"870122",Acct,"590099")+SUMIFS(Revised2013bud,Orgn,"890006",Acct,"590099") -> 93382 | J17: =SUMIFS(budget2014,Orgn,"870120",Acct,"590099")+SUMIFS(budget2014,Orgn,"870121",Acct,"590099")+SUMIFS(budget2014,Orgn,"870122",Acct,"590099")+SUMIFS(budget2014,Orgn,"890006",Acct,"590099") -> 93382 | L17: 0 | N17: =IF(L17=0,0,+L17/H17) -> 0
B18: Cell Tower | D18: 76304 | F18: 95971 | H18: 95500 | J18: =SUMIFS(budget2014,Orgn,"895003",Acct,"583003") -> 92000 | L18: -3500 | N18: -0.03664921466
D19: =SUM(D9:D18) -> 10560473.05 | F19: =SUM(F9:F18) -> 10165003.31 | H19: =SUM(H9:H18) -> 10187943 | J19: =SUM(J9:J18) -> 9966123 | L19: =SUM(L9:L18) -> -221820 | N19: -0.02177279555
B20: Decrease in Net Position*** | D20: 0 | F20: 0 | H20: 94650 | J20: 172650 | L20: 78000 | N20: 0.824088748
B22: Total Revenues | D22: =SUM(D9:D18)-0.49 -> 10560472.56 | F22: =SUM(F9:F18) -> 10165003.31 | H22: =SUM(H19:H20) -> 10282593 | J22: =SUM(J19:J20) -> 10138773 | L22: =SUM(L19:L20) -> -143820 | N22: -0.01398674439
B24: Expenses:
B25: College Bookstores | D25: =+SUMIFS(ytd2011,programcode,"510",accttype,61)+SUMIFS(ytd2011,programcode,"510",accttype,"64")+SUMIFS(ytd2011,programcode,"510",accttype,"71")+SUMIFS(ytd2011,programcode,"510",accttype,"73")+SUMIFS(ytd2011,programcode,"510",accttype,"74")+SUMIFS(ytd2011,programcode,"510",accttype,"75")+SUMIFS(ytd2011,programcode,"510",accttype,"76")+SUMIFS(ytd2011,programcode,"510",accttype,"77")+SUMIFS(ytd2011,programcode,"510",accttype,"78") -> 8048307.24 | F25: 8123193 | H25: 7979514 | J25: =+SUMIFS(budget2014,programcode,"510",accttype,61)+SUMIFS(budget2014,programcode,"510",accttype,"64")+SUMIFS(budget2014,programcode,"510",accttype,"71")+SUMIFS(budget2014,programcode,"510",accttype,"73")+SUMIFS(budget2014,programcode,"510",accttype,"74")+SUMIFS(budget2014,programcode,"510",accttype,"75")+SUMIFS(budget2014,programcode,"510",accttype,"76")+SUMIFS(budget2014,programcode,"510",accttype,"77")+SUMIFS(budget2014,programcode,"510",accttype,"78") -> 7800049.64 | L25: =J25-H25 -> -179464.36 | N25: =IF(L25=0,0,+L25/H25) -> -0.0224906379
B26: Food Services/Vending | D26: =SUMIFS(ytd2011,Orgn,"813005",accttype,"71")+SUMIFS(ytd2011,Orgn,"813005",accttype,"75")+SUMIFS(ytd2011,Orgn,"813005",accttype,"76")-1 -> 33330.68 | F26: =SUMIFS(ytd2012,Orgn,"813005",accttype,"71")+SUMIFS(ytd2012,Orgn,"813005",accttype,"75")+SUMIFS(ytd2012,Orgn,"813005",accttype,"76") -> 33352.51 | H26: =SUMIFS(Revised2013bud,Orgn,"813005",accttype,"71")+SUMIFS(Revised2013bud,Orgn,"813005",accttype,"75")+SUMIFS(Revised2013bud,Orgn,"813005",accttype,"76") -> 57000 | J26: =SUMIFS(budget2014,Orgn,"813005",accttype,"71")+SUMIFS(budget2014,Orgn,"813005",accttype,"75")+SUMIFS(budget2014,Orgn,"813005",accttype,"76") -> 57000 | L26: 0 | N26: 0
B27: Child Development Lab School | D27: =SUMIFS(ytd2011,Orgn,"823102",accttype,"61")+SUMIFS(ytd2011,Orgn,"823102",accttype,"71")+SUMIFS(ytd2011,Orgn,"823102",accttype,"73")+SUMIFS(ytd2011,Orgn,"823102",accttype,"74")+SUMIFS(ytd2011,Orgn,"823102",accttype,"75")+SUMIFS(ytd2011,Orgn,"823102",accttype,"77") -> 304418.9 | F27: 374559 | H27: 392206 | J27: =SUMIFS(budget2014,Orgn,"823102",accttype,"61")+SUMIFS(budget2014,Orgn,"823102",accttype,"71")+SUMIFS(budget2014,Orgn,"823102",accttype,"73")+SUMIFS(budget2014,Orgn,"823102",accttype,"74")+SUMIFS(budget2014,Orgn,"823102",accttype,"75")+SUMIFS(budget2014,Orgn,"823102",accttype,"77") -> 400989 | L27: 8783 | N27: 0.02239384405
B28: Fitness Centers | D28: 14987 | F28: 0 | H28: =SUMIFS(Revised2013bud,Orgn,"821100",accttype,"61")+SUMIFS(Revised2013bud,Orgn,"821100",accttype,"75")+SUMIFS(Revised2013bud,Orgn,"821100",accttype,"81")+SUMIFS(Revised2013bud,Orgn,"821102",accttype,"61")+SUMIFS(Revised2013bud,Orgn,"821102",accttype,"75")+SUMIFS(Revised2013bud,Orgn,"821102",accttype,"81")+SUMIFS(Revised2013bud,Orgn,"821106",accttype,"61")+SUMIFS(Revised2013bud,Orgn,"821106",accttype,"75")+SUMIFS(Revised2013bud,Orgn,"821106",accttype,"81") -> 0 | J28: =SUMIFS(Revised2013bud,Orgn,"821100",accttype,"61")+SUMIFS(Revised2013bud,Orgn,"821100",accttype,"75")+SUMIFS(budget2014,Orgn,"821100",accttype,"81")+SUMIFS(budget2014,Orgn,"821102",accttype,"61")+SUMIFS(budget2014,Orgn,"821102",accttype,"75")+SUMIFS(budget2014,Orgn,"821102",accttype,"81")+SUMIFS(budget2014,Orgn,"821106",accttype,"61")+SUMIFS(budget2014,Orgn,"821106",accttype,"75")+SUMIFS(budget2014,Orgn,"821106",accttype,"81") -> 0 | L28: 0 | N28: 0
B29: Facilities Rental | D29: 74443 | F29: 117980 | H29: 125224 | J29: =SUMIFS(budget2014,Orgn,"822005")-SUMIFS(budget2014,Orgn,"822005",Acct,"583003") -> 130000 | L29: 4776 | N29: 0.03813965374
B30: Print Shop | D30: =SUMIFS(ytd2011,accttype,"61",Orgn,"812205")+SUMIFS(ytd2011,accttype,"64",Orgn,"812205")+SUMIFS(ytd2011,accttype,"71",Orgn,"812205")+SUMIFS(ytd2011,accttype,"73",Orgn,"812205")+SUMIFS(ytd2011,accttype,"74",Orgn,"812205")+SUMIFS(ytd2011,accttype,"75",Orgn,"812205")+SUMIFS(ytd2011,accttype,"76",Orgn,"812205")+SUMIFS(ytd2011,accttype,"77",Orgn,"812205")+SUMIFS(ytd2011,accttype,"78",Orgn,"812205") -> 428745.66 | F30: 435764 | H30: 469532 | J30: =SUMIFS(budget2014,accttype,"61",Orgn,"812205")+SUMIFS(budget2014,accttype,"64",Orgn,"812205")+SUMIFS(budget2014,accttype,"71",Orgn,"812205")+SUMIFS(budget2014,accttype,"73",Orgn,"812205")+SUMIFS(budget2014,accttype,"74",Orgn,"812205")+SUMIFS(budget2014,accttype,"75",Orgn,"812205")+SUMIFS(budget2014,accttype,"76",Orgn,"812205")+SUMIFS(budget2014,accttype,"77",Orgn,"812205")+SUMIFS(budget2014,accttype,"78",Orgn,"812205") -> 485739 | L30: 16207 | N30: 0.03451734919
B31: Motor Pool | D31: =SUMIFS(ytd2011,Orgn,"890001",Acct,"744370")+SUMIFS(ytd2011,Orgn,"890001",Acct,"755540") -> 5047.48 | F31: =SUMIFS(ytd2012,Orgn,"890001",Acct,"744370")+SUMIFS(ytd2012,Orgn,"890001",Acct,"755540") -> 6076 | H31: =SUMIFS(Revised2013bud,Orgn,"890001",Acct,"744370")+SUMIFS(Revised2013bud,Orgn,"890001",Acct,"755540") -> 10450 | J31: =SUMIFS(budget2014,Orgn,"890001",Acct,"744370")+SUMIFS(budget2014,Orgn,"890001",Acct,"755540") -> 10450 | L31: 0 | N31: 0
B32: Student Activities | D32: 308622 | F32: 329269 | H32: 369000 | J32: 422150 | L32: 53150 | N32: 0.1440379404
B33: Athletics | D33: 473262 | F33: 476381 | H33: =SUMIFS(Revised2013bud,Orgn,"840010")-SUMIFS(Revised2013bud,Orgn,"840010",accttype,"59")+SUMIFS(Revised2013bud,Orgn,"840011")-SUMIFS(Revised2013bud,Orgn,"840011",accttype,"59")+SUMIFS(Revised2013bud,Orgn,"840020")-SUMIFS(Revised2013bud,Orgn,"840020",accttype,"59")+SUMIFS(Revised2013bud,Orgn,"840005")-SUMIFS(Revised2013bud,Orgn,"840005",accttype,"59")+SUMIFS(Revised2013bud,Orgn,"870102")-SUMIFS(Revised2013bud,Orgn,"870102",accttype,"59")+SUMIFS(Revised2013bud,Orgn,"870103")-SUMIFS(Revised2013bud,Orgn,"870103",accttype,"59")+SUMIFS(Revised2013bud,Orgn,"870110")-SUMIFS(Revised2013bud,Orgn,"870110",accttype,"59") -> 640399 | J33: =SUMIFS(budget2014,Orgn,"840010")-SUMIFS(budget2014,Orgn,"840010",accttype,"59")+SUMIFS(budget2014,Orgn,"840011")-SUMIFS(budget2014,Orgn,"840011",accttype,"59")+SUMIFS(budget2014,Orgn,"840020")-SUMIFS(budget2014,Orgn,"840020",accttype,"59")+SUMIFS(budget2014,Orgn,"840005")-SUMIFS(budget2014,Orgn,"840005",accttype,"59")+SUMIFS(budget2014,Orgn,"870102")-SUMIFS(budget2014,Orgn,"870102",accttype,"59")+SUMIFS(budget2014,Orgn,"870103")-SUMIFS(budget2014,Orgn,"870103",accttype,"59")+SUMIFS(budget2014,Orgn,"870110")-SUMIFS(budget2014,Orgn,"870110",accttype,"59") -> 630030 | L33: -10369 | N33: -0.01619146813
B34: Fine & Performing Arts | D34: 134261 | F34: =SUMIFS(ytd2012,Orgn,"890006")-SUMIFS(ytd2012,Orgn,"890006",accttype,"59")+SUMIFS(ytd2012,Orgn,"890003")-SUMIFS(ytd2012,Orgn,"890003",accttype,"59")+SUMIFS(ytd2012,Orgn,"870120")-SUMIFS(ytd2012,Orgn,"870120",accttype,"59")+SUMIFS(ytd2012,Orgn,"870121")-SUMIFS(ytd2012,Orgn,"870121",accttype,"59")+SUMIFS(ytd2012,Orgn,"870122")-SUMIFS(ytd2012,Orgn,"870122",accttype,"59")+SUMIFS(ytd2012,Orgn,"880006")-SUMIFS(ytd2012,Orgn,"880006",accttype,"59") -> 40973.61 | H34: 195482 | J34: =SUMIFS(budget2014,Orgn,"890006")-SUMIFS(budget2014,Orgn,"890006",accttype,"59")+SUMIFS(budget2014,Orgn,"890003")-SUMIFS(budget2014,Orgn,"890003",accttype,"59")+SUMIFS(budget2014,Orgn,"870120")-SUMIFS(budget2014,Orgn,"870120",accttype,"59")+SUMIFS(budget2014,Orgn,"870121")-SUMIFS(budget2014,Orgn,"870121",accttype,"59")+SUMIFS(budget2014,Orgn,"870122")-SUMIFS(budget2014,Orgn,"870122",accttype,"59")+SUMIFS(budget2014,Orgn,"880006")-SUMIFS(budget2014,Orgn,"880006",accttype,"59") -> 183382 | L34: -12100 | N34: -0.06189828219
B35: Scholarships** | D35: 89817 | F35: 109076 | H35: 283028 | J35: =SUMIFS(budget2014,Orgn,"895002",Acct,"796100")+SUMIFS(budget2014,Orgn,"895003",Acct,"796100")+SUMIFS(budget2014,Orgn,"895004",Acct,"796100") -> 144500 | L35: -138528 | N35: -0.4894498071
B36: TACC | D36: =SUMIFS(ytd2011,Orgn,"890004",Acct,"755730") -> 43586 | F36: =SUMIFS(ytd2012,Orgn,"890004",Acct,"755730") -> 54440 | H36: 57653 | J36: =SUMIFS(budget2014,Orgn,"890004",Acct,"755730") -> 58500 | L36: 847 | N36: 0.01469134304
B37: Financial Aid Audit Exceptions | D37: 0 | F37: 0 | H37: 364786 | J37: 0 | L37: =J37-H37 -> -364786 | N37: =IF(L37=0,0,+L37/H37) -> -1
B38: Auxiliary Institutional Effectiveness | D38: =SUMIFS(ytd2011,Orgn,"890005",Acct,"733230") -> 9000 | F38: =SUMIFS(ytd2012,Orgn,"890005",Acct,"733230") -> 4500 | H38: =SUMIFS(Revised2013bud,Orgn,"890005",Acct,"733230") -> 9000 | J38: =SUMIFS(budget2014,Orgn,"890005",Acct,"733230") -> 9000 | L38: 0 | N38: 0
B39: Refund Petition | D39: =SUMIFS(ytd2011,Orgn,"890002") -> 15235.75 | F39: =SUMIFS(ytd2012,Orgn,"890002") -> 14928.5 | H39: =SUMIFS(Revised2013bud,Orgn,"890002") -> 23000 | J39: =SUMIFS(budget2014,Orgn,"890002") -> 27000 | L39: 4000 | N39: 0.1739130435
B40: Total Fund Expenses | D40: =SUM(D25:D39) -> 9983063.71 | F40: =SUM(F25:F39) -> 10120492.62 | H40: =SUM(H25:H39) -> 10976274 | J40: =SUM(J25:J39) -> 10358789.64 | L40: -617484.36 | N40: -0.0562562815
B42: Transfers:
B43: Royden LeBrecht | D43: 2714 | F43: =SUMIFS(ytd2012,Orgn,"895005",Acct,"828295") -> 0 | H43: =SUMIFS(Revised2013bud,Orgn,"895005",Acct,"828295") -> 0 | J43: =SUMIFS(budget2014,Orgn,"895005",Acct,"828295") -> 0 | L43: =J43-H43 -> 0 | N43: =IF(L43=0,0,+L43/H43) -> 0
B44: Child Development Lab School - Spring Creek | D44: =-SUMIFS(ytd2011,Orgn,"823102",accttype,"81") -> 136424.86 | F44: =-SUMIFS(ytd2012,Orgn,"823102",accttype,"81") -> 208157.58 | H44: 200784 | J44: =-SUMIFS(budget2014,Orgn,"823102",accttype,"81") -> 209567 | L44: =J44-H44 -> 8783 | N44: =IF(L44=0,0,+L44/H44) -> 0.04374352538
B46: Transfers In - Current Funds | D46: =SUM(D43:D44) -> 139138.86 | F46: =SUM(F43:F44) -> 208157.58 | H46: =SUM(H43:H44) -> 200784 | J46: =SUM(J43:J44) -> 209567 | L46: =SUM(L43:L44) -> 8783 | N46: =IF(L46=0,0,+L46/H46) -> 0.04374352538
B48: Allocations:
B49: Motor Pool | D49: =-SUMIFS(ytd2011,Orgn,"890001",Acct,"744390") -> 5047.48 | F49: =-SUMIFS(ytd2012,Orgn,"890001",Acct,"744390") -> 6076 | H49: =-SUMIFS(Revised2013bud,Orgn,"890001",Acct,"744390") -> 10450 | J49: =-SUMIFS(budget2014,Orgn,"890001",Acct,"744390") -> 10450 | L49: =J49-H49 -> 0 | N49: =IF(L49=0,0,+L49/H49) -> 0
B51: Total Transfers and Allocations | D51: =SUM(D46:D49) -> 144186.34 | F51: =SUM(F46:F49) -> 214233.58 | H51: =SUM(H46:H49) -> 211234 | J51: =SUM(J46:J49) -> 220017 | L51: =J51-H51 -> 8783 | N51: =IF(L51=0,0,+L51/H51) -> 0.04157948058
B53: Total Exp. Less Total Transfers & Allocations | D53: =+D40-D51-0.49 -> 9838876.88 | F53: =+F40-F51 -> 9906259.04 | H53: =+H40-H51 -> 10765040 | J53: =+J40-J51 -> 10138772.64 | L53: =J53-H53 -> -626267.36 | N53: =IF(L53=0,0,+L53/H53) -> -0.0581760365
B55: Decrease in Net Position | D55: =D22-D53 -> 721595.68 | F55: 100123 | H55: =H22-H53 -> -482447 | J55: 0 | L55: =J55-H55 -> 482447 | N55: =IF(L55=0,0,+L55/H55) -> -1
B56: Net Auxiliary Services | D56: =SUM(D53:D55) -> 10560472.56 | F56: =SUM(F53:F55) -> 10006382.04 | H56: =SUM(H53:H55) -> 10282593 | J56: =SUM(J53:J55) -> 10138772.64 | L56: =J56-H56 -> -143820.36 | N56: =IF(L56=0,0,+L56/H56) -> -0.0139867794
B58: * Midyear budget as approved by the Board on March 25, 2014
B59: ** Think, Hendricks and Board/President's Scholarships
B60: ***2014-2015 Decrease in net position from prior year in Student Activities
M130: =3426631+51500+1102377-15000+37800 -> 4603308

Sheet CB-Grant
B1: Collin County Community College District
B2: Comparative Grant Fund Budget
D5: 2013-14 | F5: 2014-15 | H5: Increase/ | J5: Percent
D6: Budget* | F6: Budget | H6: (Decrease) | J6: Change
B7: Revenues and Other Fund Additions:
B8: Federal Pell Grant | D8: 25000000 | F8: 24000000 | H8: =F8-D8 -> -1000000 | J8: =IF(H8=0,0,+H8/D8) -> -0.04
B9: Federal SEOG | D9: 281228 | F9: 343108 | H9: =F9-D9 -> 61880 | J9: =IF(H9=0,0,+H9/D9) -> 0.2200349894
B10: Federal SEOG Match (Transfer from TPEG) | D10: 119281 | F10: 144134 | H10: 24853 | J10: =IF(H10=0,0,+H10/D10) -> 0.2083567375
B11: FSEOG (Transfer From FWS) | D11: 76614 | F11: 89294 | H11: 12680 | J11: =IF(H11=0,0,+H11/D11) -> 0.1655049991
B12: Total Student Financial Aid (Title IV) | D12: =SUM(D8:D11) -> 25477123 | F12: =SUM(F8:F11) -> 24576536 | H12: =SUM(H8:H11) -> -900587 | J12: =IF(H12=0,0,+H12/D12) -> -0.03534885003 | K12: =+F12-D12 -> -900587
B14: Transfers In - Matching | D14: 86819 | F14: 81748 | H14: -5071 | J14: =IF(H14=0,0,+H14/D14) -> -0.05840887363 | K14: =+F14-D14 -> -5071
B16: Federal Grants:
B17: Carl Perkins | D17: 346541 | F17: 479137 | H17: 132596 | J17: =IF(H17=0,0,+H17/D17) -> 0.3826271639
B18: Department of Labor | D18: =6542143+4101 -> 6546244 | F18: 5400000 | H18: -1146244 | J18: -0.1750994922
B19: National Science Foundation | D19: =70661+1032287+240546+30527+37500 -> 1411521 | F19: =1139178+180000+20000+39000 -> 1378178 | H19: -33343 | J19: -0.02362203609 | K19: =+F19-D19 -> -33343
B20: SBDC | D20: 215214 | F20: 215214 | H20: 0 | J20: 0
B21: Other | D21: =4986+9366+30646 -> 44998 | F21: 35717 | H21: -9281 | J21: -0.2062536113
B22: Total Federal Grants | D22: =SUM(D17:D21) -> 8564518 | F22: =SUM(F17:F21) -> 7508246 | H22: =SUM(H17:H21) -> -1056272 | J22: =IF(H22=0,0,+H22/D22) -> -0.123331167 | K22: =+F22-D22 -> -1056272
B24: Total Student Financial Aid, Transfers In & Federal Grants
D25: =+D22+D14+D12 -> 34128460 | F25: =+F22+F14+F12 -> 32166530 | H25: =+H22+H14+H12 -> -1961930 | J25: =IF(H25=0,0,+H25/D25) -> -0.05748662553 | K25: =+F25-D25 -> -1961930
B27: State Grants:
B28: Texas Public Education Grant | D28: 1100000 | F28: 1150000 | H28: =F28-D28 -> 50000 | J28: =IF(H28=0,0,+H28/D28) -> 0.04545454545
B29: Texas Grant Programs | D29: =97680+543840 -> 641520 | F29: 100000 | H29: -541520 | J29: -0.8441202145
B30: Skills Development - TWC | D30: =20000+63492+84344 -> 167836 | F30: =4500+21470+32864 -> 58834 | H30: =F30-D30 -> -109002 | J30: -0.6494554208
B31: TEOG | D31: =7920+79200 -> 87120 | F31: =11600+930000 -> 941600 | H31: 854480 | J31: 9.808080808
B32: Other | D32: =12197+80700+5000+53942+25761 -> 177600 | F32: =5000+15000+80700+140000+28612+92057 -> 361369 | H32: 183769 | J32: 1.03473536
B33: Total State Grants | D33: =SUM(D28:D32) -> 2174076 | F33: =SUM(F28:F32) -> 2611803 | H33: =SUM(H28:H32) -> 437727 | J33: 0.2013393276
B35: Private Grant - Community Reinvestment Grant - SBDC | D35: 0 | F35: 20000 | H35: =F35-D35 -> 20000 | J35: 1
B38: Total Grants and Contracts Revenues | D38: =+D33+D25+D35 -> 36302536 | F38: =+F33+F25+F35 -> 34798333 | G38: 0 | H38: -1504203 | J38: =IF(H38=0,0,(IF(D38=0,"N/A",H38/D38))) -> -0.04143520442 | K38: =+F38-D38 -> -1504203
B40: Expenditures:
B41: Bridges - TWU | D41: 9366 | F41: 0 | H41: =F41-D41 -> -9366 | J41: =IF(H41=0,0,+H41/D41) -> -1
B42: Carl Perkins - Annual Allocation | D42: 346541 | F42: 479137 | H42: =F42-D42 -> 132596 | J42: =IF(H42=0,0,+H42/D42) -> 0.3826271639
B43: College Access Loans | D43: 12197 | F43: 15000 | H43: =F43-D43 -> 2803 | J43: =IF(H43=0,0,+H43/D43) -> 0.2298106092
B44: Community Based Job Training - NTCW DOL | D44: 4101 | F44: 0 | H44: -4101 | J44: -1
B45: Community Reinvestment Grant - SBDC | D45: 0 | F45: 20000 | H45: 20000 | J45: 0
B46: Dallas "Stem" Gateway-UT Dallas | D46: =240546+30527 -> 271073 | F46: =180000+20000 -> 200000 | H46: -71073 | J46: -0.2621913654
B47: DOL-TAACCCT-NISGTC | D47: 6542143 | F47: 5400000 | H47: -1142143 | J47: =IF(H47=0,0,+H47/D47) -> -0.174582396
B48: Federal Pell Grant | D48: 25000000 | F48: 24000000 | H48: =F48-D48 -> -1000000 | J48: -0.04
B49: Federal SEOG | D49: 281228 | F49: 343108 | H49: 61880 | J49: =IF(H49=0,0,(IF(D49=0,"N/A",H49/D49))) -> 0.2200349894
B50: Federal SEOG Match | D50: 119281 | F50: 144134 | H50: 24853 | J50: 0.2083567375
B51: FSEOG (Transfer From FWS) | D51: 76614 | F51: 89294 | H51: =F51-D51 -> 12680 | J51: =IF(H51=0,0,(IF(D51=0,"N/A",H51/D51))) -> 0.1655049991
B52: Inovate-NSF Florida State College Subaward | D52: 37500 | F52: 39000 | H52: 1500 | J52: 0.04
B53: Job Location & Development - Federal | D53: 30646 | F53: 35717 | H53: 5071 | J53: 0.1654702082
B54: Job Location & Development - Match | D54: 39014 | F54: =28283+5660 -> 33943 | H54: -5071 | J54: -0.1299789819
B55: National Science FDN-Convergent Tech Ctr 2 | D55: 70661 | F55: 0 | H55: =F55-D55 -> -70661 | J55: =IF(H55=0,0,(IF(D55=0,"N/A",H55/D55))) -> -1
B56: National Science FDN-Nat'l Convergent Tech | D56: =1032287 -> 1032287 | F56: 1139178 | H56: 106891 | J56: 0.1035477537
B57: Nursing Shortage Reduction & Allied Health | D57: =53942+25761+5000 -> 84703 | F57: =140000+28612 -> 168612 | H57: 83909 | J57: 0.9906260699
B58: Skills Development - TWC | D58: =20000+63492+84344 -> 167836 | F58: =4500+21470+32864 -> 58834 | H58: -109002 | J58: =IF(H58=0,0,+H58/D58) -> -0.6494554208
B59: Small Business Development Center - Federal | D59: 215214 | F59: 215214 | H59: 0 | J59: 0
B60: Small Business Development Center - Match | D60: 47805 | F60: 47805 | H60: 0 | J60: 0
B61: Small Business Development Center - State | D61: 80700 | F61: 80700 | H61: 0 | J61: 0
B62: State-Wide Longitudinal Data System | D62: 4986 | F62: 0 | H62: =F62-D62 -> -4986 | J62: =IF(H62=0,0,(IF(D62=0,"N/A",H62/D62))) -> -1
B63: TEOG IY (Texas Educational Opportunity Grants) | D63: 79200 | F63: 930000 | H63: 850800 | J63: =IF(H63=0,0,+H63/D63) -> 10.74242424
B64: TEOG RY (Texas Educational Opportunity Grants) | D64: 7920 | F64: 11600 | H64: 3680 | J64: 0.4646464646
B65: Texas Fast Start Nursing Program - TWC | D65: 0 | F65: 92057 | H65: =F65-D65 -> 92057 | J65: 0
B66: Texas Grant Program - New | D66: 543840 | F66: 0 | H66: =F66-D66 -> -543840 | J66: =IF(H66=0,0,+H66/D66) -> -1
B67: Texas Grant Program - Renewal | D67: 97680 | F67: 100000 | H67: 2320 | J67: 0.02375102375
B68: Texas Public Education Grant | D68: 1100000 | F68: 1150000 | H68: 50000 | J68: 0.04545454545
B69: Top 10% Scholarships | D69: 0 | F69: 5000 | H69: 5000 | J69: 0
B70: Total Grants and Contracts Expenditures | D70: =SUM(D41:D69) -> 36302536 | F70: =SUM(F41:F69) -> 34798333 | H70: =SUM(H41:H69) -> -1504203 | J70: =IF(H70=0,0,(IF(D70=0,"N/A",H70/D70))) -> -0.04143520442
B72: *Midyear budget as approved by the Board on March 25, 2014
I90: 300000
I91: 1511000
I94: 840000
I99: 461200
I143: =3426631+51500+1102377-15000+37800 -> 4603308

Sheet CB-Quasi
B1: COLLIN COUNTY COMMUNITY COLLEGE DISTRICT
B2: ROYDEN LEBRECHT QUASI - ENDOWMENT FUND
C7: 2009-10 | E7: 2011-12 | G7: 2012-13 | I7: 2013-14 | K7: 2014-15 | M7: Increase/ | O7: Percent
C8: Actual | E8: Actual | G8: Actual | I8: Budget | K8: Budget | M8: (Decrease) | O8: Change
B11: Revenues and Other Fund Additions:
B13: Investment Income | E13: 1441 | G13: 1391 | I13: 1300 | K13: =SUMIFS(budget2014,Acct,"560001",Orgn,"895005") -> 0 | M13: =K13-I13 -> -1300 | O13: =IF(M13=0,0,+M13/I13) -> -1
J14: =SUMIFS(budget2014,Orgn,"812205",accttype,"58")+SUMIFS(budget2014,Orgn,"812205",accttype,"59") -> 485739
B15: Gifts | I15: 0 | K15: 0 | M15: =K15-I15 -> 0 | O15: N/A
B17: Total Revenue and Other Fund Changes | C17: =SUM(C13:C16) -> 0 | E17: =SUM(E13:E16) -> 1441 | G17: =SUM(G13:G16) -> 1391 | I17: =SUM(I13:I16) -> 1300 | K17: =SUM(K13:K16) -> 0 | M17: =SUM(M13:M16) -> -1300 | O17: =IF(M17=0,0,+M17/I17) -> -1
B21: Expenses:
B23: Transfer to Auxiliary for Scholarships | E23: 2255 | G23: 2714 | I23: =SUMIFS(Revised2013bud,Acct,"828295",Orgn,"895005") -> 0 | K23: =SUMIFS(budget2014,Acct,"828295",Orgn,"895005") -> 0 | M23: =+K23-I23 -> 0 | O23: =IF(M23=0,0,+M23/I23) -> 0
B25: Increase in Net Position | E25: =SUMIFS(ytd2011,Acct,"839125",Orgn,"895005") -> 0 | G25: =SUMIFS(ytd2012,Acct,"839125",Orgn,"895005") -> 0 | I25: 1300 | K25: =SUMIFS(budget2014,Acct,"839125",Orgn,"895005") -> 0 | M25: =K25-I25 -> -1300 | O25: =IF(M25=0,0,+M25/I25) -> -1
B27: Total Expenses and Other Fund Changes | C27: =SUM(C23:C25) -> 0 | E27: =SUM(E23:E25) -> 2255 | G27: =SUM(G23:G25) -> 2714 | I27: =SUM(I23:I25) -> 1300 | K27: =SUM(K23:K25) -> 0 | M27: =SUM(M23:M25) -> -1300 | N27: =SUM(N23:N23) -> 0 | O27: =IF(M27=0,0,+M27/I27) -> -1
B30: On 6-24-14 the Board of Directors approved the transfer of the Royden L. LeBrecht funds to the Foundation.
D53: =264612-137021+147471+70872 -> 345934
J76: 300000
J77: 1511000
J80: 840000
J85: 461200
J129: =3426631+51500+1102377-15000+37800 -> 4603308

Sheet CB-Build
B1: COLLIN COUNTY COMMUNITY COLLEGE DISTRICT
B2: COMPARATIVE BUILDING FUND BUDGET
D5: 2013-14 | F5: 2014-15 | H5: Increase/ | J5: Percent
D6: Budget* | F6: Budget | H6: (Decrease) | J6: Change
B7: Revenues and Other Fund Additions:
B9: Non-Mandatory Transfers - Operating | D9: 15000000 | F9: 12119681 | H9: =F9-D9 -> -2880319 | J9: =IF(H9=0,0,+H9/F9) -> -0.2376563377
B10: Building Use Fee Transfer | D10: 2161004 | F10: 2143259 | H10: =F10-D10 -> -17745 | J10: =IF(H10=0,0,+H10/F10) -> -0.008279447328
B11: TIF Payment - City of Frisco | D11: 200000 | F11: 200000 | H11: 0 | J11: 0
B12: Investment Income | D12: 100000 | F12: 50000 | H12: -50000 | J12: -1
B13: Total Revenues | D13: =SUM(D9:D12) -> 17461004 | F13: =SUM(F9:F12) -> 14512940 | H13: =F13-D13 -> -2948064 | J13: -0.2031334795
B15: Change in Net Position | D15: -1759964 | F15: =F34-F13 -> 17360977 | H15: =F15-D15 -> 19120941 | J15: =IF(H15=0,0,+H15/F15) -> 1.101374709
B17: Total Revenue and Other Fund Changes | D17: =SUM(D13:D15) -> 15701040 | F17: =SUM(F13:F15) -> 31873917 | H17: =F17-D17 -> 16172877 | J17: =IF(H17=0,0,+H17/F17) -> 0.5074016162
B19: Expenses:
B20: Central Park Campus
B21: Health & Sciences Facility & Conference Center | D21: 8000000 | F21: 23246552 | H21: =F21-D21 -> 15246552 | J21: =IF(H21=0,0,+H21/F21) -> 0.6558629426
B22: Architect | D22: 420000 | F22: 2255974 | H22: 1835974 | J22: 0.8138276416 | L22: =F17-F34 -> 0
B23: Civil Engineering | D23: 146000 | F23: 146000 | H23: 0 | J23: 0
B24: Materials Testing | D24: 50000 | F24: 178024 | H24: =F24-D24 -> 128024 | J24: =IF(H24=0,0,+H24/F24) -> 0.7191389925
B25: Equipment and Supplies | D25: 0 | F25: 3750000 | H25: 3750000 | J25: 1
B26: Total Health & Sciences Facility & Conference Center | D26: =SUM(D21:D25) -> 8616000 | F26: =SUM(F21:F25) -> 29576550 | H26: 20960550 | J26: 0.708688133
B28: Parking Lot
B29: Surface Parking (722 parking spaces) | D29: 2036040 | F29: 0 | H29: =F29-D29 -> -2036040 | J29: -1
B30: Total Parking Lot | D30: =SUM(D29) -> 2036040 | F30: =SUM(F29) -> 0 | H30: =SUM(H29) -> -2036040 | J30: -1
B32: Renewal and Replacement | D32: 5049000 | F32: 2297367 | H32: =F32-D32 -> -2751633 | J32: =IF(H32=0,0,+H32/F32) -> -1.197733318
B34: Total Expenses and Other Fund Changes | D34: =+D32+D30+D26 -> 15701040 | F34: =+F32+F30+F26 -> 31873917 | H34: =+H26+H30+H32 -> 16172877 | J34: =IF(H34=0,0,+H34/F34) -> 0.5074016162
B36: * Midyear budget as approved by the Board on March 25, 2014
I111: =3426631+51500+1102377-15000+37800 -> 4603308

Sheet CB-GO
B1: Collin County Community College District
B2: Comparative Debt Service Fund Budget
B3: General Obligation Bonds
C6: ACTUAL
C7: 1991-92 | E7: 2009-10 | G7: 2011-12 | I7: 2012-13 | K7: 2013-14 | M7: 2014-15 | O7: Increase/ | Q7: Percent
E8: Actual | G8: Actual | I8: Actual | K8: Budget | M8: Budget | O8: (Decrease) | Q8: Change
B11: Revenues and Other Fund Additions:
B13: Debt Service Taxes | C13: 7073297 | G13: =SUMIFS(ytd2011,Acct,"540001",Orgn,"940100") -> 4676937.87 | I13: =SUMIFS(ytd2012,Acct,"540001",Orgn,"940100") -> 4796016.31 | K13: 2698238 | M13: 2418931 | O13: =M13-K13 -> -279307 | Q13: =IF(O13=0,0,+O13/K13) -> -0.1035145899
B14: City of Plano TIF #1 Refund | G14: =SUMIFS(ytd2011,Acct,"590007",Orgn,"940100") -> 25204.83 | I14: =SUMIFS(ytd2012,Acct,"590007",Orgn,"940100") -> 0 | K14: =SUMIFS(Revised2013bud,Acct,"590007",Orgn,"940100") -> 0 | M14: =SUMIFS(budget2014,Acct,"590007",Orgn,"940100") -> 0 | O14: =M14-K14 -> 0 | Q14: =IF(O14=0,0,+O14/K14) -> 0
B15: Investment Income | G15: =SUMIFS(ytd2011,Acct,"560001",Orgn,"940100") -> 5169.4 | I15: =SUMIFS(ytd2012,Acct,"560001",Orgn,"940100") -> 5164.14 | K15: 3900 | M15: 0 | O15: =M15-K15 -> -3900 | Q15: =IF(O15=0,0,+O15/K15) -> -1
B16: Total Revenue | G16: =SUM(G13:G15) -> 4707312.1 | I16: =SUM(I13:I15) -> 4801180.45 | K16: =SUM(K13:K15) -> 2702138 | M16: =SUM(M13:M15) -> 2418931 | O16: =SUM(O13:O15) -> -283207 | Q16: =IF(O16=0,0,+O16/K16) -> -0.1048084887
D17: =SUM(D8:D16) -> 0
B18: Decrease in Net Position | G18: 0 | I18: 0 | K18: 1859600 | M18: 2047500 | O18: =M18-K18 -> 187900 | Q18: =IF(O18=0,0,+O18/K18) -> 0.1010432351
B20: Total Revenue and Other Fund Changes | G20: =SUM(G16:G18) -> 4707312.1 | I20: =SUM(I16:I18) -> 4801180.45 | K20: =SUM(K16:K18) -> 4561738 | M20: =SUM(M16:M19) -> 4466431 | O20: =M20-K20 -> -95307 | Q20: =IF(O20=0,0,+O20/K20) -> -0.02089269485
B22: Expenses:
B24: Bond Principal - Series 2002 | G24: =SUMIFS(ytd2011,Acct,"790102",Orgn,"940100") -> 960000 | I24: =SUMIFS(ytd2012,Acct,"790102",Orgn,"940100") -> 0 | K24: =SUMIFS(Revised2013bud,Acct,"790102",Orgn,"940100") -> 0 | M24: 0 | O24: =M24-K24 -> 0 | Q24: =IF(O24=0,0,+O24/K24) -> 0
B25: Bond Principal - Series 2003 | G25: =SUMIFS(ytd2011,Acct,"790103",Orgn,"940100") -> 895000 | I25: =SUMIFS(ytd2012,Acct,"790103",Orgn,"940100") -> 940000 | K25: =SUMIFS(Revised2013bud,Acct,"790103",Orgn,"940100") -> 980000 | M25: =SUMIFS(budget2014,Acct,"790103",Orgn,"940100") -> 0 | O25: -980000 | Q25: -1
B26: Bond Principal - Series 2006 | G26: =SUMIFS(ytd2011,Acct,"790106",Orgn,"940100") -> 745000 | I26: =SUMIFS(ytd2012,Acct,"790106",Orgn,"940100") -> 780000 | K26: =SUMIFS(Revised2013bud,Acct,"790106",Orgn,"940100") -> 815000 | M26: 855000 | O26: 40000 | Q26: 0.0490797546
B27: Bond Principal - Series 2010 | G27: =SUMIFS(ytd2011,Acct,"790110",Orgn,"940100") -> 20000 | I27: =SUMIFS(ytd2012,Acct,"790110",Orgn,"940100") -> 1030000 | K27: =SUMIFS(Revised2013bud,Acct,"790110",Orgn,"940100") -> 1070000 | M27: 2140000 | O27: 1070000 | Q27: 1
B28: Bond Interest - Series 2002 | D28: 10450 | G28: =SUMIFS(ytd2011,Acct,"791102",Orgn,"940100") -> 36800 | I28: =SUMIFS(ytd2012,Acct,"791102",Orgn,"940100") -> 0 | K28: =SUMIFS(Revised2013bud,Acct,"791102",Orgn,"940100") -> 0 | M28: =SUMIFS(budget2014,Acct,"791102",Orgn,"940100") -> 0 | O28: =M28-K28 -> 0 | Q28: 0
B29: Bond Interest - Series 2003 | G29: =SUMIFS(ytd2011,Acct,"791103",Orgn,"940100") -> 112333.33 | I29: =SUMIFS(ytd2012,Acct,"791103",Orgn,"940100") -> 76458.34 | K29: =SUMIFS(Revised2013bud,Acct,"791103",Orgn,"940100") -> 40425 | M29: =SUMIFS(budget2014,Acct,"791103",Orgn,"940100") -> 0 | O29: -40425 | Q29: -1
B30: Bond Interest - Series 2006 | G30: =SUMIFS(ytd2011,Acct,"791106",Orgn,"940100") -> 661745.87 | I30: =SUMIFS(ytd2012,Acct,"791106",Orgn,"940100") -> 631725.04 | K30: =SUMIFS(Revised2013bud,Acct,"791106",Orgn,"940100") -> 598088 | M30: 561413 | O30: -36675 | Q30: -0.0613204077
B31: Bond Interest - Series 2010 | G31: =SUMIFS(ytd2011,Acct,"791110",Orgn,"940100") -> 925485.8 | I31: =SUMIFS(ytd2012,Acct,"791110",Orgn,"940100") -> 923814.97 | K31: =SUMIFS(Revised2013bud,Acct,"791110",Orgn,"940100") -> 917725 | M31: 885625 | O31: -32100 | Q31: -0.03497779836
B32: Total General Obligation | G32: =SUM(G24:G31) -> 4356365 | I32: =SUM(I24:I31) -> 4381998.35 | K32: =SUM(K24:K31) -> 4421238 | M32: =SUM(M24:M31) -> 4442038 | O32: 20800 | Q32: 0.004704564649
B35: Tax Assessing/Collecting/Appraisal | G35: =SUMIFS(ytd2011,Acct,"712210",Orgn,"940100")+SUMIFS(ytd2011,Acct,"712220",Orgn,"940100") -> 43384.92 | I35: =SUMIFS(ytd2012,Acct,"712210",Orgn,"940100")+SUMIFS(ytd2012,Acct,"712220",Orgn,"940100") -> 48227.2 | K35: 62000 | M35: 24393 | O35: =M35-K35 -> -37607 | Q35: =IF(O35=0,0,+O35/K35) -> -0.6065645161
B36: TIF Payments | G36: =SUMIFS(ytd2011,Acct,"722226",Orgn,"940100")+SUMIFS(ytd2011,Acct,"722227",Orgn,"940100")+SUMIFS(ytd2011,Acct,"722228",Orgn,"940100") -> 61109.01 | I36: =SUMIFS(ytd2012,Acct,"722226",Orgn,"940100")+SUMIFS(ytd2012,Acct,"722227",Orgn,"940100")+SUMIFS(ytd2012,Acct,"722228",Orgn,"940100") -> 65535.77 | K36: =SUMIFS(Revised2013bud,Acct,"722226",Orgn,"940100")+SUMIFS(Revised2013bud,Acct,"722227",Orgn,"940100")+SUMIFS(Revised2013bud,Acct,"722228",Orgn,"940100") -> 76000 | M36: 0 | O36: =M36-K36 -> -76000 | Q36: =IF(O36=0,0,+O36/K36) -> -1
B37: Paying Agent Fees | G37: =SUMIFS(ytd2011,Acct,"792000",Orgn,"940100") -> 1400 | I37: =SUMIFS(ytd2012,Acct,"792000",Orgn,"940100") -> 1100 | K37: =SUMIFS(Revised2013bud,Acct,"792000",Orgn,"940100") -> 2500 | M37: 0 | O37: =M37-K37 -> -2500 | Q37: =IF(O37=0,0,+O37/K37) -> -1
B38: Total Other | G38: =SUM(G35:G37) -> 105893.93 | I38: =SUM(I35:I37) -> 114862.97 | K38: =SUM(K34:K37) -> 140500 | M38: =SUM(M34:M37) -> 24393 | O38: =SUM(O34:O37) -> -116107 | Q38: =IF(O38=0,0,+O38/K38) -> -0.8263843416
B40: Change in Net Position | G40: =+G20-G32-G38 -> 245053.17 | I40: =+I20-I32-I38 -> 304319.13 | K40: =+K20-K32-K38 -> 0 | M40: 0 | O40: =M40-K40 -> 0 | Q40: =IF(O40=0,0,+O40/K40) -> 0
B42: Total Expenses and Other Fund Changes | G42: =G38+G32+G40 -> 4707312.1 | I42: =I38+I32+I40 -> 4801180.45 | K42: =K38+K32+K40 -> 4561738 | M42: =M38+M32+M40 -> 4466431 | O42: =O38+O32+O40 -> -95307 | Q42: =IF(O42=0,0,+O42/K42) -> -0.02089269485
K45: =+K42-K40 -> 4561738 | M45: =+M42-M40 -> 4466431
D51: =264612-137021+147471+70872 -> 345934
K52: Frisco Tif #1 | M52: 70000
K53: Plano Tif #1 | M53: 0
K54: Plano Tif #2 | M54: 3000 | O54: I just halved last year's amount.
M55: =SUM(M52:M54) -> 73000
M74: 300000
M75: 1511000
M78: 840000
M83: 461200
M127: =3426631+51500+1102377-15000+37800 -> 4603308

Sheet CB-Rev
B1: COLLIN COUNTY COMMUNITY COLLEGE DISTRICT
B2: COMPARATIVE DEBT SERVICE FUND BUDGET
B3: CONSOLIDATED REVENUE BONDS
D9: 2011-12 | F9: 2012-13 | H9: 2013-14 | J9: 2014-15 | L9: Increase/ | N9: Percent
D10: Actual | F10: Actual | H10: Budget | J10: Budget | L10: (Decrease) | N10: Change
B13: Revenues:
B15: Transfer in - 08 Series Revenue | D15: =SUMIFS(ytd2011,Acct,"828247") -> 1110054.75 | F15: 1112434 | H15: =SUMIFS(Revised2013bud,Acct,"828247") -> 1111996 | J15: =SUMIFS(budget2014,Acct,"828247") -> 1109741 | L15: =J15-H15 -> -2255 | N15: =IF(L15=0,0,+L15/H15) -> -0.002027884992
B17: Total Revenues | D17: =SUM(D15:D15) -> 1110054.75 | F17: =SUM(F15:F15) -> 1112434 | H17: =SUM(H15:H15) -> 1111996 | J17: =SUM(J15:J15) -> 1109741 | L17: =SUM(L15:L15) -> -2255 | N17: -0.002027884992
B21: Expenses:
B23: Bond Principal - Series 2008 | D23: =SUMIFS(ytd2011,Acct,"790208") -> 915000 | F23: =SUMIFS(ytd2012,Acct,"790208") -> 945000 | H23: =SUMIFS(Revised2013bud,Acct,"790208") -> 970000 | J23: =SUMIFS(budget2014,Acct,"790208") -> 1000000 | L23: =J23-H23 -> 30000 | N23: =IF(L23=0,0,+L23/H23) -> 0.03092783505
B24: Bond Interest - Series 2008 | D24: =SUMIFS(ytd2011,Acct,"791208") -> 192790.12 | F24: =SUMIFS(ytd2012,Acct,"791208") -> 165094.88 | H24: =SUMIFS(Revised2013bud,Acct,"791208") -> 138996 | J24: =SUMIFS(budget2014,Acct,"791208") -> 109741 | L24: -29255 | N24: -0.2104736827
B25: Paying Agent Fees | D25: =SUMIFS(ytd2011,Acct,"792000",Orgn,"940400") -> 0 | F25: 0 | H25: =SUMIFS(Revised2013bud,Acct,"792000",Orgn,"940400") -> 3000 | J25: 0 | L25: =J25-H25 -> -3000 | N25: =IF(L25=0,0,+L25/H25) -> -1
B26: Total Expenses and Other Fund Changes | D26: =SUM(D23:D25) -> 1107790.12 | F26: =SUM(F23:F25) -> 1110094.88 | H26: =SUM(H23:H25) -> 1111996 | J26: =SUM(J23:J25) -> 1109741 | L26: =SUM(L23:L25) -> -2255 | N26: =IF(L26=0,0,+L26/H26) -> -0.002027884992
H53: =264612-137021+147471+70872 -> 345934
M76: 300000
M77: 1511000
M80: 840000
M85: 461200
M129: =3426631+51500+1102377-15000+37800 -> 4603308

Sheet Proof
B1: BD-overview
A2: =+'BD-Current Fd'!C168-'BD-Current Fd'!C51 -> 0 | B2: BD-current fd
A3: ='BD-Aux'!C15-'BD-Aux'!C47 -> -172649.64 | B3: BD-aux
A4: ='BD-Quasi'!D12-'BD-Quasi'!D19 -> 0 | B4: BD-quasi
A5: ='BD-Grant'!C33-'BD-Grant'!C61 -> 0 | B5: BD-grant
A6: ='BD-GO'!C13-'BD-GO'!C27 -> 0 | B6: BD-go
A7: ='BD-Rev'!C12-'BD-Rev'!C21 -> 0 | B7: BD-rev
B8: BD-build
A9: ='CB-Overview'!J24-'CB-Overview'!J41 -> 0.3600000143 | B9: CB -overview
A10: ='CB-Current Fd'!J50-'CB-Current Fd'!J160 -> 0.3600000143 | B10: CB-current fund

Sheet BD-Overview
B1: Collin County Community College District
B2: Summary of Current Funds Revenue and Expenses
B3: Fiscal Year 2014-2015 Budget Overview
B9: Revenues:
B10: State Appropriations | C10: =SUMIF(accttype,"51",budget2014) -> 33136075
B11: Tuition and Fees | C11: =SUMIFS(budget2014,accttype,"53",fundtype,"11") -> 32552650
B12: Taxes for Current Operations | C12: =SUMIFS(budget2014,accttype,"54",programcode,"0") -> 69265248
B13: Grants and Contracts | C13: ='CB-Overview'!J15 -> 34798333
B14: Investment Income | C14: =SUMIFS(budget2014,accttype,"56",fund,"110010") -> 55000
B15: Sales/Services of Auxiliary Enterprises | C15: ='CB-Overview'!J17 -> 10138773
B16: Miscellaneous | C16: =SUMIFS(budget2014,accttype,"57",fund,"110010")+SUMIFS(budget2014,accttype,"59",fund,"110010")+SUMIFS(budget2014,accttype,"52",fund,"110010") -> 1220622
B17: SUB-TOTAL (OPERATING) | C17: =SUM(C10:C16) -> 181166701
B18: Decrease in Fund Balance | C18: 0
B19: Total Current Funds Revenue | C19: =SUM(C17:C18) -> 181166701
B23: Expenses:
B24: Instruction | C24: =SUMIF(programcode,"10",budget2014) -> 57142686
B25: Public Service | C25: =SUMIF(programcode,"20",budget2014) -> 125339
B26: Academic Support | C26: =SUMIF(programcode,"25",budget2014) -> 8943108
B27: Student Services | C27: =SUMIF(programcode,"30",budget2014) -> 9206843
B28: Institutional Support | C28: =SUMIF(programcode,"35",budget2014) -> 21146436
B29: Operations and Maintenance of Plant | C29: =SUMIF(programcode,"40",budget2014) -> 9442487
B30: Employee Benefits | C30: =SUMIF(programcode,"42",budget2014) -> 9008700
B31: Auxiliary Enterprises | C31: ='CB-Overview'!J38 -> 10138772.64
B32: Other Transfers/Reserves:
B33: Mandatory Transfers | C33: =SUMIFS(budget2014,Acct,"828247")+SUMIFS(budget2014,Acct,"828273") -> 1191489
B34: Non-Mandatory Transfers | C34: =+'BD-Current Fd'!C142+'BD-Current Fd'!C143+'BD-Current Fd'!C144 -> 14472507 | E34: 136229595
B35: Reserves | C35: 5550000 | E35: 10138773
B36: Grants and Contracts | C36: ='CB-Overview'!J39 -> 34798333 | E36: 34798333
E37: =SUM(E34:E36) -> 181166701
B38: Total Current Funds Expenses | C38: =SUM(C24:C37) -> 181166700.6 | E38: 31873917
E39: 4466431
E40: 1109741
E41: =SUM(E37:E40) -> 218616790
C43: =+C38+'BD-Quasi'!D19+'BD-GO'!C27+'BD-Rev'!C21+'BD-Build'!C28 -> 218616789.6 | D43: Do not take out this number. Very important formula
C45: 181166701

Sheet BD-Current Fd
B1: Collin County Community College District
B2: Current Funds Budget
B3: Fiscal Year 2014-2015
B5: Revenues:
B7: State Appropriations:
B8: Contact Hour Funding | C8: =SUMIF(Acct,"500100",budget2014) -> 29252294 | E8: =+C8/$C$51 -> 0.161466174
B9: Student Success | C9: =SUMIF(Acct,"500105",budget2014) -> 3383781 | E9: =+C9/$C$51 -> 0.01867772051
B10: Core Operations | C10: =SUMIF(Acct,"500195",budget2014) -> 500000 | E10: 0.002759889087
B11: Total State Appropriations | C11: =SUM(C8:C10) -> 33136075 | E11: 0.1829037835
B14: Tuition and Fees:
B15: Tuition-Semester Credit Hour Courses | C15: =SUMIFS(budget2014,Acct,"530111")+SUMIFS(budget2014,Acct,"530112")+SUMIFS(budget2014,Acct,"530113")+SUMIFS(budget2014,Acct,"530121")+SUMIFS(budget2014,Acct,"530122")+SUMIFS(budget2014,Acct,"530123") -> 25526000 | E15: =+C15/$C$51 -> 0.1408978577
B16: Less: Transfer to Institutional Scholarships for Credit | C16: =SUMIFS(budget2014,Acct,"530161")+SUMIFS(budget2014,Acct,"530162")+SUMIFS(budget2014,Acct,"530163") -> -954000 | E16: =+C16/$C$51 -> -0.005265868378
B17: Tuition-Noncredit Courses | C17: =SUMIFS(budget2014,Acct,"530301")+SUMIFS(budget2014,Acct,"530302")+SUMIFS(budget2014,Acct,"530303")+SUMIFS(budget2014,Acct,"530304")+SUMIFS(budget2014,Acct,"530305")+SUMIFS(budget2014,Acct,"530306")+SUMIFS(budget2014,Acct,"530307")+SUMIFS(budget2014,Acct,"530308")+SUMIFS(budget2014,Acct,"530309")+SUMIFS(budget2014,Acct,"530310")+SUMIFS(budget2014,Acct,"530311")+SUMIFS(budget2014,Acct,"530312")+SUMIFS(budget2014,Acct,"530317")+SUMIFS(budget2014,Acct,"530365")+SUMIFS(budget2014,Acct,"530370")+SUMIFS(budget2014,Acct,"530371")+SUMIFS(budget2014,Acct,"530372")+SUMIFS(budget2014,Acct,"530373") -> 4086250 | E17: 0.02255519356
B18: Less: Transfer to Institutional Scholarships for Noncredit | C18: =SUMIFS(budget2014,Acct,"530390")+SUMIFS(budget2014,Acct,"530391")+SUMIFS(budget2014,Acct,"530392")+SUMIFS(budget2014,Acct,"530393") -> -237050 | E18: -0.001308463416
B19: Laboratory and Other Fees | C19: =SUMIFS(budget2014,Acct,"530131")+SUMIFS(budget2014,Acct,"530132")+SUMIFS(budget2014,Acct,"530133")+SUMIFS(budget2014,Acct,"530141")+SUMIFS(budget2014,Acct,"530142")+SUMIFS(budget2014,Acct,"530143")+SUMIFS(budget2014,Acct,"530171")+SUMIFS(budget2014,Acct,"530172")+SUMIFS(budget2014,Acct,"530173")+SUMIFS(budget2014,Acct,"530181")+SUMIFS(budget2014,Acct,"530185")+SUMIFS(budget2014,Acct,"530189")+SUMIFS(budget2014,Acct,"530193")+SUMIFS(budget2014,Acct,"530197") -> 4131450 | E19: 0.02280468754
B20: Total Tuition and Fees | C20: =SUM(C15:C19) -> 32552650 | E20: 0.179683407
B23: Taxes for Current Operations | C23: =SUMIFS(budget2014,accttype,"54",programcode,"0") -> 69265248 | E23: =+C23/$C$51 -> 0.3823288041
B26: Federal Funds:
B27: Student Financial Aid | C27: 24576536 | E27: =+C27/$C$51 -> 0.135657027
B28: Transfers In-Matching | C28: 81748 | E28: 0.0004512308261
B29: Federal Grants | C29: 7508246 | E29: =+C29/$C$51 -> 0.04144385239
B30: Total Federal Grants and Contracts | C30: =SUM(C26:C29) -> 32166530 | E30: =+C30/$C$51 -> 0.1775521102
B33: State and Private Grants:
B34: Grants and Contracts | C34: 2631803 | E34: =+C34/$C$51 -> 0.01452696876
B35: Total State Grants and Contracts | C35: =SUM(C34) -> 2631803 | E35: =+C35/$C$51 -> 0.01452696876
B38: Other Income:
B39: Investment Income | C39: =SUMIFS(budget2014,accttype,"56",fund,"110010") -> 55000 | E39: =+C39/$C$51 -> 0.0003035877996
B40: Indirect Cost Recovery | C40: =SUMIF(Acct,"590002",budget2014) -> 90938 | E40: =+C40/$C$51 -> 0.0005019575876
B41: Administrative Cost Allowance - FWS, Pell | C41: 83451 | E41: =+C41/$C$51 -> 0.0004606310084
B42: Other District Funds | C42: 1046233 | E42: =+C42/$C$51 -> 0.005774974078
B43: Total Other Income | C43: =SUM(C39:C42) -> 1275622 | E43: =+C43/$C$51 -> 0.007041150474
B46: Total Educational and General Revenues | C46: =C11+C35+C30+C20+C23+C43 -> 171027928 | E46: =+C46/$C$51 -> 0.9440362241
B49: Sales/Services of Auxiliary Enterprises | C49: ='CB-Current Fd'!J158 -> 10138772.64 | E49: =+C49/$C$51 -> 0.05596377593
B51: Total Current Funds Revenues | C51: =+C49+C46 -> 181166700.6 | E51: =+C51/$C$51 -> 1
B55: Expenses:
B56: Educational and General:
B57: Instruction:
B58: General Academic Courses:
B59: Faculty Salaries | C59: =SUMIF(edtech,"1",budget2014) -> 38649708 | E59: =+C59/$C$168 -> 0.2133378146
B60: Departmental Operating | C60: =SUMIF(edtech,"4",budget2014) -> 4086131 | E60: =+C60/$C$168 -> 0.02255453671
B61: Total General Academic | C61: =SUM(C59:C60) -> 42735839 | E61: =+C61/$C$168 -> 0.2358923513
B63: Technical-Occupational - Credit:
B64: Faculty Salaries | C64: =SUMIF(edtech,"2",budget2014) -> 8639817 | E64: =+C64/$C$168 -> 0.0476898733
B65: Departmental Operating | C65: =SUMIF(edtech,"5",budget2014) -> 1519067 | E65: =+C65/$C$168 -> 0.008384912871
B66: Total Technical-Occupational Credit | C66: =SUM(C64:C65) -> 10158884 | E66: =+C66/$C$168 -> 0.05607478617
B68: Technical-Occupational - Noncredit:
B69: Faculty Salaries | C69: =SUMIF(edtech,"3",budget2014) -> 2460850 | E69: =+C69/$C$168 -> 0.01358334612
B70: Departmental Operating | C70: =SUMIF(edtech,"6",budget2014) -> 1787113 | E70: =+C70/$C$168 -> 0.009864467331
B71: Total Technical-Occupational | C71: =SUM(C69:C70) -> 4247963 | E71: =+C71/$C$168 -> 0.02344781345
B73: Total Instructional | C73: =SUM(+C71+C66+C61) -> 57142686 | E73: =+C73/$C$168 -> 0.315414951
B75: Public Service:
B76: Faculty Salaries | C76: =SUMIFS(budget2014,programcode,"20",accttype,"61")-SUMIFS(budget2014,programcode,"20",Acct,"611430") -> 87600 | E76: =+C76/$C$168 -> 0.000483532568
B77: Departmental Operating | C77: =SUMIFS(budget2014,programcode,"20")-SUMIFS(budget2014,programcode,"20",accttype,"61")+SUMIFS(budget2014,programcode,"20",Acct,"611430") -> 37739 | E77: =+C77/$C$168 -> 0.0002083109085
B78: Total Public Service | C78: =SUM(C76:C77) -> 125339 | E78: =+C78/$C$168 -> 0.0006918434765
B80: Academic Support
B81: Instructional Admin. Exp. | C81: =(SUMIFS(budget2014,programcode,"25")-SUMIFS(budget2014,Orgn,"392000")-SUMIFS(budget2014,Orgn,"392002")-SUMIFS(budget2014,Orgn,"392006")) -> 6018943 | E81: =+C81/$C$168 -> 0.0332232302
B82: Libraries | C82: =SUMIFS(budget2014,Orgn,"392000")+SUMIFS(budget2014,Orgn,"392002")+SUMIFS(budget2014,Orgn,"392006") -> 2924165 | E82: =+C82/$C$168 -> 0.01614074214
B83: Total Academic Support | C83: =SUM(C81:C82) -> 8943108 | E83: =+C83/$C$168 -> 0.04936397234
B85: Student Services:
B86: Recruitment and ARO | C86: =SUMIFS(budget2014,Orgn,"220205")+SUMIFS(budget2014,Orgn,"220255")+SUMIFS(budget2014,Orgn,"220105")+SUMIFS(budget2014,Orgn,"221145")+SUMIFS(budget2014,Orgn,"220115") -> 2324703 | E86: =+C86/$C$168 -> 0.01283184488
B87: Guidance and Counseling | C87: =SUMIFS(budget2014,Orgn,"300005")+SUMIFS(budget2014,Orgn,"300008")+SUMIFS(budget2014,Orgn,"300009")+SUMIFS(budget2014,Orgn,"221110")+SUMIFS(budget2014,Orgn,"221112")+SUMIFS(budget2014,Orgn,"221116")+SUMIFS(budget2014,Orgn,"221130")+SUMIFS(budget2014,Orgn,"221132")+SUMIFS(budget2014,Orgn,"221136")+SUMIFS(budget2014,Orgn,"221170")+SUMIFS(budget2014,Orgn,"221172")+SUMIFS(budget2014,Orgn,"221176")+SUMIFS(budget2014,Orgn,"221115")+SUMIFS(budget2014,Orgn,"356412")+SUMIFS(budget2014,Orgn,"230055") -> 4816476 | E87: =+C87/$C$168 -> 0.0265858791
B88: Student Financial Aid | C88: =SUMIFS(budget2014,Orgn,"221205") -> 1699685 | E88: =+C88/$C$168 -> 0.009381884165
B89: Student Activities | C89: =SUMIFS(budget2014,Orgn,"221300")+SUMIFS(budget2014,Orgn,"221302")+SUMIFS(budget2014,Orgn,"221306") -> 365979 | E89: =+C89/$C$168 -> 0.002020122896
B90: Total Student Services | C90: =SUM(C86:C89) -> 9206843 | E90: =+C90/$C$168 -> 0.05081973104
B92: Institutional Support:
B93: Government of Institution | C93: =SUMIFS(budget2014,Orgn,"210005") -> 64162 | E93: =+C93/$C$168 -> 0.0003541600072
B94: Executive Offices | C94: =SUMIFS(budget2014,Orgn,"210105")+SUMIFS(budget2014,Orgn,"210205")+SUMIFS(budget2014,Orgn,"211105")+SUMIFS(budget2014,Orgn,"221105") -> 1344180 | E94: 0.007419575426
B95: Human Resources | C95: =SUMIFS(budget2014,Orgn,"211405")+SUMIFS(budget2014,Orgn,"230085") -> 1514872 | E95: 0.008361757402
B96: Business and Fiscal Management | C96: =SUMIFS(budget2014,Orgn,"211205")+SUMIFS(budget2014,Orgn,"211505") -> 2433128 | E96: 0.01343032683
B97: Campus Security | C97: =SUMIFS(budget2014,Orgn,"280200")+SUMIFS(budget2014,Orgn,"280202")+SUMIFS(budget2014,Orgn,"280204")+SUMIFS(budget2014,Orgn,"280206")+SUMIFS(budget2014,Orgn,"280207") -> 1620809 | E97: 0.008946506142
B98: Public Relations / Development | C98: =SUMIFS(budget2014,Orgn,"230105")+SUMIFS(budget2014,Orgn,"230115")+SUMIFS(budget2014,Orgn,"211305")+SUMIF(Orgn,"230065",budget2014) -> 2410359 | E98: 0.013304647
B99: Institutional Research | C99: =SUMIF(Orgn,"230075",budget2014) -> 438517 | E99: 0.002420516565
B100: Special Activities | C100: =SUMIFS(budget2014,Orgn,"230205") -> 166332 | E100: 0.0009181157432
B101: Tax Appraisal/Collecting/Legal | C101: =SUMIFS(budget2014,Acct,"712210",Orgn,"230710")+SUMIFS(budget2014,Acct,"712220",Orgn,"230710")+SUMIFS(budget2014,Acct,"712235",Orgn,"230710")+SUMIFS(budget2014,Acct,"792000",Orgn,"230710") -> 970607 | E101: 0.005357535334
B102: TIF Payments | C102: =SUMIFS(budget2014,Acct,"722226",Orgn,"230710")+SUMIFS(budget2014,Acct,"722228",Orgn,"230710") -> 1013000 | E102: 0.00559153529
B103: Information Technology/Telecommunications | C103: =SUMIFS(budget2014,Orgn,"240105")+SUMIFS(budget2014,Orgn,"240115")+SUMIFS(budget2014,Orgn,"240205")+SUMIFS(budget2014,Orgn,"240215")+SUMIFS(budget2014,Orgn,"240225") -> 6379944 | E103: 0.03521587564
B104: Other General Institutional | C104: =SUMIFS(budget2014,Orgn,"210115")+SUMIFS(budget2014,Orgn,"211115")+SUMIFS(budget2014,Orgn,"230090")+SUMIFS(budget2014,Orgn,"230705")+SUMIFS(budget2014,Orgn,"230708")+SUMIFS(budget2014,Orgn,"230715")+SUMIFS(budget2014,Orgn,"230720")+SUMIFS(budget2014,Orgn,"230805")+SUMIFS(budget2014,Orgn,"300004")+SUMIFS(budget2014,Orgn,"300024")+SUMIFS(budget2014,Orgn,"230615")+SUMIFS(budget2014,Orgn,"230725") -> 2790526 | E104: 0.01540308451
B105: Total Institutional Support | C105: =SUM(C93:C104) -> 21146436 | E105: 0.1167236359
B109: Plant Operations and Maintenance:
B110: General Services | C110: =SUMIFS(budget2014,Orgn,"280100")+SUMIFS(budget2014,Orgn,"280102")+SUMIFS(budget2014,Orgn,"280104")+SUMIFS(budget2014,Orgn,"280106")+SUMIFS(budget2014,Orgn,"280107")+SUMIFS(budget2014,Orgn,"270100") -> 948292 | E110: =+C110/$C$168 -> 0.005234361484
B111: Operations/Maintenance | C111: =SUMIFS(budget2014,Orgn,"280300")+SUMIFS(budget2014,Orgn,"280302")+SUMIFS(budget2014,Orgn,"280304")+SUMIFS(budget2014,Orgn,"280306")+SUMIFS(budget2014,Orgn,"280307")+SUMIFS(budget2014,Orgn,"280310")+SUMIFS(budget2014,Orgn,"280312")+SUMIFS(budget2014,Orgn,"280314")+SUMIFS(budget2014,Orgn,"280316")+SUMIFS(budget2014,Orgn,"280317")+SUMIFS(budget2014,Orgn,280110)+SUMIFS(budget2014,Orgn,"280112") -> 2276246 | E111: 0.01256437299
B112: Custodial Services | C112: =SUMIFS(budget2014,Orgn,"280400")+SUMIFS(budget2014,Orgn,"280402")+SUMIFS(budget2014,Orgn,"280404")+SUMIFS(budget2014,Orgn,"280406")+SUMIFS(budget2014,Orgn,"280407") -> 1982548 | E112: 0.01094322518
B113: Grounds Maintenance | C113: =SUMIFS(budget2014,Orgn,"280500")+SUMIFS(budget2014,Orgn,"280502")+SUMIFS(budget2014,Orgn,"280504")+SUMIFS(budget2014,Orgn,"280506")+SUMIFS(budget2014,Orgn,"280507") -> 626521 | E113: 0.003458256941
B114: Utilities | C114: =SUMIFS(budget2014,Orgn,"280600")+SUMIFS(budget2014,Orgn,"280602")+SUMIFS(budget2014,Orgn,"280604")+SUMIFS(budget2014,Orgn,"280606")+SUMIFS(budget2014,Orgn,"280607")+SUMIFS(budget2014,Orgn,"280806") -> 3608880 | E114: 0.01992021706
B115: Total Plant Operations and Maintenance | C115: =SUM(C110:C114) -> 9442487 | E115: 0.05212043365
B119: Employee Benefits:
B120: Insurance-Hospitalization | C120: =SUMIFS(budget2014,Acct,"642110",programcode,"42") -> 4230000 | E120: =+C120/$C$168 -> 0.02334866167
B121: Insurance-Dental | C121: =SUMIFS(budget2014,Acct,"642130",programcode,"42") -> 250000 | E121: 0.001379944543
B122: ORP | C122: =SUMIFS(budget2014,Acct,"642145",programcode,"42")+SUMIFS(budget2014,Acct,"642165",programcode,"42") -> 310000 | E122: 0.001711131234
B123: Add'l Retire Exp-State Mandate-TRS&ORP | C123: =SUMIFS(budget2014,Acct,"642164",programcode,"42")+SUMIFS(budget2014,Acct,"642196",programcode,"42")+SUMIFS(budget2014,Acct,"642135",programcode,"42") -> 2309000 | E123: 0.0127451678
B124: Insurance-Workers Comp | C124: =SUMIFS(budget2014,Acct,"642160",programcode,"42") -> 130000 | E124: 0.0007175711626
B125: Insurance-Unemployment | C125: =SUMIFS(budget2014,Acct,"642150",programcode,"42") -> 100000 | E125: 0.0005519778174
B126: Insurance-Medicare | C126: =SUMIFS(budget2014,Acct,"642175",programcode,"42") -> 892000 | E126: 0.004923642131
B127: Course Banking | C127: =SUMIFS(budget2014,Acct,"642192",programcode,"42") -> 25000 | E127: 0.0001379944543
B128: Sabbaticals | C128: =SUMIFS(budget2014,Acct,"642191",programcode,"42") -> 127700 | E128: 0.0007048756728
B129: Other Staff Benefits | C129: =SUMIFS(budget2014,Acct,"642193",programcode,"42")+SUMIFS(budget2014,Acct,"642194",programcode,"42")+SUMIFS(budget2014,Acct,"642199",programcode,"42")+SUMIFS(budget2014,Acct,"642193",programcode,"42") -> 115000 | E129: 0.00063477449
B130: 1% of ERS Eligible Salaries | C130: =SUMIFS(budget2014,Acct,"642200",programcode,"42") -> 520000 | E130: 0.00287028465
B131: Total Employee Benefits | C131: =SUM(C120:C130) -> 9008700 | E131: 0.04972602563
B134: Grants and Contracts:
B135: Grants and Contracts | C135: ='CB-Grant'!F70 -> 34798333 | E135: =+C135/$C$168 -> 0.192079079
B136: Total Grants and Contracts | C136: =C135 -> 34798333 | E136: =+C136/$C$168 -> 0.192079079
B138: Total Educational and General Expenses | C138: =SUM(C136,C115,C78,C83,C73,C131,C90,C105) -> 149813932 | E138: =+C138/$C$168 -> 0.826939672
B141: Non-Mandatory Transfers:
B142: Building Fund Transfer | C142: =SUMIFS(budget2014,Acct,"828277") -> 12119681 | E142: =+C142/$C$168 -> 0.06689795066
B143: Building Use Fee Transfer | C143: =SUMIFS(budget2014,Acct,"828295") -> 2143259 | E143: =+C143/$C$168 -> 0.01183031425
B144: Child Development Lab School - Auxiliary | C144: =SUMIFS(budget2014,Acct,"828271") -> 209567 | E144: =+C144/$C$168 -> 0.001156763353
B145: Total Non-Mandatory Transfers | C145: =SUM(C142:C144) -> 14472507 | E145: =+C145/$C$168 -> 0.07988502826
B148: Mandatory Transfers:
B149: 2008 Series Revenue Bonds | C149: =SUMIFS(budget2014,Acct,"828247") -> 1109741 | E149: =+C149/$C$168 -> 0.00612552415
B150: Grants and Contracts | C150: =SUMIFS(budget2014,Acct,"828273") -> 81748 | E150: =+C150/$C$168 -> 0.0004512308261
B151: Total Mandatory Transfers | C151: =SUM(C149:C150) -> 1191489 | E151: =+C151/$C$168 -> 0.006576754976
B154: Reserves:
B155: Reserve for Encumbrances | C155: =SUMIFS(budget2014,Acct,"798135") -> 250000 | E155: =+C155/$C$168 -> 0.001379944543
B156: Reserve for Current Operations | C156: =SUMIFS(budget2014,Acct,"798120") -> 1500000 | E156: =+C156/$C$168 -> 0.008279667261
B157: Reserve for Salary Adjustments | C157: =SUMIFS(budget2014,Acct,"798130") -> 3800000 | E157: =+C157/$C$168 -> 0.02097515706
B158: Total Reserves | C158: =SUM(C155:C157) -> 5550000 | E158: =+C158/$C$168 -> 0.03063476886
B160: Total Educational and General Expenses, Transfers and Reserves
C161: =C158+C138+C145+C151 -> 171027928 | E161: =+C161/$C$168 -> 0.9440362241
B163: Auxiliary:
B164: Auxiliary Enterprises Expenses | C164: =+'CB-Aux'!J56 -> 10138772.64 | E164: =+C164/$C$168 -> 0.05596377593
B165: Net Transfers/Changes In Fund Balance | E165: =+C165/$C$168 -> 0
B166: Net Auxiliary Enterprises | C166: =SUM(C164+C165) -> 10138772.64 | E166: =+C166/$C$168 -> 0.05596377593
B168: Total Current Funds Expenses | C168: =C161+C166 -> 181166700.6 | E168: =+C168/$C$168 -> 1
C170: =C168-C51 -> 0

Sheet BD-Aux
B1: Collin County Community
B2: Auxiliary Fund Budget
B3: Fiscal Year 2014-2015
B5: Revenues:
B6: Bookstores | C6: =SUMIFS(budget2014,Orgn,"811100",accttype,"58")+SUMIFS(budget2014,Orgn,"811100",accttype,"59")+SUMIFS(budget2014,Orgn,"811102",accttype,"58")+SUMIFS(budget2014,Orgn,"811102",accttype,"59")+SUMIFS(budget2014,Orgn,"811104",accttype,"58")+SUMIFS(budget2014,Orgn,"811104",accttype,"59")+SUMIFS(budget2014,Orgn,"811106",accttype,"58")+SUMIFS(budget2014,Orgn,"811106",accttype,"59") -> 8318580 | E6: =+C6/$C$17 -> 0.820472063
B7: Food Services/Vending | C7: =SUMIFS(budget2014,Orgn,"813005",accttype,"58")+SUMIFS(budget2014,Orgn,"813005",accttype,"59") -> 100000 | E7: 0.009863126436
B8: Child Development Lab School | C8: =SUMIFS(budget2014,Acct,"583002") -> 191422 | E8: 0.01888019389
B9: Facilities Rental | C9: =SUMIFS(budget2014,Orgn,"822005",Acct,"583003") -> 130000 | E9: 0.01282206437
B10: Print Shop | C10: =SUMIFS(budget2014,Orgn,"812205",accttype,"58")+SUMIFS(budget2014,Orgn,"812205",accttype,"59") -> 485739 | E10: 0.04790905172
B11: Student Activities | C11: =SUMIFS(budget2014,Acct,"530501")+SUMIFS(budget2014,Acct,"530502")+SUMIFS(budget2014,Acct,"530503") -> 539000 | E11: 0.05316225149
B12: Athletics | C12: =SUMIFS(budget2014,Orgn,"840005",Acct,"590099")+SUMIFS(budget2014,Orgn,"840010",Acct,"590099")+SUMIFS(budget2014,Orgn,"840011",Acct,"590099")+SUMIFS(budget2014,Orgn,"870110",Acct,"590099") -> 16000 | E12: 0.00157810023
B13: Fine & Performing Arts | C13: =SUMIFS(budget2014,Orgn,"870120",Acct,"590099")+SUMIFS(budget2014,Orgn,"870121",Acct,"590099")+SUMIFS(budget2014,Orgn,"870122",Acct,"590099")+SUMIFS(budget2014,Orgn,"890006",Acct,"590099") -> 93382 | E13: 0.009210384728
B14: Cell Tower | C14: =SUMIFS(budget2014,Orgn,"895003",Acct,"583003") -> 92000 | E14: 0.009074076321
B15: Total Revenues | C15: =SUM(C6:C14) -> 9966123 | E15: =SUM(E6:E14) -> 0.9829713122
B16: Decrease in Net Postion | C16: 172650 | E16: =+C16/$C$17 -> 0.01702868779
B17: Total Revenues | C17: =SUM(C15:C16) -> 10138773 | E17: =SUM(E15:E16) -> 1
B19: Expenses:
B20: Bookstores | C20: =+'CB-Aux'!J25 -> 7800049.64 | E20: =+C20/$C$47 -> 0.7693287853
B21: Food Services/Vending | C21: =+'CB-Aux'!J26 -> 57000 | E21: 0.005621982268
B22: Child Development Lab School | C22: ='CB-Aux'!J27 -> 400989 | E22: 0.03955005347
B23: Facilities Rental | C23: ='CB-Aux'!J29 -> 130000 | E23: 0.01282206482
B24: Print Shop | C24: ='CB-Aux'!J30 -> 485739 | E24: 0.04790905342
B25: Motor Pool | C25: ='CB-Aux'!J31 -> 10450 | E25: 0.001030696749
B26: Student Activities | C26: ='CB-Aux'!J32 -> 422150 | E26: 0.04163718973
B27: Athletics | C27: ='CB-Aux'!J33 -> 630030 | E27: 0.06214065769
B28: Fine & Performing Arts | C28: ='CB-Aux'!J34 -> 183382 | E28: 0.01808719916
B29: Scholarships | C29: ='CB-Aux'!J35 -> 144500 | E29: 0.01425221821
B30: TACC | C30: ='CB-Aux'!J36 -> 58500 | E30: 0.00576992917
B31: Auxiliary Institutional Effectiveness | C31: ='CB-Aux'!J38 -> 9000 | E31: 0.0008876814107
B32: Refund Petition | C32: ='CB-Aux'!J39 -> 27000 | E32: 0.002663044232
B33: Total Expenditures | C33: =SUM(C20:C32) -> 10358789.64 | E33: =SUM(E20:E32) -> 1.021700556
B35: Transfers:
B36: Child Development Lab School - Spring Creek | C36: =+'CB-Aux'!J44 -> 209567 | E36: =+C36/$C$47 -> 0.02066985891
B37: Transfers In - Current Funds | C37: =SUM(C36:C36) -> 209567 | E37: =SUM(E36:E36) -> 0.02066985891
B39: Allocations:
B40: Motor Pool | C40: =-SUMIFS(budget2014,Orgn,"890001",Acct,"744390") -> 10450 | E40: =+C40/$C$47 -> 0.001030696749
B41: Total Transfers and Allocations | C41: =SUM(C37:C40) -> 220017 | E41: =SUM(E40) -> 0.001030696749
B43: Total Expenses Less Total Transfers and Allocations | C43: =+C33-C41 -> 10138772.64 | E43: =+C43/$C$47 -> 1
B45: Decrease in Net Position* | C45: 0 | E45: =+C45/$C$47 -> 0
B47: Net Auxiliary Services | C47: =C45+C43 -> 10138772.64 | E47: =+E43+E45 -> 1
B49: *Decrease in net position from prior year in Student Activities

Sheet BD-Grant
B1: Collin County Community College District
B2: Grants and Contracts Budget
B3: Fiscal Year 2014-2015
B5: Revenues and Other Fund Additions:
B6: Federal Pell Grant | C6: 24000000 | E6: =+C6/$C$31 -> 0.6896882101
B7: Federal SEOG | C7: 343108 | E7: =+C7/$C$31 -> 0.009859897599
B8: Federal SEOG (Match Transfer from TPEG) | C8: 144134 | E8: =+C8/$C$31 -> 0.00414198002
B9: FSEOG (Transfer From FWS) | C9: 89294 | E9: =+C9/$C$31 -> 0.00256604246
B10: Total Student Financial Aid (Title IV) | C10: =SUM(C6:C9) -> 24576536 | E10: =+C10/$C$31 -> 0.7062561301
B12: Transfers In - Matching | C12: 81748 | E12: =+C12/$C$31 -> 0.002349192992
B14: Federal Grants:
B15: Carl Perkins | C15: 479137 | E15: =+C15/$C$31 -> 0.01376896416
B16: Department of Labor | C16: 5400000 | E16: 0.1551798473
B17: National Science Foundation | C17: 1378178 | E17: 0.03960471325
B18: SBDC | C18: 215214 | E18: 0.006184606602
B19: Other | C19: 35717 | E19: 0.001026399742
B20: Total Federal Grants: | C20: =SUM(C15:C19) -> 7508246 | E20: 0.215764531
B21: Total Student Financial Aid, Transfers In & Federal Grants
C22: =SUM(+C20+C12+C10) -> 32166530 | E22: =+E10+E12+E20 -> 0.9243698542
B23: State Grants:
B24: Texas Public Education Grant | C24: 1150000 | E24: =+C24/$C$31 -> 0.03304756007
B25: Texas Grant Programs | C25: 100000 | E25: =+C25/$C$31 -> 0.002873700875
B26: Skills Development - TWC | C26: 58834 | E26: =+C26/$C$31 -> 0.001690713173
B27: TEOG | C27: 941600 | E27: =+C27/$C$31 -> 0.02705876744
B28: Other | C28: 361369 | E28: =+C28/$C$31 -> 0.01038466412
B29: Total State Grants | C29: =SUM(C24:C28) -> 2611803 | E29: =SUM(E24:E28) -> 0.07505540567
B30: Private Grant- Community Reinvestment | C30: 20000 | E30: =+C30/C31 -> 0.0005747401751
B31: Total Grant & Contract Revenue | C31: =+C29+C22+C30 -> 34798333 | E31: =+E22+E29+E30 -> 1
B33: Expenditures:
B34: Carl Perkins - Annual Allocation | C34: 479137 | E34: =+C34/C59 -> 0.01376896416
B35: College Access Loans | C35: 15000 | E35: =+C35/C59 -> 0.0004310551313
B36: Community Reinvestment Grant - SBDC | C36: 20000 | E36: =+C36/C59 -> 0.0005747401751
B37: Dallas "Stem" Gateway - UT Dallas | C37: 200000 | E37: =+C37/C59 -> 0.005747401751
B38: DOL-TAACCCT-NISGTC | C38: 5400000 | E38: =+C38/C59 -> 0.1551798473
B39: Federal Pell Grant | C39: 24000000 | E39: =+C39/C59 -> 0.6896882101
B40: Federal SEOG | C40: 343108 | E40: =+C40/C59 -> 0.009859897599
B41: Federal SEOG Match | C41: 144134 | E41: =+C41/C59 -> 0.00414198002
B42: FSEOG (Transfer From FWS) | C42: 89294 | E42: =+C42/C59 -> 0.00256604246
B43: Inovate-NSF Florida State College Subaward | C43: 39000 | E43: =+C43/C59 -> 0.001120743341
B44: Job Location & Development - Federal | C44: 35717 | E44: =+C44/C59 -> 0.001026399742
B45: Job Location & Development - Match | C45: 33943 | E45: =+C45/C59 -> 0.0009754202881
B46: National Science FDN-Nat'l Convergent Tech | C46: 1139178 | E46: =+C46/C59 -> 0.03273656816
B47: Nursing Shortage Reduction | C47: 168612 | E47: =+C47/C59 -> 0.00484540452
B48: Skills Development - TWC | C48: 58834 | E48: =+C48/C59 -> 0.001690713173
B49: Small Business Development Center - Federal | C49: 215214 | E49: =+C49/C59 -> 0.006184606602
B50: Small Business Development Center - Match | C50: 47805 | E50: =+C50/C59 -> 0.001373772703
B51: Small Business Development Center - State | C51: 80700 | E51: =+C51/C59 -> 0.002319076606
B52: TEOG IY (Texas Educational Opportunity Grants) | C52: 930000 | E52: =+C52/C59 -> 0.02672541814
B53: TEOG RY (Texas Educational Opportunity Grants) | C53: 11600 | E53: =+C53/C59 -> 0.0003333493015
B54: Texas Fast Start Nursing Program - TWC | C54: 92057 | E54: =+C54/C59 -> 0.002645442815
B55: Texas Grant Program - New | C55: 0 | E55: =+C55/C59 -> 0
B56: Texas Grant Program - Renewal | C56: 100000 | E56: =+C56/C59 -> 0.002873700875
B57: Texas Public Education Grant | C57: 1150000 | E57: =+C57/C59 -> 0.03304756007
B58: Top 10% Scholarships | C58: 5000 | E58: =+C58/C59 -> 0.0001436850438
B59: Total Grants and Contracts Expenditures | C59: =SUM(C34:C58) -> 34798333 | E59: =SUM(E34:E58) -> 1

Sheet BD-Quasi
C1: Collin County Community College District
C2: Royden Lebrecht Quasi-Endowment Fund Budget
C3: Fiscal Year 2014-15
C9: Revenues and Other Fund Additions:
C11: Interest Income | D11: =H16 -> 0
C12: Total Revenue and Other Fund Additions | D12: =SUM(D11:D11) -> 0
C16: Expenditures: | H16: 0
C18: Increase in Fund Balance | D18: 0
C19: Total Expenditures and Fund Changes | D19: 0
F70: 300000
F71: 1511000
F74: 840000
F79: 461200
F123: =3426631+51500+1102377-15000+37800 -> 4603308

Sheet BD-Build
B1: Collin County Community College District
B2: Building Fund Budget
B3: Fiscal Year 2014-2015
B5: Revenues and Other Fund Additions:
B7: Transfer from Current Unrestricted | C7: ='CB-Current Fd'!J136 -> 12119681 | E7: =+C7/$C$15 -> 0.3802382054
B8: Building Use Fee Transfer | C8: =+'CB-Build'!F10 -> 2143259 | E8: =+C8/$C$15+0.001 -> 0.06824178268
B9: TIF Payment - City of Frisco | C9: =+'CB-Build'!F11 -> 200000 | E9: =+C9/$C$15 -> 0.006274722997
B10: Investment Income | C10: =+'CB-Build'!F12 -> 50000 | E10: =+C10/$C$15 -> 0.001568680749
B11: Total Revenues | C11: =SUM(C7:C10) -> 14512940 | E11: =SUM(E7:E10)-0.001 -> 0.4553233919
B13: Decrease in Net Position | C13: =C28-C11 -> 17360977 | E13: =+C13/$C$15 -> 0.5446766081
B15: Total Revenues and Other Fund Changes: | C15: =SUM(C11:C13) -> 31873917 | E15: =+C15/$C$15 -> 1
B17: Expenses:
B18: Central Park Campus
B19: Health & Sciences Facility & Conference Center | C19: 23246552 | E19: =+C19/$C$28 -> 0.7293283722
B20: Architect | C20: 2255974 | E20: =+C20/$C$28 -> 0.07077805969
B21: Civil Engineering | C21: 146000 | E21: =+C21/$C$28 -> 0.004580547788
B22: Materials Testing | C22: 178024 | E22: =+C22/$C$28 -> 0.005585256434
B23: Equipment and Supplies | C23: 3750000 | E23: =+C23/$C$28 -> 0.1176510562
B24: Total Health & Sciences Facility & Conference Center | C24: =SUM(C19:C23) -> 29576550 | E24: =SUM(E19:E23) -> 0.9279232923
B26: Renewal and Replacement | C26: 2297367 | E26: =+C26/$C$28 -> 0.07207670774
B28: Total Expenses and Other Fund Changes | C28: =+C26+C24 -> 31873917 | E28: =+C28/$C$15 -> 1

Sheet BD-GO
B1: Collin County Community College District
B2: Debt Service Fund Budget
B3: General Obligation
B4: Fiscal Year 2014-2015
B7: Revenues and Other Fund Additions:
H8: =2418931-2417751 -> 1180
B9: =+'CB-GO'!B13 -> Debt Service Taxes | C9: 2418931 | E9: =+C9/C13 -> 0.5415802908 | H9: =2047500-2047180 -> 320
B11: Decrease in Net Position | C11: 2047500 | E11: =+C11/C13 -> 0.4584197092
B13: Total Revenue and Other Fund Additions | C13: =SUM(C9:C11) -> 4466431 | E13: =SUM(E9:E11) -> 1
B15: Expenses:
B17: =+'CB-GO'!B26 -> Bond Principal - Series 2006 | C17: 855000 | E17: =+C17/$C$27 -> 0.1914280104
B18: Bond Principal - Series 2010 | C18: 2140000 | E18: =(+C18/$C$27) -> 0.4791297571
B19: =+'CB-GO'!B30 -> Bond Interest - Series 2006 | C19: 561413 | E19: =+C19/$C$27 -> 0.1256961095
B20: Bond Interest - Series 2010 | C20: 885625 | E20: =+C20/$C$27 -> 0.1982847155
B21: Total General Obligation | C21: =SUM(C17:C20) -> 4442038 | E21: =(+C21/$C$27) -> 0.9945385924
B23: Other:
B24: Tax Appraisal/ Collecting | C24: 24393 | E24: =+C24/$C$27 -> 0.005461407553
B25: Total Other | C25: =SUM(C24:C24) -> 24393 | E25: =+C25/$C$27 -> 0.005461407553
G26: =+C27-C13 -> 0
B27: Total Expenses and Other Fund Changes | C27: =+C21+C25 -> 4466431 | E27: =+C27/$C$27 -> 1
C33: =C13-C27 -> 0

Sheet BD-Rev
B1: Collin County Community College District
B2: Debt Service Fund Budget
B3: Consolidated Revenue Bonds
B4: Fiscal Year 2014-2015
B8: Revenues and Other Fund Additions:
B10: =+'CB-Rev'!B15 -> Transfer in - 08 Series Revenue | C10: =SUMIFS(budget2014,Acct,"828247") -> 1109741 | E10: =+C10/$C$21 -> 1
B12: Total Revenue and Other Fund Changes | C12: =SUM(C9:C10) -> 1109741 | E12: =SUM(E10:E11) -> 1
B16: Expenses:
B18: =+'CB-Rev'!B23 -> Bond Principal - Series 2008 | C18: =SUMIFS(budget2014,Acct,"790208") -> 1000000 | E18: =+C18/$C$21 -> 0.9011111602
B19: =+'CB-Rev'!B24 -> Bond Interest - Series 2008 | C19: =SUMIFS(budget2014,Acct,"791208") -> 109741 | E19: =+C19/$C$21 -> 0.09888883983
B21: Total Expenses and Other Fund Changes | C21: =SUM(C18:C19) -> 1109741 | E21: =SUM(E18:E19) -> 1

Sheet AN-Rev CF 10 yr
A1: COLLIN COUNTY COMMUNITY COLLEGE DISTRICT
A2: LOCAL TAXES, STATE APPROPRIATIONS AND TUITION/FEES REVENUES
A3: ANALYSIS 2007-2015
E11: 191422
J14: =SUMIFS(budget2014,Orgn,"812205",accttype,"58")+SUMIFS(budget2014,Orgn,"812205",accttype,"59") -> 485739
E18: 70872
C19: =SUM(C10:C18) -> 0
A31: Fiscal | C31: State | E31: Percent of | G31: Local | I31: Percent of | K31: Tuition and | M31: Percent of
A32: Year | C32: Appropriations | E32: Total (a) | G32: Taxes | I32: Total (a) | K32: Fees | M32: Total (a) | O32: taxes | P32: tuition
A34: 2007 | C34: 25022329 | E34: =+C34/(C34+G34+K34) -> 0.259074959 | G34: 50669541 | I34: =+G34/(C34+G34+K34) -> 0.524619801 | K34: 20891486 | M34: =+K34/(C34+G34+K34) -> 0.21630524 | P34: =16824445+4067041 -> 20891486
A35: 2008 | C35: 28191439 | E35: 0.2647870103 | G35: 56048265 | I35: 0.5264311808 | K35: 22228657 | M35: 0.2087818089 | O35: =54468174+999301+257219+323571 -> 56048265 | P35: =17923188+4305469 -> 22228657
A36: 2009 | C36: 28191439 | E36: 0.2496927006 | G36: 59548794 | I36: 0.5274260455 | K36: 25164305 | M36: 0.2228812539 | O36: =58186461+804247+263818+294268 -> 59548794 | P36: =20491018+4673287 -> 25164305
A37: 2010 | C37: 29745024 | E37: 0.251599806 | G37: 59796753 | I37: 0.5057938918 | K37: 28681780 | M37: 0.2426063022 | O37: =58751500+445060+285604+314589 -> 59796753 | P37: =24123282+4558498 -> 28681780
A38: 2011 | C38: 29536937 | E38: 0.2532528228 | G38: 59014173 | I38: 0.505993763 | K38: 28079128 | M38: 0.2407534142 | O38: =57987219+563302+226732+236920 -> 59014173 | P38: =25706269+4049706 -> 29755975
A39: 2012 | C39: =SUMIF(accttype,"51",ytd2011) -> 30210041 | E39: =+C39/(C39+G39+K39) -> 0.2536227738 | G39: =SUMIFS(ytd2011,accttype,"54",programcode,"0") -> 60160875.13 | I39: =+G39/(C39+G39+K39) -> 0.5050694246 | K39: =SUMIFS(ytd2011,accttype,"53",fundtype,"11") -> 28743154.54 | M39: =+K39/(C39+G39+K39) -> 0.2413078017 | P39: 29650856 | Q39: =+P39-K39 -> 907701.46
A40: 2013 | C40: =24737961+5728174+621760 -> 31087895 | E40: =+C40/(C40+G40+K40) -> 0.2514095801 | G40: 61935484 | I40: =+G40/(C40+G40+K40) -> 0.5008757919 | K40: 30630998 | M40: =+K40/(C40+G40+K40) -> 0.247714628 | P40: 30386168 | Q40: =+P40-K40 -> -244830
A41: 2014 (b) | C41: =SUMIF(accttype,"51",Revised2013bud) -> 33136075 | E41: 0.255256466 | G41: =SUMIFS(Revised2013bud,accttype,"54",programcode,"0") -> 64160845 | I41: =+G41/(C41+G41+K41)+0.001 -> 0.4952489583 | K41: ='CB-Overview'!H13 -> 32517911 | M41: 0.2504945756
A42: 2015 (b) | C42: =SUMIF(accttype,"51",budget2014) -> 33136075 | E42: 0.2455361207 | G42: =SUMIFS(budget2014,accttype,"54",programcode,"0") -> 69265248 | I42: =+G42/(C42+G42+K42)+0.001 -> 0.5142508993 | K42: ='CB-Overview'!J13 -> 32552650 | M42: =+K42/(C42+G42+K42) -> 0.2412129801
A44: (a) Percent of total includes only State Appropriations, Taxes and Tuition/Fees.
A45: (b) Fiscal Years 2014 and 2015 figures are budget information.
H75: 300000
H76: 1511000
H79: 840000
H84: 461200
H128: =3426631+51500+1102377-15000+37800 -> 4603308

Sheet AN-Rev CF
A1: COLLIN COUNTY COMMUNITY COLLEGE DISTRICT
A2: CURRENT FUND REVENUE
A3: BY MAJOR REVENUE SOURCE
A4: FISCAL YEAR 2014-2015
E11: 191422
E18: 70872
C19: =SUM(C10:C18) -> 0
C30: 10450
B33: Auxiliary Institutional Effectiveness
F36: Fiscal Year | H36: Percent of
F37: 14-15 | H37: Budget
B39: State Appropriations | F39: =SUMIF(accttype,"51",budget2014) -> 33136075 | H39: =F39/$F$48 -> 0.1829037832
B40: Tuition and Fees | F40: =SUMIFS(budget2014,accttype,"53",fundtype,"11") -> 32552650 | H40: 0.1796834066
B41: Taxes for Current Operations | F41: =SUMIFS(budget2014,accttype,"54",programcode,"0") -> 69265248 | H41: 0.3823288033
B42: Federal Grants and Contracts | F42: ='BD-Current Fd'!$C$30 -> 32166530 | H42: =F42/$F$48 -> 0.1775521099
B43: State Grants and Contracts | F43: ='BD-Current Fd'!$C$35 -> 2631803 | H43: 0.01452696873
B44: Investment Income | F44: =SUMIFS(budget2014,accttype,"56",fund,"110010") -> 55000 | H44: 0.000303587799
B45: Sales & Services of Auxiliary Services | F45: ='BD-Aux'!C17 -> 10138773 | H45: =F45/$F$48+0.001 -> 0.0569637778
B46: Miscellaneous | F46: =SUMIFS(budget2014,accttype,"57",fund,"110010")+SUMIFS(budget2014,accttype,"59",fund,"110010")+SUMIFS(budget2014,accttype,"52",fund,"110010") -> 1220622 | H46: 0.006737562661
B48: Total Current Funds Revenue | F48: =SUM(F39:F46) -> 181166701 | H48: =SUM(H39:H47)-0.001 -> 1

Sheet AN-Rev CF Multi yr
B1: COLLIN COUNTY COMMUNITY COLLEGE DISTRICT
B2: CURRENT FUND REVENUE
B3: BUDGET COMPARISON
B4: FISCAL YEAR 2013-2014 TO 2014-2015
L14: =SUMIFS(budget2014,Orgn,"812205",accttype,"58")+SUMIFS(budget2014,Orgn,"812205",accttype,"59") -> 485739
B33: Auxiliary Institutional Effectiveness
C36: Fiscal Year | E36: Percent of | G36: Fiscal Year | I36: Percent of
C37: 13-14* | E37: Budget | G37: 14-15 | I37: Budget | K37: (Decrease)
B39: State Appropriations | C39: =SUMIF(accttype,"51",Revised2013bud) -> 33136075 | E39: =C39/$C$48 -> 0.1865468468 | G39: =SUMIF(accttype,"51",budget2014) -> 33136075 | I39: =G39/$G$48 -> 0.1829037832 | K39: =G39-C39 -> 0
B40: Tuition and Fees | C40: =SUMIFS(Revised2013bud,accttype,"53",fundtype,"11") -> 32517911 | E40: =C40/$C$48 -> 0.1830667561 | G40: =SUMIFS(budget2014,accttype,"53",fundtype,"11") -> 32552650 | I40: 0.1796834066 | K40: =G40-C40 -> 34739
B41: Taxes for Current Operations | C41: =SUMIFS(Revised2013bud,accttype,"54",programcode,"0") -> 64160845 | E41: =C41/$C$48 -> 0.3612076361 | G41: =SUMIFS(budget2014,accttype,"54",programcode,"0") -> 69265248 | I41: 0.3823288033 | K41: =G41-C41 -> 5104403
B42: Federal Grants and Contracts | C42: 34128460 | E42: =C42/$C$48 -> 0.1921336971 | G42: 32166530 | I42: 0.1775521099 | K42: -1961930
B43: State Grants and Contracts | C43: 2174076 | E43: =C43/$C$48+0.001 -> 0.01323944062 | G43: 2631803 | I43: 0.01452696873 | K43: 457727
B44: Investment Income | C44: =SUMIFS(Revised2013bud,accttype,"56",fund,"110010") -> 150000 | E44: =C44/$C$48 -> 0.0008444581024 | G44: =SUMIFS(budget2014,accttype,"56",fund,"110010") -> 55000 | I44: 0.000303587799 | K44: -95000
B45: Sales/Services of Auxiliary Services | C45: 10282593 | E45: =C45/$C$48 -> 0.05788812648 | G45: ='AN-Rev CF '!F45 -> 10138773 | I45: 0.0559637778 | K45: -143820
B46: Miscellaneous | C46: =SUMIFS(Revised2013bud,accttype,"57",fund,"110010")+SUMIFS(Revised2013bud,accttype,"59",fund,"110010")+SUMIFS(Revised2013bud,accttype,"52",fund,"110010") -> 1078746 | E46: =C46/$C$48 -> 0.006073038668 | G46: =SUMIFS(budget2014,accttype,"57",fund,"110010")+SUMIFS(budget2014,accttype,"59",fund,"110010")+SUMIFS(budget2014,accttype,"52",fund,"110010") -> 1220622 | I46: 0.006737562661 | K46: 141876
B48: Total Current Funds Revenue | C48: =SUM(C39:C46) -> 177628706 | E48: =SUM(E39:E46)-0.001 -> 1 | G48: =SUM(G39:G46) -> 181166701 | I48: =SUM(I39:I46) -> 1 | K48: =SUM(K39:K47) -> 3537995
B50: * Midyear budget as approved by the Board on March 25,2014
K74: 300000
K75: 1511000
K78: 840000
K83: 461200
K127: =3426631+51500+1102377-15000+37800 -> 4603308

Sheet AN Exp CF Multi Yr
A1: COLLIN COUNTY COMMUNITY COLLEGE DISTRICT
A2: CURRENT FUND EXPENSES BY CATEGORY
A3: BUDGET COMPARISON
A4: FISCAL YEAR 2013-2014 TO 2014-2015
H14: =SUMIFS(budget2014,Orgn,"812205",accttype,"58")+SUMIFS(budget2014,Orgn,"812205",accttype,"59") -> 485739
A18: Cell Tower
D33: Fiscal Year | F33: Percent of | H33: Fiscal Year | J33: Percent of | L33: Increase/
D34: 13-14* | F34: Budget | H34: 14-15 | J34: Budget | L34: (Decrease)
B35: Expense Category:
B36: Salaries and Benefits | D36: =SUMIFS(Revised2013bud,accttype,"61",fund,"110010")+SUMIFS(Revised2013bud,accttype,"64",fund,"110010") -> 83036773 | F36: =D36/$D$44 -> 0.6367793605 | H36: =SUMIFS(budget2014,accttype,"61",fund,"110010")+SUMIFS(budget2014,accttype,"64",fund,"110010") -> 85854088 | J36: =H36/$H$44 -> 0.6302161289 | L36: =H36-D36 -> 2817315
B37: Contractual Services | D37: =SUMIFS(Revised2013bud,accttype,"71",fund,"110010") -> 8899829 | F37: 0.06824961055 | H37: =SUMIFS(budget2014,accttype,"71",fund,"110010") -> 9177471 | J37: =H37/$H$44 -> 0.0673676744 | L37: =H37-D37 -> 277642
B38: Supplies | D38: =SUMIFS(Revised2013bud,accttype,"73",fund,"110010") -> 2734476 | F38: 0.02096971999 | H38: =SUMIFS(budget2014,accttype,"73",fund,"110010") -> 2850740 | J38: 0.02092599629 | L38: 116264
B39: Training and Travel | D39: =SUMIFS(Revised2013bud,accttype,"74",fund,"110010") -> 940725 | F39: 0.007214084101 | H39: =SUMIFS(budget2014,accttype,"74",fund,"110010") -> 1167330 | J39: 0.008568842916 | L39: 226605
B40: Operating Expenses | D40: =SUMIFS(Revised2013bud,accttype,"75",fund,"110010")+SUMIFS(Revised2013bud,accttype,"72",fund,"110010")+SUMIFS(Revised2013bud,accttype,"76",fund,"110010") -> 11480843 | F40: 0.08804248526 | H40: =SUMIFS(budget2014,accttype,"75",fund,"110010")+SUMIFS(budget2014,accttype,"72",fund,"110010")+SUMIFS(budget2014,accttype,"76",fund,"110010")+1500 -> 11767818 | J40: 0.08638224315 | L40: 286975
B41: Non-Capital Outlay | D41: =SUMIFS(Revised2013bud,accttype,"78",fund,"110010") -> 1691858 | F41: 0.01297425486 | H41: =SUMIFS(budget2014,accttype,"78",fund,"110010") -> 1152885 | J41: 0.008462808687 | L41: -538973
B42: Capital Outlay | D42: =SUMIFS(Revised2013bud,accttype,"77",fund,"110010") -> 2107598 | F42: 0.01616241646 | H42: =SUMIFS(budget2014,accttype,"77",fund,"110010") -> 3045267 | J42: 0.02235393124 | L42: 937669
B43: Transfers/Reserves | D43: =SUMIFS(Revised2013bud,Acct,"828247")+SUMIFS(Revised2013bud,Acct,"828273")+SUMIFS(Revised2013bud,Acct,"828277")+SUMIFS(Revised2013bud,Acct,"828271")+SUMIFS(Revised2013bud,Acct,"828295")+SUMIFS(Revised2013bud,programcode,"90") -> 19509067 | F43: 0.1496080683 | H43: =SUMIFS(budget2014,Acct,"828247")+SUMIFS(budget2014,Acct,"828273")+SUMIFS(budget2014,Acct,"828277")+SUMIFS(budget2014,Acct,"828271")+SUMIFS(budget2014,Acct,"828295")+SUMIFS(budget2014,programcode,"90") -> 21213996 | J43: 0.1557223744 | L43: 1704929
B44: Total (a) | D44: =SUM(D36:D43) -> 130401169 | F44: =SUM(F36:F43) -> 1 | H44: =SUM(H36:H43) -> 136229595 | J44: =SUM(J36:J43) -> 1 | L44: =SUM(L36:L43) -> 5828426
B45: *Midyear budget as approved by the Board on March 25,2014
B46: Note: (a)Total excludes grants and auxilliaries.
E76: 300000 | I76: 300000
E77: 1511000 | I77: 1511000
E80: 840000 | I80: 840000
E85: 461200 | I85: 461200
E129: =3426631+51500+1102377-15000+37800 -> 4603308 | I129: =3426631+51500+1102377-15000+37800 -> 4603308

Sheet AN-Exp CF
C1: COLLIN COUNTY COMMUNITY COLLEGE DISTRICT
C2: CURRENT FUND EXPENSES
C3: BY FUNCTION
C4: FISCAL YEAR 2014-2015
G11: 191422
L14: =SUMIFS(budget2014,Orgn,"812205",accttype,"58")+SUMIFS(budget2014,Orgn,"812205",accttype,"59") -> 485739
G18: 70872
E19: =SUM(E10:E18) -> 0
I37: Fiscal Year | K37: Percent of
I38: 14-15 | K38: Budget
D40: Instruction | I40: =SUMIF(programcode,"10",budget2014) -> 57142686 | K40: =I40/$I$53 -> 0.315414951
D41: Public Service | I41: =SUMIF(programcode,"20",budget2014) -> 125339 | K41: 0.0006918434765
D42: Academic Support | I42: =SUMIF(programcode,"25",budget2014) -> 8943108 | K42: 0.04936397234
D43: Student Services | I43: =SUMIF(programcode,"30",budget2014) -> 9206843 | K43: 0.05081973104
D44: Institutional Support | I44: =SUMIF(programcode,"35",budget2014) -> 21146436 | K44: 0.1167236359
D45: Operation and Maintenance of Plant | I45: =SUMIF(programcode,"40",budget2014) -> 9442487 | K45: 0.05212043365
D46: Employee Benefits | I46: =SUMIF(programcode,"42",budget2014) -> 9008700 | K46: 0.04972602563
D47: Mandatory Transfers | I47: =SUMIFS(budget2014,Acct,"828247")+SUMIFS(budget2014,Acct,"828273") -> 1191489 | K47: 0.006576754976
D48: Non-Mandatory Transfers | I48: ='BD-Current Fd'!C145 -> 14472507 | K48: 0.07988502826
D49: Reserves | I49: =SUMIFS(budget2014,programcode,"90") -> 5550000 | K49: 0.03063476886
D50: Auxiliary Services | I50: ='BD-Aux'!C47 -> 10138772.64 | K50: 0.05596377593
D51: Grants and Contracts | I51: ='CB-Grant'!F70 -> 34798333 | K51: =I51/$I$53-0.0001 -> 0.191979079
D53: Total Current Funds Expenses | I53: =SUM(I40:I51) -> 181166700.6 | K53: =SUM(K40:K51)+0.0001 -> 1
J132: =3426631+51500+1102377-15000+37800 -> 4603308

Sheet AN-Exp per FTE
A1: COLLIN COUNTY COMMUNITY COLLEGE DISTRICT
A2: TOTAL EDUCATION AND GENERAL EXPENSES
A3: COST PER FTE STUDENT
E11: 191422
J14: =SUMIFS(budget2014,Orgn,"812205",accttype,"58")+SUMIFS(budget2014,Orgn,"812205",accttype,"59") -> 485739
E18: 70872
C19: =SUM(C10:C18) -> 0
D32: Actual & Projected | F32: FY Actual & | H32: Actual | J32: Projected
D33: Student | F33: Projected | H33: Cost Per | J33: Cost Per
B34: Year | D34: FTE | F34: Expenditures | H34: FTE | J34: FTE
B36: 2009 | D36: 14749.16667 | F36: =+'AN-1000 cont hr'!D37-'AN-1000 cont hr'!D32-'AN-1000 cont hr'!D34-'AN-1000 cont hr'!D35 -> 97674884.65 | H36: =+F36/D36 -> 6622.400225
B37: 2010 | D37: 17143 | F37: 94697982 | H37: =+F37/D37 -> 5524.002917
B38: 2011 | D38: 17661 | F38: =151248873-29023325-10673618-5909181-16410460 -> 89232289 | H38: =+F38/D38 -> 5052.504898
B39: 2012 | D39: 17471 | F39: =194093700-78260650-10562858-6948420-8691863 -> 89629909 | H39: =+F39/D39 -> 5130.210578
B40: 2013 | D40: 18007 | F40: =199026239-68539562-10006382-21862936-6000000 -> 92617359 | H40: =+F40/D40 -> 5143.408619
B41: 2014 | D41: =+'AN Credit Hr Est'!K20 -> 18562.2 | F41: =F40*1.02 -> 94469706.18 | J41: =+F41/D41 -> 5089.359353
B42: 2015 | D42: =+'AN Credit Hr Est'!K26 -> 18933.43333 | F42: =F41*1.02 -> 96359100.3 | J42: 5089.36222
B43: 2016 | D43: =+'AN Credit Hr Est'!K32 -> 19312.1 | F43: =+F42*1.02 -> 98286282.31 | J43: 5089.362747
B44: 2017 | D44: =+'AN Credit Hr Est'!K38 -> 19698.33333 | F44: =+F43*1.02 -> 100252008 | J44: 5089.364986
B45: 2018 | D45: =D44*1.02 -> 20092.3 | F45: =+F44*1.02 -> 102257048.1 | J45: 5089.364986
B47: Note: Expenditures exclude non-mandatory fund transfers, auxiliaries, grants
C48: and estimated historical increase in fund balance.
H76: 300000
H77: 1511000
H80: 840000
H85: 461200
H129: =3426631+51500+1102377-15000+37800 -> 4603308

Sheet AN-Tax Rate
A2: COLLIN COUNTY COMMUNITY COLLEGE DISTRICT
A3: TAX RATES AND ASSESSED VALUES
B7: Tax | D7: Maintenance/ | F7: Debt | J7: Certified | L7: Percent
B8: Year | D8: Operations | F8: Service | H8: Total | J8: Assessed Value | L8: Change
B11: 2005 | D11: 0.08 | F11: 0.009422 | H11: 0.089422 | J11: 56262029392 | L11: 0.07596956602
B12: 2006 | D12: 0.08 | F12: 0.007683 | H12: =+F12+D12 -> 0.087683 | J12: =61974331139-844382 -> 61973486757 | L12: =(+J12-J11)/+J11 -> 0.1015153102
B13: 2007 | D13: 0.08 | F13: 0.006984 | H13: 0.086984 | J13: 68715640383 | L13: 0.1087909359
B14: 2008 | D14: 0.08 | F14: 0.006493 | H14: 0.086493 | J14: 73640375838 | L14: 0.07166833384
B15: 2009 | D15: 0.08 | F15: 0.0063 | H15: 0.0863 | J15: 74543801881 | L15: 0.01226808029
B16: 2010 | D16: 0.08 | F16: 0.0063 | H16: 0.0863 | J16: 73355330000 | L16: -0.01594326894
B17: 2011 | D17: 0.08 | F17: 0.0063 | H17: 0.0863 | J17: 73405013750 | L17: 0.0006773025218
B18: 2012 | D18: 0.08 | F18: 0.0063 | H18: =+F18+D18 -> 0.0863 | J18: 73591792695 | L18: =(+J18-J17)/+J17 -> 0.002544498468
B19: 2013 | D19: 0.08 | F19: 0.006299 | H19: =+F19+D19 -> 0.086299 | J19: 74676516764 | L19: =(+J19-J18)/+J18 -> 0.01473974243
B20: 2014 | D20: 0.08 | F20: 0.003643 | H20: =+F20+D20 -> 0.083643 | J20: 79457495979 | L20: =(+J20-J19)/+J19 -> 0.06402252572
B21: 2015 | D21: 0.078965 | F21: 0.002995 | H21: =+F21+D21 -> 0.08196 | J21: 86977686228 | L21: =(+J21-J20)/+J20 -> 0.09464418877
B23: (The assessed value includes net taxable amount less transfer adjustments.)
C31: 10450
H77: 300000
H78: 1511000
H81: 840000
H86: 461200
H130: =3426631+51500+1102377-15000+37800 -> 4603308

Sheet AN-GO
B1: DEBT SERVICE
B2: SCHEDULE OF REQUIREMENTS
B3: ALL GENERAL OBLIGATION BOND ISSUES
B6: Fiscal
B7: Year | D7: Principal | F7: Interest | H7: Total | K7: This information comes from the GO Bond Analysis worksheet. G/Admin Accounting/Audit work papers/audit(YR)-In the past it has been on the schedule tab.
B9: 14-15 | D9: =2140000+855000 -> 2995000 | F9: =442812.5+442812.5+280706.25+280706.25 -> 1447037.5 | H9: =+D9+F9 -> 4442037.5
B10: 15-16 | D10: =2245000+890000 -> 3135000 | F10: =400012.5+400012.5+261468.75+261468.75 -> 1322962.5 | H10: 4457962.5
B11: 16-17 | D11: =2320000+935000 -> 3255000 | F11: =366337.5+366337.5+243668.75+243668.75 -> 1220012.5 | H11: 4475012.5
B12: 17-18 | D12: =2425000+975000 -> 3400000 | F12: =319937.5+319937.5+224968.75+224968.75 -> 1089812.5 | H12: 4489812.5
B13: 18-19 | D13: =2530000+1025000 -> 3555000 | F13: =271437.5+271437.5+205468.75+205468.75 -> 953812.5 | H13: 4508812.5
B14: 19-20 | D14: =2635000+1070000 -> 3705000 | F14: 810332 | H14: 4515332
B15: 20-21 | D15: =2760000+1120000 -> 3880000 | F15: =161550+161550+162259.38+162259.38 -> 647618.76 | H15: 4527618.76
B16: 21-22 | D16: =2895000+1170000 -> 4065000 | F16: =92550+92550+139159.38+139159.38 -> 463418.76 | H16: 4528418.76
B17: 22-23 | D17: =1345000+1225000 -> 2570000 | F17: =20175+20175+114296.88+114296.88 -> 268943.76 | H17: 2838943.76
B18: 23-24 | D18: 1285000 | F18: =88265.63+88265.63 -> 176531.26 | H18: 1461531.26
B19: 24-25 | D19: 1345000 | F19: =60156.25+60156.25 -> 120312.5 | H19: 1465312.5
B20: 25-26 | D20: 1405000 | F20: 61469 | H20: =+D20+F20 -> 1466469
B21: TOTALS | D21: =SUM(D9:D20) -> 34595000 | F21: =SUM(F9:F20) -> 8582263.54 | H21: =SUM(H9:H20) -> 43177263.54
B23: Average Annual Debt | H23: =AVERAGE(H9:H20) -> 3598105.295
B24: Years | H24: =COUNT(H9:H20) -> 12
C28: 10450
B32: Auxiliary Institutional Effectiveness
H74: 300000
H75: 1511000
H78: 840000
H83: 461200
H127: =3426631+51500+1102377-15000+37800 -> 4603308

Sheet AN-Rev
B1: DEBT SERVICE
B2: SCHEDULE OF REQUIREMENTS
B3: REVENUE BONDS
B7: Fiscal
B8: Year | D8: Principal | F8: Interest | H8: Total
B10: 2014-15 | D10: 1000000 | F10: 109741 | H10: =+D10+F10 -> 1109741
B11: 2015-16 | D11: 1035000 | F11: 79522 | H11: 1114522
B12: 2016-17 | D12: 1065000 | F12: 48337 | H12: 1113337
B13: 2017-18 | D13: 1095000 | F13: 16261 | H13: 1111261
B15: TOTALS | D15: =SUM(D10:D13) -> 4195000 | F15: =SUM(F10:F13) -> 253861 | H15: =SUM(H10:H13) -> 4448861
B18: Average Annual Debt | H18: =AVERAGE(H10:H13) -> 1112215.25
B19: Years | H19: =COUNT(H10:H13) -> 4
C28: 10450
B32: Auxiliary Institutional Effectiveness
H74: 300000
H75: 1511000
H78: 840000
H83: 461200
H127: =3426631+51500+1102377-15000+37800 -> 4603308

Sheet BD-Recurring & non
B1: Collin County Community College District
B2: Summary of New Recurring and Non-Recurring Expenditures
B3: Current Unrestricted Funds
B4: Fiscal Year 2014-15
B6: Recurring Expenditures:
B7: New Positions and additional funding - Faculty and Staff
B9: Total of 18 new faculty:
B10: Art, Geology, Nutrition, Education, English (2), History, Math, Biology, Nursing (3),
B11: Nursing (Health Sciences Academy), Cybersecurity/Network Hardware, Criminal Justice,
B12: Economics (2), Health Information Management (HIM)
B13: Sub-total | E13: 954000
B15: Faculty/Instructor (Part-time)
B16: PISD Health Sciences Academy-HIM (Health Information Management),
B17: Sub-total | E17: 12000
B19: Staff (Full-time)
B20: Director (Health Sciences Academy), Student Conduct & SOBI Interventionist, Degree Plan Coordinator
B21: Managers for Centers for Academic Assistance (CPC, PRC, SCC), Recruiter, Assistant Bursar
B22: Degree Plan Specialist, Police Officer, Upgrade Officer to Sergeant (1), Nursing Clinical Coordinator,
B23: Counselor, Manager-Financial Aid Compliance, Reporting and Default Aversion,
B24: Sub-total | E24: 597906
B26: Staff (Part-time)
B27: Microbiology Assistant
B28: Sub-total | E28: 16000
B30: Operating Expenditures
B31: Lease agreement for building at Rockwall Higher Education Center | D31: 3500
B32: Contract Labor funds for NREMT Skills Exam Role Players | D32: 7800
B33: Health Sciences Academy Organizational setup | D33: 8200 | G33: 954000
B34: Server warranties for seven Dell servers | D34: 9800 | G34: 12000
B35: Postage increase for mailing publications | D35: 11000 | G35: 597906
B36: Title IX online student training through Workplace Answers | D36: 16000 | G36: 16000
B37: Professional Development and Travel funds for Administrative Programming | D37: 25000 | G37: =SUM(G33:G36) -> 1579906
B38: Professional Development and Travel funds for Faculty | D38: 25000 | G38: 191518
B39: Printing of 8 page newsletters | D39: 27000 | G39: =SUM(G37:G38) -> 1771424
B40: ATI Testing for four semesters (background, drug, examsoft) | D40: 58218 | G40: 4117689
B41: Operating Expenditures | E41: =SUM(D31:D40) -> 191518 | G41: =SUM(G39:G40) -> 5889113
B42: Total Recurring Expenditures | E42: =SUM(E6:E41) -> 1771424
B44: Non-Recurring Expenditures:
B45: MEGGITT XWT Battery Charger - Target equipment upgrade (10) | D45: 600
B46: Mobile display with LCD screen and computer for use in conference rooms PRC (J250) | D46: 1030
B47: Portable Speakers to be used with microphones for mobile setup CYC (415) | D47: 1200
B48: MEGGITT XWT Spare Battery - Target equipment upgrade (10) | D48: 1400
B49: Portable Microphone for mobile setup CYC (415) | D49: 1680
B50: Laptop, docking station, printer, wireless keyboard/mouse bundle, monitor for QEP director | D50: 1700
B51: Sports Health Professional Treatment Table w/open storage for physical education | D51: 1720
B52: Replacement document cameras for campus CYC (415) | D52: 1812
B53: Fundamental Structure Lattice Model set for Geology/Earth Science classes | D53: 1895
B54: Replace two podium computers PRC (U139, U144) | D54: 1900
B55: Dell Laptops for Web Services (2) | D55: 2180
B56: Additional document cameras for faculty CPC (B103) | D56: 2200
B57: Additional document cameras for faculty SCC (D238) | D57: 2200
B58: Additional document cameras for faculty PRC (F165) | D58: 2200
B61: Dell Latitude laptop for dual credit instuctor checkout PRC (F161) | D61: 2200
B62: Replacement projectors PRC (F161) | D62: 2700
B63: Wireless microphones for use in conference center PRC (F161) | D63: 2850
B64: M550 Ultra Sonic Cleaner for dental hygiene | D64: 3024
B65: QEP report for compliance certification and tri-fold syllabi | D65: 3600
B66: MEGGITT parts for gun range (4) | D66: 4000
B67: Containers for final recycling upgrade at PRC (14) | D67: 4006
B68: Intelect Legend XT 4 Channel Combo w/Cart for physical education | D68: 4020
B69: Replace 4 Dell Laptops for events and temporary checkout PRC (F165) | D69: 4400
B70: Media Laptops CPC (B103) Computers assigned to dual credit instructors | D70: 4400
B71: Four Dell Latitude laptop computers assigned to dual credit instructors SCC (D238) | D71: 4400
B72: Replace 5 Dell 7010 Minitower computers SCC (J120) | D72: 4750
B73: Partial a/v media installation SCC (C142) | D73: 5000
B74: Partial a/v media installation CYC (229) | D74: 5000
B75: Room number plaques for Lawler Hall | D75: 5500
B76: MR4 Versatile Super Pulsed StimLaser for physical education | D76: 5820
B77: Laerdal Airway Management Trainer (3) | D77: 5850
B78: 1601 Doctor's Stool w/ Contoured Seat for dental hygiene (8) | D78: 5960
B79: Table (1) and chairs (26) for Education/Child Development | D79: 6263
B80: Org Sync-Service Learning and Civic Excellence piece of OrgSync | D80: 6473
B81: Tempest electric blower vent fan for Fire Science (2) | D81: 6800
B82: 1622 Assistant's Stool w/contoured round seat for dental hygiene (8) | D82: 6936
B83: Regulator Assembly E-Z Flow - Replacements (10) | D83: 7200
B84: 33 Revolution Sz 1 and remote for dental hygiene | D84: 7537
B85: Full classroom media solution CYC (329) | D85: 8000
B86: Full classroom media solution CHEC (106) | D86: 8000
B87: Self contained free standing storage unit for theatre | D87: 8000
B88: 60" Gravely Zero-Turn Riding Mower | D88: 8500
B89: Site visit charges for nursing accreditation | D89: 8605
B90: 33 Revolution Sz 2 and remote for dental hygiene | D90: 8605
B91: MEGGITT Gun Range Maintenance - 4 times per year | D91: 8780
B92: Bulb eater and all accessories needed for fluorescent lamp recycling | D92: 9500
B93: Cisco ASA5515 Firewall (3) | D93: 9600
B94: Black Box Sound System (4 amplifiers, 4 speakers, 1 computer, 1 rack and 1 monitor system) | D94: 10000
B95: ResponseCard NXT Clickers Biology CPC | D95: 10283
B96: Dell PowerEdge R620 servers 3 (SCC, PRC, CHEC) | D96: 10500
B97: Whisper Room (Sound recording booth) | D97: 11161
B98: Cole-Parmer Isocratic HPLC system with variable wavelength detectors (Chemistry) | D98: 11970
B99: Replace 8 Apple iMac computers CPC (C113) | D99: 12000
B100: Replace fourteen podium computers at SCC | D100: 13300
B101: Side Sink Console (3) for dental hygiene | D101: 13683
B102: Ocean Optics UV-VIS spectrometers for Chemistry Labs (5) | D102: 14732
B103: Replace 18 Dell 7010 Desktop computers at CPC (C220, A110) | D103: 17100
B104: SCOTT 4.5 Air-Pak 75 Self Contained Breathing Apparatus (6) for Fire Protection Tech | D104: 18000
B105: Center console monitor mount w/flexarm (8) for dental hygiene | D105: 18968
B106: Development of two new programs in Health Sciences | D106: 20000
B107: Replace 20 Latitude 6430 computers SCC (L139) | D107: 22000
B108: Replace 15 Apple iMac computers SCC (B113) | D108: 22500
B109: Digital media server and software for district's digital signage | D109: 23000
B110: Camera System for Anatomy & Physiology Microscopes PRC | D110: 23229
B111: Full a/v Media Solutions for classrooms at CPC (C115, C112, A225) | D111: 24000
B112: Replace 25 Dell 7010 Minitower Computers at CHEC (109) | D112: 25000
B113: A-dec 545 12 O'clock assistant's single 3 position holder assembly for dental hygiene (8) | D113: 27024
B114: Replace 28 Dell laptop computers in Health Science labs CPC (E316, E327) | D114: 30800
B115: A-dec 500 LED track mount dental light (8) | D115: 32720
B116: Fiber Channel Switches (2) | D116: 40000
B117: A-dec 3330 Radius-Style touchpad (8) for dental hygiene | D117: 43264
B118: Replace 49 Dell desktop computers CPC (A123, A202, A225, C112) | D118: 46550
B119: Replace 34 iMac computers PRC (L205, LM103) | D119: 51000
B120: Replace 43 Apple iMac computers CPC (B202, LA237,B320) | D120: 64500
B121: Replace 69 Dell desktop computers PRC | D121: 65550
B122: Rear treatment Console for Dental Hygiene (8) | D122: 72216
B123: Replace 86 Dell Desktop computers SCC (BB108, J112, J132, L110) | D123: 81700
B124: Replace 8 511 Dental Chairs w/sewn upholstery | D124: 82512
B125: Center Console for dental hygiene (6) | D125: 85242
B126: Replace 11 full a/v media solutions in classrooms at SCC | D126: =88000-772 -> 87228
B127: Replace 92 Dell 7010 Desktop computers SCC (B227, D140, D203, J227, J232, J214) | D127: 87400
B128: Degree Audit and Planning Software (Charges over two years) | D128: 100500
B129: SANS for PRC Information Technology | D129: 110000
B130: SANS for CPC Information Technology | D130: 110000
B131: 10-12 Automated lights and Distro Unit for Theatre, Dance and Music | D131: 110000
B132: Replace full a/v media solution in 14 classrooms PRC | D132: 112000
B133: Server for mandatory Luminus upgrade for Banner XE | D133: 130000
B134: Additional servers for Banner XE registration (4) | D134: 130000
B135: Cisco MDS 9250i Fiber Channel Switch (3) | D135: 170250
B136: New CE Registration System - 1st Year | D136: 175000
B137: Replacements Cisco switches with blades for telephone and data (6 - 4 PRC and 2 CPC) | D137: 248000
B138: Pianos for Music (7 SCC, 1 PRC) | D138: 343122
B139: External Video Surveillance System | D139: 439689
B140: Oracle AS-PRFW and Implementation | D140: 500000
B141: Total Non-Recurring Expenditures | E141: =SUM(D45:D140) -> 4117689
B143: Grand Total | E143: =+E141+E42 -> 5889113
G145: Check Figures
G146: Total request for Supplemental | J146: 4958625
H147: Auxiliary | J147: =-8783-14729 -> -23512
H148: Salaries | J148: -625906
J149: =SUM(J146:J148) -> 4309207
H151: Recurring | J151: =E41 -> 191518
H152: Non Recurring | J152: =E141 -> 4117689
J153: =SUM(J151:J152) -> 4309207
H156: Salaries (not FT faculty) | J156: =E17+E24+E28 -> 625906
H158: FT faculty salaries | J158: 954000
I160: TOTAL | J160: =SUM(J153:J159) -> 5889113

Sheet AN Cont Hr graph
B1: COLLIN COUNTY COMMUNITY COLLEGE DISTRICT
B2: CONTACT HOURS ANALYSIS
E11: 191422
E18: 70872
C19: =SUM(C10:C18) -> 0 | I19: 181166701
I20: 31873917
I21: 5576172
I22: =SUM(I19:I21) -> 218616790
E25: Actual | G25: Projected*
C26: Fiscal | E26: Contact | G26: Contact
C27: Year | E27: Hours | G27: Hours
C29: 09 | E29: 8803304
C30: 10 | E30: 10224520
C31: 11 | E31: 10556264
C32: 12 | E32: 10619400
C33: 13 | E33: =4754812+4488644+968816+523816+115968 -> 10852056
C34: 14 | G34: =+'AN Cont Hr Est'!G15 -> 11099695
C35: 15 | G35: =+'AN Cont Hr Est'!G21 -> 11099695
C36: 16 | G36: =+'AN Cont Hr Est'!G27 -> 11321690
C37: 17 | G37: =+'AN Cont Hr Est'!G33 -> 11548123
C38: 18 | G38: =+'AN Cont Hr Est'!G39 -> 11779085
C40: *Fiscal Year 15 is projecting a flat enrollment from the previous year. The following fiscal years are projecting a 2% increase in enrollment.

Sheet AN Cont Hr Table
A1: COLLIN COUNTY COMMUNITY COLLEGE DISTRICT
A2: ENROLLMENT SUMMARY
A3: ACTUAL CONTACT HOURS
E5: Tech/ | I5: Percent
C6: Academic | E6: Occup | G6: Total | I6: Change*
A8: Fall, 2001 | C8: 2059653 | E8: 423099 | G8: 2482752 | I8: 0.118 | M8: =+E8/G8 -> 0.1704153294
A9: Spring, 2002 | C9: 1987776 | E9: 468496 | G9: 2456272 | I9: 0.084 | M9: =+E9/G9 -> 0.1907345766
A10: Summer 2002 | C10: 816336 | E10: 208336 | G10: 1024672 | I10: 0.126 | M10: =+E10/G10 -> 0.2033196964
A11: Total Fiscal Year | C11: =SUM(C8:C10) -> 4863765 | E11: 191422 | G11: =SUM(G8:G10) -> 5963696 | I11: 0.105
A13: Fall, 2002 | C13: 2312000 | E13: 418304 | G13: 2730304 | I13: =(+G13-G8)/G8 -> 0.09970871033
A14: Spring, 2003 | C14: 2286960 | E14: 448800 | G14: 2735760 | I14: =(+G14-G9)/G9 -> 0.113785444 | J14: =SUMIFS(budget2014,Orgn,"812205",accttype,"58")+SUMIFS(budget2014,Orgn,"812205",accttype,"59") -> 485739 | M14: =+E14/G14 -> 0.164049478
A15: Summer, 2003 | C15: 853312 | E15: 190096 | G15: 1043408 | I15: =(+G15-G10)/G10 -> 0.01828487555 | M15: =+E15/G15 -> 0.1821876006
A16: Total Fiscal Year | C16: =SUM(C13:C15) -> 5452272 | E16: =SUM(E13:E15) -> 1057200 | G16: =SUM(G13:G15) -> 6509472 | I16: =(+G16-G11)/G11 -> 0.09151640191
A18: Fall 2003 | C18: 2453036 | E18: 413312 | G18: 2866348 | I18: =(+G18-G13)/G13 -> 0.04982741849 | M18: =+E18/G18 -> 0.1441946337
A19: Spring, 2004 | C19: 2503776 | E19: 425568 | G19: 2929344 | I19: =(+G19-G14)/G14 -> 0.07076059303 | M19: =+E19/G19 -> 0.1452775775
A20: Summer, 2004 | C20: 971360 | E20: 170896 | G20: 1142256 | I20: =(+G20-G15)/G15 -> 0.0947357122 | M20: =+E20/G20 -> 0.1496126963
A21: Total Fiscal Year | C21: =SUM(C18:C20) -> 5928172 | E21: =SUM(E18:E20) -> 1009776 | G21: =SUM(G18:G20) -> 6937948 | I21: =(+G21-G16)/G16 -> 0.06582346464
A23: Fall, 2004 | C23: =+G23-E23 -> 2758738 | E23: =ROUND(G23*M23,0) -> 380830 | G23: 3139568 | I23: =(+G23-G18)/G18 -> 0.09531989835 | M23: 0.1213
A24: Spring, 2005 | C24: =+G24-E24 -> 2609259 | E24: =ROUND(G24*M24,0) -> 399573 | G24: 3008832 | I24: =(+G24-G19)/G19 -> 0.02713508553 | M24: 0.1328
A25: Summer, 2005 | C25: =+G25-E25 -> 903440 | E25: =ROUND(G25*M25,0) -> 147072 | G25: =94192+628096+328224 -> 1050512 | I25: =(+G25-G20)/G20 -> -0.0803182474 | M25: 0.14
A26: Total Fiscal Year | C26: =SUM(C23:C25) -> 6271437 | E26: =SUM(E23:E25) -> 927475 | G26: =SUM(G23:G25) -> 7198912 | I26: =(+G26-G21)/G21 -> 0.03761400345
E27: =ROUND(G27*M27,0) -> 0
A28: Fall, 2005 | C28: =+G28-E28 -> 2831621 | E28: =ROUND(G28*M28,0) -> 476347 | G28: 3307968 | I28: =(+G28-G23)/G23 -> 0.05363795274 | M28: 0.144
A29: Spring, 2006 | C29: =+G29-E29 -> 2564979 | E29: =ROUND(G29*M29,0) -> 434997 | G29: 2999976 | I29: =(+G29-G24)/G24 -> -0.002943334822 | M29: 0.145
A30: Summer, 2006 | C30: =+G30-E30 -> 966351 | E30: =ROUND(G30*M30,0) -> 157313 | G30: =92288+680992+350384 -> 1123664 | I30: =(+G30-G25)/G25 -> 0.06963461626 | M30: 0.14
A31: Total Fiscal Year | C31: =SUM(C28:C30) -> 6362951 | E31: =SUM(E28:E30) -> 1068657 | G31: =SUM(G28:G30) -> 7431608 | I31: =(+G31-G26)/G26 -> 0.03232377337
A33: Fall, 2006 | C33: =+G33-E33 -> 2914386 | E33: =ROUND(G33*M33,0) -> 490270 | G33: 3404656 | I33: =(+G33-G28)/G28 -> 0.02922881963 | M33: 0.144
A34: Spring, 2007 | C34: =+G34-E34 -> 2680418 | E34: =ROUND(G34*M34,0) -> 454574 | G34: 3134992 | I34: =(+G34-G29)/G29 -> 0.04500569338 | M34: 0.145
A35: Summer, 2007 | C35: =+G35-E35 -> 992401 | E35: =ROUND(G35*M35,0) -> 148159 | G35: =92352+652160+396048 -> 1140560 | I35: =(+G35-G30)/G30 -> 0.01503652337 | M35: 0.1299
A36: Total Fiscal Year | C36: =SUM(C33:C35) -> 6587205 | E36: =SUM(E33:E35) -> 1093003 | G36: =SUM(G33:G35) -> 7680208 | I36: =(+G36-G31)/G31 -> 0.03345171059
A38: Fall, 2007 | C38: =+G38-E38 -> 3116536 | E38: =ROUND(G38*M38,0) -> 442328 | G38: 3558864 | I38: =(+G38-G33)/G33 -> 0.04529326898 | M38: 0.124289
A39: Spring, 2008 | C39: =+G39-E39 -> 2966810 | E39: =ROUND(G39*M39,0) -> 423830 | G39: 3390640 | I39: =(+G39-G34)/G34 -> 0.08154661958 | M39: 0.125
A40: Summer, 2008 | C40: =+G40-E40 -> 1097773 | E40: =ROUND(G40*M40,0) -> 178707 | G40: =109968+770528+395984 -> 1276480 | I40: =(+G40-G35)/G35 -> 0.1191695308 | M40: 0.14
A41: Total Fiscal Year | C41: =SUM(C38:C40) -> 7181119 | E41: =SUM(E38:E40) -> 1044865 | G41: =SUM(G38:G40) -> 8225984 | I41: =(+G41-G36)/G36 -> 0.07106265872
A43: Fall, 2008 | C43: =+G43-E43 -> 3258538 | E43: =ROUND(G43*M43,0) -> 461254 | G43: 3719792 | I43: =(+G43-G38)/G38 -> 0.04521892379 | M43: 0.124
A44: Spring, 2009 | C44: =+G44-E44 -> 3208457 | E44: =ROUND(G44*M44,0) -> 458351 | G44: 3666808 | I44: =(+G44-G39)/G39 -> 0.08145010971 | M44: 0.125
A45: Summer, 2009 | C45: =+G45-E45 -> 1208417 | E45: =ROUND(G45*M45,0) -> 196719 | G45: =115920+845728+443488 -> 1405136 | I45: =(+G45-G40)/G40 -> 0.1007896716 | M45: 0.14
A46: Total Fiscal Year | C46: =SUM(C43:C45) -> 7675412 | E46: =SUM(E43:E45) -> 1116324 | G46: =SUM(G43:G45) -> 8791736 | I46: =(+G46-G41)/G41 -> 0.06877620963
A48: Fall, 2009 | C48: =+G48-E48 -> 3808753 | E48: =ROUND(G48*M48,0) -> 475559 | G48: 4284312 | I48: =(+G48-G43)/G43 -> 0.1517611737 | M48: 0.111
A49: Spring, 2010 | C49: =+G49-E49 -> 3707154 | E49: =ROUND(G49*M49,0) -> 553942 | G49: 4261096 | I49: =(+G49-G44)/G44 -> 0.1620722983 | M49: 0.13
A50: Summer, 2010 | C50: =+G50-E50 -> 1398926 | E50: =ROUND(G50*M50,0) -> 189138 | G50: =119504+954112+514448 -> 1588064 | I50: =(+G50-G45)/G45 -> 0.1301852632 | M50: 0.1191
A51: Total Fiscal Year | C51: =SUM(C48:C50) -> 8914833 | E51: =SUM(E48:E50) -> 1218639 | G51: =SUM(G48:G50) -> 10133472 | I51: =(+G51-G46)/G46 -> 0.1526133178
A53: Fall, 2010 | C53: =+G53-E53 -> 4133786 | E53: =ROUND(G53*M53,0) -> 516142 | G53: 4649928 | I53: =(+G53-G48)/G48 -> 0.0853383227 | M53: 0.111
A54: Spring, 2011 | C54: =+G54-E54 -> 3804747 | E54: =ROUND(G54*M54,0) -> 568525 | G54: 4373272 | I54: =(+G54-G49)/G49 -> 0.02632562139 | M54: 0.13
A55: Summer, 2011 | C55: =+G55-E55 -> 1400511 | E55: =ROUND(G55*M55,0) -> 189353 | G55: =116400+961304+512160 -> 1589864 | I55: =(+G55-G50)/G50 -> 0.001133455579 | M55: 0.1191
A56: Total Fiscal Year | C56: =SUM(C53:C55) -> 9339044 | E56: =SUM(E53:E55) -> 1274020 | G56: =SUM(G53:G55) -> 10613064 | I56: =(+G56-G51)/G51 -> 0.04732751026
A58: Fall, 2011 | C58: =+G58-E58 -> 4157774 | E58: =ROUND(G58*M58,0) -> 513882 | G58: 4671656 | I58: =(+G58-G53)/G53 -> 0.004672760524 | M58: 0.11
A59: Spring, 2012 | C59: =+G59-E59 -> 3817664 | E59: =ROUND(G59*M59,0) -> 570456 | G59: 4388120 | I59: =(+G59-G54)/G54 -> 0.003395169566 | M59: 0.13
A60: Summer, 2012 | C60: =+G60-E60 -> 1381184 | E60: =ROUND(G60*M60,0) -> 206384 | G60: =114320+950464+522784 -> 1587568 | I60: =(+G60-G55)/G55 -> -0.001444148682 | M60: 0.13
A61: Total Fiscal Year | C61: =SUM(C58:C60) -> 9356622 | E61: =SUM(E58:E60) -> 1290722 | G61: =SUM(G58:G60) -> 10647344 | I61: =(+G61-G56)/G56 -> 0.003229981464
A63: Fall, 2012 | C63: =+G63-E63 -> 4231783 | E63: =ROUND(G63*M63,0) -> 523029 | G63: 4754812 | I63: =(+G63-G58)/G58 -> 0.01780011199 | M63: 0.11
A64: Spring, 2013 | C64: =+G64-E64 -> 3905138 | E64: =ROUND(G64*M64,0) -> 583526 | G64: 4488664 | I64: =(+G64-G59)/G59 -> 0.02291277358 | M64: 0.13
A65: Summer, 2013 | C65: =+G65-E65 -> 1399482 | E65: =ROUND(G65*M65,0) -> 209118 | G65: =115968+968816+523816 -> 1608600 | I65: =(+G65-G60)/G60 -> 0.01324793647 | M65: 0.13
A66: Total Fiscal Year | C66: =SUM(C63:C65) -> 9536403 | E66: =SUM(E63:E65) -> 1315673 | G66: =SUM(G63:G65) -> 10852076 | I66: =(+G66-G61)/G61 -> 0.01922845735
A68: Fall, 2013 | C68: =+G68-E68 -> 4279910 | E68: =ROUND(G68*M68,0) -> 528978 | G68: 4808888 | I68: =(+G68-G63)/G63 -> 0.01137289971 | M68: 0.11
A69: Spring, 2014 | C69: =+G69-E69 -> 3901811 | E69: =ROUND(G69*M69,0) -> 583029 | G69: 4484840 | I69: =(+G69-G64)/G64 -> -0.0008519238687 | M69: 0.13
A70: Summer, 2014 ** | C70: =+G70-E70 -> 1571191 | E70: =ROUND(G70*M70,0) -> 234776 | G70: 1805967 | I70: =(+G70-G65)/G65 -> 0.12269489 | M70: 0.13
A71: Total Fiscal Year | C71: =SUM(C68:C70) -> 9752912 | E71: =SUM(E68:E70) -> 1346783 | G71: =SUM(G68:G70) -> 11099695 | I71: =(+G71-G66)/G66 -> 0.0228176618
A73: * Percent change over same period of previous year
A75: ** Estimate
A80: Data from 10-year censu registration comparison credit hour totals from cougar web

Sheet AN Cont Hr Est
A1: COLLIN COUNTY COMMUNITY COLLEGE DISTRICT
A2: ENROLLMENT SUMMARY
A3: ESTIMATED CONTACT HOURS
E7: Tech/ | I7: Percent
C8: Academic | E8: Occup | G8: Total | I8: Change*
A11: Fall, 2013 | C11: =+'AN Cont Hr Table'!C68 -> 4279910 | E11: =+'AN Cont Hr Table'!E68 -> 528978 | G11: =+'AN Cont Hr Table'!G68 -> 4808888
A12: Spring, 2014 | C12: =+'AN Cont Hr Table'!C69 -> 3901811 | E12: =+'AN Cont Hr Table'!E69 -> 583029 | G12: =+'AN Cont Hr Table'!G69 -> 4484840
A13: Summer, 2014* | C13: =+'AN Cont Hr Table'!C70 -> 1571191 | E13: =+'AN Cont Hr Table'!E70 -> 234776 | G13: =+'AN Cont Hr Table'!G70 -> 1805967
A15: Total Fiscal Year | C15: =SUM(C11:C14) -> 9752912 | E15: =SUM(E11:E14) -> 1346783 | G15: =SUM(G11:G13) -> 11099695
A17: Fall, 2014 | C17: =ROUND(C11*(1),0) -> 4279910 | E17: =ROUND(E11*(1),0) -> 528978 | G17: =SUM(C17:E17) -> 4808888 | I17: =(+G17-G11)/G11 -> 0
A18: Spring, 2015 | C18: =ROUND(C12*(1),0) -> 3901811 | E18: =ROUND(E12*(1),0) -> 583029 | G18: =SUM(C18:E18) -> 4484840 | I18: =(+G18-G12)/G12 -> 0
A19: Summer, 2015 | C19: =ROUND(C13*(1),0) -> 1571191 | E19: =ROUND(E13*(1),0) -> 234776 | G19: =SUM(C19:E19) -> 1805967 | I19: =(+G19-G13)/G13 -> 0
A21: Total Fiscal Year | C21: =SUM(C17:C19) -> 9752912 | E21: =SUM(E17:E19) -> 1346783 | G21: =SUM(G17:G19) -> 11099695 | I21: =SUM(I17:I19)/3 -> 0
A23: Fall, 2015 | C23: =ROUND(C17*(1.02),0) -> 4365508 | E23: =ROUND(E17*(1.02),0) -> 539558 | G23: =SUM(C23:E23) -> 4905066 | I23: =(+G23-G17)/G17 -> 0.02000004991
A24: Spring, 2016 | C24: =ROUND(C18*(1.02),0) -> 3979847 | E24: =ROUND(E18*(1.02),0) -> 594690 | G24: =SUM(C24:E24) -> 4574537 | I24: =(+G24-G18)/G18 -> 0.02000004459
A25: Summer, 2016 | C25: =ROUND(C19*(1.02),0) -> 1602615 | E25: =ROUND(E19*(1.02),0) -> 239472 | G25: =SUM(C25:E25) -> 1842087 | I25: =(+G25-G19)/G19 -> 0.02000036546
A27: Total Fiscal Year | C27: =SUM(C23:C25) -> 9947970 | E27: =SUM(E23:E25) -> 1373720 | G27: =SUM(G23:G25) -> 11321690 | I27: =(+G27-G21)/G21 -> 0.0200000991
A29: Fall, 2016 | C29: =ROUND(C23*(1.02),0) -> 4452818 | E29: =ROUND(E23*(1.02),0) -> 550349 | G29: =SUM(C29:E29) -> 5003167 | I29: =(+G29-G23)/G23 -> 0.01999993476
A30: Spring, 2017 | C30: =ROUND(C24*(1.02),0) -> 4059444 | E30: =ROUND(E24*(1.02),0) -> 606584 | G30: =SUM(C30:E30) -> 4666028 | I30: =(+G30-G24)/G24 -> 0.02000005684
A31: Summer, 2017 | C31: =ROUND(C25*(1.02),0) -> 1634667 | E31: 244261 | G31: =SUM(C31:E31) -> 1878928 | I31: =(+G31-G25)/G25 -> 0.01999959828
A33: Total Fiscal Year | C33: =SUM(C29:C31) -> 10146929 | E33: =SUM(E29:E31) -> 1401194 | G33: =SUM(G29:G31) -> 11548123 | I33: =(+G33-G27)/G27 -> 0.01999992934
A35: Fall, 2017 | C35: =ROUND(C29*(1.02),0) -> 4541874 | E35: =ROUND(E29*(1.02),0) -> 561356 | G35: =SUM(C35:E35) -> 5103230 | I35: =(+G35-G29)/G29 -> 0.01999993204
A36: Spring, 2018 | C36: =ROUND(C30*(1.02),0) -> 4140633 | E36: =ROUND(E30*(1.02),0) -> 618716 | G36: =SUM(C36:E36) -> 4759349 | I36: =(+G36-G30)/G30 -> 0.0200000943
A37: Summer, 2018 | C37: =ROUND(C31*(1.02),0) -> 1667360 | E37: =ROUND(E31*(1.02),0) -> 249146 | G37: =SUM(C37:E37) -> 1916506 | I37: =(+G37-G31)/G31 -> 0.01999970196
A39: Total Fiscal Year | C39: =SUM(C35:C37) -> 10349867 | E39: =SUM(E35:E37) -> 1429218 | G39: =SUM(G35:G37) -> 11779085 | I39: =(+G39-G33)/G33 -> 0.01999996017
A41: * Percent change over same period of previous year
A43: NOTE: Projecting a flat enrollment from previous year for fiscal year 2014-2015. Projecting a 2% growth for subsequent fiscal years.
H71: 300000
H72: 1511000
H75: 840000
H80: 461200
H124: =3426631+51500+1102377-15000+37800 -> 4603308

Sheet AN Credit Hr Graph
B1: COLLIN COUNTY COMMUNITY COLLEGE DISTRICT
B2: CREDIT HOURS ANALYSIS
E11: 191422
E18: 70872
C19: =SUM(C10:C18) -> 0
E25: Actual | G25: Projected*
C26: Fiscal | E26: Credit | G26: Credit
C27: Year | E27: Hours | G27: Hours
C29: 09 | E29: 442475
C30: 10 | E30: 514278
C31: 11 | E31: 529829
C32: 12 | E32: 533691 | J32: From IRO reports
C33: 13 | E33: 543681 | J33: 238937
C34: 14 | G34: =+'AN Credit Hr Est'!G14 -> 556866 | J34: 224663
C35: 15 | G35: =+'AN Credit Hr Est'!G20 -> 556866 | J35: 46794
C36: 16 | G36: =+'AN Credit Hr Est'!G26 -> 568003 | J36: 26800
C37: 17 | G37: =+'AN Credit Hr Est'!G32 -> 579363 | J37: 6487
C38: 18 | G38: =G37*1.02 -> 590950.26 | J38: =SUM(J33:J37) -> 543681
C40: *Fiscal Year 15 is projecting a flat enrollment from the previous year. The following fiscal years are projecting a 2% increase in enrollment.
H75: 300000
H76: 1511000
H79: 840000
H84: 461200
H128: =3426631+51500+1102377-15000+37800 -> 4603308

Sheet AN Credit Hr Table
A1: COLLIN COUNTY COMMUNITY COLLEGE DISTRICT
A2: ENROLLMENT SUMMARY
A3: ACTUAL CREDIT HOURS
E5: Tech/ | I5: Percent
C6: Academic | E6: Occup | G6: Total | I6: Change* | K6: FTE**
A9: Fall, 2003 | C9: 123840 | E9: 16803 | G9: =SUM(C9:E9) -> 140643 | I9: =(+G9-#REF!)/#REF! ->  | K9: 9376.2 | O9: 0.144
A10: Spring, 2004 | C10: 126563 | E10: 17677 | G10: =SUM(C10:E10) -> 144240 | I10: =(+G10-#REF!)/#REF! ->  | K10: 9616 | O10: 0.144
A11: Summer, 2004 | C11: 49438 | E11: 7429 | G11: =98960+31466+16710 -> 147136 | I11: =(+G11-#REF!)/#REF! ->  | K11: 3791.133333 | O11: 0.144
A12: Total Fiscal Year | C12: =SUM(C9:C11) -> 299841 | E12: =SUM(E9:E11) -> 41909 | G12: =SUM(G9:G11) -> 432019 | I12: =(+G12-#REF!)/#REF! ->  | K12: 11391.66667
A14: Fall, 2004 | C14: =+G14-E14 -> 136663 | E14: =ROUND(G14*O14,0) -> 18866 | G14: 155529 | I14: =(+G14-G9)/G9 -> 0.1058424522 | K14: =G14/15 -> 10368.6 | O14: 0.1213 | P14: =5931820/7482157 -> 0.7927954466
A15: Spring, 2005 | C15: =+G15-E15 -> 128425 | E15: =ROUND(G15*O15,0) -> 19666 | G15: 148091 | I15: =(+G15-G10)/G10 -> 0.02669855796 | K15: =G15/15 -> 9872.733333 | O15: 0.1328
A16: Summer, 2005 | C16: =+G16-E16 -> 44963 | E16: =ROUND(G16*O16,0) -> 7319 | G16: =4998+30606+16678 -> 52282 | I16: =(+G16-G11)/G11 -> -0.6446688778 | K16: =G16/15 -> 3485.466667 | O16: 0.14 | P16: Estimated split
A17: Total Fiscal Year | C17: =SUM(C14:C16) -> 310051 | E17: =SUM(E14:E16) -> 45851 | G17: =SUM(G14:G16) -> 355902 | I17: =(+G17-G12)/G12 -> -0.1761890102 | K17: =G17/30 -> 11863.4
A19: Fall, 2005 | C19: =+G19-E19 -> 138059 | E19: =ROUND(G19*O19,0) -> 23225 | G19: 161284 | I19: =(+G19-G14)/G14 -> 0.03700274547 | K19: =G19/15 -> 10752.26667 | O19: 0.144 | P19: Estimated split
A20: Spring, 2006 | C20: =+G20-E20 -> 125787 | E20: =ROUND(G20*O20,0) -> 21332 | G20: 147119 | I20: =(+G20-G15)/G15 -> -0.006563531882 | K20: =G20/15 -> 9807.933333 | O20: 0.145 | P20: Estimated split
A21: Summer, 2006 | C21: =+G21-E21 -> 48372 | E21: =ROUND(G21*O21,0) -> 7874 | G21: =5006+33254+17986 -> 56246 | I21: =(+G21-G16)/G16 -> 0.07581959374 | K21: =G21/15 -> 3749.733333 | O21: 0.14 | P21: Estimate hours
A22: Total Fiscal Year | C22: =SUM(C19:C21) -> 312218 | E22: =SUM(E19:E21) -> 52431 | G22: =SUM(G19:G21) -> 364649 | I22: =(+G22-G17)/G17 -> 0.0245769903 | K22: =G22/30 -> 12154.96667
A24: Fall, 2006 | C24: =+G24-E24 -> 144877 | E24: =ROUND(G24*O24,0) -> 24372 | G24: 169249 | I24: =(+G24-G19)/G19 -> 0.04938493589 | K24: =G24/15 -> 11283.26667 | O24: 0.144 | P24: Estimated split
A25: Spring, 2007 | C25: =+G25-E25 -> 131814 | E25: =ROUND(G25*O25,0) -> 22355 | G25: 154169 | I25: =(+G25-G20)/G20 -> 0.04792039098 | K25: =G25/15 -> 10277.93333 | O25: 0.145 | P25: Estimated split
A26: Summer, 2007 | C26: =+G26-E26 -> 49476 | E26: =ROUND(G26*O26,0) -> 7387 | G26: =5005+31965+19893 -> 56863 | I26: =(+G26-G21)/G21 -> 0.01096966895 | K26: =G26/15 -> 3790.866667 | O26: 0.1299 | P26: Estimate hours
A27: Total Fiscal Year | C27: =SUM(C24:C26) -> 326167 | E27: =SUM(E24:E26) -> 54114 | G27: =SUM(G24:G26) -> 380281 | I27: =(+G27-G22)/G22 -> 0.04286862161 | K27: =G27/30 -> 12676.03333
A29: Fall, 2007 | C29: =+G29-E29 -> 155313 | E29: =ROUND(G29*O29,0) -> 22044 | G29: 177357 | I29: =(+G29-G24)/G24 -> 0.04790574834 | K29: =G29/15 -> 11823.8 | O29: 0.124289 | P29: Estimated split
A30: Spring, 2008 | C30: =+G30-E30 -> 146157 | E30: =ROUND(G30*O30,0) -> 20880 | G30: 167037 | I30: =(+G30-G25)/G25 -> 0.08346684483 | K30: =G30/15 -> 11135.8 | O30: 0.125 | P30: Estimated split
A31: Summer, 2008 | C31: =+G31-E31 -> 54830 | E31: =ROUND(G31*O31,0) -> 8926 | G31: =5903+37692+20161 -> 63756 | I31: =(+G31-G26)/G26 -> 0.1212211807 | K31: =G31/15 -> 4250.4 | O31: 0.14 | P31: Estimate hours
A32: Total Fiscal Year | C32: =SUM(C29:C31) -> 356300 | E32: =SUM(E29:E31) -> 51850 | G32: =SUM(G29:G31) -> 408150 | I32: =(+G32-G27)/G27 -> 0.07328528115 | K32: =G32/30 -> 13605
A34: Fall, 2008 | C34: =+G34-E34 -> 162381 | E34: =ROUND(G34*O34,0) -> 22985 | G34: 185366 | I34: =(+G34-G29)/G29 -> 0.04515750717 | K34: =G34/15 -> 12357.73333 | O34: 0.124 | P34: Estimated split
A35: Spring, 2009 | C35: =+G35-E35 -> 160771 | E35: =ROUND(G35*O35,0) -> 22967 | G35: 183738 | I35: =(+G35-G30)/G30 -> 0.09998383592 | K35: =G35/15 -> 12249.2 | O35: 0.125 | P35: Estimated split
A36: Summer, 2009 | C36: =+G36-E36 -> 60220 | E36: =ROUND(G36*O36,0) -> 9803 | G36: =6136+41477+22410 -> 70023 | I36: =(+G36-G31)/G31 -> 0.09829663091 | K36: =G36/15 -> 4668.2 | O36: 0.14 | P36: Estimate hours
A37: Total Fiscal Year | C37: =SUM(C34:C36) -> 383372 | E37: =SUM(E34:E36) -> 55755 | G37: =SUM(G34:G36) -> 439127 | I37: =(+G37-G32)/G32 -> 0.07589611662 | K37: =G37/30 -> 14637.56667
A39: Fall, 2009 | C39: =+G39-E39 -> 192218 | E39: =ROUND(G39*O39,0) -> 24000 | G39: 216218 | I39: =(+G39-G34)/G34 -> 0.1664382897 | K39: =G39/15 -> 14414.53333 | O39: 0.111 | P39: Estimated split
A40: Spring, 2010 | C40: =+G40-E40 -> 185969 | E40: =ROUND(G40*O40,0) -> 27789 | G40: 213758 | I40: =(+G40-G35)/G35 -> 0.1633848197 | K40: =G40/15 -> 14250.53333 | O40: 0.13 | P40: Estimated split
A41: Summer, 2010 | C41: =+G41-E41 -> 70265 | E41: =ROUND(G41*O41,0) -> 9500 | G41: =6544+46924+26297 -> 79765 | I41: =(+G41-G36)/G36 -> 0.1391257158 | K41: =G41/15 -> 5317.666667 | O41: 0.1191 | P41: Estimate hours
A42: Total Fiscal Year | C42: =SUM(C39:C41) -> 448452 | E42: =SUM(E39:E41) -> 61289 | G42: =SUM(G39:G41) -> 509741 | I42: =(+G42-G37)/G37 -> 0.1608054162 | K42: =G42/30 -> 16991.36667
A44: Fall, 2010 | C44: =+G44-E44 -> 207805 | E44: =ROUND(G44*O44,0) -> 25946 | G44: 233751 | I44: =(+G44-G39)/G39 -> 0.08108945601 | K44: =G44/15 -> 15583.4 | O44: 0.111 | P44: Estimated split
A45: Spring, 2011 | C45: =+G45-E45 -> 190605 | E45: =ROUND(G45*O45,0) -> 28481 | G45: 219086 | I45: =(+G45-G40)/G40 -> 0.02492538291 | K45: =G45/15 -> 14605.73333 | O45: 0.13 | P45: Estimated split
A46: Summer, 2011 | C46: =+G46-E46 -> 70873 | E46: =ROUND(G46*O46,0) -> 9582 | G46: =6455+47598+26402 -> 80455 | I46: =(+G46-G41)/G41 -> 0.008650410581 | K46: =G46/15 -> 5363.666667 | O46: 0.1191 | P46: Estimate hours
A47: Total Fiscal Year | C47: =SUM(C44:C46) -> 469283 | E47: =SUM(E44:E46) -> 64009 | G47: =SUM(G44:G46) -> 533292 | I47: =(+G47-G42)/G42 -> 0.04620189469 | K47: =G47/30 -> 17776.4
A49: Fall, 2011 | C49: =+G49-E49 -> 209923 | E49: =ROUND(G49*O49,0) -> 25945 | G49: 235868 | I49: =(+G49-G44)/G44 -> 0.009056645747 | K49: =G49/15 -> 15724.53333 | O49: 0.11 | P49: Estimated split
A50: Spring, 2012 | C50: =+G50-E50 -> 190994 | E50: =ROUND(G50*O50,0) -> 28539 | G50: 219533 | I50: =(+G50-G45)/G45 -> 0.002040294679 | K50: =G50/15 -> 14635.53333 | O50: 0.13 | P50: Estimated split
A51: Summer, 2012 | C51: =+G51-E51 -> 69460 | E51: =ROUND(G51*O51,0) -> 10379 | G51: =6289+46794+26756 -> 79839 | I51: =(+G51-G46)/G46 -> -0.007656453918 | K51: =G51/15 -> 5322.6 | O51: 0.13 | P51: Estimate hours
A52: Total Fiscal Year | C52: =SUM(C49:C51) -> 470377 | E52: =SUM(E49:E51) -> 64863 | G52: =SUM(G49:G51) -> 535240 | I52: =(+G52-G47)/G47 -> 0.003652783091 | K52: =G52/30 -> 17841.33333
A54: Fall, 2012 | C54: =+G54-E54 -> 212681 | E54: =ROUND(G54*O54,0) -> 26286 | G54: 238967 | I54: =(+G54-G49)/G49 -> 0.0131387047 | K54: =G54/15 -> 15931.13333 | O54: 0.11 | P54: Estimated split
A55: Spring, 2013 | C55: =+G55-E55 -> 195457 | E55: =ROUND(G55*O55,0) -> 29206 | G55: 224663 | I55: =(+G55-G50)/G50 -> 0.02336778525 | K55: =G55/15 -> 14977.53333 | O55: 0.13 | P55: Estimated split
A56: Summer, 2013 | C56: =+G56-E56 -> 70515 | E56: =ROUND(G56*O56,0) -> 10537 | G56: =6487+47765+26800 -> 81052 | I56: =(+G56-G51)/G51 -> 0.01519307607 | K56: =G56/15 -> 5403.466667 | O56: 0.13 | P56: Estimate hours
A57: Total Fiscal Year | C57: =SUM(C54:C56) -> 478653 | E57: =SUM(E54:E56) -> 66029 | G57: =SUM(G54:G56) -> 544682 | I57: =(+G57-G52)/G52 -> 0.01764068455 | K57: =G57/30 -> 18156.06667
A59: Fall, 2013 | C59: =+G59-E59 -> 214993 | E59: =ROUND(G59*O59,0) -> 26572 | G59: 241565 | I59: =(+G59-G54)/G54 -> 0.01087179401 | K59: =G59/15 -> 16104.33333 | O59: 0.11 | P59: Estimated split
A60: Spring, 2014 | C60: =+G60-E60 -> 194502 | E60: =ROUND(G60*O60,0) -> 29063 | G60: 223565 | I60: =(+G60-G55)/G55 -> -0.004887320119 | K60: =G60/15 -> 14904.33333 | O60: 0.13 | P60: Estimated split
A61: Summer, 2014 *** | C61: =G61-E61 -> 79810.32 | E61: =G61*O61 -> 11925.68 | G61: 91736 | I61: =(+G61-G56)/G56 -> 0.1318166116 | K61: =G61/15 -> 6115.733333 | O61: 0.13 | P61: Estimate hours
A62: Total Fiscal Year | C62: =SUM(C59:C61) -> 489305.32 | E62: =SUM(E59:E61) -> 67560.68 | G62: =SUM(G59:G61) -> 556866 | I62: =(+G62-G57)/G57 -> 0.02236901532 | K62: =G62/30 -> 18562.2
A64: * Percent change over same period of previous year
P65: `
A66: ** Annual FTE = Total credit hours/30, Semester FTE = Total credit hours/15
A68: *** Estimate
H126: =3426631+51500+1102377-15000+37800 -> 4603308

Sheet AN Credit Hr Est
A1: COLLIN COUNTY COMMUNITY COLLEGE DISTRICT
A2: ENROLLMENT SUMMARY
A3: ESTIMATED CREDIT HOURS
E7: Tech/ | G7: Credit | I7: Percent | K7: Semester
C8: Academic | E8: Occup | G8: Hours | I8: Change* | K8: FTE**
A10: Fall, 2013 | C10: =+'AN Credit Hr Table'!C59 -> 214993 | E10: =+'AN Credit Hr Table'!E59 -> 26572 | G10: =+'AN Credit Hr Table'!G59 -> 241565 | K10: =G10/15 -> 16104.33333
A11: Spring, 2014 | C11: =+'AN Credit Hr Table'!C60 -> 194502 | E11: =+'AN Credit Hr Table'!E60 -> 29063 | G11: =+'AN Credit Hr Table'!G60 -> 223565 | K11: =G11/15 -> 14904.33333
A12: Summer, 2014*** | C12: =+'AN Credit Hr Table'!C61 -> 79810.32 | E12: =+'AN Credit Hr Table'!E61 -> 11925.68 | G12: =+'AN Credit Hr Table'!G61 -> 91736 | K12: =G12/15 -> 6115.733333
A14: Total Fiscal Year | C14: =SUM(C10:C12) -> 489305.32 | E14: =SUM(E10:E12) -> 67560.68 | G14: =SUM(G10:G12) -> 556866 | I14: =(+G14-#REF!)/#REF! ->  | K14: =G14/30 -> 18562.2
A16: Fall, 2014 | C16: =ROUND(+C10*(1),0) -> 214993 | E16: =ROUND(+E10*(1),0) -> 26572 | G16: =SUM(C16:E16) -> 241565 | I16: =(+G16-G10)/G10 -> 0 | K16: =G16/15 -> 16104.33333
A17: Spring, 2015 | C17: =ROUND(+C11*(1),0) -> 194502 | E17: =ROUND(+E11*(1),0) -> 29063 | G17: =SUM(C17:E17) -> 223565 | I17: =(+G17-G11)/G11 -> 0 | K17: =G17/15 -> 14904.33333
A18: Summer, 2015 | C18: =ROUND(+C12*(1),0) -> 79810 | E18: =ROUND(+E12*(1),0) -> 11926 | G18: =SUM(C18:E18) -> 91736 | I18: =(+G18-G12)/G12 -> 0 | K18: =G18/15 -> 6115.733333
A20: Total Fiscal Year | C20: =SUM(C16:C18) -> 489305 | E20: =SUM(E16:E18) -> 67561 | G20: =SUM(G16:G18) -> 556866 | I20: =(+G20-G14)/G14 -> 0 | K20: =G20/30 -> 18562.2
A22: Fall 2015 | C22: =ROUND(+C16*(1.02),0) -> 219293 | E22: =ROUND(+E16*(1.02),0) -> 27103 | G22: =ROUND(+G16*(1.02),0) -> 246396 | I22: =(+G22-G16)/G16 -> 0.0199987581 | K22: =G22/15 -> 16426.4
A23: Spring, 2016 | C23: =ROUND(+C17*(1.02),0) -> 198392 | E23: =ROUND(+E17*(1.02),0) -> 29644 | G23: =ROUND(+G17*(1.02),0) -> 228036 | I23: =(+G23-G17)/G17 -> 0.01999865811 | K23: =G23/15 -> 15202.4
A24: Summer, 2016 | C24: =ROUND(+C18*(1.02),0) -> 81406 | E24: 12165 | G24: 93571 | I24: =(+G24-G18)/G18 -> 0.02000305224 | K24: =G24/15 -> 6238.066667
A26: Total Fiscal Year | C26: =SUM(C22:C24) -> 499091 | E26: =SUM(E22:E24) -> 68912 | G26: =SUM(G22:G24) -> 568003 | I26: =(+G26-G20)/G20 -> 0.01999942536 | K26: =G26/30 -> 18933.43333
A28: Fall 2016 | C28: =ROUND(+C22*(1.02),0) -> 223679 | E28: =ROUND(+E22*(1.02),0) -> 27645 | G28: =ROUND(+G22*(1.02),0) -> 251324 | I28: =(+G28-G22)/G22 -> 0.02000032468 | K28: =G28/15 -> 16754.93333
A29: Spring, 2017 | C29: =ROUND(+C23*(1.02),0) -> 202360 | E29: 30237 | G29: 232597 | I29: =(+G29-G23)/G23 -> 0.02000122788 | K29: =G29/15 -> 15506.46667
A30: Summer, 2017 | C30: =ROUND(+C24*(1.02),0) -> 83034 | E30: 12408 | G30: 95442 | I30: =(+G30-G24)/G24 -> 0.01999551143 | K30: =G30/15 -> 6362.8
A32: Total Fiscal Year | C32: =SUM(C28:C30) -> 509073 | E32: =SUM(E28:E30) -> 70290 | G32: =SUM(G28:G30) -> 579363 | I32: =(+G32-G26)/G26 -> 0.01999989437 | K32: =G32/30 -> 19312.1
A34: Fall 2017 | C34: =ROUND(+C28*(1.02),0) -> 228153 | E34: =ROUND(+E28*(1.02),0) -> 28198 | G34: =ROUND(+G28*(1.02),0) -> 256350 | I34: =(+G34-G28)/G28 -> 0.01999809011 | K34: =G34/15 -> 17090 | O34: `
A35: Spring, 2018 | C35: =ROUND(+C29*(1.02),0) -> 206407 | E35: 30842 | G35: 237249 | I35: =(+G35-G29)/G29 -> 0.02000025796 | K35: =G35/15 -> 15816.6
A36: Summer, 2018 | C36: =ROUND(+C30*(1.02),0) -> 84695 | E36: 12656 | G36: 97351 | I36: =(+G36-G30)/G30 -> 0.02000167641 | K36: =G36/15 -> 6490.066667
A38: Total Fiscal Year | C38: =SUM(C34:C36) -> 519255 | E38: =SUM(E34:E36) -> 71696 | G38: =SUM(G34:G36) -> 590950 | I38: =(+G38-G32)/G32 -> 0.01999955123 | K38: =G38/30 -> 19698.33333
A40: Fall 2018 | C40: =ROUND(+C34*(1.02),0) -> 232716 | E40: =ROUND(+E34*(1.02),0) -> 28762 | G40: =ROUND(+G34*(1.02),0) -> 261477 | I40: =(+G40-G34)/G34 -> 0.02 | K40: =G40/15 -> 17431.8 | O40: `
A41: Spring, 2019 | C41: =ROUND(+C35*(1.02),0) -> 210535 | E41: 31459 | G41: 241994 | I41: =(+G41-G35)/G35 -> 0.0200000843 | K41: =G41/15 -> 16132.93333
A42: Summer, 2019 | C42: =ROUND(+C36*(1.02),0) -> 86389 | E42: 12909 | G42: 99298 | I42: =(+G42-G36)/G36 -> 0.01999979456 | K42: =G42/15 -> 6619.866667
A44: Total Fiscal Year | C44: =SUM(C40:C42) -> 529640 | E44: =SUM(E40:E42) -> 73130 | G44: =SUM(G40:G42) -> 602769 | I44: =(+G44-G38)/G38 -> 0.02 | K44: =G44/30 -> 20092.3
A45: * Percent change over same period of previous year
A47: ** Annual FTE = total credit hours/30, Semester FTE = total credit hours/15
A49: NOTE: Projecting a flat enrollment from previous year for fiscal year 2014-2015. Projecting a 2% growth for subsequent fiscal years.
H124: =3426631+51500+1102377-15000+37800 -> 4603308

Sheet AN Credit Enroll
A1: COLLIN COUNTY COMMUNITY COLLEGE DISTRICT
A2: CREDIT HEADCOUNT STATISTICS
B4: Fiscal | D4: Actual | F4: Fiscal | H4: Actual
B5: Year | D5: Headcount | F5: Year | H5: Headcount
B7: Fall 2003 | D7: 16574 | F7: Fall 2011 | H7: 27593
B8: Spring 2004 | D8: 16466 | F8: Spring 2012 | H8: 25622
B9: Summer 2004 | D9: =4415+7662+1805 -> 13882 | F9: Summer 2012 | H9: =3830+10917+2147 -> 16894
B10: Total FY 2004 | D10: =SUM(D7:D9) -> 46922 | F10: Total FY 2012 | H10: =SUM(H7:H9) -> 70109
B12: Fall 2004 | D12: 17702 | F12: Fall 2012 | H12: 27424
B13: Spring 2005 | D13: 17118 | F13: Spring 2013 | H13: 26124
B14: Summer 2005 | D14: =1679+7535+4331 -> 13545 | F14: Summer 2013 | H14: =6852+11051+2197 -> 20100
B15: Total FY 2005 | D15: =SUM(D12:D14) -> 48365 | F15: Total FY 2013 | H15: =SUM(H12:H14) -> 73648
B17: Fall 2005 | D17: 18457 | F17: Fall 2013 | H17: 27972
B18: Spring 2006 | D18: 17178 | F18: Spring 2014 | H18: 25848
B19: Summer 2006 | D19: =4696+8005+1687 -> 14388 | F19: Summer 2014 | H19: 20698 | I19: *
B20: Total FY 2006 | D20: =SUM(D17:D19) -> 50023 | F20: Total FY 2014 | H20: =SUM(H17:H19) -> 74518
B22: Fall 2006 | D22: 19332 | F22: Fall 2014 | H22: =+H17 -> 27972
B23: Spring 2007 | D23: 17923 | F23: Spring 2015 | H23: =+H18 -> 25848
B24: Summer 2007 | D24: =5035+7750+1661 -> 14446 | F24: Summer 2015 | H24: =+H19 -> 20698
B25: Total FY 2007 | D25: =SUM(D22:D24) -> 51701 | F25: Total FY 2015 | H25: =SUM(H22:H24) -> 74518
B27: Fall 2007 | D27: 20143 | F27: Fall 2015 | H27: =ROUND(H22*(1.02),0) -> 28531
B28: Spring 2008 | D28: 19273 | F28: Spring 2016 | H28: =ROUND(H23*(1.02),0) -> 26365
B29: Summer 2008 | D29: =5181+8993+1977 -> 16151 | F29: Summer 2016 | H29: =ROUND(H24*(1.02),0) -> 21112
B30: Total FY 2008 | D30: =SUM(D27:D29) -> 55567 | F30: Total FY 2016 | H30: =SUM(H27:H29) -> 76008
B32: Fall 2008 | D32: 21000 | F32: Fall 2016 | H32: =ROUND(H27*(1.02),0) -> 29102
B33: Spring 2009 | D33: 21304 | F33: Spring 2017 | H33: =ROUND(H28*(1.02),0) -> 26892
B34: Summer 2009 | D34: =5824+9952+2049 -> 17825 | F34: Summer 2017 | H34: =ROUND(H29*(1.02),0) -> 21534
B35: Total FY 2009 | D35: =SUM(D32:D34) -> 60129 | F35: Total FY 2017 | H35: =SUM(H32:H34) -> 77528
B37: Fall 2009 | D37: 24872 | F37: Fall 2016 | H37: =ROUND(H32*(1.02),0) -> 29684
B38: Spring 2010 | D38: 24704 | F38: Spring 2017 | H38: =ROUND(H33*(1.02),0) -> 27430
B39: Summer 2010 | D39: =6717+11168+2206 -> 20091 | F39: Summer 2017 | H39: =ROUND(H34*(1.02),0) -> 21965
B40: Total FY 2010 | D40: =SUM(D37:D39) -> 69667 | F40: Total FY 2017 | H40: =SUM(H37:H39) -> 79079
B42: Fall 2010 | D42: 27069 | F42: Fall 2017 | H42: =ROUND(H37*(1.02),0) -> 30278
B43: Spring 2011 | D43: 25909 | F43: Spring 2018 | H43: =ROUND(H38*(1.02),0) -> 27979
B44: Summer 2011 | D44: =2176+11258+6743 -> 20177 | F44: Summer 2018 | H44: =ROUND(H39*(1.02),0) -> 22404
B45: Total FY 2011 | D45: =SUM(D42:D44) -> 73155 | F45: Total FY 2018 | H45: =SUM(H42:H44) -> 80661
B48: * Estimate
B50: NOTE: Projecting a flat enrollment from previous year for fiscal year 2014-2015. Projecting a 2% growth for subsequent fiscal years.
H76: 300000
H77: 1511000
H80: 840000
H85: 461200
H129: =3426631+51500+1102377-15000+37800 -> 4603308

Sheet AN-Tuition Hist
B1: COLLIN COUNTY COMMUNITY COLLEGE DISTRICT
B2: TUITION AND FEES
B3: LAST TEN ACADEMIC YEARS
B5: Resident
B6: Fees per Semester Credit Hour (SCH)
B7: Academic | D7: Student ID | F7: Records
B8: Year | D8: Fee | F8: Fee | H8: Tuition | K8: Building Use | M8: Student Activity | O8: Cost for 12 SCH | R8: Increase from Prior Year
B9: (Fall) | D9: (per student) | F9: (per student) | H9: In-District | I9: Out-of-District | K9: Fees | M9: Fees | O9: In-District | P9: Out-of-District | R9: In-District | S9: Out-of-District
B11: 2014 | D11: 0 | F11: 2 | H11: 32 | I11: 71 | K11: 6 | M11: 1 | O11: =ROUND((($H11+$K11+$M11)*12)+$D11+$F11,0) -> 470 | P11: =ROUND((($I11+$K11+$M11)*12)+$D11+$F11,0) -> 938 | R11: =(O11-O12)/O12 -> 0.02620087336 | S11: =(P11-P12)/P12 -> 0.0399113082
B12: 2013 | D12: 0 | F12: 2 | H12: 31 | I12: 68 | K12: 6 | M12: 1 | O12: 458 | P12: 902 | R12: =(O12-O13)/O13 -> 0.1170731707 | S12: =(P12-P13)/P13 -> 0.1026894866
B13: 2012 | D13: 0 | F13: 2 | H13: 27 | I13: 61 | K13: 6 | M13: 1 | O13: 410 | P13: 818 | R13: =(O13-O14)/O14 -> 0 | S13: =(P13-P14)/P14 -> 0
B14: 2011 | D14: 0 | F14: 2 | H14: 27 | I14: 61 | K14: 6 | M14: 1 | O14: 410 | P14: 818 | R14: =(O14-O15)/O15 -> 0 | S14: =(P14-P15)/P15 -> 0.1144414169
B15: 2010 | D15: 0 | F15: 2 | H15: 27 | I15: 54 | K15: 6 | M15: 1 | O15: 410 | P15: 734 | R15: =(O15-O16)/O16 -> -0.08071748879 | S15: =(P15-P16)/P16 -> 0
B16: 2009 | D16: 0 | F16: 2 | H16: 27 | I16: 51 | K16: 9 | M16: 1 | O16: 446 | P16: 734 | R16: =(O16-O17)/O17 -> -0.004464285714 | S16: =(P16-P17)/P17 -> 0.1915584416
B17: 2008 | D17: 2 | F17: 2 | H17: 27 | I17: 41 | K17: 9 | M17: 1 | O17: 448 | P17: 616 | R17: =(O17-O18)/O18 -> 0 | S17: =(P17-P18)/P18 -> 0.08450704225
B18: 2007 | D18: 2 | F18: 2 | H18: 27 | I18: 37 | K18: 9 | M18: 1 | O18: 448 | P18: 568 | R18: 0 | S18: 0.04411764706
B19: 2006 | D19: 2 | F19: 2 | H19: 27 | I19: 35 | K19: 9 | M19: 1 | O19: 448 | P19: 544 | R19: =(O19-O20)/O20 -> 0 | S19: =(P19-P20)/P20 -> 0.04615384615
B20: 2005 | D20: 2 | F20: 2 | H20: 27 | I20: 33 | K20: 9 | M20: 1 | O20: 448 | P20: 520
B22: Non-Resident
B23: Fees per Semester Credit Hour (SCH)
B24: Academic | D24: Student ID | F24: Records
B25: Year | D25: Fee | F25: Fee | H25: Tuition | K25: Building Use | M25: Student Activity | O25: Cost for 12 SCH | R25: Increase from Prior Year
B26: (Fall) | D26: (per student) | F26: (per student) | H26: Out of State | I26: International | K26: Fees | M26: Fees | O26: In-District | P26: Out-of-District | R26: In-District | S26: Out-of-District
B28: 2014 | D28: 0 | F28: 2 | H28: 131 | I28: 131 | K28: 6 | M28: 1 | O28: =ROUND((($H28+$K28+$M28)*12)+$D28+$F28,0) -> 1658 | P28: =ROUND((($I28+$K28+$M28)*12)+$D28+$F28,0) -> 1658 | R28: =+(O28-O29)/O29 -> 0.02219482121 | S28: =+(P28-P29)/P29 -> 0.02219482121
B29: 2013 | D29: 0 | F29: 2 | H29: 128 | I29: 128 | K29: 6 | M29: 1 | O29: 1622 | P29: 1622 | R29: =+(O29-O30)/O30 -> 0.143864598 | S29: =+(P29-P30)/P30 -> 0.143864598
B30: 2012 | D30: 0 | F30: 2 | H30: 111 | I30: 111 | K30: 6 | M30: 1 | O30: 1418 | P30: 1418 | R30: =+(O30-O31)/O31 -> 0 | S30: 0
B31: 2011 | D31: 0 | F31: 2 | H31: 111 | I31: 111 | K31: 6 | M31: 1 | O31: 1418 | P31: 1418 | R31: 0.01721664275 | S31: 0.01721664275
B32: 2010 | D32: 0 | F32: 2 | H32: 109 | I32: 109 | K32: 6 | M32: 1 | O32: 1394 | P32: 1394 | R32: 0 | S32: 0
B33: 2009 | D33: 0 | F33: 2 | H33: 106 | I33: 106 | K33: 9 | M33: 1 | O33: 1394 | P33: 1394 | R33: 0.09247648903 | S33: 0.09247648903
B34: 2008 | D34: 2 | F34: 2 | H34: 96 | I34: 96 | K34: 9 | M34: 1 | O34: 1276 | P34: 1276 | R34: 0.05980066445 | S34: 0.05980066445
B35: 2007 | D35: 2 | F35: 2 | H35: 90 | I35: 90 | K35: 9 | M35: 1 | O35: 1204 | P35: 1204 | R35: 0.04152249135 | S35: 0.04152249135
B36: 2006 | D36: 2 | F36: 2 | H36: 86 | I36: 86 | K36: 9 | M36: 1 | O36: 1156 | P36: 1156 | R36: 0.06642066421 | S36: 0.06642066421
B37: 2005 | D37: 2 | F37: 2 | H37: 80 | I37: 80 | K37: 9 | M37: 1 | O37: 1084 | P37: 1084
B40: Note: Includes basic enrollment tuition and fees but excludes course based fees such as laboratory fees,
B41: testing fees and certification fees.

Sheet AN-1000 cont hr
B1: COLLIN COUNTY COMMUNITY COLLEGE DISTRICT
B2: REVENUES AND EXPENDITURES PER 1000 CONTACT HOURS
D4: 2011-12 Fiscal Year | H4: 2012-13 Fiscal Year | L4: 2013-14 Fiscal Year
D5: Actual | F5: Per 1,000 | J5: Per 1,000 | N5: Per 1,000
D6: Year End | F6: Contact | H6: Budget | J6: Contact | L6: Budget | N6: Contact
D7: FY 11-12 | F7: Hours | H7: FY 12-13 | J7: Hours | L7: 13-14 | N7: Hours
D8: (per fund) | F8: 10619400 | H8: (per fund) | J8: 10733677 | L8: (per fund) | N8: 10948349
B9: REVENUES:
B10: State Appropriations (w/o benefit allocation) | D10: =SUMIF(accttype,"51",ytd2012) -> 31087895 | F10: =D10/$F$8*1000 -> 2927.462474 | H10: =SUMIF(accttype,"51",Revised2013bud) -> 33136075 | J10: =H10/$J$8*1000 -> 3087.113111 | L10: =SUMIF(accttype,"51",budget2014) -> 33136075 | N10: =L10/$N$8*1000 -> 3026.581907
B11: Tuition and Fees | D11: =SUMIFS(ytd2012,accttype,"53",fundtype,"11") -> 30630997.85 | F11: =D11/$F$8*1000 -> 2884.437713 | H11: =SUMIFS(Revised2013bud,accttype,"53",fundtype,"11") -> 32517911 | J11: 3029.522036 | L11: =SUMIFS(budget2014,accttype,"53",fundtype,"11") -> 32552650 | N11: 2973.293051
B12: Taxes for Current Operations | D12: =SUMIFS(ytd2012,accttype,"54",programcode,"0") -> 61935483.98 | F12: =D12/$F$8*1000 -> 5832.295985 | H12: =SUMIFS(Revised2013bud,accttype,"54",programcode,"0") -> 64160845 | J12: 5977.527086 | L12: =SUMIFS(budget2014,accttype,"54",programcode,"0") -> 69265248 | N12: 6326.547318
B13: Grants and Contracts | D13: =75958824+2301826 -> 78260650 | F13: 7369.592444 | H13: 41509996 | J13: 3867.267107 | L13: ='BD-Grant'!C31 -> 34798333 | N13: 3178.409183
B14: Interest Income | D14: =SUMIFS(ytd2012,accttype,"56",fund,"110010") -> 141599.34 | F14: 13.33402452 | H14: =SUMIFS(Revised2013bud,accttype,"56",fund,"110010") -> 150000 | J14: 13.51 | L14: =SUMIFS(budget2014,accttype,"56",fund,"110010") -> 55000 | N14: 5.023588488
B15: Sales/Services of Auxiliary Enterprises | D15: =SUMIFS(ytd2012,accttype,"53",fundtype,"31")+SUMIFS(ytd2012,accttype,"58",fundtype,"31")+SUMIFS(ytd2012,accttype,"59",fundtype,"31") -> 10069032.31 | F15: 948.1733723 | H15: =SUMIFS(Revised2013bud,accttype,"53",fundtype,"31")+SUMIFS(Revised2013bud,accttype,"58",fundtype,"31")+SUMIFS(Revised2013bud,accttype,"59",fundtype,"31") -> 10289993 | J15: 958.6643049 | L15: =SUMIFS(budget2014,accttype,"53",fundtype,"31")+SUMIFS(budget2014,accttype,"58",fundtype,"31")+SUMIFS(budget2014,accttype,"59",fundtype,"31") -> 9879701 | N15: 902.3918584
B16: Miscellaneous | D16: =SUMIFS(ytd2012,accttype,"57",fund,"110010")+SUMIFS(ytd2012,accttype,"59",fund,"110010")+SUMIFS(ytd2012,accttype,"52",fund,"110010") -> 1168416.92 | F16: 110.0266418 | H16: =SUMIFS(Revised2013bud,accttype,"57",fund,"110010")+SUMIFS(Revised2013bud,accttype,"59",fund,"110010")+SUMIFS(Revised2013bud,accttype,"52",fund,"110010") -> 1078746 | J16: 100.5010678 | L16: =SUMIFS(budget2014,accttype,"57",fund,"110010")+SUMIFS(budget2014,accttype,"59",fund,"110010")+SUMIFS(budget2014,accttype,"52",fund,"110010") -> 1220622 | N16: 111.4891387
B18: Decrease in Fund Balance (Prior Yr Fund Bal) | D18: 0 | F18: 0 | H18: 4750000 | J18: 442.5324146 | L18: 0 | N18: 0
B20: Total Current Funds Revenue | D20: =SUM(D10:D16) -> 213294075.4 | F20: =SUM(F10:F17) -> 20085.32265 | H20: =SUM(H10:H18) -> 187593566 | J20: =SUM(J10:J18) -> 17476.63713 | L20: =SUM(L10:L16) -> 180907629 | N20: =SUM(N10:N17) -> 16523.73604
B22: EXPENDITURES:
B23: Instruction | D23: =SUMIF(programcode,"10",ytd2012) -> 48373493.74 | F23: =D23/$F$8*1000 -> 4555.200269 | H23: =SUMIF(programcode,"10",Revised2013bud) -> 55415922 | J23: =H23/$J$8*1000 -> 5162.808793 | L23: =SUMIF(programcode,"10",budget2014) -> 57142686 | N23: =L23/$N$8*1000 -> 5219.297083
B24: Public Service | D24: =SUMIF(programcode,"20",ytd2012) -> 108427.53 | F24: =D24/$F$8*1000 -> 10.21032544 | H24: =SUMIF(programcode,"20",Revised2013bud) -> 125632 | J24: 11.70446996 | L24: =SUMIF(programcode,"20",budget2014) -> 125339 | N24: 11.44821014
B25: Academic Support | D25: =SUMIF(programcode,"25",ytd2012) -> 8135804.37 | F25: =D25/$F$8*1000 -> 766.126558 | H25: =SUMIFS(Revised2013bud,programcode,"25",fund,"110010") -> 9038728 | J25: 842.0905529 | L25: =SUMIF(programcode,"25",budget2014) -> 8943108 | N25: 816.8453527
B26: Student Services | D26: =SUMIF(programcode,"30",ytd2012) -> 7435403.22 | F26: 700.1716877 | H26: =SUMIFS(Revised2013bud,programcode,"30",fund,"110010") -> 9064618 | J26: 844.5025875 | L26: =SUMIF(programcode,"30",budget2014) -> 9206843 | N26: 840.9343728
B27: Institutional Support | D27: =SUMIF(programcode,"35",ytd2012) -> 16165962.29 | F27: 1522.304677 | H27: =SUMIFS(Revised2013bud,programcode,"35",fund,"110010") -> 19347620 | J27: 1802.515578 | L27: =SUMIF(programcode,"35",budget2014) -> 21146436 | N27: 1931.47259
B28: Operation and Maintenance of Plant | D28: =SUMIF(programcode,"40",ytd2012) -> 8227058.96 | F28: 774.7197544 | H28: =SUMIFS(Revised2013bud,programcode,"40",fund,"110010") -> 9614582 | J28: 895.739829 | L28: =SUMIF(programcode,"40",budget2014) -> 9442487 | N28: 862.457618
B29: Employee Benefits | D29: =SUMIF(programcode,"42",ytd2012) -> 8116300.79 | F29: 764.2899589 | H29: =SUMIFS(Revised2013bud,programcode,"42",fund,"110010") -> 8285000 | J29: 771.8696957 | L29: =SUMIFS(budget2014,programcode,"42",fund,"110010") -> 9008700 | N29: 822.836393
B30: Renewal and Replacement | D30: 0
B31: Other Transfers/Reserves:
B32: Non-Mandatory Transfers | D32: =SUMIFS(ytd2012,Acct,"828277")+SUMIFS(ytd2012,Acct,"828271")+SUMIFS(ytd2012,Acct,"828295") -> 21791847.8 | F32: =D32/$F$8*1000 -> 2052.079006 | H32: =SUMIFS(Revised2013bud,Acct,"828277")+SUMIFS(Revised2013bud,Acct,"828271")+SUMIFS(Revised2013bud,Acct,"828295") -> 17361788 | J32: =H32/$J$8*1000 -> 1617.506098 | L32: =SUMIFS(budget2014,Acct,"828277")+SUMIFS(budget2014,Acct,"828271")+SUMIFS(budget2014,Acct,"828295")+5275000 -> 19747507 | N32: =L32/$N$8*1000 -> 1803.697252
B33: Auxiliary Institutional Effectiveness | D33: =SUMIFS(ytd2012,Acct,"828247")+SUMIFS(ytd2012,Acct,"828273") -> 1112433.75 | F33: 104.754859 | H33: =SUMIFS(Revised2013bud,Acct,"828247")+SUMIFS(Revised2013bud,Acct,"828273") -> 1111996 | J33: =H33/$J$8*1000 -> 103.5987947 | L33: =SUMIFS(budget2014,Acct,"828247")+SUMIFS(budget2014,Acct,"828273") -> 1191489 | N33: =L33/$N$8*1000 -> 108.8281895
B34: Auxiliary Enterprise Expenditures | D34: =SUMIFS(ytd2012,accttype,"53",fundtype,"31")+SUMIFS(ytd2012,accttype,"58",fundtype,"31")+SUMIFS(ytd2012,accttype,"59",fundtype,"31") -> 10069032.31 | F34: 948.1733723 | H34: =SUMIFS(Revised2013bud,accttype,"53",fundtype,"31")+SUMIFS(Revised2013bud,accttype,"58",fundtype,"31")+SUMIFS(Revised2013bud,accttype,"59",fundtype,"31") -> 10289993 | J34: =H34/$J$8*1000 -> 958.6643049 | L34: =SUMIFS(budget2014,accttype,"53",fundtype,"31")+SUMIFS(budget2014,accttype,"58",fundtype,"31")+SUMIFS(budget2014,accttype,"59",fundtype,"31") -> 9879701 | N34: =L34/$N$8*1000 -> 902.3918584
B35: Grants and Contracts | D35: =75958824+2301826 -> 78260650 | F35: 7369.592444 | H35: 41509996 | J35: =H35/$J$8*1000 -> 3867.267107 | L35: ='BD-Current Fd'!$C$136 -> 34798333 | N35: =L35/$N$8*1000 -> 3178.409183
B37: Total Current Funds Expenditure | D37: =SUM(D23:D35) -> 207796414.8 | F37: =D37/$J$8*1000 -> 19359.29456 | H37: =SUM(H23:H35) -> 181165875 | J37: =H37/$J$8*1000 -> 16878.26781 | L37: =SUM(L23:L35) -> 180632629 | N37: =L37/$N$8*1000 -> 16498.6181
B39: Increase in Fund Balance and Reserves | D39: =+D20-D37 -> 5497660.64 | F39: =D39/$F$8*1000 -> 517.699742 | H39: =+H20-H37 -> 6427691 | J39: =H39/$J$8*1000 -> 598.8340249 | L39: =+L20-L37 -> 275000 | N39: =L39/$N$8*1000 -> 25.11794244
B41: Actual / Budgeted Expenditures and Increase
B42: in Fund Balance | D42: =+D39+D37 -> 213294075.4 | F42: =D42/$F$8*1000 -> 20085.32265 | H42: =+H39+H37 -> 187593566 | J42: =H42/$J$8*1000 -> 17477.10184 | L42: =+L39+L37 -> 180907629 | N42: =L42/$N$8*1000 -> 16523.73604
D44: =+D42-D20 -> 0 | F44: =+F42-F20 -> 0 | H44: =+H42-H20 -> 0 | J44: =+J42-J20 -> 0.4647078285 | L44: =+L42-L20 -> 0 | N44: =+N42-N20 -> 0

Sheet REVEXPCH (hidden)
B1: COLLIN COUNTY COMMUNITY COLLEGE DISTRICT
B2: REVENUES AND EXPENDITURES PER 1000 CONTACT HOURS
D4: 1999-00 FISCAL YEAR | H4: 2000-01 FISCAL YEAR | L4: 2001-02 FISCAL YEAR
F6: PER 1000 | H6: APPROVED | J6: PER 1000 | L6: PROPOSED | N6: PER 1000
D7: ACTUAL | F7: CONTACT | H7: BUDGET | J7: CONTACT | L7: BUDGET | N7: CONTACT
D8: FY99-00 | F8: HOURS | H8: FY00-01 | J8: HOURS | L8: FY01-02 | N8: HOURS
F9: 6509472 | J9: 6937948 | N9: ='AN Cont Hr Est'!#REF! -> 
B11: REVENUES: | F11: 6509472 | J11: 6937948 | N11: ='AN Cont Hr Est'!#REF! -> 
B12: STATE FUNDS:
B13: APPROPRIATION - ACADEMIC | D13: 12134377 | F13: =D13/$F$11*1000 -> 1864.110791 | H13: ='CB-Current Fd'!H13 -> 33136075 | J13: =H13/$J$11*1000 -> 4776.062749 | L13: ='BD-Current Fd'!C8 -> 29252294 | N13: =L13/$N$11*1000 -> 
B14: APPROPRIATION - VOCATIONAL | D14: 6185213 | F14: =D14/$F$11*1000 -> 950.1865896 | H14: ='CB-Current Fd'!#REF! ->  | J14: =H14/$J$11*1000 ->  | L14: ='BD-Current Fd'!C10 -> 500000 | N14: =L14/$N$11*1000 -> 
B15: APPROPRIATION - REMEDIAL EDUCATION | D15: 77077 | F15: =D15/$F$11*1000 -> 11.8407453 | H15: ='CB-Current Fd'!#REF! ->  | J15: =H15/$J$11*1000 ->  | L15: 0 | N15: =L15/$N$11*1000 -> 
B16: TOTAL STATE FUNDS | D16: =SUM(D13:D15) -> 18396667 | F16: =SUM(F13:F15) -> 2826.138126 | H16: =SUM(H13:H15) ->  | J16: =H16/$J$11*1000 ->  | L16: =SUM(L13:L15) -> 29752294 | N16: =L16/$N$11*1000 -> 
B18: STATE GRANTS:
B19: STATE GRANTS | D19: 597613 | F19: =D19/$F$11*1000 -> 91.80667802 | H19: ='CB-Current Fd'!$H$33 -> 2174076 | J19: =H19/$J$11*1000 -> 313.3600886 | L19: ='BD-Current Fd'!$C$34 -> 2631803 | N19: =L19/$J$11*1000 -> 379.3344949
B20: TOTAL STATE GRANTS | D20: =SUM(D19) -> 597613 | F20: =SUM(F19) -> 91.80667802 | H20: =SUM(H19) -> 2174076 | J20: =H20/$J$11*1000 -> 313.3600886 | L20: =SUM(L19) -> 2631803 | N20: =L20/$N$11*1000 -> 
B22: FEDERAL FUNDS:
B23: WORK STUDY | D23: 77448 | F23: =D23/$F$11*1000 -> 11.89773917 | H23: ='CB-Current Fd'!$H$29:$H$29 -> 34128460 | J23: =H23/$J$11*1000 -> 4919.099999 | L23: ='BD-Current Fd'!$C$29:$C$29 -> 7508246 | N23: =L23/$N$11*1000 -> 
B24: GRANTS AND CONTRACTS | D24: 2558051 | F24: =D24/$F$11*1000 -> 392.9736544 | H24: 34128460 | J24: =H24/$J$11*1000 -> 4919.099999 | L24: 7508246 | N24: =L24/$N$11*1000 -> 
B25: TOTAL FEDERAL FUNDS | D25: =SUM(D22:D24) -> 2635499 | F25: =SUM(F22:F24) -> 404.8713936 | H25: =SUM(H22:H24) -> 68256920 | J25: =H25/$J$11*1000 -> 9838.199998 | L25: =SUM(L22:L24) -> 15016492 | N25: =L25/$N$11*1000 -> 
B27: LOCAL FUNDS:
B28: TUITION AND FEES:
B29: TUITION-SEMESTER CREDIT HOUR | D29: 4976771 | F29: =D29/$F$11*1000 -> 764.5429614 | H29: ='CB-Current Fd'!$H$17 -> 25483534 | J29: =H29/$J$11*1000 -> 3673.065004 | L29: ='BD-Current Fd'!$C$15 -> 25526000 | N29: =L29/$N$11*1000 -> 
B30: LESS TRANSFER TO INSTITUTIONAL
B31: SCHOLARSHIPS | D31: -242644 | F31: =D31/$F$11*1000 -> -37.27552711 | H31: ='CB-Current Fd'!$H$19:$H$20 -> -1007639 | J31: =H31/$J$11*1000 -> -145.2358824 | L31: ='BD-Current Fd'!$C$16:$C$17 -> -954000 | N31: =L31/$N$11*1000 -> 
B32: TUITION-NON SEM. CREDIT HOUR | D32: 2337791 | F32: =D32/$F$11*1000 -> 359.1368086 | H32: 4137778 | J32: =H32/$J$11*1000 -> 596.3979551 | L32: 4086250 | N32: =L32/$N$11*1000 -> 
B33: LESS TRANSFER TO INSTITUTIONAL
B34: SCHOLARSHIPS | D34: -140267 | F34: =D34/$F$11*1000 -> -21.54813785 | H34: ='CB-Current Fd'!$H$22:$H$23 -> -215528 | J34: =H34/$J$11*1000 -> -31.06509302 | L34: ='BD-Current Fd'!$C$18:$C$19 -> -237050 | N34: =L34/$N$11*1000 -> 
B35: LABORATORY AND OTHER FEES | D35: 2449111 | F35: =D35/$F$11*1000 -> 376.238042 | H35: 4119766 | J35: =H35/$J$11*1000 -> 593.8017985 | L35: 4131450 | N35: =L35/$N$11*1000 -> 
B36: TOTAL TUITION AND FEES | D36: =SUM(D29:D35) -> 9380762 | F36: =D36/$F$11*1000 -> 1441.094147 | H36: =SUM(H29:H35) -> 32517911 | J36: =H36/$J$11*1000 -> 4686.963782 | L36: =SUM(L29:L35) -> 32552650 | N36: =L36/$N$11*1000 -> 
B38: TAXES FOR CURRENT OPERATIONS | D38: 25644644 | F38: =D38/$F$11*1000 -> 3939.588956 | H38: ='CB-Current Fd'!$H$26 -> 64160845 | J38: =H38/$J$11*1000 -> 9247.812898 | L38: ='BD-Current Fd'!$C$23 -> 69265248 | N38: =L38/$N$11*1000 -> 
B40: OTHER INCOME:
B41: INTEREST INCOME | D41: 1345739 | F41: =D41/$F$11*1000 -> 206.7355079 | H41: ='CB-Current Fd'!$H$37:$H$40 -> 150000 | J41: =H41/$J$11*1000 -> 21.62022546 | L41: ='BD-Current Fd'!$C$39:$C$42 -> 55000 | N41: =L41/$N$11*1000 -> 
B42: INDIRECT COST RECOVERY | D42: 30069 | F42: =D42/$F$11*1000 -> 4.61926866 | H42: 73900 | J42: =H42/$J$11*1000 -> 10.65156441 | L42: 90938 | N42: =L42/$N$11*1000 -> 
B43: OTHER DISTRICT FUNDS | D43: 369185 | F43: =D43/$F$11*1000 -> 56.7150454 | H43: 73117 | J43: =H43/$J$11*1000 -> 10.53870683 | L43: 83451 | N43: =L43/$N$11*1000 -> 
B44: TOTAL OTHER INCOME | D44: =SUM(D41:D43) -> 1744993 | F44: =D44/$F$11*1000 -> 268.0698219 | H44: ='CB-Current Fd'!$H$41 -> 1228746 | J44: =H44/$J$11*1000 -> 177.1051037 | L44: =SUM(L41:L43) -> 229389 | N44: =L44/$N$11*1000 -> 
B46: TOTAL LOCAL FUNDS | D46: =SUM(D44,D38,D36) -> 36770399 | F46: =D46/$F$11*1000 -> 5648.752925 | H46: =SUM(H44,H38,H36) -> 97907502 | J46: =H46/$J$11*1000 -> 14111.88178 | L46: =SUM(L44,L38,L36) -> 102047287 | N46: =L46/$N$11*1000 -> 
B48: TOTAL E & G REVENUES | D48: =D46+D25+D20+D16 -> 58400178 | F48: =D48/$F$11*1000 -> 8971.569123 | H48: =H46+H25+H20+H16 ->  | J48: =H48/$J$11*1000 ->  | L48: =L46+L25+L20+L16 -> 149447876 | N48: =L48/$N$11*1000 -> 
B50: AUXILIARY SERVICES REVENUE | D50: 4640146 | F50: =D50/$F$11*1000 -> 712.8298578 | H50: ='CB-Current Fd'!$H$45 -> 10282593 | J50: =H50/$J$11*1000 -> 1482.07986 | L50: ='BD-Current Fd'!$C$49 -> 10138772.64 | N50: =L50/$N$11*1000 -> 
B52: TOTAL CURRENT FUNDS REVENUE | D52: =D48+D50 -> 63040324 | F52: =D52/$F$11*1000 -> 9684.39898 | H52: =H48+H50 ->  | J52: =H52/$J$11*1000 ->  | L52: =L48+L50 -> 159586648.6 | N52: =L52/$N$11*1000 -> 
B55: EXPENDITURES:
B56: EDUCATIONAL AND GENERAL:
B57: INSTITUTIONAL SUPPORT:
B58: GOVERNMENT OF INSTITUTION | D58: 58567 | F58: =D58/$F$11*1000 -> 8.9971967 | H58: ='CB-Current Fd'!H92 -> 64162 | J58: =H58/$J$11*1000 -> 9.247979374 | L58: ='BD-Current Fd'!C93 -> 64162 | N58: =L58/$N$11*1000 -> 
B59: EXECUTIVE OFFICES | D59: 966546 | F59: =D59/$F$11*1000 -> 148.4830106 | H59: ='CB-Current Fd'!H93 -> 1349646 | J59: =H59/$J$11*1000 -> 194.5310054 | L59: ='BD-Current Fd'!C94 -> 1344180 | N59: =L59/$N$11*1000 -> 
B60: PERSONNEL | D60: 557858 | F60: =D60/$F$11*1000 -> 85.69942385 | H60: ='CB-Current Fd'!H94 -> 1355636 | J60: =H60/$J$11*1000 -> 195.3943731 | L60: ='BD-Current Fd'!C95 -> 1514872 | N60: =L60/$N$11*1000 -> 
B61: BUSINESS AND FISCAL MGMT. | D61: 1210948 | F61: =D61/$F$11*1000 -> 186.0286057 | H61: ='CB-Current Fd'!H96 -> 2912567 | J61: =H61/$J$11*1000 -> 419.8023681 | L61: ='BD-Current Fd'!C96 -> 2433128 | N61: =L61/$N$11*1000 -> 
B62: PUBLIC INFORMATION | D62: 851533 | F62: =D62/$F$11*1000 -> 130.8144501 | H62: ='CB-Current Fd'!H97 -> 1890744 | J62: =H62/$J$11*1000 -> 272.5220771 | L62: ='BD-Current Fd'!C98 -> 2410359 | N62: =L62/$N$11*1000 -> 
B63: DEVELOPMENT/RESEARCH | D63: 667391 | F63: 102.5261342 | H63: ='CB-Current Fd'!H98 -> 409520 | J63: 59.02609821 | L63: ='BD-Current Fd'!C99 -> 438517
B64: SPECIAL ACTIVITIES | D64: 147168 | F64: 22.60828528 | H64: ='CB-Current Fd'!H99 -> 166332 | J64: 23.97423561 | L64: ='BD-Current Fd'!C100 -> 166332
B65: TAX APPRAISAL/COLLECTING | D65: 389373 | F65: 59.8163722 | H65: ='CB-Current Fd'!H100 -> 945000 | J65: 136.2074204 | L65: ='BD-Current Fd'!C101 -> 970607
B66: DATA PROCESSING/TELEPHONE | D66: 1987780 | F66: 305.367317 | H66: ='CB-Current Fd'!H102 -> 5323106 | J66: 767.2450125 | L66: ='BD-Current Fd'!C103 -> 6379944
B67: OTHER GENERAL INSTITUTION | D67: 218811 | F67: 33.61424705 | H67: ='CB-Current Fd'!H103 -> 2252281 | J67: 324.6321535 | L67: ='BD-Current Fd'!C104 -> 2790526
B68: TOTAL INSTITUTIONAL SUPPORT | D68: =SUM(D58:D67) -> 7055975 | F68: =D68/$F$11*1000 -> 1083.955043 | H68: =SUM(H58:H67) -> 16668994 | J68: =H68/$J$11*1000 -> 2402.582723 | L68: =SUM(L58:L67) -> 18512627 | N68: =L68/$N$11*1000 -> 
B70: STUDENT SERVICES:
B71: RECRUITMENT AND ARO | D71: 1056467 | F71: =D71/$F$11*1000 -> 162.2968806 | H71: ='CB-Current Fd'!$H$84:$H$87 -> 2391472 | J71: =H71/$J$11*1000 -> 344.6944255 | L71: ='BD-Current Fd'!$C$86:$C$89 -> 2324703 | N71: =L71/$N$11*1000 -> 
B72: GUIDANCE AND COUNSELING | D72: 1974425 | F72: =D72/$F$11*1000 -> 303.3156913 | H72: 4704356 | J72: =H72/$J$11*1000 -> 678.0615825 | L72: 4816476 | N72: =L72/$N$11*1000 -> 
B73: STUDENT FINANCIAL AID | D73: 293293 | F73: =D73/$F$11*1000 -> 45.05634251 | H73: 1662866 | J73: =H73/$J$11*1000 -> 239.6769189 | L73: 1699685 | N73: =L73/$N$11*1000 -> 
B74: STUDENT ACTIVITIES | D74: 246343 | F74: =D74/$F$11*1000 -> 37.84377596 | H74: 368780 | J74: =H74/$J$11*1000 -> 53.15404497 | L74: 365979 | N74: =L74/$N$11*1000 -> 
B75: TOTAL STUDENT SERVICES | D75: =SUM(D71:D74) -> 3570528 | F75: =D75/$F$11*1000 -> 548.5126904 | H75: =SUM(H71:H74) -> 9127474 | J75: =H75/$J$11*1000 -> 1315.586972 | L75: =SUM(L71:L74) -> 9206843 | N75: =L75/$N$11*1000 -> 
B77: STAFF BENEFITS:
B78: INSURANCE-HOSPITALIZATION | D78: 235276 | F78: =D78/$F$11*1000 -> 36.14363807 | H78: ='CB-Current Fd'!H115 -> 3820000 | J78: =H78/$J$11*1000 -> 550.5950751 | L78: ='BD-Current Fd'!C120 -> 4230000 | N78: =L78/$N$11*1000 -> 
B79: EARLY RETIREMENT EXPENSE | D79: 19622 | F79: 3.014376588 | H79: 0 | J79: 0 | L79: 0
B80: INSURANCE-DENTAL | D80: 97393 | F80: 14.96173576 | H80: ='CB-Current Fd'!H116 -> 230000 | J80: 33.15101237 | L80: ='BD-Current Fd'!C121 -> 250000
B81: TRS - PLANT/AUXILIARY | D81: 88181 | F81: 13.54656722 | H81: ='CB-Current Fd'!#REF! ->  | L81: ='BD-Current Fd'!#REF! -> 
B82: ORP DIFFERENTIAL/BENEFITS | D82: =105660+95403 -> 201063 | F82: 30.88775864 | H82: ='CB-Current Fd'!$H$117 -> 310000 | J82: 44.68179929 | L82: ='BD-Current Fd'!$C$122 -> 310000
B83: INSURANCE-WORKERS COMP | D83: 73762 | F83: 11.33148741 | H83: ='CB-Current Fd'!H119 -> 130000 | J83: 18.73752873 | L83: ='BD-Current Fd'!C124 -> 130000
B84: INSURANCE-UNEMPLOYMENT COMP | D84: 27939 | F84: 4.29205318 | H84: ='CB-Current Fd'!H120 -> 100000 | J84: 14.41348364 | L84: ='BD-Current Fd'!C125 -> 100000
B85: INSURANCE-MEDICARE | D85: 343600 | F85: 52.78461909 | H85: ='CB-Current Fd'!H121 -> 860000 | J85: 123.9559593 | L85: ='BD-Current Fd'!C126 -> 892000
B86: COURSE BANKING | D86: 52504 | F86: 8.065784752 | H86: ='CB-Current Fd'!H122 -> 0 | J86: 0 | L86: ='BD-Current Fd'!#REF! -> 
B87: SABBATICALS | D87: 146860 | F87: 22.56096961 | H87: ='CB-Current Fd'!H123 -> 0 | J87: 0 | L87: ='BD-Current Fd'!C127 -> 25000
B88: FICA | D88: 96100 | F88: 14.76310214 | H88: ='CB-Current Fd'!H124 -> 0 | J88: 0 | L88: ='BD-Current Fd'!#REF! -> 
B89: EMPLOYEE ASSISTANCE PROGRAM | D89: 0 | F89: =D89/$F$11*1000 -> 0 | H89: ='CB-Current Fd'!#REF! ->  | J89: =H89/$J$11*1000 ->  | L89: 0 | N89: =L89/$N$11*1000 -> 
B90: OTHER STAFF BENEFITS | D90: 119784 | F90: 18.40149247 | H90: ='CB-Current Fd'!H126 -> 475000 | J90: 68.46404729 | L90: ='BD-Current Fd'!C130 -> 520000
B91: TOTAL STAFF BENEFITS | D91: =SUM(D78:D90) -> 1502084 | F91: =D91/$F$11*1000 -> 230.7535849 | H91: =SUM(H78:H90) ->  | J91: =H91/$J$11*1000 ->  | L91: =SUM(L78:L90) ->  | N91: =L91/$N$11*1000 -> 
B93: INSTRUCTION:
B94: GENERAL ACADEMIC COURSES:
B95: FACULTY SALARIES | D95: 8422505 | F95: =D95/$F$11*1000 -> 1293.884512 | H95: ='CB-Current Fd'!H57 -> 37850918 | J95: =H95/$J$11*1000 -> 5455.635874 | L95: ='BD-Current Fd'!C59 -> 38649708 | N95: =L95/$N$11*1000 -> 
B96: DEPARTMENTAL OPER. EXP. | D96: 3931890 | F96: =D96/$F$11*1000 -> 604.0259486 | H96: ='CB-Current Fd'!H58 -> 4039383 | J96: =H96/$J$11*1000 -> 582.2158079 | L96: ='BD-Current Fd'!C60 -> 4086131 | N96: =L96/$N$11*1000 -> 
B97: TOTAL GENERAL ACADEMIC | D97: =SUM(D95:D96) -> 12354395 | F97: =D97/$F$11*1000 -> 1897.91046 | H97: =SUM(H95:H96) -> 41890301 | J97: =H97/$J$11*1000 -> 6037.851682 | L97: =SUM(L95:L96) -> 42735839 | N97: =L97/$N$11*1000 -> 
B98: TECHNICAL-OCCUPATIONAL - CREDIT:
B99: FACULTY SALARIES | D99: 3638355 | F99: =D99/$F$11*1000 -> 558.9324295 | H99: ='CB-Current Fd'!H62 -> 8079961 | J99: =H99/$J$11*1000 -> 1164.603857 | L99: ='BD-Current Fd'!C64 -> 8639817 | N99: =L99/$N$11*1000 -> 
B100: DEPARTMENTAL OPER. EXP | D100: 1473555 | F100: =D100/$F$11*1000 -> 226.3708946 | H100: ='CB-Current Fd'!H63 -> 1263649 | J100: =H100/$J$11*1000 -> 182.1358419 | L100: ='BD-Current Fd'!C65 -> 1519067 | N100: =L100/$N$11*1000 -> 
B101: TOTAL TECHNICAL-OCCUPATIONAL CREDIT | D101: =SUM(D99:D100) -> 5111910 | F101: =D101/$F$11*1000 -> 785.3033241 | H101: =SUM(H99:H100) -> 9343610 | J101: =H101/$J$11*1000 -> 1346.739699 | L101: =SUM(L99:L100) -> 10158884 | N101: =L101/$N$11*1000 -> 
B102: TECHNICAL-OCCUPATIONAL - NONCREDIT:
B103: FACULTY SALARIES | D103: 819316 | F103: =D103/$F$11*1000 -> 125.8652007 | H103: ='CB-Current Fd'!H67 -> 2493825 | J103: =H103/$J$11*1000 -> 359.4470584 | L103: ='BD-Current Fd'!C69 -> 2460850 | N103: =L103/$N$11*1000 -> 
B104: DEPARTMENTAL OPER. EXP | D104: 1183118 | F104: =D104/$F$11*1000 -> 181.7532973 | H104: ='CB-Current Fd'!H68 -> 1676568 | J104: =H104/$J$11*1000 -> 241.6518544 | L104: ='BD-Current Fd'!C70 -> 1787113 | N104: =L104/$N$11*1000 -> 
B105: TOTAL TECHNICAL-OCCUPATIONAL | D105: =SUM(D103:D104) -> 2002434 | F105: =D105/$F$11*1000 -> 307.6184981 | H105: =SUM(H103:H104) -> 4170393 | J105: =H105/$J$11*1000 -> 601.0989128 | L105: =SUM(L103:L104) -> 4247963 | N105: =L105/$N$11*1000 -> 
B107: TOTAL INSTRUCTION | D107: =SUM(D105,D101,D97) -> 19468739 | F107: =D107/$F$11*1000 -> 2990.832283 | H107: =SUM(H105,H101,H97) -> 55404304 | J107: =H107/$J$11*1000 -> 7985.690293 | L107: =SUM(L105,L101,L97) -> 57142686 | N107: =L107/$N$11*1000 -> 
B109: ACADEMIC SUPPORT:
B110: INSTRUCTIONAL ADMIN. EXP. | D110: =2451140+327726+115393 -> 2894259 | F110: =D110/$F$11*1000 -> 444.6226975 | H110: ='CB-Current Fd'!H78 -> 6123502 | J110: =H110/$J$11*1000 -> 882.609959 | L110: ='BD-Current Fd'!C81 -> 6018943 | N110: =L110/$N$11*1000 -> 
B111: LIBRARY AND AUDIO-VISUAL: | D111: 2417335 | F111: =D111/$F$11*1000 -> 371.3565401 | H111: ='CB-Current Fd'!H79 -> 2940357 | J111: =H111/$J$11*1000 -> 423.8078752 | L111: ='BD-Current Fd'!C82 -> 2924165 | N111: =L111/$N$11*1000 -> 
B112: TOTAL ACADEMIC SUPPORT | D112: =SUM(D110:D111) -> 5311594 | F112: =D112/$F$11*1000 -> 815.9792376 | H112: =SUM(H110:H111) -> 9063859 | J112: =H112/$J$11*1000 -> 1306.417834 | L112: =SUM(L110:L111) -> 8943108 | N112: =L112/$N$11*1000 -> 
B114: EXTENSION AND PUBLIC SERVICE:
B115: FACULTY SALARIES | D115: 17695 | F115: =D115/$F$11*1000 -> 2.718346434 | H115: ='CB-Current Fd'!H73 -> 87392 | J115: =H115/$J$11*1000 -> 12.59623162 | L115: ='BD-Current Fd'!$C$76 -> 87600 | N115: =L115/$N$11*1000 -> 
B116: DEPARTMENTAL OPER. EXP | D116: 10417 | F116: =D116/$F$11*1000 -> 1.600283402 | H116: ='CB-Current Fd'!#REF! ->  | J116: =H116/$J$11*1000 ->  | L116: ='BD-Current Fd'!#REF! ->  | N116: =L116/$N$11*1000 -> 
B117: INSTRUCTIONAL ADMIN. EXP | D117: 4317 | F117: =D117/$F$11*1000 -> 0.663187429 | H117: ='CB-Current Fd'!#REF! ->  | J117: =H117/$J$11*1000 ->  | L117: 0 | N117: =L117/$N$11*1000 -> 
B118: TOTAL EXTENSION & PUBLIC SERVICE | D118: =SUM(D115:D117) -> 32429 | F118: =D118/$F$11*1000 -> 4.981817266 | H118: =SUM(H115:H117) ->  | J118: =H118/$J$11*1000 ->  | L118: =SUM(L115:L117) ->  | N118: =L118/$N$11*1000 -> 
B120: PLANT OPERATION AND MAINTENANCE:
B121: GENERAL SERVICES | D121: 504135 | F121: =D121/$F$11*1000 -> 77.44637353 | H121: ='CB-Current Fd'!H107 -> 927496 | J121: =H121/$J$11*1000 -> 133.6844842 | L121: ='BD-Current Fd'!C110 -> 948292 | N121: =L121/$N$11*1000 -> 
B122: CAMPUS SECURITY | D122: 301005 | F122: 46.24107762 | H122: ='CB-Current Fd'!H95 -> 1966952 | J122: 283.5063047 | L122: ='BD-Current Fd'!C97 -> 1620809
B123: OPERATIONS/MAINTENANCE | D123: 996097 | F123: 153.0227029 | H123: ='CB-Current Fd'!H108 -> 2150352 | J123: 309.9406337 | L123: ='BD-Current Fd'!C111 -> 2276246
B124: CUSTODIAL SERVICES | D124: 659595 | F124: 101.3284948 | H124: ='CB-Current Fd'!H109 -> 2010746 | J124: 289.8185458 | L124: ='BD-Current Fd'!C112 -> 1982548
B125: GROUNDS MAINTENANCE | D125: 404104 | F125: 62.07938217 | H125: ='CB-Current Fd'!H110 -> 609522 | J125: 87.85335376 | L125: ='BD-Current Fd'!C113 -> 626521
B126: UTILITIES | D126: 1404102 | F126: 215.7013656 | H126: ='CB-Current Fd'!H111 -> 3914260 | J126: 564.1812248 | L126: ='BD-Current Fd'!C114 -> 3608880
B127: LEASE - PLANO NATATORIUM | D127: 900035 | F127: 138.2654384 | H127: 0 | J127: 0 | L127: 0
B128: SUPERDROME | D128: 86664 | F128: 13.3135222 | H128: ='CB-Current Fd'!#REF! ->  | L128: ='BD-Current Fd'!#REF! -> 
B129: TOTAL PLANT OPERATION AND MAINTENANCE | D129: =SUM(D121:D128) -> 5255737 | F129: =D129/$F$11*1000 -> 807.3983573 | H129: =SUM(H121:H128) ->  | J129: =H129/$J$11*1000 ->  | L129: =SUM(L121:L128) ->  | N129: =L129/$N$11*1000 -> 
B131: RENEWAL AND REPLACEMENT:
B132: DEFERRED MAINTENANCE | D132: 575421 | F132: =D132/$F$11*1000 -> 88.39749215 | H132: ='CB-Current Fd'!#REF! ->  | J132: =H132/$J$11*1000 ->  | L132: ='BD-Current Fd'!#REF! ->  | N132: =L132/$N$11*1000 -> 
B133: WIDE AREA NETWORK | D133: 0 | F133: =D133/$F$11*1000 -> 0 | H133: ='CB-Current Fd'!#REF! ->  | J133: =H133/$J$11*1000 ->  | L133: ='BD-Current Fd'!#REF! ->  | N133: =L133/$N$11*1000 -> 
B134: TOTAL RENEWAL AND REPLACEMENT | D134: =SUM(D132:D133) -> 575421 | F134: =SUM(F132:F133) -> 88.39749215 | H134: =SUM(H132:H133) ->  | J134: =SUM(J132:J133) ->  | L134: =SUM(L132:L133) ->  | N134: =SUM(N132:N133) -> 
B136: GRANTS AND CONTRACTS:
B137: GRANTS AND CONTRACTS | D137: 3155664 | F137: =D137/$F$11*1000 -> 484.7803324 | H137: ='CB-Current Fd'!$H$130 -> 36302536 | J137: =H137/$J$11*1000 -> 5232.460088 | L137: ='BD-Current Fd'!$C$135 -> 34798333 | N137: =L137/$N$11*1000 -> 
B138: TOTAL GRANTS AND CONTRACTS | D138: =D137 -> 3155664 | F138: =D138/$F$11*1000 -> 484.7803324 | H138: =H137 -> 36302536 | J138: =H138/$J$11*1000 -> 5232.460088 | L138: =L137 -> 34798333 | N138: =L138/$N$11*1000 -> 
B140: NON-MANDATORY TRANSFERS:
B141: AUXILIARY SERVICES | D141: 40000 | F141: =D141/$F$11*1000 -> 6.144891629 | H141: 0 | J141: =H141/$F$11*1000 -> 0 | L141: 0 | N141: =L141/$N$11*1000 -> 
B142: CHILD CARE | D142: 0 | F142: =D142/$F$11*1000 -> 0 | H142: ='CB-Current Fd'!H138 -> 200784 | J142: =H142/$J$11*1000 -> 28.93996899 | L142: ='BD-Current Fd'!$C$144 -> 209567 | N142: =L142/$N$11*1000 -> 
B143: CAPITAL PROJECTS | D143: 2806944 | F143: =D143/$F$11*1000 -> 431.2091672 | H143: ='CB-Current Fd'!#REF! ->  | J143: =H143/$J$11*1000 ->  | L143: 0 | N143: =L143/$N$11*1000 -> 
B144: TOTAL NON-MANDATORY TRANSFERS | D144: =SUM(D141:D143) -> 2846944 | F144: =D144/$F$11*1000 -> 437.3540588 | H144: =SUM(H141:H143) ->  | J144: =H144/$J$11*1000 ->  | L144: =SUM(L142:L142) -> 209567 | N144: =L144/$N$11*1000 -> 
B146: MANDATORY TRANSFERS:
B147: 1992 SERIES REVENUE BONDS | D147: 200156 | F147: =D147/$F$11*1000 -> 30.74842322 | H147: ='CB-Current Fd'!#REF! ->  | J147: =H147/$J$11*1000 ->  | L147: 0 | N147: =L147/$N$11*1000 -> 
B148: 1993 SERIES REVENUE BONDS | D148: 370363 | F148: =D148/$F$11*1000 -> 56.89601246 | H148: ='CB-Current Fd'!#REF! ->  | L148: ='BD-Current Fd'!#REF! -> 
B149: 1994 SERIES REVENUE BONDS | D149: 647113 | F149: 99.41098141 | H149: ='CB-Current Fd'!#REF! ->  | L149: ='BD-Current Fd'!#REF! -> 
B150: 1997 SERIES REVENUE BONDS | D150: 529730 | F150: 81.37833606 | H150: ='CB-Current Fd'!#REF! ->  | L150: ='BD-Current Fd'!#REF! -> 
B151: 1998 SERIES REVENUE BONDS | D151: 1057678 | F151: =D151/$F$11*1000 -> 162.4829172 | H151: ='CB-Current Fd'!#REF! ->  | J151: =H151/$J$11*1000 ->  | L151: ='BD-Current Fd'!#REF! ->  | N151: =L151/$N$11*1000 -> 
B152: PAYING AGENT FEES - REVENUE BONDS | D152: 0 | F152: =D152/$F$11*1000 -> 0 | H152: 0 | J152: =H152/$J$11*1000 -> 0 | L152: ='BD-Current Fd'!#REF! ->  | N152: =L152/$N$11*1000 -> 
B153: 1995 SERIES CONTRACTUAL OBLIGATIONS | D153: 848070 | F153: 130.2824561 | H153: 0 | J153: 0 | L153: 0
B154: GRANTS AND CONTRACTS | D154: 91812 | F154: 14.10436976 | H154: ='CB-Current Fd'!H144 -> 86819 | J154: 12.51364236 | L154: ='BD-Current Fd'!C150 -> 81748
B155: TOTAL MANDATORY TRANSFERS | D155: =SUM(D147:D154) -> 3744922 | F155: 575.3034962 | H155: =SUM(H147:H154) ->  | L155: =SUM(L147:L154) -> 
B157: TOTAL E AND G EXPENDITURES | D157: =SUM(D155,D144,D138,D134,D129,D118,D112,D107,D91,D75,D68) -> 52520037 | F157: =D157/$F$11*1000 -> 8068.248392 | H157: =SUM(H155,H144,H138,H134,H129,H118,H112,H107,H91,H75,H68) ->  | J157: =H157/$J$11*1000 ->  | L157: =SUM(L155,L144,L138,L134,L129,L118,L112,L107,L91,L75,L68) ->  | N157: =L157/$N$11*1000 -> 
B159: RESERVE AND ALLOCATIONS:
B160: RESERVE FOR CURRENT OPERATIONS | D160: 0 | F160: =D160/$F$11*1000 -> 0 | H160: ='CB-Current Fd'!$H$149 -> 1048383 | J160: =H160/$J$11*1000 -> 151.1085122 | L160: ='BD-Current Fd'!$C$156 -> 1500000 | N160: =L160/$N$11*1000 -> 
B161: RESERVE FOR STABILIZATION OF M & O | D161: 0 | F161: =D161/$F$11*1000 -> 0 | H161: 0 | J161: =H161/$J$11*1000 -> 0 | L161: ='BD-Current Fd'!#REF! ->  | N161: =L161/$N$11*1000 -> 
B162: RESERVE FOR ENCUMBRANCES | D162: 0 | F162: =D162/$F$11*1000 -> 0 | H162: ='CB-Current Fd'!$H$148 -> 0 | J162: =H162/$J$11*1000 -> 0 | L162: ='BD-Current Fd'!$C$155 -> 250000 | N162: =L162/$N$11*1000 -> 
B163: SALARY INCREASES - FACULTY AND STAFF | D163: 0 | F163: 0 | H163: ='CB-Current Fd'!$H$151 -> 0 | J163: 0 | L163: ='BD-Current Fd'!$C$157 -> 3800000
B164: CAPITAL EQUIPMENT | D164: 0 | F164: 0 | H164: ='CB-Current Fd'!#REF! ->  | L164: ='BD-Current Fd'!#REF! -> 
B165: FURNITURE-SPECIAL | D165: 0 | F165: 0 | H165: ='CB-Current Fd'!#REF! ->  | L165: 0
B166: SALARY INCREASES - PART-TIME FACULTY | D166: 0 | F166: 0 | H166: ='CB-Current Fd'!#REF! ->  | L166: ='BD-Current Fd'!#REF! -> 
B167: TOTAL RESERVE AND ALLOCATIONS | D167: =SUM(D160:D166) -> 0 | F167: 0 | H167: =SUM(H160:H166) ->  | L167: =SUM(L160:L166) -> 
B169: TOTAL E AND G EXP. AND RESERVE | D169: =D157+SUM(D160:D166) -> 52520037 | F169: =D169/$F$11*1000 -> 8068.248392 | H169: =H157+SUM(H160:H166) ->  | J169: =H169/$J$11*1000 ->  | L169: =L157+SUM(L160:L166) ->  | N169: =L169/$N$11*1000 -> 
B171: AUXILIARY SERVICES EXPENDITURES | D171: 4572497 | F171: =D171/$F$11*1000 -> 702.4374634 | H171: ='CB-Current Fd'!$H$156 -> 10765040 | J171: =H171/$J$11*1000 -> 1551.617279 | L171: ='BD-Current Fd'!$C$164 -> 10138772.64 | N171: =L171/$N$11*1000 -> 
B172: NET TRANSFERS/CHANGES IN FUND BALANCE | D172: 0 | F172: =D172/$F$11*1000 -> 0 | H172: ='CB-Current Fd'!$H$157 -> -482447 | J172: =H172/$J$11*1000 -> -69.53741942 | L172: ='BD-Current Fd'!$C$165 -> 0 | N172: =L172/$N$11*1000 -> 
B173: NET AUXILIARY SERVICES | D173: =SUM(D171:D172) -> 4572497 | F173: =D173/$F$11*1000 -> 702.4374634 | H173: ='CB-Current Fd'!$H$158 -> 10282593 | J173: =H173/$J$11*1000 -> 1482.07986 | L173: =SUM(L171:L172) -> 10138772.64 | N173: =L173/$N$11*1000 -> 
B175: TOTAL CURRENT FUNDS EXPENDITURES | D175: =D169+D173 -> 57092534 | F175: =D175/$F$11*1000 -> 8770.685856 | H175: =H169+H173 ->  | J175: =H175/$J$11*1000 ->  | L175: =L169+L171+L172 ->  | N175: =L175/$N$11*1000 -> 

Sheet Auxiliary recon
A1: Auxiliary Budget
B4: Bookstore | C4: Food Service | D4: Child Dev't | E4: Fitness | F4: Facilities Rental | G4: Print Shop | H4: Student Activities | I4: Athletics | J4: Fine Arts | K4: Scholarships | L4: Refund Petition | M4: TACC | N4: Aux Insti. Effect. | O4: Cell Tower | P4: Motor Pool | Q4: Total
B5: See below | C5: 813005 | D5: 823102 | F5: 822005 | G5: 812205 | H5: See below | I5: See Below | J5: See below | K5: 895002, 895004 | L5: 890002 | M5: 890004 | N5: 890005 | O5: 895003 | P5: 890001
A7: Revenue: | B7: 8318580 | C7: 100000 | D7: 191422 | E7: 0 | F7: 130000 | G7: 485739 | H7: 539000 | I7: 16000 | J7: 93382 | O7: 92000 | Q7: =SUM(B7:P7) -> 9966123
A8: Prior Fund Balance Decrease: | H8: 160150 | Q8: =SUM(B8:P8) -> 160150
A9: Expenses: | B9: -7800050 | C9: -57000 | D9: -400989 | F9: -130000 | G9: -485739 | H9: -422150 | I9: -630030 | J9: -183382 | K9: -132000 | L9: -27000 | M9: -58500 | N9: -9000 | P9: -10450 | Q9: =SUM(B9:P9) -> -10346290
A12: Excess Revenue over Expenses | B12: =SUM(B7:B11) -> 518530 | C12: 43000 | D12: -209567 | E12: 0 | F12: 0 | G12: 0 | H12: 277000 | I12: -614030 | J12: -90000 | K12: -132000 | L12: -27000 | M12: -58500 | N12: -9000 | O12: 92000 | P12: -10450 | Q12: =SUM(B12:P12) -> -220017
Q14: =SUM(B14:P14) -> 0
A15: Tranfer from Current Fund | D15: =200784+8783 -> 209567 | Q15: 209567
A16: Allocation from Current Fund | P16: 10450 | Q16: 10450
Q17: 0
A18: SAFAC Transfers | H18: =-I18-J18 -> -277000 | I18: 187000 | J18: 90000 | Q18: 0
Q19: 0
A20: Cell Tower Profits | K20: 92000 | O20: -92000 | Q20: 0
A21: Fitness Center Profits | E21: 0 | Q21: 0
A22: Food Service Profits | C22: -43000 | I22: 43000 | Q22: 0
A23: Bookstore Profits | B23: -518530 | I23: 384030 | K23: 40000 | L23: 27000 | M23: 58500 | N23: 9000 | Q23: 0
Q24: 0
A25: Increase in Fund Balance | B25: =SUM(B12:B24) -> 0 | C25: 0 | D25: 0 | E25: 0 | F25: 0 | G25: 0 | H25: 0 | I25: 0 | J25: 0 | K25: 0 | L25: 0 | M25: 0 | N25: 0 | O25: 0 | P25: =SUM(L29) -> 0 | Q25: 0
A28: Fund Balance
A30: Notes: | B30: Cell Tower rental income had fund balance of $54,761 at 08/31/13
B31: Camps had a fund balance of $42,876 at 08/31/13
B32: Student Actiities had a fund balance of $297,957 at 8/31/13
B36: SAFAC was allowed to use prior year fund balance after an internal audit. SAFAC use 94650 of prior year balance to cover their expenses and transfers
B39: Revenue | C39: Expenses
A40: Bookstore | H40: 90000 | I40: Fine Arts
A41: 811100 CPC | B41: 1750762 | H41: 187000 | I41: Athletics | N41: =422150-396050 -> 26100
A42: 811102 SCC | B42: =4302933-80000 -> 4222933 | H42: =SUM(H40:H41) -> 277000
A43: 811104 CYC | B43: 313064
A44: 811106 PRC | B44: 2031821
B45: =SUM(B41:B44) -> 8318580 | C45: -234012 | D45: =SUM(B45:C45) -> 8084568 | H45: 16100 | I45: Veterans
H46: 25000 | I46: Political Science
A47: Student Activities | H47: 55000 | I47: CSCE
A48: 880005 Student Activities | B48: 180000 | H48: 8900 | I48: Counseling
A49: 880007 Career Services | B49: 2150 | H49: 2150 | I49: Career Services
A50: 880008 Counseling Services | B50: 8900 | H50: 180000 | I50: Student Life
A51: 880010 Political Science | B51: 25000 | H51: 10000 | I51: SCC Biennial
A52: 880011 CSCE | B52: 55000 | H52: 125000 | I52: SAFAC
A53: 880012 SCC Biennial Event | B53: 10000 | H53: =SUM(H45:H52) -> 422150
A54: 880013 Veteran's Day | B54: 16100
A55: Athletics (added to budget below) | B55: 187000 | H55: =+H53+H42 -> 699150
A56: SAFAC | B56: 125000
A57: Fine Arts (added to budget below) | B57: 90000
B58: =SUM(B48:B57) -> 699150
A60: Athletics
A61: 840010 Basketball - Men
A62: 840011 Basketball - Women
A63: 840020 Tennis
A64: 840005 General
A65: 870102 Basketball Camp - Men
A66: 870103 Basketball Camp - Women
A67: 870110 Tennis Camp
B68: =SUM(B61:B67) -> 0
A71: Fine Arts
A72: 890006 North TX Drama Auditions
A73: 890003 Fine Arts
A74: 870120 Jazz Camp
A75: 870121 Dance Camp
A76: 870122 Guitar Camp
A77: 880006 Fine Arts SAFAC Fund
B78: =SUM(B72:B77) -> 0

Sheet %Changes
B3: Collin County Community College District
B4: Comparative Current Fund Budget
D7: 2011-12 | F7: 2012-13 | I7: Percent | K7: 2013-14 | N7: Percent | P7: 2014-15 | S7: Percent
D8: Actual | F8: Actual | I8: Change | K8: Budget* | N8: Change | P8: Budget | S8: Change
B10: Revenues:
B12: State Appropriations | D12: ='CB-Current Fd'!D14 -> 30210041 | F12: ='CB-Current Fd'!F14 -> 31087895 | H12: =F12-D12 -> 877854 | I12: =IF(F12=0,0,+H12/D12) -> 0.02905835182 | K12: ='CB-Current Fd'!H14 -> 33136075 | M12: =K12-F12 -> 2048180 | N12: =IF(M12=0,0,+M12/F12) -> 0.06588352154 | P12: ='CB-Current Fd'!J14 -> 33136075 | R12: =P12-K12 -> 0 | S12: =IF(R12=0,0,+R12/K12) -> 0
B13: Tuition and Fees | D13: ='CB-Current Fd'!D24 -> 28733139.54 | F13: ='CB-Current Fd'!F24 -> 30630998.05 | H13: 1897858.51 | I13: =IF(F13=0,0,+H13/D13) -> 0.06605120569 | K13: ='CB-Current Fd'!H24 -> 32517911 | M13: 1886912.95 | N13: =IF(M13=0,0,+M13/F13) -> 0.06160141915 | P13: ='CB-Current Fd'!J24 -> 32552650 | R13: 34739 | S13: =IF(R13=0,0,+R13/K13) -> 0.001068303557
B14: Taxes for Current Operations | D14: ='CB-Current Fd'!D26 -> 60160875.13 | F14: ='CB-Current Fd'!F26 -> 61935483.98 | H14: 1774608.85 | I14: 0.02949772333 | K14: ='CB-Current Fd'!H26 -> 64160845 | M14: 2225361.02 | N14: 0.03593030807 | P14: ='CB-Current Fd'!J26 -> 69265248 | R14: 5104403 | S14: 0.07955635559
B15: Federal Funds | D15: ='CB-Current Fd'!D30 -> 75958824 | F15: ='CB-Current Fd'!F30 -> 68370662 | H15: -7588162 | I15: -0.09989836072 | K15: ='CB-Current Fd'!H30 -> 34128460 | M15: -34242202 | N15: -0.5008318041 | P15: ='CB-Current Fd'!J30 -> 32166530 | R15: -1961930 | S15: -0.05748662553
B16: State and Private Grants | D16: ='CB-Current Fd'!D34 -> 2301826 | F16: ='CB-Current Fd'!F34 -> 628453 | H16: -1673373 | I16: -0.7269763223 | K16: ='CB-Current Fd'!H34 -> 2174076 | M16: 1545623 | N16: 2.459409057 | P16: ='CB-Current Fd'!J34 -> 2631803 | R16: 457727 | S16: 0.210538638
B17: Other Income | D17: ='CB-Current Fd'!D41 -> 1757669.15 | F17: ='CB-Current Fd'!F41 -> 1310016.44 | H17: -447652.71 | I17: -0.2546854225 | K17: ='CB-Current Fd'!H41 -> 1228746 | M17: -81270.44 | N17: -0.06203772527 | P17: ='CB-Current Fd'!J41 -> 1275622 | R17: 46876 | S17: 0.03814946295
B18: Total Education and Grants Revenues | D18: =+D12+D13+D14+D16+D17+D15 -> 199122374.8 | F18: =+F12+F13+F14+F16+F17+F15 -> 193963508.5 | H18: -5158866.35 | I18: -0.0259080194 | K18: =+K12+K13+K14+K16+K17+K15 -> 167346113 | M18: -26617395.47 | N18: =IF(M18=0,0,+M18/K18) -> -0.1590559529 | P18: =+P12+P13+P14+P16+P17+P15 -> 171027928 | R18: 3681815 | S18: 0.0220011982
B19: Sales/Services of Auxiliary Enterprises | D19: ='CB-Current Fd'!D45 -> 10562858 | F19: ='CB-Current Fd'!F45 -> 10165003 | H19: -397855 | I19: -0.03766546895 | K19: ='CB-Current Fd'!H45 -> 10282593 | M19: 117590 | N19: =IF(M19=0,0,+M19/F19) -> 0.01156812251 | P19: ='CB-Current Fd'!J45 -> 10138773 | R19: -143820 | S19: -0.01398674439
B21: Total Current Funds Revenues | D21: =SUM(D18:D19) -> 209685232.8 | F21: =SUM(F18:F19) -> 204128511.5 | H21: =F21-D21 -> -5556721.35 | I21: -0.02650029893 | K21: =SUM(K18:K19) -> 177628706 | M21: =K21-F21 -> -26499805.47 | N21: =IF(M21=0,0,+M21/K21) -> -0.1491865029 | P21: =SUM(P18:P19) -> 181166701 | R21: =P21-K21 -> 3537995 | S21: 0.01991792363
B23: Expenses:
B25: Educational and General:
B26: Instruction | D26: ='CB-Current Fd'!D70 -> 45717029.44 | F26: ='CB-Current Fd'!F70 -> 48385303.22 | H26: =F26-D26 -> 2668273.78 | I26: =IF(F26=0,0,+H26/D26) -> 0.05836498593 | K26: ='CB-Current Fd'!H70 -> 55404304 | M26: =K26-F26 -> 7019000.78 | N26: =IF(M26=0,0,+M26/F26) -> 0.1450647265 | P26: ='CB-Current Fd'!J70 -> 57142686 | R26: =P26-K26 -> 1738382 | S26: 0.03137629885
B27: Public Service | D27: ='CB-Current Fd'!D75 -> 116499.48 | F27: ='CB-Current Fd'!F75 -> 108427.53 | H27: -8071.95 | I27: -0.06928743373 | K27: ='CB-Current Fd'!H75 -> 125632 | M27: 17204.47 | N27: 0.1586725253 | P27: ='CB-Current Fd'!J75 -> 125339 | R27: -293 | S27: -0.002332208355
B28: Academic Support | D28: ='CB-Current Fd'!D80 -> 8034147 | F28: ='CB-Current Fd'!F80 -> 8201353.37 | H28: 167206.37 | I28: 0.02081196299 | K28: ='CB-Current Fd'!H80 -> 9063859 | M28: 862505.63 | N28: 0.1051662562 | P28: ='CB-Current Fd'!J80 -> 8943108 | R28: -120751 | S28: -0.01332225049
B29: Student Services | D29: ='CB-Current Fd'!D88 -> 6789846 | F29: ='CB-Current Fd'!F88 -> 7368444.22 | H29: 578598.22 | I29: 0.0852152199 | K29: ='CB-Current Fd'!H88 -> 9127474 | M29: 1759029.78 | N29: 0.2387247196 | P29: ='CB-Current Fd'!J88 -> 9206843 | R29: 79369 | S29: 0.008695615019
B30: Institutional Support | D30: ='CB-Current Fd'!D104 -> 15366241.44 | F30: ='CB-Current Fd'!F104 -> 16021518.59 | H30: 655277.15 | I30: 0.04264394469 | K30: ='CB-Current Fd'!H104 -> 19510946 | M30: 3489427.41 | N30: 0.2177962963 | P30: ='CB-Current Fd'!J104 -> 21146436 | R30: 1635490 | S30: 0.08382422872
B31: Operation and Maintenance of Plant | D31: ='CB-Current Fd'!D112 -> 7794513.43 | F31: ='CB-Current Fd'!F112 -> 8351135.96 | H31: 556622.53 | I31: 0.07141209455 | K31: ='CB-Current Fd'!H112 -> 9612376 | M31: 1261240.04 | N31: 0.1510261653 | P31: ='CB-Current Fd'!J112 -> 9442487 | R31: -169889 | S31: -0.01767398612
B32: Staff Benefits | D32: ='CB-Current Fd'!D127 -> 6020820.83 | F32: ='CB-Current Fd'!F127 -> 8983411.26 | H32: 2962590.43 | I32: 0.4920575639 | K32: ='CB-Current Fd'!H127 -> 8590000 | M32: -393411.26 | N32: -0.04379308134 | P32: ='CB-Current Fd'!J127 -> 9008700 | R32: 418700 | S32: 0.0487427241
B33: Grants and Contracts | D33: ='CB-Current Fd'!D131 -> 78260650 | F33: ='CB-Current Fd'!F131 -> 68539562 | H33: -9721088 | I33: -0.1242142507 | K33: ='CB-Current Fd'!H131 -> 36302536 | M33: -32237026 | N33: -0.4703418735 | P33: ='CB-Current Fd'!J131 -> 34798333 | R33: -1504203 | S33: -0.04143520442
B34: Total Educational and General Expenses | D34: =SUM(D33,D31,D27,D28,D26,D32,D29,D30)-2 -> 168099745.6 | F34: =SUM(F33,F31,F27,F28,F26,F32,F29,F30) -> 165959156.2 | H34: -2140589.47 | I34: -0.01273404348 | K34: =SUM(K26:K33) -> 147737127 | M34: -18222029.15 | N34: -0.1097982755 | P34: =SUM(P33,P31,P27,P28,P26,P32,P29,P30) -> 149813932 | R34: 2076805 | S34: 0.01405743459
B35: Non-Mandatory Transfers | D35: ='CB-Current Fd'!D139 -> 8828288 | F35: ='CB-Current Fd'!F139 -> 21862935.8 | H35: 13034647.8 | I35: 1.476463817 | K35: ='CB-Current Fd'!H139 -> 17361788 | M35: -4501147.8 | N35: -0.2058803009 | P35: ='CB-Current Fd'!J139 -> 14472507 | R35: -2889281 | S35: -0.1664160972
B36: Mandatory Transfers | D36: ='CB-Current Fd'!D145 -> 1263055 | F36: ='CB-Current Fd'!F145 -> 1197764.75 | H36: -65290.25 | I36: -0.05169232535 | K36: ='CB-Current Fd'!H145 -> 1198815 | M36: 1050.25 | N36: 0.0008768416336 | P36: ='CB-Current Fd'!J145 -> 1191489 | R36: -7326 | S36: -0.006111034647
B37: Reserves | D37: ='CB-Current Fd'!D152 -> 6948420 | F37: ='CB-Current Fd'!F152 -> 0 | H37: -6948420 | I37: 0 | K37: ='CB-Current Fd'!H152 -> 1048383 | M37: 1048383 | N37: 0 | P37: ='CB-Current Fd'!J152 -> 5550000 | R37: 4501617 | S37: 4.293866841
B39: Total Educational & Gen Exp, Transfers and Reserves | D39: =D34+D37+D35+D36 -> 185139508.6 | F39: =F34+F37+F35+F36 -> 189019856.7 | H39: =F39-D39 -> 3880348.08 | I39: 0.02095904925 | K39: =SUM(K34:K38) -> 167346113 | M39: =K39-F39 -> -21673743.7 | N39: -0.1146638458 | P39: =P34+P37+P35+P36 -> 171027928 | R39: =P39-K39 -> 3681815 | S39: 0.0220011982
B40: Net Auxiliary Enterprises | D40: ='CB-Current Fd'!D158 -> 11032009 | F40: ='CB-Current Fd'!F158 -> 10006382 | H40: =F40-D40 -> -1025627 | I40: -0.09296828891 | K40: ='CB-Current Fd'!H158 -> 10282593 | M40: =K40-F40 -> 276211 | N40: 0.02760348346 | P40: ='CB-Current Fd'!J158 -> 10138772.64 | R40: =P40-K40 -> -143820.36 | S40: -0.0139867794
B42: Total Current Funds Expenses | D42: =+D40+D39 -> 196171517.6 | F42: =+F40+F39 -> 199026238.7 | H42: =F42-D42 -> 2854721.08 | I42: 0.01455216901 | K42: =+K40+K39 -> 177628706 | M42: =K42-F42 -> -21397532.7 | N42: -0.1075111143 | P42: =P39+P40 -> 181166700.6 | R42: =P42-K42 -> 3537994.64 | S42: 0.0199179216
B44: * Midyear budget as approved by the Board on March 25, 2014
